Workbook

Sheet Inicio

Sheet Regiones
Q1: 05002 | R1: JOHN | S1: JAIRO | T1: MANRIQUE | U1: HERNÁNDEZ | AB1: 05002 | AC1: LINA | AD1: MARCELA | AE1: GONZALEZ | AF1: CASAS
Q2: 05004 | R2: LUIS | S2: ALFONSO | T2: SALAS | U2: CARDONA | AB2: 05004 | AC2: DUVER | AD2: MARY | AE2: VELASQUEZ | AF2: PULGARIN
Q3: 05021 | R3: UBER | S3: ARBEY | T3: AGUILAR | U3: CARMONA | AB3: 05021 | AC3: GLORIA | AD3: CECILIA | AE3: NARANJO | AF3: OSORIO
Q4: 05030 | R4: JUAN | S4: CARLOS | T4: AMAYA | U4: CANO | AB4: 05030 | AC4: DAVID | AD4: ALEJANDRO | AE4: QUIROS | AF4: VELASQUEZ
Q5: 05031 | R5: OSCAR | S5: MARIO | T5: GARCÍA | U5: RENDÓN | AB5: 05031 | AC5: JESSICA | AD5: ALEJANDRA | AE5: ZAPATA | AF5: RESTREPO
Q6: 05034 | R6: ELKIN | S6: DARÍO | T6: JARAMILLO | U6: JARAMILLO | AB6: 05034 | AC6: ANA | AD6: CAROLINA | AE6: OSPINA | AF6: OLAYA
Q7: 05036 | R7: JAIME | S7: ALBERTO | T7: GÓMEZ | U7: GÓMEZ | AB7: 05036 | AC7: LEIDY | AD7: TATIANA | AE7: MONTOYA | AF7: TAMAYO
Q8: 05038 | R8: JOSE | S8: MIGUEL | T8: VÁSQUEZ | U8: ARANGO | AB8: 05038 | AC8: GLORIA | AE8: ESTELLA | AF8: ACEVEDO
Q9: 05040 | R9: GILDARDO | S9: ALONSO | T9: ROLDÁN | U9: FORONDA | AB9: 05040 | AC9: CLAUDIA | AD9: PATRICIA | AE9: VELEZ | AF9: BARRERA
Q10: 05044 | R10: LUIS | S10: GONZAGA | T10: MARTÍNEZ | U10: SIERRA | AB10: 05044 | AC10: YODILMA | AD10: AMPARO | AE10: MOLINA | AF10: ATEHORTUA
Q11: 05045 | R11: LUIS | S11: GONZALO | T11: GIRALDO | U11: AGUIRRE | AB11: 05045 | AC11: JOSÉ | AD11: ALONSO | AE11: ALVAREZ | AF11: QUINTANA
Q12: 05051 | R12: DIANA | S12: STELLA | T12: GARRIDO | U12: HENAO | AB12: 05051 | AC12: JAFETH | AE12: LONDOÑO | AF12: MONZON
Q13: 05055 | R13: FLOR | S13: DEY | T13: GRANADA | U13: VALENCIA | AB13: 05055 | AC13: PAOLA | AE13: MANCO
Q14: 05059 | R14: LUIS | S14: NORBEY | T14: ACEVEDO | U14: SÁNCHEZ | AB14: 05059 | AC14: WILMAN ANDRES | AD14: CARDENAS | AE14: SAN | AF14: MARTIN
Q15: 05079 | R15: HERNANDO | S15: ALONSO | T15: CATAÑO | U15: VÉLEZ | AB15: 05079 | AC15: CLAUDIA | AD15: PATRICIA | AE15: AVENDAÑO | AF15: MOLINA
Q16: 05088 | R16: CARLOS | T16: ALIRIO | U16: MUÑOZ | AB16: 05088 | AC16: CESAR | AD16: AUGUSTO | AE16: ARANGO | AF16: SERNA
Q17: 05086 | R17: EDISON | S17: DE JESÚS | T17: BUSTAMANTE | U17: RUIZ | AB17: 05086 | AC17: GLORIA | AD17: ZULEIMA | AE17: VELASQUEZ | AF17: ZAPATA
Q18: 05091 | R18: JUAN | S18: CARLOS | T18: MONTOYA | U18: ALZATE | AB18: 05091 | AC18: ALEJANDRA | AD18: MARIA | AE18: ARANGO | AF18: ALVAREZ
Q19: 05093 | R19: LEÓN | S19: DARÍO | T19: VÉLEZ | U19: YEPES | AB19: 05093 | AC19: YULIANA | AD19: ANDREA | AE19: LONDOÑO | AF19: VANEGAS
Q20: 05107 | R20: OMAR | S20: FERNANDO | T20: ARENAS | U20: CHAVARRÍA | AB20: 05120 | AC20: EDUARD | AD20: ANTONIO | AE20: MARIN | AF20: LONDOÑO
Q21: 05113 | R21: CARLOS | S21: MARIO | T21: VARELA | U21: RAMÍREZ | AB21: 05125 | AC21: LEIDY | AD21: JOHANNA | AE21: ZAPATA | AF21: ZAPATA
Q22: 05120 | R22: NURYS MARÍA | S22: ESCOBAR | T22: SUÁREZ | U22: € | AB22: 05107 | AC22: LUZ | AD22: MARINA | AE22: GONZALEZ | AF22: ZAPATA
Q23: 05125 | R23: JHON | S23: GERARDO | T23: CARO | U23: VARELA | AB23: 05113 | AC23: PAULO | AD23: ANDRES | AE23: BUSTAMANTE | AF23: VILLEGAS
Q24: 05129 | R24: MÓNICA | S24: MARÍA | T24: RAIGOZA | U24: MORALES | AB24: 05129 | AC24: EDIER | AD24: ALBERTO | AE24: CARO | AF24: ALVAREZ
Q25: 05134 | R25: HÉCTOR | S25: ALFONSO | T25: GÓMEZ | U25: TRUJILLO | AB25: 05134 | AC25: FERNANDO | AD25: DE JESUS | AE25: VERGARA | AF25: VELEZ
Q26: 05138 | R26: AICARDO | S26: ANTONIO | T26: URREGO | U26: ÚSUGA | AB26: 05138 | AC26: ROSA | AD26: MARIA | AE26: RUDA | AF26: VERGARA
Q27: 05142 | R27: CARLOS | S27: ALBERTO | T27: MUÑOZ | U27: GUTIÉRREZ | AB27: 05142 | AC27: JOSE | AD27: GILBERTO | AE27: OCAMPO | AF27: ZAPATA
Q28: 05145 | R28: JULIÁN | S28: ANDRÉS | T28: GRANADA | U28: RESTREPO | AB28: 05145 | AC28: DIEGO | AD28: ALEJANDRO | AE28: JIMENEZ | AF28: DELGADO
Q29: 05147 | R29: AGAPITO | T29: MURILLO | U29: PALACIOS | AB29: 05147 | AC29: RUTH | AD29: MARGELY | AE29: AGUDELO | AF29: CASTAÑO
Q30: 05150 | R30: JUAN | S30: JOSÉ | T30: VÁSQUEZ | U30: CÁRDENAS | AB30: 05150 | AC30: IVAN | AD30: ALEXANDER | AE30: FAJARDO | AF30: PUERTA
Q31: 05154 | R31: JOSE | S31: NADÍN | T31: ARABIA | U31: ABISAAD | AB31: 05154 | AC31: NATALIA | AE31: ARBELAEZ | AF31: SOTO
Q32: 05172 | R32: EDGAR | T32: PAYARES | U32: BERRÍO | AB32: 05172 | AC32: PAOLA | AD32: ANDREA | AE32: JARAMILLO | AF32: VASQUEZ
Q33: 05190 | R33: NELLY | S33: DEL SOCORRO | T33: QINTERO | U33: PIEDRAHITA | AB33: 05190 | AC33: JOSE | AE33: GARCIA | AF33: NIEBLES
Q34: 05101 | R34: LUIS | S34: BERNARDO | T34: MORENO | U34: VARGAS | AB34: 05101 | AC34: MIGUEL | AD34: ANGEL | AE34: RENTERIA | AF34: HENAO
Q35: 05197 | R35: JORGE | S35: DE JESÚS | T35: VÁSQUEZ | U35: MONTOYA | AB35: 05197 | AC35: LUIS | AD35: GUILLERMO | AE35: ALVAREZ | AF35: GONZALEZ
Q36: 05206 | R36: GUSTAVO | S36: ALONSO | T36: LÓPEZ | U36: ORREGO | AB36: 05206 | AC36: SONIA | AD36: ISABEL | AE36: MEJÍA | AF36: TABARES
Q37: 05209 | R37: SERGIO | S37: DE JESÚS | T37: RESTREPO | U37: BETANCUR | AB37: 05209 | AC37: DIANA | AD37: PATRICIA | AE37: RIOS | AF37: VANEGAS
Q38: 05212 | R38: HÉCTOR | S38: AUGUSTO | T38: MONSALVE | U38: RESTREPO | AB38: 05212 | AC38: ALEXANDRA | AE38: HERRERA | AF38: QUIJANO
Q39: 05234 | R39: TORIBIO | T39: GIRÓN | U39: DAVID | AB39: 05234 | AC39: CARLOS | AD39: ARTURO | AE39: ZAPATA | AF39: ZAPATA
Q40: 05237 | R40: JAVIER | S40: DARÍO | T40: LÓPEZ | U40: RESTREPO | AB40: 05237 | AC40: MARTA | AD40: LUCIA | AE40: SEPULVEDA | AF40: GARCIA
Q41: 05240 | R41: MANUEL | S41: SALVADOR | T41: ZAPATA | U41: CUADROS | AB41: 05240 | AC41: LILIANA | AD41: DEL CARMEN | AE41: GOMEZ | AF41: RESTREPO
Q42: 05250 | R42: HAROLD | S42: ALONSO | T42: ECHEVERRI | U42: AVENDAÑO | AB42: 05411 | AC42: SERGIO | AD42: ANDRÉS | AE42: RESTREPO | AF42: ÚSUGA
Q43: 05148 | R43: NESTOR | S43: JOAQUÍN | T43: MARTÍNEZ | U43: JIMÉNEZ | AB43: 05250 | AC43: JULIANA | AD43: ANDREA | AE43: JULIO | AF43: AGUDELO
Q44: 05541 | R44: FREDY | S44: DE JESÚS | T44: OCAMPO | U44: GÓMEZ | AB44: 05148 | AC44: SAMIR | AD44: JOSE | AE44: ROMERO | AF44: MONTERROSA
Q45: 05607 | R45: ELKIN | S45: DARÍO | T45: VILLADA | U45: HENAO | AB45: 05541 | AC45: ANGEL | AD45: NORBEY | AE45: GARCIA | AF45: GIRALDO
Q46: 05697 | R46: JUAN | S46: LEONARDO | T46: ZULUAGA | U46: SALAZAR | AB46: 05607 | AC46: MARCELA | AE46: GIRALDO | AF46: BOTERO
Q47: 05264 | R47: ÓSCAR | S47: ALBERTO | T47: DE J. | U47: PÉREZ | AB47: 05697 | AC47: MARIA | AD47: AMPARO | AE47: CARVAJAL | AF47: GALLO
Q48: 05266 | R48: HÉCTOR | T48: LONDOÑO | U48: RESTREPO | AB48: 05264 | AC48: BEATRIZ | AD48: ELENA | AE48: LOPERA | AF48: VILLA
Q49: 05282 | R49: JORGE | S49: LUIS | T49: MESA | U49: SÁNCHEZ | AB49: 05266 | AC49: RICARDO | AD49: ANTONIO | AE49: CASTRILLON | AF49: QUINTERO
Q50: 05284 | R50: JORGE | S50: HUGO | T50: ELEJALDE | U50: LÓPEZ | AB50: 05282 | AC50: DANIEL | AD50: ALEJANDRO | AE50: MARIN | AF50: SERNA
Q51: 05306 | R51: JAIME | S51: LEÓN | T51: PÉREZ | U51: GUERRA | AB51: 05284 | AC51: ANA | AD51: PIEDAD | AE51: MORENO | AF51: GUISAO
Q52: 05308 | R52: LUIS | S52: FERNANDO | T52: ORTIZ | U52: SÁNCHEZ | AB52: 05306 | AC52: EDISON | AD52: ALONSO | AE52: USUGA | AF52: RUEDA
Q53: 05310 | R53: MARIO | S53: DE JESÚS | T53: RESTREPO | U53: PÉREZ | AB53: 05308 | AC53: DIDIER | AD53: ORLANDO | AE53: ALZATE | AF53: ARIAS
Q54: 05313 | R54: FREDDY | T54: CASTAÑO | U54: ARISTIZÁBAL | AB54: 05310 | AC54: LAURA | AD54: CATALINA | AE54: ROJO | AF54: BERMUDEZ
Q55: 05315 | R55: CESAR | S55: AUGUSTO | T55: AGUDELO | U55: METRIO | AB55: 05313 | AC55: DEISY | AD55: YOHANNA | AE55: GIRALDO | AF55: ZULUAGA
Q56: 05318 | R56: LUIS | S56: EDUARDO | T56: OCHOA | U56: LONDOÑO | AB56: 05315 | AC56: YOLANDA | AE56: CALLE | AF56: CHAVARRIA
Q57: 05321 | R57: MAURICIO | S57: ALEJANDRO | T57: HERNÁNDEZ | U57: JIMÉNEZ | AB57: 05318 | AC57: WILBER | AD57: ARDUAI | AE57: MEJIA | AF57: TORO
Q58: 05347 | R58: JOHN | S58: FREDY | T58: ORTIZ | U58: TABARES | AB58: 05321 | AC58: EDWIN | AE58: GUARIN | AF58: GARCIA
Q59: 05353 | R59: FRANKY | S59: HENRY | T59: GAVIRIA | U59: CASTAÑO | AB59: 05353 | AC59: CATALINA | AE59: BOLIVAR | AF59: LONDOÑO
Q60: 05360 | R60: CARLOS | S60: ANDRÉS | T60: TRUJILLO | U60: GONZÁLEZ | AB60: 05361 | AC60: CARLOS | AD60: MARIO | AE60: BEDOYA | AF60: ECHAVARRIA
Q61: 05361 | R61: JAIME | S61: ELÍAS | T61: MONTOYA | U61: LONDOÑO | AB61: 05364 | AC61: JUAN | AD61: CARLOS | AE61: GUZMAN | AF61: NOREÑA
Q62: 05364 | R62: ÁLVARO | S62: ANÍBAL | T62: CARVAJAL | U62: OCHOA | AB62: 05376 | AC62: MARIA | AD62: ILBED | AE62: SANTA | AF62: SANTA
Q63: 05368 | R63: DAVID | S63: ALONSO | T63: TORO | U63: CADAVID | AB63: 05400 | AC63: SANDRA | AD63: MILENA | AE63: GOMEZ | AF63: OSORIO
Q64: 05376 | R64: JOSE | S64: ALBERTO | T64: PATIÑO | U64: MARTÍNEZ | AB64: 05347 | AC64: MONICA | AD64: ALEXANDRA | AE64: VELASQUEZ | AF64: MONTOYA
Q65: 05380 | R65: JUAN | S65: DIEGO | T65: ECHAVARRIA | U65: SÁNCHEZ | AB65: 05360 | AC65: LUIS | AD65: GUILLERMO | AE65: PEREZ | AF65: SÁNCHEZ
Q66: 05390 | R66: RODRIGO | T66: GARCÍA | U66: LONDOÑO | AB66: 05368 | AC66: MARIA | AD66: ISABEL | AE66: GALLEGO | AF66: JARAMILLO
Q67: 05400 | R67: EDGAR | S67: ALEXANDER | T67: OSORIO | U67: LONDOÑO | AB67: 05380 | AC67: JAIME | AD67: ALBERTO | AE67: CARMONA | AF67: CANO
Q68: 05411 | R68: ADRIANA | S68: MARIA | T68: MAYA | U68: GALLEGO | AB68: 05390 | AC68: DIANA | AD68: MARIA | AE68: LOPEZ | AF68: PÉREZ
Q69: 05425 | R69: FRANCISCO | S69: EMIRO | T69: ÁLVAREZ | U69: HOLGUÍN | AB69: 05425 | AC69: CLARIBETH | AE69: CALDERON | AF69: GÓMEZ
Q70: 05440 | R70: JOSE | S70: GILDARDO | T70: HURTADO | U70: ALZATE | AB70: 05440 | AC70: LUZ | AD70: ADRIANA | AE70: BETANCUR | AF70: NANCLARES
Q71: 05001 | R71: ANÍBAL | T71: GAVIRIA | U71: CORREA | AB71: 05001 | AC71: GABRIEL | AD71: JAIME | AE71: GUARIN | AF71: ALZATE
Q72: 05467 | R72: OSCAR | S72: ERNESTO | T72: CUERVO | U72: VILLADA | AB72: 05467 | AC72: MARIA | AD72: CECILIA | AE72: BERMUDEZ | AF72: TOBÓN
Q73: 05475 | R73: EZEQUIEL | S73: DE JESÚS | T73: FERRO | U73: CUESTA | AB73: 05475 | AC73: JAIRO | AD73: ENRIQUE | AE73: RAMOS | AF73: SANCHEZ
Q74: 05480 | R74: JAIME | S74: DARÍO | T74: LÓPEZ | U74: DUQUE | AB74: 05480 | AC74: YARLEY | AE74: ARBOLEDA | AF74: ZAPATA
Q75: 05483 | R75: ABELARDO | S75: ANTONIO | T75: ARRAUT | U75: BUSTAMANTE | AB75: 05483 | AC75: LUZ | AD75: YICELA | AE75: CADAVID | AF75: ALVAREZ
Q76: 05495 | R76: EDUARDO | S76: ENRIQUE | T76: CABRERA | U76: URBIÑA | AB76: 05495 | AC76: CARMEN | AD76: MARIA | AE76: MARZOLA | AF76: BORJA
Q77: 05490 | R77: ADALBERTO | T77: BAENA | U77: OYOLA | AB77: 05490 | AC77: ROSA | AD77: MATILDE | AE77: HERNÁNDEZ | AF77: ALVAREZ
Q78: 05501 | R78: JUAN | S78: DE DIOS | T78: PINEDA | U78: BEDOYA | AB78: 05501 | AC78: AURA | AD78: CRISTINA | AE78: GOMEZ | AF78: HENAO
Q79: 05543 | R79: HUGO | S79: LEÓN | T79: GIRÓN | U79: GRACIANO | AB79: 05543 | AC79: FROY | AD79: FABER | AE79: HERNANDEZ | AF79: TUBERQUIA
Q80: 05576 | R80: FLAVIO | S80: ENRIQUE | T80: FAJARDO | U80: SIERRA | AB80: 05576 | AC80: PAULA | AE80: CARVAJAL | AF80: RAMIREZ
Q81: 05579 | R81: RÓBINSON | S81: ALBERTO | T81: BAENA | U81: ZULUAGA | AB81: 05579 | AC81: RAMIRO | AE81: ALEXANDER | AF81: CARMONA
Q82: 05585 | R82: JUAN | S82: DAVID | T82: LONDOÑO | U82: GARCÍA | AB82: 05585 | AC82: WALTER | AD82: HUMBERTO | AE82: QUIROZ | AF82: VARELA
Q83: 05591 | R83: SANTIAGO | T83: LÓPEZ | AB83: 05591 | AC83: JOHN | AD83: MARIO | AE83: BEDOYA | AF83: PUERTA
Q84: 05604 | R84: JORGE | T84: ELIÉCER | U84: GIL | AB84: 05604 | AC84: VICTORIA | AD84: ANDREA | AE84: VERGARA | AF84: VELÁSQUEZ
Q85: 05615 | R85: HERNÁN | S85: DE JESÚS | T85: OSPINA | U85: SEPÚLVEDA | AB85: 05615 | AC85: OSVALDO | AD85: ENRIQUE | AE85: OSORIO | AF85: OROZCO
Q86: 05628 | R86: CARLOS | S86: ARTURO | T86: HENAO | U86: LOPERA | AB86: 05628 | AC86: NANCY | AD86: AMPARO | AE86: AVENDAÑO | AF86: MORENO
Q87: 05631 | R87: LUZ | S87: ESTELA | T87: GIRALDO | U87: OSSA | AB87: 05631 | AC87: ELKIN | AD87: DARIO | AE87: DELVALLE | AF87: GARCÉS
Q88: 05642 | R88: OLGA | S88: EUGENIA | T88: OSORIO | U88: GARCÍA | AB88: 05642 | AC88: CARLOS | AD88: ANDRÉS | AE88: LONDOÑO | AF88: VELEZ
Q89: 05647 | R89: ÓSCAR | S89: DE JESÚS | T89: SEPÚLVEDA | U89: LONDOÑO | AB89: 05647 | AC89: MARIELA | AE89: CHAVARRIA | AF89: MAZO
Q90: 05649 | R90: MARA | S90: PATRICIA | T90: GIRALDO | U90: RAMÍREZ | AB90: 05649 | AC90: MARIA | AD90: N. | AE90: BURITICÁ | AF90: QUINCHIA
Q91: 05652 | R91: LUIS | S91: EMIGDIO | T91: ESCOBAR | U91: VILLEGAS | AB91: 05652 | AC91: JOHN | AD91: JAIRO | AE91: POSSO | AF91: ECHAVARRIA
Q92: 05656 | R92: LUIS | S92: ALBERTO | T92: PULGARÍN | U92: CANO | AB92: 05656 | AC92: SILVIA | AD92: ELENA | AE92: TORRES | AF92: RODRIGUEZ
Q93: 05658 | R93: EDISON | S93: MAURICIO | T93: CORREA | U93: RESTREPO | AB93: 05658 | AC93: NELLY | AD93: DEL CARMEN | AE93: AGUDELO | AF93: GONZÁLEZ
Q94: 05659 | R94: EMILIO | T94: BELTRÁN | U94: CUADRADO | AB94: 05659 | AC94: ALBA | AD94: CAROLINA | AE94: ZULUAGA | AF94: HOYOS
Q95: 05660 | R95: CARLOS | S95: MARIO | T95: GÓMEZ | U95: URREA | AB95: 05660 | AC95: GUSTAVO | AD95: ADOLFO | AE95: LÓPEZ | AF95: MUÑOZ
Q96: 05664 | R96: JADER | S96: ORLANDO | T96: GONZÁLEZ | U96: AGUDELO | AB96: 05664 | AC96: YOVANNY | AE96: VASQUEZ | AF96: RUIZ
Q97: 05665 | R97: NEDER | S97: LUIS | T97: DIAZ | U97: DIAZ | AB97: 05665 | AC97: GILMOR | AE97: MURILLO | AF97: MURILLO
Q98: 05667 | R98: ORLEY | S98: DE JESÚS | T98: SANTACRUZ | U98: VALENCIA | AB98: 05667 | AC98: RUBY | AE98: CARDONA | AF98: ZULUAGA
Q99: 05670 | R99: ÁLVARO | S99: ALONSO | T99: DUQUE | U99: MUÑOZ | AB99: 05670 | AC99: NIDIA | AD99: RUTH | AE99: GAVIRIA | AF99: GARZON
Q100: 05674 | R100: JOSÉ | S100: ANTONIO | T100: BEDOYA | U100: CEBALLOS | AB100: 05674 | AC100: NANCY | AD100: LILIBETH | AE100: ORREGO | AF100: AGUDELO
Q101: 05679 | R101: JORGE | S101: HERNÁN | T101: RAMÍREZ | U101: VALENCIA | AB101: 05679 | AC101: CARMEN | AE101: ADRIANA | AF101: HERNANDEZ
Q102: 05686 | R102: FRANCISCO | S102: JAIR | T102: PALACIO | U102: LOPERA | AB102: 05690 | AC102: LINA | AD102: ZORAIDA | AE102: MONSALVE | AF102: MONSALVE
Q103: 05042 | R103: FREY | S103: LEÓN | T103: RODRÍGUEZ | U103: VARGAS | AB103: 05736 | AC103: LINA | AD103: MARCELA | AE103: SALAZAR | AF103: LONDOÑO
Q104: 05690 | R104: FABIO | S104: IGNACIO | T104: MIRA | U104: VALENCIA | AB104: 05756 | AC104: HECTOR | AD104: IVAN | AE104: SÁNCHEZ | AF104: PAREJA
Q105: 05736 | R105: JOHNY | S105: ALEXIS | T105: CASTRILLÓN | U105: SALAZAR | AB105: 05686 | AC105: ANNY | AD105: CAROLINA | AE105: VÉLEZ | AF105: URREGO
Q106: 05756 | R106: DIOSELIO | S106: DE JESÚS | T106: BEDOYA | U106: LÓPEZ | AB106: 05042 | AC106: CARMENZA | AD106: ELENA | AE106: JARAMILLO | AF106: SÁNCHEZ
Q107: 05761 | R107: GERARDO | S107: DE JESÚS | T107: VANEGAS | U107: JARAMILLO | AB107: 05761 | AC107: MARIA | AD107: ISABEL | AE107: CHAVERRA | AF107: ARANGO
Q108: 05789 | R108: JUAN | S108: MARTÍN | T108: VÁSQUEZ | U108: HINCAPIÉ | AB108: 05789 | AC108: DIEGO | AD108: ALBERTO | AE108: MARTINEZ | AF108: BEDOYA
Q109: 05790 | R109: HÉCTOR | S109: LEONIDAS | T109: GIRALDO | U109: ARANGO | AB109: 05790 | AC109: MONICA | AD109: LUCIA | AE109: GOMEZ | AF109: VILLA
Q110: 05792 | R110: HUGO | S110: ALEXANDER | T110: OCAMPO | U110: RÍOS | AB110: 05792 | AC110: NELSON | AE110: GARCIA | AF110: USUGA
Q111: 05809 | R111: DIEGO | S111: ANTONIO | T111: MONTOYA | U111: TABORDA | AB111: 05809 | AC111: DAVID | AD111: ALEJANDRO | AE111: VANEGAS | AF111: PULGARIN
Q112: 05819 | R112: JUAN | S112: CARLOS | T112: MONTOYA | U112: OSORIO | AB112: 05819 | AC112: YOLANDA | AD112: MARIA | AE112: GOMEZ | AF112: GARCÍA
Q113: 05837 | R113: WILLIAM | T113: PALACIO | U113: VALENCIA | AB113: 05837 | AC113: ALIRIO | AE113: SANCHEZ | AF113: PORRAS
Q114: 05842 | R114: JESÚS | S114: MARÍA | T114: RÚA | U114: ARIAS | AB114: 05842 | AC114: VÍCTOR | AE114: VELÁSQUEZ | AF114: BOLÍVAR
Q115: 05847 | R115: LUIS | S115: EDUARDO | T115: MONTOYA | U115: URREGO | AB115: 05847 | AC115: KENIER | AE115: REYES | AF115: DURANGO
Q116: 05854 | R116: FRANCISCO | S116: JAVIER | T116: CÁRDENAS | U116: DIAZ | AB116: 05854 | AC116: LUIS | AD116: CARLOS | AE116: ARCILA | AF116: MONTOYA
Q117: 05856 | R117: MARTA | S117: CECILIA | T117: HERNÁNDEZ | U117: OROZCO | AB117: 05856 | AC117: ADRIANA | AE117: PATRICIA | AF117: OROZCO
Q118: 05858 | R118: FABER | S118: ARMANDO | T118: VIDAL | U118: ESCUDERO | AB118: 05858 | AC118: GUILLERMO | AE118: PÉREZ | AF118: CASTRO
Q119: 05861 | R119: JUAN | S119: GUILLERMO | T119: BOLÍVAR | U119: COLORADO | AB119: 05861 | AC119: JOHN | AD119: HENRY | AE119: MARIN | AF119: RODRIGUEZ
Q120: 05873 | R120: MIRIAM | S120: DEL CARMEN | T120: SERNA | U120: MARTÍNEZ | AB120: 05873 | AC120: HERMENEGILDO | AE120: VIERA | AF120: CHAVERRA
Q121: 05885 | R121: LUIS | S121: NORBERTO | T121: PIEDRAHITA | U121: LLANO | AB121: 05885 | AC121: ROBID | AD121: ASTRID | AE121: RENGIFO | AF121: CASTRO
Q122: 05887 | R122: RODRIGO | S122: ALBEIRO | T122: JARAMILLO | U122: VILLEGAS | AB122: 05887 | AC122: JAVIER | AD122: DE JESUS | AE122: ARAQUE | AF122: ACEVEDO
Q123: 05890 | R123: GUSTAVO | S123: ADOLFO | T123: LONDOÑO | U123: VÉLEZ | AB123: 05890 | AC123: CLAUDIA | AD123: ELENA | AE123: CORREA | AF123: BARRERA
Q124: 05893 | R124: WILFRIDO | T124: UZURIAGA | U124: APONZA | AB124: 05893 | AC124: MARTHA | AD124: LUZ | AE124: CAMPILLO | AF124: SARMIENTO
Q125: 05895 | AB125: 05895 | AC125: NELLY | AE125: PALACIOS | AF125: TAPIAS

Sheet Valle Aburra

Sheet BAJO CAUCA
M3: Regresar

Sheet MAGDALENA MEDIO
M3: Regresar

Sheet NORDESTE
M3: Regresar

Sheet NORTE
M3: Regresar

Sheet OCCIDENTE
M3: Regresar

Sheet ORIENTE
M3: Regresar

Sheet SUROESTE
M3: Regresar

Sheet URABA
M3: Regresar

Sheet MEDELLIN
C4: ALCALDE | E4: FEDERICO ANDRES GUTIÉRREZ ZULUAGA
C5: DIRECTOR LOCAL DE SALUD | E5: CLAUDIA ELENA ARENAS PAJON
C7: CERTIFICACION | E7: RANKING | F7: CATEGORIA MUNICIPAL
C8: SI | E8: 4 | F8: ESPECIAL
C9: TOTAL CORREGIMIENTOS | E9: 5 | F9: TOTAL VEREDAS | I9: 61
A10: CARACTERISTICAS DEMOGRAFICAS | N10: VIGILANCIA DE LA SALUD PUBLICA - AÑO 2017 ***
A11: POBLACION 2018
A12: TOTAL | B12: HOMBRES | C12: MUJERES | D12: CABECERA | E12: RESTO | N12: MORTALIDAD CANCER CUELLO UTERINO | S12: MORTALIDAD MATERNA
A13: 2529403 | B13: 1190358 | C13: 1339045 | D13: 2501470 | E13: 27933 | N13: # Casos | O13: Tasa x cienmil Mujeres | S13: # Casos | T13: Tasa x cienmil Nacidos vivos
A14: POR GRUPOS DE EDAD | N14: 75 | O14: 5.647956118 | S14: 7 | T14: 24.64354867
A15: 0 - 4 AÑOS | B15: 5 - 9 AÑOS | C15: 10 - 14 AÑOS | D15: 15 - 19 AÑOS | E15: 20 - 59 AÑOS | F15: > 60 AÑOS
A16: 145240 | B16: 150042 | C16: 155558 | D16: 166607 | E16: 1481556 | F16: 430400 | N16: MORTALIDAD INFANTIL | S16: MORTALIDAD PERINATAL
N17: # Casos | O17: Tasa x cienmil Nacidos vivos | S17: # Casos | T17: Tasa x cienmil Nacidos vivos
A18: DESPLAZADOS 2015 (a marzo) | D18: INDIGENAS FEB 2014 | G18: ROM | I18: AFRO | N18: 222 | O18: 7.815525436 | S18: 490 | T18: 17.25048407
A19: TOTAL | B19: HOMBRES | C19: MUJERES | D19: TOTAL | E19: HOMBRES | F19: MUJERES
A20: 308776 | B20: 151300.24 | C20: 157475.76 | D20: 0 | E20: 0 | F20: 0 | N20: MORTALIDAD VIH SIDA | S20: MORTALIDAD TUBERCULOSIS
N21: # Casos | O21: Tasa x cienmil Habitantes | S21: # Casos | T21: Tasa x cienmil Habitantes
A22: POBLACION TOTAL | B22: Afiliados al regimen Subsidiado * | D22: % De Aseguramiento al Regimen Subsidiado * | F22: Afiliados al Regimen Contributivo * | H22: % De Aseguramiento al RS, RC, RE * | N22: 155 | O22: 6.179109666 | S22: 90 | T22: 3.587870129
N24: MORTALIDAD INFARTO AL MIOCARDIO | S24: MORTALIDAD < 5 AÑOS
A25: 2529403 | B25: 604611 | D25: 23.90330841 | F25: 1933832 | H25: 100 | N25: # Casos | O25: Tasa x cienmil Habitantes | S25: # Casos | T25: Tasa x cienmil Niños
H26: * Corte a Agosto 2018 | N26: 1871 | O26: 74.58783345 | S26: 260 | T26: 178.2580079
A31: PRESTACION DE SERVICIOS DE SALUD **
A32: EMPRESAS SOCIALES DEL ESTADO
A33: INSTITUCION PRESTADORA DE SERVICIOS DE SALUD | F33: DIRECTOR / GERENTE | N33: 10 PRIMERAS CAUSAS DE MORTALIDAD 2017***
A34: EMPRESA SOCIAL DEL ESTADO METROSALUD | F34: LEOPOLDO ABDIEL GIRALDO VELASQUEZ | N34: ORDEN | O34: CODIGO 105 CIE-10 | P34: CAUSA | T34: TOTAL GENERAL | U34: HOMBRES | V34: MUJERES | W34: SIN DATO
A35: ESE HOSPITAL CARISMA | F35: CARLOS MARIO RIVERA ESCOBAR
A36: ESE HOSPITAL LA MARIA | F36: MISAEL ALBERTO CADAVID JARAMILLO | N36: 1 | O36: 051 | P36: ENFERMEDADES ISQUEMICAS DEL CORAZON | T36: 2027 | U36: 1014 | V36: 1013 | W36: 0
A37: HOSPITAL GENERAL DE MEDELLIN LUZ CASTRO DE GUTIERREZ, EMPRESA SOCIAL DEL ESTADO | F37: MARTA CECILIA SEPULVEDA VALDERRAMA | N37: 2 | O37: 060 | P37: ENFERMEDADES CRONICAS DE LAS VIAS RESPIRATORIAS INFERIORES | T37: 1091 | U37: 463 | V37: 628 | W37: 0
N38: 3 | O38: 055 | P38: ENFERMEDADES CEREBROVASCULARES | T38: 875 | U38: 374 | V38: 501 | W38: 0
A39: PRESTADORES DE SERVICIOS DE SALUD | N39: 4 | O39: 050 | P39: ENFERMEDADES HIPERTENSIVAS | T39: 772 | U39: 356 | V39: 416 | W39: 0
A40: TOTALES | B40: IPS | C40: PROFESIONALES INDEPENDIENTES | E40: TRANSPORTE ESPECIAL | G40: OBJETO SOCIAL DIFERENTE | N40: 5 | O40: 059 | P40: NEUMONIA | T40: 647 | U40: 289 | V40: 358 | W40: 0
N41: 6 | O41: 101 | P41: AGRESIONES (HOMICIDIOS) Y SECUELAS | T41: 589 | U41: 526 | V41: 63 | W41: 0
B42: 576 | C42: 4809 | E42: 16 | G42: 179 | N42: 7 | O42: 020 | P42: TUMOR MALIGNO DE LA TRAQUEA, LOS BRONQUIOS Y EL PULMON | T42: 562 | U42: 326 | V42: 236 | W42: 0
A43: IPS PUBLICAS | B43: IPS PRIVADAS | C43: SERVICIOS PRESTADOS X PROFESION | N43: 8 | O43: 013 | P43: TUMOR MALIGNO DEL ESTOMAGO | T43: 325 | U43: 192 | V43: 133 | W43: 0
C44: Odontólogos | D44: Médicos | E44: Otros | F44: Total | N44: 9 | O44: 014 | P44: TUMOR MALIGNO DEL COLON, DE LA UNION RECTOSIGMOIDEA, RECTO Y ANO | T44: 302 | U44: 126 | V44: 176 | W44: 0
N45: 10 | O45: 041 | P45: DIABETES MELLITUS | T45: 284 | U45: 128 | V45: 156 | W45: 0
A46: 58 | B46: 1017 | C46: 1104 | D46: 3018 | E46: 700 | F46: =C46+D46+E46 -> 4822
A48: CAPACIDAD INSTALADA | N48: PORCENTAJE DE EMBARAZOS POR GRUPO EDAD RESIDENCIA HABITUAL DE LA MADRE 2017*** | S48: TASAS DE FECUNDIDAD ESPECIFICA POR MIL MUJERES 2017***
A49: CAMAS
A50: Adultos | B50: Cuidado Agudo Mental | C50: Cuidado Intensivo Adulto | D50: Cuidado Intensivo Neonatal | E50: Cuidado Intensivo Pediátrico | F50: Cuidado Intermedio Adulto | G50: Cuidado Intermedio Mental | I50: Cuidado Intermedio Neonatal
N51: 10 a 14 AÑOS | P51: 15 a 19 AÑOS | S51: 10 a 14 AÑOS | U51: 15 a 19 AÑOS
N52: No | O52: % | P52: No | Q52: % | S52: No | T52: TASA | U52: No | V52: TASA
A53: 3464 | B53: 0 | C53: 336 | D53: 81 | E53: 50 | F53: 300 | G53: 0 | I53: 111 | N53: 232 | O53: 0.7450942608 | P53: 5006 | Q53: 16.07733565 | S53: 232 | T53: 3.071220545 | U53: 5006 | V53: 60.74431811
A54: CAMAS
A55: Cuidado Intermedio Pediátrico | B55: Farmaco- de-pendencia | C55: Obste-tricia | D55: Pediátricas | E55: Quemados Adultos | F55: Quemados Pediátrico | G55: Salud Mental Psiquiatría | I55: TOTAL CAMAS | N55: *** FUENTE: DANE. Información Preliminar
A58: 48 | B58: 112 | C58: 361 | D58: 633 | E58: 17 | F58: 15 | G58: 237 | I58: =A53+B53+C53+D53+E53+F53+G53+I53+A58+B58+C58+D58+E58+F58+G58 -> 5765
A60: SALAS | E60: TOTAL SALAS | N60: INMUNIZACIONES PAI 2017
A61: PARTO | C61: QUIROFANO | N61: POLIOMIELITIS (V.O.P)
A62: 19 | C62: 286 | E62: =A62+C62 -> 305 | N62: Vacunados (Edades) | S62: Refuerzos | T62: Dosis Aplicadas
N63: <1 | O63: 1 | P63: 2 | Q63: 3 | R63: 4 | S63: Otros
A64: TOTAL DE SERVICIOS PRESTADOS SEGÚN LA COMPLEJIDAD | N64: 25721 | O64: 543 | P64: 148 | Q64: 70 | R64: 32 | S64: 52008 | T64: 133080
A65: BAJA | C65: MEDIA | E65: ALTA
A66: 10885 | C66: 7829 | E66: 401 | N66: DIFTERIA, TOSFERINA Y TÉTANO (D.P.T)
N67: Vacunados (Edades) | S67: Refuerzos | T67: Dosis
A68: TOTAL DE AMBULANCIAS HABILITADAS SEGÚN TIPO Y MODALIDAD | N68: <1 | O68: 1 | P68: 2 | Q68: 3 | R68: 4 | S68: Otros | T68: Aplicadas
A69: TIPO | C69: MODALIDAD | F69: TOTAL GENERAL | G69: **Fuente: REPS - Minsalud /IPS se incluyen todas las sedes habilitadas /febrero y abril 2018, | N69: 25791 | O69: 563 | P69: 161 | Q69: 71 | R69: 36 | S69: 52148 | T69: 136403
A70: BASICA | B70: MEDICADA | C70: AEREA | D70: TERRESTRE | E70: FLUVIAL Y MARIT
A71: 150 | B71: 54 | C71: 3 | D71: 201 | E71: 0 | F71: =SUM(C71:E71) -> 204 | N71: TUBERCULOSIS (B.C.G)
A72: 10 PRIMERAS CAUSAS DE HOSPITALIZACION 2016 | N72: Vacunados (Edades) | S72: Otros | T72: Dosis Aplicadas
A73: ORDEN | B73: CODIGO CIE-10 | C73: CAUSA | F73: TOTAL GENERAL | G73: % | H73: HOMBRES | J73: MUJERES | N73: RN | O73: <1 | P73: 2 | Q73: 3 | R73: 4
N74: 42064 | O74: 594 | S74: 26 | T74: 42684
A75: 1 | B75: O800 | C75: Parto unico espontaneo, presentacion cefalica de vertice | F75: 11556 | G75: 5.814164101 | H75: 0 | J75: 11556
A76: 2 | B76: N390 | C76: Infeccion de vias urinarias, sitio no especificado | F76: 6754 | G76: 3.398136408 | H76: 2487 | J76: 4267 | N76: TRIPLE VIRAL - S. R. P.
A77: 3 | B77: A09X | C77: Diarrea y gastroenteritis de presunto origen infeccioso | F77: 3622 | G77: 1.822334923 | H77: 1856 | J77: 1766 | N77: Vacunados (Edades) | S77: Refuerzos | T77: Dosis Aplicadas
A78: 4 | B78: J219 | C78: Bronquiolitis aguda, no especificada | F78: 3473 | G78: 1.747368633 | H78: 2035 | J78: 1438 | N78: 1 | O78: 2 | P78: 3 | Q78: 4 | R78: Ref. | S78: Otros
A79: 5 | B79: O829 | C79: Parto por cesarea, sin otra especificacion | F79: 3444 | G79: 1.732777878 | H79: 0 | J79: 3444 | N79: 26642 | O79: 261 | P79: 116 | Q79: 55 | R79: 24564 | S79: 2708 | T79: 54346
A80: 6 | B80: R688 | C80: Otros sintomas y signos generales especificados | F80: 3305 | G80: 1.662842883 | H80: 1482 | J80: 1823
A81: 7 | B81: O809 | C81: Parto unico espontaneo, sin otra especificacion | F81: 3048 | G81: 1.53353861 | H81: 0 | J81: 3048 | N81: AGUA POTABLE 2016
A82: 8 | B82: A90X | C82: Fiebre del dengue [dengue clasico] | F82: 2534 | G82: 1.274930065 | H82: 1154 | J82: 1380 | P82: NUMEROS ACUEDUCTOS | R82: COBERTURA ACUEDUCTOS CON AGUA POTABLE (%) | T82: COBERTURAS VIVIENDAS CON AGUA POTABLE (%)
A83: 9 | B83: O821 | C83: Parto por cesarea de emergencia | F83: 1772 | G83: 0.8915454125 | H83: 0 | J83: 1772
A84: 10 | B84: J459 | C84: Asma, no especificado | F84: 1703 | G84: 0.8568294794 | H84: 855 | J84: 848
A85: 11 | C85: Otros Dx | F85: 157545 | G85: 79.26553161 | H85: 72320 | J85: 85225 | N85: Urbano | P85: 9 | R85: 100 | T85: 100
A86: TOTALES | F86: 198756 | G86: 100 | H86: 82189 | J86: 116567 | N86: Rural | P86: 39 | R86: 61.53846154 | T86: 91.07
A87: 10 PRIMERAS CAUSAS DE CONSULTA 2016 | N87: Total Municipal | P87: 48 | R87: 68.75 | T87: 99.1
A88: ORDEN | B88: CODIGO CIE-10 | C88: CAUSA | F88: TOTAL GENERAL | G88: % | H88: HOMBRES | J88: MUJERES | N88: CERTIFACION EN AGUA POTABLE | O88: INDICE RIESGO CALIDAD DEL AGUA POTABLE - IRCA- (a) | P88: INDICE RIESGO DE ABASTECIMIENTO MUNICIPAL - IRABA- (b) | R88: BUENAS PRACTICAS SANTIARIAS © | T88: CERTIFICAION SANITARIA MUNICIPAL EN AGUA POTABLE ©
A90: 1 | B90: I10X | C90: Hipertension esencial (primaria) | F90: 239117 | G90: 2.554076127 | H90: 78011 | J90: 161106
A91: 2 | B91: A09X | C91: Diarrea y gastroenteritis de presunto origen infeccioso | F91: 233880 | G91: 2.498138253 | H91: 106014 | J91: 127866
A92: 3 | B92: J00X | C92: Rinofaringitis aguda [resfriado comun] | F92: 218605 | G92: 2.334981669 | H92: 90110 | J92: 128495 | N92: Urbano | O92: 1.156 | P92: 24.5 | R92: 0 | T92: 5.478
A93: 4 | B93: M545 | C93: Lumbago no especificado | F93: 190551 | G93: 2.035328981 | H93: 81798 | J93: 108753 | N93: Rural | O93: 1.156 | P93: 25.9 | R93: 1.54 | T93: 6.22
A94: 5 | B94: N390 | C94: Infeccion de vias urinarias, sitio no especificado | F94: 151155 | G94: 1.614529193 | H94: 36982 | J94: 114173 | N94: Total | O94: 1.156 | P94: 24.6 | R94: 0.095 | T94: 5.5265
A95: 6 | B95: E039 | C95: Hipotiroidismo, no especificado | F95: 102073 | G95: 1.090270506 | H95: 14276 | J95: 87797 | N95: PROYECTOS DE INVERSION (En pesos)
A96: 7 | B96: B349 | C96: Infeccion viral, no especificada | F96: 94643 | G96: 1.01090858 | H96: 42780 | J96: 51863 | Q96: 2012 | S96: 2013 | U96: 2014
A97: 8 | B97: M255 | C97: Dolor en articulacion | F97: 86383 | G97: 0.9226811898 | H97: 30148 | J97: 56235 | N97: ADULTO MAYOR
A98: 9 | B98: G439 | C98: Migrana, no especificada | F98: 66596 | G98: 0.7113306613 | H98: 11303 | J98: 55293 | N98: DOTACION DISCAPACIDAD | U98: 2919752
A99: 10 | B99: E785 | C99: Hiperlipidemia no especificada | F99: 60057 | G99: 0.6414857578 | H99: 20466 | J99: 39591 | N99: APS - SALUD CONTIGO
A100: 11 | C100: Otros Dx | F100: 7919112 | G100: 84.58626908 | H100: 3029089 | J100: 4890023 | N100: COFINANCIACION REG. SUBSIDIADO | U100: 60299618686
A101: TOTALES | F101: 9362172 | G101: 100 | H101: 3540977 | J101: 5821195 | N101: SSR
A102: 10 PRIMERAS CAUSAS DE URGENCIAS 2016 | N102: PAI
A103: ORDEN | B103: CODIGO CIE-10 | C103: CAUSA | F103: TOTAL GENERAL | G103: % | H103: HOMBRES | J103: MUJERES | N103: VECTORES
N104: ESTERILIZACION MASCOTAS
A105: 1 | B105: R688 | C105: Otros sintomas y signos generales especificados | F105: 28251 | G105: 6.744526384 | H105: 11735 | J105: 16516 | N105: VACUNA ANTIRRABICA
A106: 2 | B106: A09X | C106: Diarrea y gastroenteritis de presunto origen infeccioso | F106: 10712 | G106: 2.557338382 | H106: 4814 | J106: 5898 | N106: INFRAESTRUCTURA
A107: 3 | B107: O471 | C107: Falso trabajo de parto a las 37 y mas semanas completas de gestacion | F107: 10184 | G107: 2.431285855 | H107: 0 | J107: 10184 | N107: DOTACION EQUIPOS BIOMEDICOS
A108: 4 | B108: N390 | C108: Infeccion de vias urinarias, sitio no especificado | F108: 9753 | G108: 2.328390706 | H108: 2491 | J108: 7262 | N108: ESTAMPILLAS PROHOSPITALES | U108: 4041854118
A109: 5 | B109: R51X | C109: Cefalea | F109: 9310 | G109: 2.222630726 | H109: 2298 | J109: 7012 | N109: EQUIPAMIENTO
A110: 6 | B110: O800 | C110: Parto unico espontaneo, presentacion cefalica de vertice | F110: 6115 | G110: 1.459869698 | H110: 0 | J110: 6115 | N110: TELEMEDICINA
A111: 7 | B111: R104 | C111: Otros dolores abdominales y los no especificados | F111: 5990 | G111: 1.430027717 | H111: 1891 | J111: 4099 | N111: AMBULANCIA
A112: 8 | B112: O200 | C112: Amenaza de aborto | F112: 5761 | G112: 1.375357209 | H112: 0 | J112: 5761 | N112: TOTALES | Q112: =SUM(Q97:R111) -> 0 | S112: =SUM(S97:T111) -> 0 | U112: =SUM(U97:V111) -> 64344392556
A113: 9 | B113: M545 | C113: Lumbago no especificado | F113: 5708 | G113: 1.362704209 | H113: 3191 | J113: 2517 | N113: PROYECTOS DE INVERSION (En Cantidad)
A114: 10 | B114: T148 | C114: Otros traumatismos de region no especificada del cuerpo | F114: 5251 | G114: 1.253601927 | H114: 3169 | J114: 2082 | N114: PROGRAMA AEREO (No brigadas)
A115: 11 | C115: Otros Dx | F115: 321838 | G115: 76.83426719 | H115: 140199 | J115: 181639 | N115: ASESORIA Y ASISTENCIA TECNICA | Q115: 180
A116: TOTALES | F116: 418873 | G116: 100 | H116: 169788 | J116: 249085 | N116: CENTROS AMIGABLES JOVENES | S116: SI

Sheet ABEJORRAL
C4: ALCALDE | E4: MARIO DE JESUS GUTIÉRREZ GUZMÁN
C5: DIRECTOR LOCAL DE SALUD | E5: LINA MARCELA GONZALEZ CASAS
C7: CERTIFICACION | E7: RANKING | F7: CATEGORIA MUNICIPAL
C8: SI | E8: 80 | F8: 6
C9: TOTAL CORREGIMIENTOS | E9: 2 | F9: TOTAL VEREDAS | I9: 68
A10: CARACTERISTICAS DEMOGRAFICAS | N10: VIGILANCIA DE LA SALUD PUBLICA - AÑO 2017 ***
A11: POBLACION 2018
A12: TOTAL | B12: HOMBRES | C12: MUJERES | D12: CABECERA | E12: RESTO | N12: MORTALIDAD CANCER CUELLO UTERINO | S12: MORTALIDAD MATERNA
A13: 18991 | B13: 9684 | C13: 9307 | D13: 6802 | E13: 12189 | N13: # Casos | O13: Tasa x cienmil Mujeres | S13: # Casos | T13: Tasa x cienmil Nacidos vivos
A14: POR GRUPOS DE EDAD | N14: 2 | O14: 21.38122728 | S14: 0 | T14: 0
A15: 0 - 4 AÑOS | B15: 5 - 9 AÑOS | C15: 10 - 14 AÑOS | D15: 15 - 19 AÑOS | E15: 20 - 59 AÑOS | F15: > 60 AÑOS
A16: 1699 | B16: 1607 | C16: 1515 | D16: 1474 | E16: 9465 | F16: 3231 | N16: MORTALIDAD INFANTIL | S16: MORTALIDAD PERINATAL
N17: # Casos | O17: Tasa x cienmil Nacidos vivos | S17: # Casos | T17: Tasa x cienmil Nacidos vivos
A18: DESPLAZADOS 2015 (a marzo) | D18: INDIGENAS FEB 2014 | G18: ROM | I18: AFRO | N18: 2 | O18: 10 | S18: 5 | T18: 25
A19: TOTAL | B19: HOMBRES | C19: MUJERES | D19: TOTAL | E19: HOMBRES | F19: MUJERES
A20: 2559 | B20: 1253.91 | C20: 1305.09 | D20: 0 | E20: 0 | F20: 0 | N20: MORTALIDAD VIH SIDA | S20: MORTALIDAD TUBERCULOSIS
N21: # Casos | O21: Tasa x cienmil Habitantes | S21: # Casos | T21: Tasa x cienmil Habitantes
A22: POBLACION TOTAL | B22: Afiliados al regimen Subsidiado * | D22: % De Aseguramiento al Regimen Subsidiado * | F22: Afiliados al Regimen Contributivo * | H22: % De Aseguramiento al RS, RC, RE * | N22: 0 | O22: 0 | S22: 1 | T22: 5.236698785
N24: MORTALIDAD INFARTO AL MIOCARDIO | S24: MORTALIDAD < 5 AÑOS
A25: 18991 | B25: 12631 | D25: 66.51045232 | F25: 2492 | H25: 82.52330051 | N25: # Casos | O25: Tasa x cienmil Habitantes | S25: # Casos | T25: Tasa x cienmil Niños
H26: * Corte a Agosto 2018 | N26: 34 | O26: 178.0477587 | S26: 4 | T26: 233.7814144
A31: PRESTACION DE SERVICIOS DE SALUD **
A32: EMPRESAS SOCIALES DEL ESTADO
A33: INSTITUCION PRESTADORA DE SERVICIOS DE SALUD | F33: DIRECTOR / GERENTE | N33: 10 PRIMERAS CAUSAS DE MORTALIDAD 2017***
A34: EMPRESA SOCIAL DEL ESTADO HOSPITAL SAN JUAN DE DIOS DE ABEJORRAL | F34: JAVIER ANTONIO CASTRILLON MENDOZA | N34: ORDEN | O34: CODIGO 105 CIE-10 | P34: CAUSA | T34: TOTAL GENERAL | U34: HOMBRES | V34: MUJERES | W34: SIN DATO
N36: 1 | O36: 051 | P36: ENFERMEDADES ISQUEMICAS DEL CORAZON | T36: 36 | U36: 21 | V36: 15 | W36: 0
N37: 2 | O37: 055 | P37: ENFERMEDADES CEREBROVASCULARES | T37: 14 | U37: 8 | V37: 6 | W37: 0
N38: 3 | O38: 060 | P38: ENFERMEDADES CRONICAS DE LAS VIAS RESPIRATORIAS INFERIORES | T38: 13 | U38: 8 | V38: 5 | W38: 0
A39: PRESTADORES DE SERVICIOS DE SALUD | N39: 4 | O39: 020 | P39: TUMOR MALIGNO DE LA TRAQUEA, LOS BRONQUIOS Y EL PULMON | T39: 9 | U39: 4 | V39: 5 | W39: 0
A40: TOTALES | B40: IPS | C40: PROFESIONALES INDEPENDIENTES | E40: TRANSPORTE ESPECIAL | G40: OBJETO SOCIAL DIFERENTE | N40: 5 | O40: 075 | P40: TODAS LAS DEMAS ENFERMEDADES DEL SISTEMA URINARIIO | T40: 6 | U40: 5 | V40: 1 | W40: 0
N41: 6 | O41: 090 | P41: ACCIDENTES DE TRANSPORTE DE MOTOR Y SECUELAS | T41: 6 | U41: 3 | V41: 3 | W41: 0
B42: 1 | C42: 8 | E42: 0 | G42: 0 | N42: 7 | O42: 050 | P42: ENFERMEDADES HIPERTENSIVAS | T42: 6 | U42: 5 | V42: 1 | W42: 0
A43: IPS PUBLICAS | B43: IPS PRIVADAS | C43: SERVICIOS PRESTADOS X PROFESION | N43: 8 | O43: 041 | P43: DIABETES MELLITUS | T43: 5 | U43: 2 | V43: 3 | W43: 0
C44: Odontólogos | D44: Médicos | E44: Otros | F44: Total | N44: 9 | O44: 074 | P44: INSUFICIENCIA RENAL | T44: 4 | U44: 1 | V44: 3 | W44: 0
N45: 10 | O45: 067 | P45: TRASTORNOS DE LA VESICULA BILIAR, DE LAS VIAS BILIARES Y DEL PANCREAS | T45: 3 | U45: 2 | V45: 1 | W45: 0
A46: 4 | B46: 1 | C46: 4 | D46: 5 | E46: 0 | F46: =C46+D46+E46 -> 9
A48: CAPACIDAD INSTALADA | N48: PORCENTAJE DE EMBARAZOS POR GRUPO EDAD RESIDENCIA HABITUAL DE LA MADRE 2017*** | S48: TASAS DE FECUNDIDAD ESPECIFICA POR MIL MUJERES 2017***
A49: CAMAS
A50: Adultos | B50: Cuidado Agudo Mental | C50: Cuidado Intensivo Adulto | D50: Cuidado Intensivo Neonatal | E50: Cuidado Intensivo Pediátrico | F50: Cuidado Intermedio Adulto | G50: Cuidado Intermedio Mental | I50: Cuidado Intermedio Neonatal
N51: 10 a 14 AÑOS | P51: 15 a 19 AÑOS | S51: 10 a 14 AÑOS | U51: 15 a 19 AÑOS
N52: No | O52: % | P52: No | Q52: % | S52: No | T52: TASA | U52: No | V52: TASA
A53: 9 | B53: 0 | C53: 0 | D53: 0 | E53: 0 | F53: 0 | G53: 0 | I53: 0 | N53: 4 | O53: 1.851851852 | P53: 55 | Q53: 25.46296296 | S53: 4 | T53: 5.420054201 | U53: 55 | V53: 76.38888889
A54: CAMAS
A55: Cuidado Intermedio Pediátrico | B55: Farmaco- de-pendencia | C55: Obste-tricia | D55: Pediátricas | E55: Quemados Adultos | F55: Quemados Pediátrico | G55: Salud Mental Psiquiatría | I55: TOTAL CAMAS | N55: *** FUENTE: DANE. Información Preliminar
A58: 0 | B58: 0 | C58: 4 | D58: 1 | E58: 0 | F58: 0 | G58: 0 | I58: =A53+B53+C53+D53+E53+F53+G53+I53+A58+B58+C58+D58+E58+F58+G58 -> 14
A60: SALAS | E60: TOTAL SALAS | N60: INMUNIZACIONES PAI 2017
A61: PARTO | C61: QUIROFANO | N61: POLIOMIELITIS (V.O.P)
A62: 1 | C62: 0 | E62: =A62+C62 -> 1 | N62: Vacunados (Edades) | S62: Refuerzos | T62: Dosis Aplicadas
N63: <1 | O63: 1 | P63: 2 | Q63: 3 | R63: 4 | S63: Otros
A64: TOTAL DE SERVICIOS PRESTADOS SEGÚN LA COMPLEJIDAD | N64: 162 | O64: 1 | P64: 0 | Q64: 0 | R64: 0 | S64: 400 | T64: 903
A65: BAJA | C65: MEDIA | E65: ALTA
A66: 89 | C66: 6 | E66: 0 | N66: DIFTERIA, TOSFERINA Y TÉTANO (D.P.T)
N67: Vacunados (Edades) | S67: Refuerzos | T67: Dosis
A68: TOTAL DE AMBULANCIAS HABILITADAS SEGÚN TIPO Y MODALIDAD | N68: <1 | O68: 1 | P68: 2 | Q68: 3 | R68: 4 | S68: Otros | T68: Aplicadas
A69: TIPO | C69: MODALIDAD | F69: TOTAL GENERAL | G69: **Fuente: REPS - Minsalud /IPS se incluyen todas las sedes habilitadas /febrero y abril 2018, | N69: 162 | O69: 1 | P69: 0 | Q69: 0 | R69: 0 | S69: 400 | T69: 903
A70: BASICA | B70: MEDICADA | C70: AEREA | D70: TERRESTRE | E70: FLUVIAL Y MARIT
A71: 1 | B71: 0 | C71: 0 | D71: 1 | E71: 0 | F71: =SUM(C71:E71) -> 1 | N71: TUBERCULOSIS (B.C.G)
A72: 10 PRIMERAS CAUSAS DE HOSPITALIZACION 2016 | N72: Vacunados (Edades) | S72: Otros | T72: Dosis Aplicadas
A73: ORDEN | B73: CODIGO CIE-10 | C73: CAUSA | F73: TOTAL GENERAL | G73: % | H73: HOMBRES | J73: MUJERES | N73: RN | O73: <1 | P73: 2 | Q73: 3 | R73: 4
N74: 61 | O74: 0 | S74: 0 | T74: 61
A75: 1 | B75: R688 | C75: Otros sintomas y signos generales especificados | F75: 88 | G75: 8.961303462 | H75: 28 | J75: 60
A76: 2 | B76: J159 | C76: Neumonia bacteriana, no especificada | F76: 70 | G76: 7.128309572 | H76: 43 | J76: 27 | N76: TRIPLE VIRAL - S. R. P.
A77: 3 | B77: O800 | C77: Parto unico espontaneo, presentacion cefalica de vertice | F77: 51 | G77: 5.193482688 | H77: 0 | J77: 51 | N77: Vacunados (Edades) | S77: Refuerzos | T77: Dosis Aplicadas
A78: 4 | B78: N390 | C78: Infeccion de vias urinarias, sitio no especificado | F78: 43 | G78: 4.378818737 | H78: 22 | J78: 21 | N78: 1 | O78: 2 | P78: 3 | Q78: 4 | R78: Ref. | S78: Otros
A79: 5 | B79: I500 | C79: Insuficiencia cardiaca congestiva | F79: 25 | G79: 2.545824847 | H79: 9 | J79: 16 | N79: 183 | O79: 0 | P79: 0 | Q79: 0 | R79: 203 | S79: 0 | T79: 386
A80: 6 | B80: O809 | C80: Parto unico espontaneo, sin otra especificacion | F80: 23 | G80: 2.342158859 | H80: 0 | J80: 23
A81: 7 | B81: L031 | C81: Celulitis de otras partes de los miembros | F81: 14 | G81: 1.425661914 | H81: 6 | J81: 8 | N81: AGUA POTABLE 2016
A82: 8 | B82: C910 | C82: Leucemia linfoblastica aguda [LLA] | F82: 14 | G82: 1.425661914 | H82: 14 | J82: 0 | P82: NUMEROS ACUEDUCTOS | R82: COBERTURA ACUEDUCTOS CON AGUA POTABLE (%) | T82: COBERTURAS VIVIENDAS CON AGUA POTABLE (%)
A83: 9 | B83: O821 | C83: Parto por cesarea de emergencia | F83: 13 | G83: 1.323828921 | H83: 0 | J83: 13
A84: 10 | B84: J180 | C84: Bronconeumonia, no especificada | F84: 13 | G84: 1.323828921 | H84: 8 | J84: 5
A85: 11 | C85: Otros Dx | F85: 628 | G85: 63.95112016 | H85: 291 | J85: 337 | N85: Urbano | P85: 2 | R85: 100 | T85: 99
A86: TOTALES | F86: 982 | G86: 100 | H86: 421 | J86: 561 | N86: Rural | P86: 51 | R86: 0 | T86: 2.71
A87: 10 PRIMERAS CAUSAS DE CONSULTA 2016 | N87: Total Municipal | P87: 53 | R87: 3.773584906 | T87: 31.69
A88: ORDEN | B88: CODIGO CIE-10 | C88: CAUSA | F88: TOTAL GENERAL | G88: % | H88: HOMBRES | J88: MUJERES | N88: CERTIFACION EN AGUA POTABLE | O88: INDICE RIESGO CALIDAD DEL AGUA POTABLE - IRCA- (a) | P88: INDICE RIESGO DE ABASTECIMIENTO MUNICIPAL - IRABA- (b) | R88: BUENAS PRACTICAS SANTIARIAS © | T88: CERTIFICAION SANITARIA MUNICIPAL EN AGUA POTABLE ©
A90: 1 | B90: I10X | C90: Hipertension esencial (primaria) | F90: 6074 | G90: 9.842972662 | H90: 2125 | J90: 3949
A91: 2 | B91: N390 | C91: Infeccion de vias urinarias, sitio no especificado | F91: 1230 | G91: 1.993226272 | H91: 285 | J91: 945
A92: 3 | B92: M545 | C92: Lumbago no especificado | F92: 1197 | G92: 1.939749469 | H92: 541 | J92: 656 | N92: Urbano | O92: 0 | P92: 40.2 | R92: 10.9 | T92: 11.31
A93: 4 | B93: J00X | C93: Rinofaringitis aguda [resfriado comun] | F93: 984 | G93: 1.594581017 | H93: 377 | J93: 607 | N93: Rural | O93: 70.1 | P93: 69.2 | R93: 61.9 | T93: 67.46
A94: 5 | B94: M255 | C94: Dolor en articulacion | F94: 710 | G94: 1.150561506 | H94: 305 | J94: 405 | N94: Total | O94: 28.8 | P94: 41.6 | R94: 31.8 | T94: 32.26
A95: 6 | B95: A09X | C95: Diarrea y gastroenteritis de presunto origen infeccioso | F95: 640 | G95: 1.037125865 | H95: 302 | J95: 338 | N95: PROYECTOS DE INVERSION (En pesos)
A96: 7 | B96: E039 | C96: Hipotiroidismo, no especificado | F96: 614 | G96: 0.9949926267 | H96: 71 | J96: 543 | Q96: 2012 | S96: 2013 | U96: 2014
A97: 8 | B97: S025 | C97: Fractura de los dientes | F97: 593 | G97: 0.9609619342 | H97: 257 | J97: 336 | N97: ADULTO MAYOR | Q97: 60000000 | S97: 30745094 | U97: 29679319
A98: 9 | B98: J029 | C98: Faringitis aguda, no especificada | F98: 417 | G98: 0.6757523214 | H98: 156 | J98: 261 | N98: DOTACION DISCAPACIDAD | U98: 2747752
A99: 10 | B99: M542 | C99: Cervicalgia | F99: 371 | G99: 0.6012088998 | H99: 150 | J99: 221 | N99: APS - SALUD CONTIGO | S99: 18500000 | U99: 50000000
A100: 11 | C100: Otros Dx | F100: 48879 | G100: 79.20886743 | H100: 19025 | J100: 29854 | N100: COFINANCIACION REG. SUBSIDIADO | Q100: 913406642.1 | S100: 784485901 | U100: 1035600813
A101: TOTALES | F101: 61709 | G101: 100 | H101: 23594 | J101: 38115 | N101: SSR | Q101: 2367018
A102: 10 PRIMERAS CAUSAS DE URGENCIAS 2016 | N102: PAI | Q102: 6074145
A103: ORDEN | B103: CODIGO CIE-10 | C103: CAUSA | F103: TOTAL GENERAL | G103: % | H103: HOMBRES | J103: MUJERES | N103: VECTORES | Q103: 386400
N104: ESTERILIZACION MASCOTAS | Q104: 0
A105: 1 | B105: N390 | C105: Infeccion de vias urinarias, sitio no especificado | F105: 74 | G105: 4.969778375 | H105: 19 | J105: 55 | N105: VACUNA ANTIRRABICA | Q105: 3980000
A106: 2 | B106: O800 | C106: Parto unico espontaneo, presentacion cefalica de vertice | F106: 60 | G106: 4.029550034 | H106: 0 | J106: 60 | N106: INFRAESTRUCTURA
A107: 3 | B107: R51X | C107: Cefalea | F107: 49 | G107: 3.290799194 | H107: 11 | J107: 38 | N107: DOTACION EQUIPOS BIOMEDICOS | Q107: 55000000
A108: 4 | B108: A09X | C108: Diarrea y gastroenteritis de presunto origen infeccioso | F108: 49 | G108: 3.290799194 | H108: 19 | J108: 30 | N108: ESTAMPILLAS PROHOSPITALES | Q108: 105127000 | U108: 81709519
A109: 5 | B109: A90X | C109: Fiebre del dengue [dengue clasico] | F109: 36 | G109: 2.41773002 | H109: 21 | J109: 15 | N109: EQUIPAMIENTO
A110: 6 | B110: N23X | C110: Colico renal, no especificado | F110: 31 | G110: 2.081934184 | H110: 16 | J110: 15 | N110: TELEMEDICINA
A111: 7 | B111: B349 | C111: Infeccion viral, no especificada | F111: 29 | G111: 1.94761585 | H111: 14 | J111: 15 | N111: AMBULANCIA
A112: 8 | B112: M545 | C112: Lumbago no especificado | F112: 28 | G112: 1.880456682 | H112: 9 | J112: 19 | N112: TOTALES | Q112: =SUM(Q97:R111) -> 1146341205 | S112: =SUM(S97:T111) -> 833730995 | U112: =SUM(U97:V111) -> 1199737403
A113: 9 | B113: J00X | C113: Rinofaringitis aguda [resfriado comun] | F113: 26 | G113: 1.746138348 | H113: 9 | J113: 17 | N113: PROYECTOS DE INVERSION (En Cantidad)
A114: 10 | B114: K297 | C114: Gastritis, no especificada | F114: 20 | G114: 1.343183345 | H114: 11 | J114: 9 | N114: PROGRAMA AEREO (No brigadas)
A115: 11 | C115: Otros Dx | F115: 1087 | G115: 73.00201478 | H115: 478 | J115: 609 | N115: ASESORIA Y ASISTENCIA TECNICA | Q115: 12
A116: TOTALES | F116: 1489 | G116: 100 | H116: 607 | J116: 882 | N116: CENTROS AMIGABLES JOVENES

Sheet ABRIAQUI
C4: ALCALDE | E4: JHON FREDY LÓPEZ SEPÚLVEDA
C5: DIRECTOR LOCAL DE SALUD | E5: SILVANA LUCIA RIVERA BENITEZ
C7: CERTIFICACION | E7: RANKING | F7: CATEGORIA MUNICIPAL
C8: SI | E8: 107 | F8: 6
C9: TOTAL CORREGIMIENTOS | E9: 1 | F9: TOTAL VEREDAS | I9: 17
A10: CARACTERISTICAS DEMOGRAFICAS | N10: VIGILANCIA DE LA SALUD PUBLICA - AÑO 2017 ***
A11: POBLACION 2018
A12: TOTAL | B12: HOMBRES | C12: MUJERES | D12: CABECERA | E12: RESTO | N12: MORTALIDAD CANCER CUELLO UTERINO | S12: MORTALIDAD MATERNA
A13: 1971 | B13: 1029 | C13: 942 | D13: 710 | E13: 1261 | N13: # Casos | O13: Tasa x cienmil Mujeres | S13: # Casos | T13: Tasa x cienmil Nacidos vivos
A14: POR GRUPOS DE EDAD | N14: 0 | O14: 0 | S14: 1 | T14: 5555.555556
A15: 0 - 4 AÑOS | B15: 5 - 9 AÑOS | C15: 10 - 14 AÑOS | D15: 15 - 19 AÑOS | E15: 20 - 59 AÑOS | F15: > 60 AÑOS
A16: 155 | B16: 155 | C16: 151 | D16: 154 | E16: 1062 | F16: 294 | N16: MORTALIDAD INFANTIL | S16: MORTALIDAD PERINATAL
N17: # Casos | O17: Tasa x cienmil Nacidos vivos | S17: # Casos | T17: Tasa x cienmil Nacidos vivos
A18: DESPLAZADOS 2015 (a marzo) | D18: INDIGENAS FEB 2014 | G18: ROM | I18: AFRO | N18: 0 | O18: 0 | S18: 1 | T18: 55.55555556
A19: TOTAL | B19: HOMBRES | C19: MUJERES | D19: TOTAL | E19: HOMBRES | F19: MUJERES
A20: 632 | B20: 309.68 | C20: 322.32 | D20: 0 | E20: 0 | F20: 0 | N20: MORTALIDAD VIH SIDA | S20: MORTALIDAD TUBERCULOSIS
N21: # Casos | O21: Tasa x cienmil Habitantes | S21: # Casos | T21: Tasa x cienmil Habitantes
A22: POBLACION TOTAL | B22: Afiliados al regimen Subsidiado * | D22: % De Aseguramiento al Regimen Subsidiado * | F22: Afiliados al Regimen Contributivo * | H22: % De Aseguramiento al RS, RC, RE * | N22: 1 | O22: 49.52947003 | S22: 0 | T22: 0
N24: MORTALIDAD INFARTO AL MIOCARDIO | S24: MORTALIDAD < 5 AÑOS
A25: 1971 | B25: 1391 | D25: 70.57331304 | F25: 331 | H25: 89.6499239 | N25: # Casos | O25: Tasa x cienmil Habitantes | S25: # Casos | T25: Tasa x cienmil Niños
H26: * Corte a Agosto 2018 | N26: 3 | O26: 148.5884101 | S26: 0 | T26: 0
A31: PRESTACION DE SERVICIOS DE SALUD **
A32: EMPRESAS SOCIALES DEL ESTADO
A33: INSTITUCION PRESTADORA DE SERVICIOS DE SALUD | F33: DIRECTOR / GERENTE | N33: 10 PRIMERAS CAUSAS DE MORTALIDAD 2017***
N34: ORDEN | O34: CODIGO 105 CIE-10 | P34: CAUSA | T34: TOTAL GENERAL | U34: HOMBRES | V34: MUJERES | W34: SIN DATO
N36: 1 | O36: 024 | P36: TUMOR MALIGNO DE LA MAMA DE LA MUJER | T36: 5 | U36: 0 | V36: 5 | W36: 0
N37: 2 | O37: 060 | P37: ENFERMEDADES CRONICAS DE LAS VIAS RESPIRATORIAS INFERIORES | T37: 4 | U37: 1 | V37: 3 | W37: 0
N38: 3 | O38: 020 | P38: TUMOR MALIGNO DE LA TRAQUEA, LOS BRONQUIOS Y EL PULMON | T38: 3 | U38: 2 | V38: 1 | W38: 0
A39: PRESTADORES DE SERVICIOS DE SALUD | N39: 4 | O39: 059 | P39: NEUMONIA | T39: 3 | U39: 2 | V39: 1 | W39: 0
A40: TOTALES | B40: IPS | C40: PROFESIONALES INDEPENDIENTES | E40: TRANSPORTE ESPECIAL | G40: OBJETO SOCIAL DIFERENTE | N40: 5 | O40: 074 | P40: INSUFICIENCIA RENAL | T40: 3 | U40: 1 | V40: 2 | W40: 0
N41: 6 | O41: 051 | P41: ENFERMEDADES ISQUEMICAS DEL CORAZON | T41: 3 | U41: 2 | V41: 1 | W41: 0
B42: 1 | C42: 0 | E42: 0 | G42: 0 | N42: 7 | O42: 050 | P42: ENFERMEDADES HIPERTENSIVAS | T42: 3 | U42: 2 | V42: 1 | W42: 0
A43: IPS PUBLICAS | B43: IPS PRIVADAS | C43: SERVICIOS PRESTADOS X PROFESION | N43: 8 | O43: 041 | P43: DIABETES MELLITUS | T43: 2 | U43: 1 | V43: 1 | W43: 0
C44: Odontólogos | D44: Médicos | E44: Otros | F44: Total | N44: 9 | O44: 053 | P44: TODAS LAS DEMAS FORMAS DE ENFERMEDAD DEL CORAZON | T44: 2 | U44: 1 | V44: 1 | W44: 0
N45: 10 | O45: 055 | P45: ENFERMEDADES CEREBROVASCULARES | T45: 2 | U45: 2 | V45: 0 | W45: 0
A46: 1 | B46: 0 | C46: 0 | D46: 0 | E46: 0 | F46: =C46+D46+E46 -> 0
A48: CAPACIDAD INSTALADA | N48: PORCENTAJE DE EMBARAZOS POR GRUPO EDAD RESIDENCIA HABITUAL DE LA MADRE 2017*** | S48: TASAS DE FECUNDIDAD ESPECIFICA POR MIL MUJERES 2017***
A49: CAMAS
A50: Adultos | B50: Cuidado Agudo Mental | C50: Cuidado Intensivo Adulto | D50: Cuidado Intensivo Neonatal | E50: Cuidado Intensivo Pediátrico | F50: Cuidado Intermedio Adulto | G50: Cuidado Intermedio Mental | I50: Cuidado Intermedio Neonatal
N51: 10 a 14 AÑOS | P51: 15 a 19 AÑOS | S51: 10 a 14 AÑOS | U51: 15 a 19 AÑOS
N52: No | O52: % | P52: No | Q52: % | S52: No | T52: TASA | U52: No | V52: TASA
A53: 2 | B53: 0 | C53: 0 | D53: 0 | E53: 0 | F53: 0 | G53: 0 | I53: 0 | N53: 0 | O53: 0 | P53: 4 | Q53: 20 | S53: 0 | T53: 0 | U53: 4 | V53: 53.33333333
A54: CAMAS
A55: Cuidado Intermedio Pediátrico | B55: Farmaco- de-pendencia | C55: Obste-tricia | D55: Pediátricas | E55: Quemados Adultos | F55: Quemados Pediátrico | G55: Salud Mental Psiquiatría | I55: TOTAL CAMAS | N55: *** FUENTE: DANE. Información Preliminar
A58: 0 | B58: 0 | C58: 2 | D58: 2 | E58: 0 | F58: 0 | G58: 0 | I58: =A53+B53+C53+D53+E53+F53+G53+I53+A58+B58+C58+D58+E58+F58+G58 -> 6
A60: SALAS | E60: TOTAL SALAS | N60: INMUNIZACIONES PAI 2017
A61: PARTO | C61: QUIROFANO | N61: POLIOMIELITIS (V.O.P)
A62: 1 | C62: 0 | E62: =A62+C62 -> 1 | N62: Vacunados (Edades) | S62: Refuerzos | T62: Dosis Aplicadas
N63: <1 | O63: 1 | P63: 2 | Q63: 3 | R63: 4 | S63: Otros
A64: TOTAL DE SERVICIOS PRESTADOS SEGÚN LA COMPLEJIDAD | N64: 16 | O64: 0 | P64: 0 | Q64: 0 | R64: 0 | S64: 57 | T64: 115
A65: BAJA | C65: MEDIA | E65: ALTA
A66: 20 | C66: 0 | E66: 0 | N66: DIFTERIA, TOSFERINA Y TÉTANO (D.P.T)
N67: Vacunados (Edades) | S67: Refuerzos | T67: Dosis
A68: TOTAL DE AMBULANCIAS HABILITADAS SEGÚN TIPO Y MODALIDAD | N68: <1 | O68: 1 | P68: 2 | Q68: 3 | R68: 4 | S68: Otros | T68: Aplicadas
A69: TIPO | C69: MODALIDAD | F69: TOTAL GENERAL | G69: **Fuente: REPS - Minsalud /IPS se incluyen todas las sedes habilitadas /febrero y abril 2018, | N69: 16 | O69: 0 | P69: 0 | Q69: 0 | R69: 0 | S69: 57 | T69: 115
A70: BASICA | B70: MEDICADA | C70: AEREA | D70: TERRESTRE | E70: FLUVIAL Y MARIT
A71: 1 | B71: 0 | C71: 0 | D71: 1 | E71: 0 | F71: =SUM(C71:E71) -> 1 | N71: TUBERCULOSIS (B.C.G)
A72: 10 PRIMERAS CAUSAS DE HOSPITALIZACION 2016 | N72: Vacunados (Edades) | S72: Otros | T72: Dosis Aplicadas
A73: ORDEN | B73: CODIGO CIE-10 | C73: CAUSA | F73: TOTAL GENERAL | G73: % | H73: HOMBRES | J73: MUJERES | N73: RN | O73: <1 | P73: 2 | Q73: 3 | R73: 4
N74: 0 | O74: 0 | S74: 0 | T74: 0
A75: 1 | B75: N390 | C75: Infeccion de vias urinarias, sitio no especificado | F75: 7 | G75: 7.865168539 | H75: 1 | J75: 6
A76: 2 | B76: O800 | C76: Parto unico espontaneo, presentacion cefalica de vertice | F76: 6 | G76: 6.741573034 | H76: 0 | J76: 6 | N76: TRIPLE VIRAL - S. R. P.
A77: 3 | B77: P073 | C77: Otros recien nacidos pretermino | F77: 4 | G77: 4.494382022 | H77: 0 | J77: 4 | N77: Vacunados (Edades) | S77: Refuerzos | T77: Dosis Aplicadas
A78: 4 | B78: C920 | C78: Leucemia mieloblastica aguda [LMA] | F78: 4 | G78: 4.494382022 | H78: 4 | J78: 0 | N78: 1 | O78: 2 | P78: 3 | Q78: 4 | R78: Ref. | S78: Otros
A79: 5 | B79: S831 | C79: Luxacion de la rodilla | F79: 4 | G79: 4.494382022 | H79: 4 | J79: 0 | N79: 16 | O79: 0 | P79: 0 | Q79: 0 | R79: 32 | S79: 0 | T79: 48
A80: 6 | B80: S525 | C80: Fractura de la epifisis inferior del radio | F80: 3 | G80: 3.370786517 | H80: 1 | J80: 2
A81: 7 | B81: A90X | C81: Fiebre del dengue [dengue clasico] | F81: 3 | G81: 3.370786517 | H81: 3 | J81: 0 | N81: AGUA POTABLE 2016
A82: 8 | B82: M519 | C82: Trastorno de los discos intervertebrales, no especificado | F82: 2 | G82: 2.247191011 | H82: 0 | J82: 2 | P82: NUMEROS ACUEDUCTOS | R82: COBERTURA ACUEDUCTOS CON AGUA POTABLE (%) | T82: COBERTURAS VIVIENDAS CON AGUA POTABLE (%)
A83: 9 | B83: C498 | C83: Lesion de sitios contiguos del tejido conjuntivo y del tejido blando | F83: 2 | G83: 2.247191011 | H83: 0 | J83: 2
A84: 10 | B84: R074 | C84: Dolor en el pecho, no especificado | F84: 2 | G84: 2.247191011 | H84: 2 | J84: 0
A85: 11 | C85: Otros Dx | F85: 52 | G85: 58.42696629 | H85: 25 | J85: 27 | N85: Urbano | P85: 1 | R85: 0 | T85: 100
A86: TOTALES | F86: 89 | G86: 100 | H86: 40 | J86: 49 | N86: Rural | P86: 8 | R86: 0 | T86: 0
A87: 10 PRIMERAS CAUSAS DE CONSULTA 2016 | N87: Total Municipal | P87: 9 | R87: 0 | T87: 40.02
A88: ORDEN | B88: CODIGO CIE-10 | C88: CAUSA | F88: TOTAL GENERAL | G88: % | H88: HOMBRES | J88: MUJERES | N88: CERTIFACION EN AGUA POTABLE | O88: INDICE RIESGO CALIDAD DEL AGUA POTABLE - IRCA- (a) | P88: INDICE RIESGO DE ABASTECIMIENTO MUNICIPAL - IRABA- (b) | R88: BUENAS PRACTICAS SANTIARIAS © | T88: CERTIFICAION SANITARIA MUNICIPAL EN AGUA POTABLE ©
A90: 1 | B90: I10X | C90: Hipertension esencial (primaria) | F90: 387 | G90: 10.81307628 | H90: 147 | J90: 240
A91: 2 | B91: N390 | C91: Infeccion de vias urinarias, sitio no especificado | F91: 96 | G91: 2.682313495 | H91: 39 | J91: 57
A92: 3 | B92: J00X | C92: Rinofaringitis aguda [resfriado comun] | F92: 75 | G92: 2.095557418 | H92: 34 | J92: 41 | N92: Urbano | O92: 0 | P92: 32 | R92: 43 | T92: 19.3
A93: 4 | B93: M545 | C93: Lumbago no especificado | F93: 36 | G93: 1.005867561 | H93: 15 | J93: 21 | N93: Rural | O93: 32.8 | P93: 75.7 | R93: 75.8 | T93: 54.28
A94: 5 | B94: A09X | C94: Diarrea y gastroenteritis de presunto origen infeccioso | F94: 30 | G94: 0.8382229673 | H94: 13 | J94: 17 | N94: Total | O94: 11.8 | P94: 37 | R94: 54.8 | T94: 29.74
A95: 6 | B95: C920 | C95: Leucemia mieloblastica aguda [LMA] | F95: 27 | G95: 0.7544006706 | H95: 27 | J95: 0 | N95: PROYECTOS DE INVERSION (En pesos)
A96: 7 | B96: M255 | C96: Dolor en articulacion | F96: 26 | G96: 0.726459905 | H96: 12 | J96: 14 | Q96: 2012 | S96: 2013 | U96: 2014
A97: 8 | B97: D509 | C97: Anemia por deficiencia de hierro sin otra especificacion | F97: 26 | G97: 0.726459905 | H97: 10 | J97: 16 | N97: ADULTO MAYOR | Q97: 32130000 | S97: 12326854 | U97: 22000000
A98: 9 | B98: P073 | C98: Otros recien nacidos pretermino | F98: 22 | G98: 0.6146968427 | H98: 0 | J98: 22 | N98: DOTACION DISCAPACIDAD | U98: 2747752
A99: 10 | B99: M796 | C99: Dolor en miembro | F99: 20 | G99: 0.5588153115 | H99: 13 | J99: 7 | N99: APS - SALUD CONTIGO | Q99: 22000000 | S99: 38971000
A100: 11 | C100: Otros Dx | F100: 2834 | G100: 79.18412965 | H100: 1194 | J100: 1640 | N100: COFINANCIACION REG. SUBSIDIADO | Q100: 2963575.206 | S100: 2545288 | U100: 3360038
A101: TOTALES | F101: 3579 | G101: 100 | H101: 1504 | J101: 2075 | N101: SSR | Q101: 276979
A102: 10 PRIMERAS CAUSAS DE URGENCIAS 2016 | N102: PAI | Q102: 710771
A103: ORDEN | B103: CODIGO CIE-10 | C103: CAUSA | F103: TOTAL GENERAL | G103: % | H103: HOMBRES | J103: MUJERES | N103: VECTORES | Q103: 386400
N104: ESTERILIZACION MASCOTAS | Q104: 0
A105: 1 | B105: R51X | C105: Cefalea | F105: 11 | G105: 7.692307692 | H105: 5 | J105: 6 | N105: VACUNA ANTIRRABICA | Q105: 698000
A106: 2 | B106: R101 | C106: Dolor abdominal localizado en parte superior | F106: 9 | G106: 6.293706294 | H106: 6 | J106: 3 | N106: INFRAESTRUCTURA
A107: 3 | B107: R104 | C107: Otros dolores abdominales y los no especificados | F107: 6 | G107: 4.195804196 | H107: 4 | J107: 2 | N107: DOTACION EQUIPOS BIOMEDICOS | Q107: 45500000
A108: 4 | B108: N23X | C108: Colico renal, no especificado | F108: 6 | G108: 4.195804196 | H108: 4 | J108: 2 | N108: ESTAMPILLAS PROHOSPITALES
A109: 5 | B109: J459 | C109: Asma, no especificado | F109: 5 | G109: 3.496503497 | H109: 4 | J109: 1 | N109: EQUIPAMIENTO
A110: 6 | B110: A09X | C110: Diarrea y gastroenteritis de presunto origen infeccioso | F110: 5 | G110: 3.496503497 | H110: 2 | J110: 3 | N110: TELEMEDICINA
A111: 7 | B111: B269 | C111: Parotiditis, sin complicaciones | F111: 5 | G111: 3.496503497 | H111: 2 | J111: 3 | N111: AMBULANCIA
A112: 8 | B112: R42X | C112: Mareo y desvanecimiento | F112: 4 | G112: 2.797202797 | H112: 0 | J112: 4 | N112: TOTALES | Q112: =SUM(Q97:R111) -> 104665725.2 | S112: =SUM(S97:T111) -> 53843142 | U112: =SUM(U97:V111) -> 28107790
A113: 9 | B113: S822 | C113: Fractura de la diafisis de la tibia | F113: 4 | G113: 2.797202797 | H113: 0 | J113: 4 | N113: PROYECTOS DE INVERSION (En Cantidad)
A114: 10 | B114: J22X | C114: Infeccion aguda no especificada de las vias respiratorias inferiores | F114: 4 | G114: 2.797202797 | H114: 4 | J114: 0 | N114: PROGRAMA AEREO (No brigadas)
A115: 11 | C115: Otros Dx | F115: 84 | G115: 58.74125874 | H115: 41 | J115: 43 | N115: ASESORIA Y ASISTENCIA TECNICA | Q115: 13
A116: TOTALES | F116: 143 | G116: 100 | H116: 72 | J116: 71 | N116: CENTROS AMIGABLES JOVENES

Sheet ALEJANDRIA
C4: ALCALDE | E4: LUIS FERNANDO LÓPEZ PÉREZ
C5: DIRECTOR LOCAL DE SALUD | E5: LUZ MAYERLE MARIN CARMONA
C7: CERTIFICACION | E7: RANKING | F7: CATEGORIA MUNICIPAL
C8: SI | E8: 95 | F8: 6
C9: TOTAL CORREGIMIENTOS | E9: 0 | F9: TOTAL VEREDAS | I9: 15
A10: CARACTERISTICAS DEMOGRAFICAS | N10: VIGILANCIA DE LA SALUD PUBLICA - AÑO 2017 ***
A11: POBLACION 2018
A12: TOTAL | B12: HOMBRES | C12: MUJERES | D12: CABECERA | E12: RESTO | N12: MORTALIDAD CANCER CUELLO UTERINO | S12: MORTALIDAD MATERNA
A13: 3361 | B13: 1682 | C13: 1679 | D13: 1801 | E13: 1560 | N13: # Casos | O13: Tasa x cienmil Mujeres | S13: # Casos | T13: Tasa x cienmil Nacidos vivos
A14: POR GRUPOS DE EDAD | N14: 0 | O14: 0 | S14: 0 | T14: 0
A15: 0 - 4 AÑOS | B15: 5 - 9 AÑOS | C15: 10 - 14 AÑOS | D15: 15 - 19 AÑOS | E15: 20 - 59 AÑOS | F15: > 60 AÑOS
A16: 226 | B16: 232 | C16: 226 | D16: 259 | E16: 1919 | F16: 499 | N16: MORTALIDAD INFANTIL | S16: MORTALIDAD PERINATAL
N17: # Casos | O17: Tasa x cienmil Nacidos vivos | S17: # Casos | T17: Tasa x cienmil Nacidos vivos
A18: DESPLAZADOS 2015 (a marzo) | D18: INDIGENAS FEB 2014 | G18: ROM | I18: AFRO | N18: 0 | O18: 0 | S18: 0 | T18: 0
A19: TOTAL | B19: HOMBRES | C19: MUJERES | D19: TOTAL | E19: HOMBRES | F19: MUJERES
A20: 2715 | B20: 1330.35 | C20: 1384.65 | D20: 0 | E20: 0 | F20: 0 | N20: MORTALIDAD VIH SIDA | S20: MORTALIDAD TUBERCULOSIS
N21: # Casos | O21: Tasa x cienmil Habitantes | S21: # Casos | T21: Tasa x cienmil Habitantes
A22: POBLACION TOTAL | B22: Afiliados al regimen Subsidiado * | D22: % De Aseguramiento al Regimen Subsidiado * | F22: Afiliados al Regimen Contributivo * | H22: % De Aseguramiento al RS, RC, RE * | N22: 0 | O22: 0 | S22: 0 | T22: 0
N24: MORTALIDAD INFARTO AL MIOCARDIO | S24: MORTALIDAD < 5 AÑOS
A25: 3361 | B25: 2965 | D25: 88.21779232 | F25: 535 | H25: 100 | N25: # Casos | O25: Tasa x cienmil Habitantes | S25: # Casos | T25: Tasa x cienmil Niños
H26: * Corte a Agosto 2018 | N26: 4 | O26: 117.8897731 | S26: 0 | T26: 0
A31: PRESTACION DE SERVICIOS DE SALUD **
A32: EMPRESAS SOCIALES DEL ESTADO
A33: INSTITUCION PRESTADORA DE SERVICIOS DE SALUD | F33: DIRECTOR / GERENTE | N33: 10 PRIMERAS CAUSAS DE MORTALIDAD 2017***
A34: ESE HOSPITAL PBRO LUIS FELIPE ARBELAEZ | F34: OSCAR DARÍO RESTREPO BRAVO | N34: ORDEN | O34: CODIGO 105 CIE-10 | P34: CAUSA | T34: TOTAL GENERAL | U34: HOMBRES | V34: MUJERES | W34: SIN DATO
N36: 1 | O36: 051 | P36: ENFERMEDADES ISQUEMICAS DEL CORAZON | T36: 4 | U36: 2 | V36: 2 | W36: 0
N37: 2 | O37: 050 | P37: ENFERMEDADES HIPERTENSIVAS | T37: 4 | U37: 4 | V37: 0 | W37: 0
N38: 3 | O38: 060 | P38: ENFERMEDADES CRONICAS DE LAS VIAS RESPIRATORIAS INFERIORES | T38: 2 | U38: 0 | V38: 2 | W38: 0
A39: PRESTADORES DE SERVICIOS DE SALUD | N39: 4 | O39: 101 | P39: AGRESIONES (HOMICIDIOS) Y SECUELAS | T39: 2 | U39: 1 | V39: 1 | W39: 0
A40: TOTALES | B40: IPS | C40: PROFESIONALES INDEPENDIENTES | E40: TRANSPORTE ESPECIAL | G40: OBJETO SOCIAL DIFERENTE | N40: 5 | O40: 065 | P40: ENFERMEDADES DEL APENDICE, HERNIA Y OBSTRUCCION INTESTINAL | T40: 1 | U40: 1 | V40: 0 | W40: 0
N41: 6 | O41: 059 | P41: NEUMONIA | T41: 1 | U41: 1 | V41: 0 | W41: 0
B42: 1 | C42: 0 | E42: 0 | G42: 0 | N42: 7 | O42: 030 | P42: TODOS LOS DEMAS TUMORES MALIGNOS DE LOS ORGANOS URINARIOS | T42: 1 | U42: 1 | V42: 0 | W42: 0
A43: IPS PUBLICAS | B43: IPS PRIVADAS | C43: SERVICIOS PRESTADOS X PROFESION | N43: 8 | O43: 037 | P43: TUMORES: IN SITU, BENIGNOS Y DE COMPORTAMIENTO INCIERTO O DESCONOCIDO Y LOS NO ESPECIFICADOS | T43: 1 | U43: 1 | V43: 0 | W43: 0
C44: Odontólogos | D44: Médicos | E44: Otros | F44: Total | N44: 9 | O44: 041 | P44: DIABETES MELLITUS | T44: 1 | U44: 0 | V44: 1 | W44: 0
N45: 10 | O45: 072 | P45: ENFERMEDADES DEL SISTEMA OSTEOMUSCULAR Y DEL TEJIDO CONJUNTIVO | T45: 1 | U45: 0 | V45: 1 | W45: 0
A46: 1 | B46: 0 | C46: 1 | D46: 1 | E46: 0 | F46: =C46+D46+E46 -> 2
A48: CAPACIDAD INSTALADA | N48: PORCENTAJE DE EMBARAZOS POR GRUPO EDAD RESIDENCIA HABITUAL DE LA MADRE 2017*** | S48: TASAS DE FECUNDIDAD ESPECIFICA POR MIL MUJERES 2017***
A49: CAMAS
A50: Adultos | B50: Cuidado Agudo Mental | C50: Cuidado Intensivo Adulto | D50: Cuidado Intensivo Neonatal | E50: Cuidado Intensivo Pediátrico | F50: Cuidado Intermedio Adulto | G50: Cuidado Intermedio Mental | I50: Cuidado Intermedio Neonatal
N51: 10 a 14 AÑOS | P51: 15 a 19 AÑOS | S51: 10 a 14 AÑOS | U51: 15 a 19 AÑOS
N52: No | O52: % | P52: No | Q52: % | S52: No | T52: TASA | U52: No | V52: TASA
A53: 1 | B53: 0 | C53: 0 | D53: 0 | E53: 0 | F53: 0 | G53: 0 | I53: 0 | N53: 1 | O53: 1.960784314 | P53: 6 | Q53: 11.76470588 | S53: 1 | T53: 9.009009009 | U53: 6 | V53: 46.51162791
A54: CAMAS
A55: Cuidado Intermedio Pediátrico | B55: Farmaco- de-pendencia | C55: Obste-tricia | D55: Pediátricas | E55: Quemados Adultos | F55: Quemados Pediátrico | G55: Salud Mental Psiquiatría | I55: TOTAL CAMAS | N55: *** FUENTE: DANE. Información Preliminar
A58: 0 | B58: 0 | C58: 1 | D58: 1 | E58: 0 | F58: 0 | G58: 0 | I58: =A53+B53+C53+D53+E53+F53+G53+I53+A58+B58+C58+D58+E58+F58+G58 -> 3
A60: SALAS | E60: TOTAL SALAS | N60: INMUNIZACIONES PAI 2017
A61: PARTO | C61: QUIROFANO | N61: POLIOMIELITIS (V.O.P)
A62: 1 | C62: 0 | E62: =A62+C62 -> 1 | N62: Vacunados (Edades) | S62: Refuerzos | T62: Dosis Aplicadas
N63: <1 | O63: 1 | P63: 2 | Q63: 3 | R63: 4 | S63: Otros
A64: TOTAL DE SERVICIOS PRESTADOS SEGÚN LA COMPLEJIDAD | N64: 56 | O64: 1 | P64: 1 | Q64: 0 | R64: 0 | S64: 124 | T64: 294
A65: BAJA | C65: MEDIA | E65: ALTA
A66: 27 | C66: 0 | E66: 0 | N66: DIFTERIA, TOSFERINA Y TÉTANO (D.P.T)
N67: Vacunados (Edades) | S67: Refuerzos | T67: Dosis
A68: TOTAL DE AMBULANCIAS HABILITADAS SEGÚN TIPO Y MODALIDAD | N68: <1 | O68: 1 | P68: 2 | Q68: 3 | R68: 4 | S68: Otros | T68: Aplicadas
A69: TIPO | C69: MODALIDAD | F69: TOTAL GENERAL | G69: **Fuente: REPS - Minsalud /IPS se incluyen todas las sedes habilitadas /febrero y abril 2018, | N69: 56 | O69: 1 | P69: 0 | Q69: 0 | R69: 0 | S69: 124 | T69: 292
A70: BASICA | B70: MEDICADA | C70: AEREA | D70: TERRESTRE | E70: FLUVIAL Y MARIT
A71: 2 | B71: 0 | C71: 0 | D71: 2 | E71: 0 | F71: =SUM(C71:E71) -> 2 | N71: TUBERCULOSIS (B.C.G)
A72: 10 PRIMERAS CAUSAS DE HOSPITALIZACION 2016 | N72: Vacunados (Edades) | S72: Otros | T72: Dosis Aplicadas
A73: ORDEN | B73: CODIGO CIE-10 | C73: CAUSA | F73: TOTAL GENERAL | G73: % | H73: HOMBRES | J73: MUJERES | N73: RN | O73: <1 | P73: 2 | Q73: 3 | R73: 4
N74: 5 | O74: 0 | S74: 0 | T74: 5
A75: 1 | B75: O800 | C75: Parto unico espontaneo, presentacion cefalica de vertice | F75: 61 | G75: 23.01886792 | H75: 0 | J75: 61
A76: 2 | B76: L033 | C76: Celulitis del tronco | F76: 21 | G76: 7.924528302 | H76: 1 | J76: 20 | N76: TRIPLE VIRAL - S. R. P.
A77: 3 | B77: G430 | C77: Migrana sin aura [migrana comun] | F77: 18 | G77: 6.79245283 | H77: 0 | J77: 18 | N77: Vacunados (Edades) | S77: Refuerzos | T77: Dosis Aplicadas
A78: 4 | B78: L958 | C78: Otras vasculitis limitadas a la piel | F78: 12 | G78: 4.528301887 | H78: 0 | J78: 12 | N78: 1 | O78: 2 | P78: 3 | Q78: 4 | R78: Ref. | S78: Otros
A79: 5 | B79: N390 | C79: Infeccion de vias urinarias, sitio no especificado | F79: 11 | G79: 4.150943396 | H79: 0 | J79: 11 | N79: 50 | O79: 0 | P79: 0 | Q79: 0 | R79: 73 | S79: 2 | T79: 125
A80: 6 | B80: G448 | C80: Otros sindromes de cefalea especificados | F80: 8 | G80: 3.018867925 | H80: 0 | J80: 8
A81: 7 | B81: S723 | C81: Fractura de la diafisis del femur | F81: 7 | G81: 2.641509434 | H81: 7 | J81: 0 | N81: AGUA POTABLE 2016
A82: 8 | B82: O809 | C82: Parto unico espontaneo, sin otra especificacion | F82: 6 | G82: 2.264150943 | H82: 0 | J82: 6 | P82: NUMEROS ACUEDUCTOS | R82: COBERTURA ACUEDUCTOS CON AGUA POTABLE (%) | T82: COBERTURAS VIVIENDAS CON AGUA POTABLE (%)
A83: 9 | B83: F312 | C83: Trastorno afectivo bipolar, episodio maniaco presente con sintomas psicoticos | F83: 6 | G83: 2.264150943 | H83: 0 | J83: 6
A84: 10 | B84: I802 | C84: Flebitis y tromboflebitis de otros vasos profundos de los miembros inferiores | F84: 6 | G84: 2.264150943 | H84: 6 | J84: 0
A85: 11 | C85: Otros Dx | F85: 109 | G85: 41.13207547 | H85: 62 | J85: 47 | N85: Urbano | P85: 1 | R85: 100 | T85: 100
A86: TOTALES | F86: 265 | G86: 100 | H86: 76 | J86: 189 | N86: Rural | P86: 7 | R86: 0 | T86: 0
A87: 10 PRIMERAS CAUSAS DE CONSULTA 2016 | N87: Total Municipal | P87: 8 | R87: 12.5 | T87: 50.61
A88: ORDEN | B88: CODIGO CIE-10 | C88: CAUSA | F88: TOTAL GENERAL | G88: % | H88: HOMBRES | J88: MUJERES | N88: CERTIFACION EN AGUA POTABLE | O88: INDICE RIESGO CALIDAD DEL AGUA POTABLE - IRCA- (a) | P88: INDICE RIESGO DE ABASTECIMIENTO MUNICIPAL - IRABA- (b) | R88: BUENAS PRACTICAS SANTIARIAS © | T88: CERTIFICAION SANITARIA MUNICIPAL EN AGUA POTABLE ©
A90: 1 | B90: I10X | C90: Hipertension esencial (primaria) | F90: 378 | G90: 2.705023615 | H90: 119 | J90: 259
A91: 2 | B91: M545 | C91: Lumbago no especificado | F91: 279 | G91: 1.996565049 | H91: 126 | J91: 153
A92: 3 | B92: N390 | C92: Infeccion de vias urinarias, sitio no especificado | F92: 213 | G92: 1.524259339 | H92: 44 | J92: 169 | N92: Urbano | O92: 0 | P92: 30.5 | R92: 38 | T92: 17.5
A93: 4 | B93: N771 | C93: Vaginitis, vulvitis y vulvovaginitis en enfermedades infecciosas y parasitarias clasificadas en otra parte | F93: 171 | G93: 1.223701159 | H93: 0 | J93: 171 | N93: Rural | O93: 93.7 | P93: 80.4 | R93: 83.1 | T93: 87.86
A94: 5 | B94: A09X | C94: Diarrea y gastroenteritis de presunto origen infeccioso | F94: 129 | G94: 0.9231429798 | H94: 83 | J94: 46 | N94: Total | O94: 19.1 | P94: 31.8 | R94: 47.2 | T94: 30.07
A95: 6 | B95: M751 | C95: Sindrome del manguito rotatorio | F95: 127 | G95: 0.9088306856 | H95: 17 | J95: 110 | N95: PROYECTOS DE INVERSION (En pesos)
A96: 7 | B96: M255 | C96: Dolor en articulacion | F96: 120 | G96: 0.8587376556 | H96: 47 | J96: 73 | Q96: 2012 | S96: 2013 | U96: 2014
A97: 8 | B97: G439 | C97: Migrana, no especificada | F97: 111 | G97: 0.7943323315 | H97: 18 | J97: 93 | N97: ADULTO MAYOR | Q97: 57800000 | S97: 14120920 | U97: 35000000
A98: 9 | B98: E039 | C98: Hipotiroidismo, no especificado | F98: 110 | G98: 0.7871761843 | H98: 16 | J98: 94 | N98: DOTACION DISCAPACIDAD | U98: 2747752
A99: 10 | B99: J459 | C99: Asma, no especificado | F99: 92 | G99: 0.658365536 | H99: 36 | J99: 56 | N99: APS - SALUD CONTIGO | Q99: 45660000 | S99: 76700000 | U99: 65000000
A100: 11 | C100: Otros Dx | F100: 12244 | G100: 87.61986546 | H100: 3266 | J100: 8978 | N100: COFINANCIACION REG. SUBSIDIADO | Q100: 16985416.72 | S100: 14588048 | U100: 19257700
A101: TOTALES | F101: 13974 | G101: 100 | H101: 3772 | J101: 10202 | N101: SSR | Q101: 432401
A102: 10 PRIMERAS CAUSAS DE URGENCIAS 2016 | N102: PAI | Q102: 1109610
A103: ORDEN | B103: CODIGO CIE-10 | C103: CAUSA | F103: TOTAL GENERAL | G103: % | H103: HOMBRES | J103: MUJERES | N103: VECTORES | Q103: 386400
N104: ESTERILIZACION MASCOTAS | Q104: 0
A105: 1 | B105: R51X | C105: Cefalea | F105: 197 | G105: 10.95661846 | H105: 32 | J105: 165 | N105: VACUNA ANTIRRABICA | Q105: 1140000
A106: 2 | B106: N390 | C106: Infeccion de vias urinarias, sitio no especificado | F106: 80 | G106: 4.449388209 | H106: 30 | J106: 50 | N106: INFRAESTRUCTURA
A107: 3 | B107: R42X | C107: Mareo y desvanecimiento | F107: 76 | G107: 4.226918799 | H107: 9 | J107: 67 | N107: DOTACION EQUIPOS BIOMEDICOS
A108: 4 | B108: A09X | C108: Diarrea y gastroenteritis de presunto origen infeccioso | F108: 59 | G108: 3.281423804 | H108: 51 | J108: 8 | N108: ESTAMPILLAS PROHOSPITALES | Q108: 62054000 | U108: 50257872
A109: 5 | B109: J459 | C109: Asma, no especificado | F109: 52 | G109: 2.892102336 | H109: 11 | J109: 41 | N109: EQUIPAMIENTO | S109: 40000000
A110: 6 | B110: G439 | C110: Migrana, no especificada | F110: 41 | G110: 2.280311457 | H110: 0 | J110: 41 | N110: TELEMEDICINA
A111: 7 | B111: K299 | C111: Gastroduodenitis, no especificada | F111: 40 | G111: 2.224694105 | H111: 10 | J111: 30 | N111: AMBULANCIA
A112: 8 | B112: R074 | C112: Dolor en el pecho, no especificado | F112: 35 | G112: 1.946607341 | H112: 11 | J112: 24 | N112: TOTALES | Q112: =SUM(Q97:R111) -> 185567827.7 | S112: =SUM(S97:T111) -> 145408968 | U112: =SUM(U97:V111) -> 172263324
A113: 9 | B113: L509 | C113: Urticaria, no especificada | F113: 32 | G113: 1.779755284 | H113: 14 | J113: 18 | N113: PROYECTOS DE INVERSION (En Cantidad)
A114: 10 | B114: K297 | C114: Gastritis, no especificada | F114: 32 | G114: 1.779755284 | H114: 13 | J114: 19 | N114: PROGRAMA AEREO (No brigadas)
A115: 11 | C115: Otros Dx | F115: 1154 | G115: 64.18242492 | H115: 510 | J115: 644 | N115: ASESORIA Y ASISTENCIA TECNICA | Q115: 14
A116: TOTALES | F116: 1798 | G116: 100 | H116: 691 | J116: 1107 | N116: CENTROS AMIGABLES JOVENES

Sheet AMAGA
C4: ALCALDE | E4: WILSER DARÍO MOLINA MOLINA
C5: DIRECTOR LOCAL DE SALUD | E5: DIANA MARIA RUIZ PIEDRAHITA
C7: CERTIFICACION | E7: RANKING | F7: CATEGORIA MUNICIPAL
C8: SI | E8: 30 | F8: 6
C9: TOTAL CORREGIMIENTOS | E9: 3 | F9: TOTAL VEREDAS | I9: 19
A10: CARACTERISTICAS DEMOGRAFICAS | N10: VIGILANCIA DE LA SALUD PUBLICA - AÑO 2017 ***
A11: POBLACION 2018
A12: TOTAL | B12: HOMBRES | C12: MUJERES | D12: CABECERA | E12: RESTO | N12: MORTALIDAD CANCER CUELLO UTERINO | S12: MORTALIDAD MATERNA
A13: 30181 | B13: 15306 | C13: 14875 | D13: 17370 | E13: 12811 | N13: # Casos | O13: Tasa x cienmil Mujeres | S13: # Casos | T13: Tasa x cienmil Nacidos vivos
A14: POR GRUPOS DE EDAD | N14: 1 | O14: 6.762239654 | S14: 0 | T14: 0
A15: 0 - 4 AÑOS | B15: 5 - 9 AÑOS | C15: 10 - 14 AÑOS | D15: 15 - 19 AÑOS | E15: 20 - 59 AÑOS | F15: > 60 AÑOS
A16: 2785 | B16: 2760 | C16: 2818 | D16: 2550 | E16: 16148 | F16: 3120 | N16: MORTALIDAD INFANTIL | S16: MORTALIDAD PERINATAL
N17: # Casos | O17: Tasa x cienmil Nacidos vivos | S17: # Casos | T17: Tasa x cienmil Nacidos vivos
A18: DESPLAZADOS 2015 (a marzo) | D18: INDIGENAS FEB 2014 | G18: ROM | I18: AFRO | N18: 3 | O18: 10.79136691 | S18: 1 | T18: 3.597122302
A19: TOTAL | B19: HOMBRES | C19: MUJERES | D19: TOTAL | E19: HOMBRES | F19: MUJERES
A20: 984 | B20: 482.16 | C20: 501.84 | D20: 0 | E20: 0 | F20: 0 | N20: MORTALIDAD VIH SIDA | S20: MORTALIDAD TUBERCULOSIS
N21: # Casos | O21: Tasa x cienmil Habitantes | S21: # Casos | T21: Tasa x cienmil Habitantes
A22: POBLACION TOTAL | B22: Afiliados al regimen Subsidiado * | D22: % De Aseguramiento al Regimen Subsidiado * | F22: Afiliados al Regimen Contributivo * | H22: % De Aseguramiento al RS, RC, RE * | N22: 1 | O22: 3.335557038 | S22: 2 | T22: 6.671114076
N24: MORTALIDAD INFARTO AL MIOCARDIO | S24: MORTALIDAD < 5 AÑOS
A25: 30181 | B25: 10144 | D25: 33.61054968 | F25: 13727 | H25: 81.37569994 | N25: # Casos | O25: Tasa x cienmil Habitantes | S25: # Casos | T25: Tasa x cienmil Niños
H26: * Corte a Agosto 2018 | N26: 20 | O26: 66.71114076 | S26: 3 | T26: 107.3345259
A31: PRESTACION DE SERVICIOS DE SALUD **
A32: EMPRESAS SOCIALES DEL ESTADO
A33: INSTITUCION PRESTADORA DE SERVICIOS DE SALUD | F33: DIRECTOR / GERENTE | N33: 10 PRIMERAS CAUSAS DE MORTALIDAD 2017***
A34: ESE HOSPITAL SAN FERNANDO | F34: CLAUDIA PATRICIA MARIN ALZATE | N34: ORDEN | O34: CODIGO 105 CIE-10 | P34: CAUSA | T34: TOTAL GENERAL | U34: HOMBRES | V34: MUJERES | W34: SIN DATO
N36: 1 | O36: 051 | P36: ENFERMEDADES ISQUEMICAS DEL CORAZON | T36: 21 | U36: 12 | V36: 9 | W36: 0
N37: 2 | O37: 101 | P37: AGRESIONES (HOMICIDIOS) Y SECUELAS | T37: 14 | U37: 13 | V37: 1 | W37: 0
N38: 3 | O38: 060 | P38: ENFERMEDADES CRONICAS DE LAS VIAS RESPIRATORIAS INFERIORES | T38: 10 | U38: 5 | V38: 5 | W38: 0
A39: PRESTADORES DE SERVICIOS DE SALUD | N39: 4 | O39: 050 | P39: ENFERMEDADES HIPERTENSIVAS | T39: 9 | U39: 5 | V39: 4 | W39: 0
A40: TOTALES | B40: IPS | C40: PROFESIONALES INDEPENDIENTES | E40: TRANSPORTE ESPECIAL | G40: OBJETO SOCIAL DIFERENTE | N40: 5 | O40: 013 | P40: TUMOR MALIGNO DEL ESTOMAGO | T40: 7 | U40: 2 | V40: 5 | W40: 0
N41: 6 | O41: 055 | P41: ENFERMEDADES CEREBROVASCULARES | T41: 7 | U41: 4 | V41: 3 | W41: 0
B42: 1 | C42: 8 | E42: 0 | G42: 0 | N42: 7 | O42: 053 | P42: TODAS LAS DEMAS FORMAS DE ENFERMEDAD DEL CORAZON | T42: 6 | U42: 5 | V42: 1 | W42: 0
A43: IPS PUBLICAS | B43: IPS PRIVADAS | C43: SERVICIOS PRESTADOS X PROFESION | N43: 8 | O43: 037 | P43: TUMORES: IN SITU, BENIGNOS Y DE COMPORTAMIENTO INCIERTO O DESCONOCIDO Y LOS NO ESPECIFICADOS | T43: 5 | U43: 3 | V43: 2 | W43: 0
C44: Odontólogos | D44: Médicos | E44: Otros | F44: Total | N44: 9 | O44: 090 | P44: ACCIDENTES DE TRANSPORTE DE MOTOR Y SECUELAS | T44: 5 | U44: 5 | V44: 0 | W44: 0
N45: 10 | O45: 020 | P45: TUMOR MALIGNO DE LA TRAQUEA, LOS BRONQUIOS Y EL PULMON | T45: 5 | U45: 2 | V45: 3 | W45: 0
A46: 1 | B46: 1 | C46: 6 | D46: 3 | E46: 1 | F46: =C46+D46+E46 -> 10
A48: CAPACIDAD INSTALADA | N48: PORCENTAJE DE EMBARAZOS POR GRUPO EDAD RESIDENCIA HABITUAL DE LA MADRE 2017*** | S48: TASAS DE FECUNDIDAD ESPECIFICA POR MIL MUJERES 2017***
A49: CAMAS
A50: Adultos | B50: Cuidado Agudo Mental | C50: Cuidado Intensivo Adulto | D50: Cuidado Intensivo Neonatal | E50: Cuidado Intensivo Pediátrico | F50: Cuidado Intermedio Adulto | G50: Cuidado Intermedio Mental | I50: Cuidado Intermedio Neonatal
N51: 10 a 14 AÑOS | P51: 15 a 19 AÑOS | S51: 10 a 14 AÑOS | U51: 15 a 19 AÑOS
N52: No | O52: % | P52: No | Q52: % | S52: No | T52: TASA | U52: No | V52: TASA
A53: 4 | B53: 0 | C53: 0 | D53: 0 | E53: 0 | F53: 0 | G53: 0 | I53: 0 | N53: 2 | O53: 0.7168458781 | P53: 69 | Q53: 24.7311828 | S53: 2 | T53: 1.488095238 | U53: 69 | V53: 55.2
A54: CAMAS
A55: Cuidado Intermedio Pediátrico | B55: Farmaco- de-pendencia | C55: Obste-tricia | D55: Pediátricas | E55: Quemados Adultos | F55: Quemados Pediátrico | G55: Salud Mental Psiquiatría | I55: TOTAL CAMAS | N55: *** FUENTE: DANE. Información Preliminar
A58: 0 | B58: 0 | C58: 3 | D58: 3 | E58: 0 | F58: 0 | G58: 0 | I58: =A53+B53+C53+D53+E53+F53+G53+I53+A58+B58+C58+D58+E58+F58+G58 -> 10
A60: SALAS | E60: TOTAL SALAS | N60: INMUNIZACIONES PAI 2017
A61: PARTO | C61: QUIROFANO | N61: POLIOMIELITIS (V.O.P)
A62: 1 | C62: 0 | E62: =A62+C62 -> 1 | N62: Vacunados (Edades) | S62: Refuerzos | T62: Dosis Aplicadas
N63: <1 | O63: 1 | P63: 2 | Q63: 3 | R63: 4 | S63: Otros
A64: TOTAL DE SERVICIOS PRESTADOS SEGÚN LA COMPLEJIDAD | N64: 262 | O64: 2 | P64: 2 | Q64: 0 | R64: 0 | S64: 587 | T64: 1394
A65: BAJA | C65: MEDIA | E65: ALTA
A66: 70 | C66: 4 | E66: 0 | N66: DIFTERIA, TOSFERINA Y TÉTANO (D.P.T)
N67: Vacunados (Edades) | S67: Refuerzos | T67: Dosis
A68: TOTAL DE AMBULANCIAS HABILITADAS SEGÚN TIPO Y MODALIDAD | N68: <1 | O68: 1 | P68: 2 | Q68: 3 | R68: 4 | S68: Otros | T68: Aplicadas
A69: TIPO | C69: MODALIDAD | F69: TOTAL GENERAL | G69: **Fuente: REPS - Minsalud /IPS se incluyen todas las sedes habilitadas /febrero y abril 2018, | N69: 265 | O69: 2 | P69: 2 | Q69: 0 | R69: 0 | S69: 587 | T69: 1399
A70: BASICA | B70: MEDICADA | C70: AEREA | D70: TERRESTRE | E70: FLUVIAL Y MARIT
A71: 2 | B71: 0 | C71: 0 | D71: 2 | E71: 0 | F71: =SUM(C71:E71) -> 2 | N71: TUBERCULOSIS (B.C.G)
A72: 10 PRIMERAS CAUSAS DE HOSPITALIZACION 2016 | N72: Vacunados (Edades) | S72: Otros | T72: Dosis Aplicadas
A73: ORDEN | B73: CODIGO CIE-10 | C73: CAUSA | F73: TOTAL GENERAL | G73: % | H73: HOMBRES | J73: MUJERES | N73: RN | O73: <1 | P73: 2 | Q73: 3 | R73: 4
N74: 25 | O74: 1 | S74: 0 | T74: 26
A75: 1 | B75: O800 | C75: Parto unico espontaneo, presentacion cefalica de vertice | F75: 63 | G75: 6.468172485 | H75: 0 | J75: 63
A76: 2 | B76: N390 | C76: Infeccion de vias urinarias, sitio no especificado | F76: 50 | G76: 5.133470226 | H76: 9 | J76: 41 | N76: TRIPLE VIRAL - S. R. P.
A77: 3 | B77: A90X | C77: Fiebre del dengue [dengue clasico] | F77: 47 | G77: 4.825462012 | H77: 30 | J77: 17 | N77: Vacunados (Edades) | S77: Refuerzos | T77: Dosis Aplicadas
A78: 4 | B78: T875 | C78: Necrosis de munon de amputacion | F78: 42 | G78: 4.31211499 | H78: 0 | J78: 42 | N78: 1 | O78: 2 | P78: 3 | Q78: 4 | R78: Ref. | S78: Otros
A79: 5 | B79: C509 | C79: Tumor maligno de la mama, parte no especificada | F79: 23 | G79: 2.361396304 | H79: 0 | J79: 23 | N79: 275 | O79: 0 | P79: 0 | Q79: 0 | R79: 288 | S79: 6 | T79: 569
A80: 6 | B80: I775 | C80: Necrosis arterial | F80: 22 | G80: 2.258726899 | H80: 0 | J80: 22
A81: 7 | B81: L984 | C81: ulcera cronica de la piel, no clasificada en otra parte | F81: 21 | G81: 2.156057495 | H81: 0 | J81: 21 | N81: AGUA POTABLE 2016
A82: 8 | B82: J441 | C82: Enfermedad pulmonar obstructiva cronica con exacerbacion aguda, no especificada | F82: 21 | G82: 2.156057495 | H82: 11 | J82: 10 | P82: NUMEROS ACUEDUCTOS | R82: COBERTURA ACUEDUCTOS CON AGUA POTABLE (%) | T82: COBERTURAS VIVIENDAS CON AGUA POTABLE (%)
A83: 9 | B83: K359 | C83: Apendicitis aguda, no especificada | F83: 19 | G83: 1.950718686 | H83: 13 | J83: 6
A84: 10 | B84: J219 | C84: Bronquiolitis aguda, no especificada | F84: 18 | G84: 1.848049281 | H84: 13 | J84: 5
A85: 11 | C85: Otros Dx | F85: 648 | G85: 66.52977413 | H85: 306 | J85: 342 | N85: Urbano | P85: 1 | R85: 100 | T85: 100
A86: TOTALES | F86: 974 | G86: 100 | H86: 382 | J86: 592 | N86: Rural | P86: 47 | R86: 0 | T86: 0
A87: 10 PRIMERAS CAUSAS DE CONSULTA 2016 | N87: Total Municipal | P87: 48 | R87: 2.083333333 | T87: 46.92
A88: ORDEN | B88: CODIGO CIE-10 | C88: CAUSA | F88: TOTAL GENERAL | G88: % | H88: HOMBRES | J88: MUJERES | N88: CERTIFACION EN AGUA POTABLE | O88: INDICE RIESGO CALIDAD DEL AGUA POTABLE - IRCA- (a) | P88: INDICE RIESGO DE ABASTECIMIENTO MUNICIPAL - IRABA- (b) | R88: BUENAS PRACTICAS SANTIARIAS © | T88: CERTIFICAION SANITARIA MUNICIPAL EN AGUA POTABLE ©
A90: 1 | B90: I10X | C90: Hipertension esencial (primaria) | F90: 3826 | G90: 9.345840051 | H90: 1153 | J90: 2673
A91: 2 | B91: M545 | C91: Lumbago no especificado | F91: 702 | G91: 1.714788216 | H91: 425 | J91: 277
A92: 3 | B92: B349 | C92: Infeccion viral, no especificada | F92: 660 | G92: 1.61219405 | H92: 296 | J92: 364 | N92: Urbano | O92: 1.2 | P92: 32.7 | R92: 20 | T92: 13.14
A93: 4 | B93: N390 | C93: Infeccion de vias urinarias, sitio no especificado | F93: 613 | G93: 1.497386291 | H93: 119 | J93: 494 | N93: Rural | O93: 68.6 | P93: 54.8 | R93: 66.2 | T93: 65.12
A94: 5 | B94: E785 | C94: Hiperlipidemia no especificada | F94: 410 | G94: 1.001514485 | H94: 97 | J94: 313 | N94: Total | O94: 37.6 | P94: 26 | R94: 45 | T94: 37.5
A95: 6 | B95: E119 | C95: Diabetes mellitus no insulinodependiente, sin mencion de complicacion | F95: 410 | G95: 1.001514485 | H95: 111 | J95: 299 | N95: PROYECTOS DE INVERSION (En pesos)
A96: 7 | B96: M255 | C96: Dolor en articulacion | F96: 407 | G96: 0.9941863305 | H96: 141 | J96: 266 | Q96: 2012 | S96: 2013 | U96: 2014
A97: 8 | B97: E782 | C97: Hiperlipidemia mixta | F97: 402 | G97: 0.9819727393 | H97: 195 | J97: 207 | N97: ADULTO MAYOR | Q97: 57000000 | S97: 70000000 | U97: 50000000
A98: 9 | B98: A09X | C98: Diarrea y gastroenteritis de presunto origen infeccioso | F98: 389 | G98: 0.9502174019 | H98: 203 | J98: 186 | N98: DOTACION DISCAPACIDAD | U98: 2747752
A99: 10 | B99: J46X | C99: Estado asmatico | F99: 340 | G99: 0.8305242073 | H99: 153 | J99: 187 | N99: APS - SALUD CONTIGO | S99: 76000000 | U99: 57670000
A100: 11 | C100: Otros Dx | F100: 32779 | G100: 80.06986174 | H100: 13401 | J100: 19378 | N100: COFINANCIACION REG. SUBSIDIADO | Q100: 240283375.6 | S100: 206369115 | U100: 272428125
A101: TOTALES | F101: 40938 | G101: 100 | H101: 16294 | J101: 24644 | N101: SSR | Q101: 3495131
A102: 10 PRIMERAS CAUSAS DE URGENCIAS 2016 | N102: PAI | Q102: 8969063
A103: ORDEN | B103: CODIGO CIE-10 | C103: CAUSA | F103: TOTAL GENERAL | G103: % | H103: HOMBRES | J103: MUJERES | N103: VECTORES | Q103: 386400
N104: ESTERILIZACION MASCOTAS | Q104: 0
A105: 1 | B105: R688 | C105: Otros sintomas y signos generales especificados | F105: 38 | G105: 5.013192612 | H105: 14 | J105: 24 | N105: VACUNA ANTIRRABICA | Q105: 4928000
A106: 2 | B106: N390 | C106: Infeccion de vias urinarias, sitio no especificado | F106: 18 | G106: 2.374670185 | H106: 6 | J106: 12 | N106: INFRAESTRUCTURA
A107: 3 | B107: A90X | C107: Fiebre del dengue [dengue clasico] | F107: 17 | G107: 2.242744063 | H107: 13 | J107: 4 | N107: DOTACION EQUIPOS BIOMEDICOS
A108: 4 | B108: J219 | C108: Bronquiolitis aguda, no especificada | F108: 14 | G108: 1.846965699 | H108: 10 | J108: 4 | N108: ESTAMPILLAS PROHOSPITALES | U108: 58783887
A109: 5 | B109: M545 | C109: Lumbago no especificado | F109: 12 | G109: 1.583113456 | H109: 9 | J109: 3 | N109: EQUIPAMIENTO
A110: 6 | B110: S069 | C110: Traumatismo intracraneal, no especificado | F110: 12 | G110: 1.583113456 | H110: 10 | J110: 2 | N110: TELEMEDICINA
A111: 7 | B111: K297 | C111: Gastritis, no especificada | F111: 11 | G111: 1.451187335 | H111: 1 | J111: 10 | N111: AMBULANCIA
A112: 8 | B112: O800 | C112: Parto unico espontaneo, presentacion cefalica de vertice | F112: 10 | G112: 1.319261214 | H112: 0 | J112: 10 | N112: TOTALES | Q112: =SUM(Q97:R111) -> 315061969.6 | S112: =SUM(S97:T111) -> 352369115 | U112: =SUM(U97:V111) -> 441629764
A113: 9 | B113: O620 | C113: Contracciones primarias inadecuadas | F113: 9 | G113: 1.187335092 | H113: 0 | J113: 9 | N113: PROYECTOS DE INVERSION (En Cantidad)
A114: 10 | B114: A09X | C114: Diarrea y gastroenteritis de presunto origen infeccioso | F114: 9 | G114: 1.187335092 | H114: 0 | J114: 9 | N114: PROGRAMA AEREO (No brigadas)
A115: 11 | C115: Otros Dx | F115: 608 | G115: 80.21108179 | H115: 286 | J115: 322 | N115: ASESORIA Y ASISTENCIA TECNICA | Q115: 20
A116: TOTALES | F116: 758 | G116: 100 | H116: 349 | J116: 409 | N116: CENTROS AMIGABLES JOVENES

Sheet AMALFI
C4: ALCALDE | E4: ROMÁN FERNANDO MONSALVE SÁNCHEZ
C5: DIRECTOR LOCAL DE SALUD | E5: MARTHA INES GRANDA AGUDELO
C7: CERTIFICACION | E7: RANKING | F7: CATEGORIA MUNICIPAL
C8: SI | E8: 1 | F8: 6
C9: TOTAL CORREGIMIENTOS | E9: 1 | F9: TOTAL VEREDAS | I9: 58
A10: CARACTERISTICAS DEMOGRAFICAS | N10: VIGILANCIA DE LA SALUD PUBLICA - AÑO 2017 ***
A11: POBLACION 2018
A12: TOTAL | B12: HOMBRES | C12: MUJERES | D12: CABECERA | E12: RESTO | N12: MORTALIDAD CANCER CUELLO UTERINO | S12: MORTALIDAD MATERNA
A13: 22567 | B13: 11648 | C13: 10919 | D13: 12589 | E13: 9978 | N13: # Casos | O13: Tasa x cienmil Mujeres | S13: # Casos | T13: Tasa x cienmil Nacidos vivos
A14: POR GRUPOS DE EDAD | N14: 2 | O14: 18.42638659 | S14: 0 | T14: 0
A15: 0 - 4 AÑOS | B15: 5 - 9 AÑOS | C15: 10 - 14 AÑOS | D15: 15 - 19 AÑOS | E15: 20 - 59 AÑOS | F15: > 60 AÑOS
A16: 2471 | B16: 2290 | C16: 2121 | D16: 2052 | E16: 11246 | F16: 2387 | N16: MORTALIDAD INFANTIL | S16: MORTALIDAD PERINATAL
N17: # Casos | O17: Tasa x cienmil Nacidos vivos | S17: # Casos | T17: Tasa x cienmil Nacidos vivos
A18: DESPLAZADOS 2015 (a marzo) | D18: INDIGENAS FEB 2014 | G18: ROM | I18: AFRO | N18: 3 | O18: 9.345794393 | S18: 5 | T18: 15.57632399
A19: TOTAL | B19: HOMBRES | C19: MUJERES | D19: TOTAL | E19: HOMBRES | F19: MUJERES
A20: 2866 | B20: 1404.34 | C20: 1461.66 | D20: 0 | E20: 0 | F20: 0 | N20: MORTALIDAD VIH SIDA | S20: MORTALIDAD TUBERCULOSIS
N21: # Casos | O21: Tasa x cienmil Habitantes | S21: # Casos | T21: Tasa x cienmil Habitantes
A22: POBLACION TOTAL | B22: Afiliados al regimen Subsidiado * | D22: % De Aseguramiento al Regimen Subsidiado * | F22: Afiliados al Regimen Contributivo * | H22: % De Aseguramiento al RS, RC, RE * | N22: 0 | O22: 0 | S22: 0 | T22: 0
N24: MORTALIDAD INFARTO AL MIOCARDIO | S24: MORTALIDAD < 5 AÑOS
A25: 22567 | B25: 16836 | D25: 74.60451101 | F25: 4332 | H25: 96.63225063 | N25: # Casos | O25: Tasa x cienmil Habitantes | S25: # Casos | T25: Tasa x cienmil Niños
H26: * Corte a Agosto 2018 | N26: 14 | O26: 62.4609619 | S26: 3 | T26: 121.5066829
A31: PRESTACION DE SERVICIOS DE SALUD **
A32: EMPRESAS SOCIALES DEL ESTADO
A33: INSTITUCION PRESTADORA DE SERVICIOS DE SALUD | F33: DIRECTOR / GERENTE | N33: 10 PRIMERAS CAUSAS DE MORTALIDAD 2017***
A34: E.S.E HOSPITAL EL CARMEN | F34: MARTHA CECILIA DE FATIMA LONDOÑO GAVIRIA | N34: ORDEN | O34: CODIGO 105 CIE-10 | P34: CAUSA | T34: TOTAL GENERAL | U34: HOMBRES | V34: MUJERES | W34: SIN DATO
N36: 1 | O36: 051 | P36: ENFERMEDADES ISQUEMICAS DEL CORAZON | T36: 14 | U36: 9 | V36: 5 | W36: 0
N37: 2 | O37: 055 | P37: ENFERMEDADES CEREBROVASCULARES | T37: 9 | U37: 5 | V37: 4 | W37: 0
N38: 3 | O38: 050 | P38: ENFERMEDADES HIPERTENSIVAS | T38: 8 | U38: 5 | V38: 3 | W38: 0
A39: PRESTADORES DE SERVICIOS DE SALUD | N39: 4 | O39: 060 | P39: ENFERMEDADES CRONICAS DE LAS VIAS RESPIRATORIAS INFERIORES | T39: 6 | U39: 2 | V39: 4 | W39: 0
A40: TOTALES | B40: IPS | C40: PROFESIONALES INDEPENDIENTES | E40: TRANSPORTE ESPECIAL | G40: OBJETO SOCIAL DIFERENTE | N40: 5 | O40: 101 | P40: AGRESIONES (HOMICIDIOS) Y SECUELAS | T40: 5 | U40: 5 | V40: 0 | W40: 0
N41: 6 | O41: 059 | P41: NEUMONIA | T41: 4 | U41: 2 | V41: 2 | W41: 0
B42: 1 | C42: 5 | E42: 0 | G42: 0 | N42: 7 | O42: 095 | P42: AHOGAMIENTO Y SUMERSION ACCIDENTALES | T42: 4 | U42: 4 | V42: 0 | W42: 0
A43: IPS PUBLICAS | B43: IPS PRIVADAS | C43: SERVICIOS PRESTADOS X PROFESION | N43: 8 | O43: 041 | P43: DIABETES MELLITUS | T43: 3 | U43: 1 | V43: 2 | W43: 0
C44: Odontólogos | D44: Médicos | E44: Otros | F44: Total | N44: 9 | O44: 090 | P44: ACCIDENTES DE TRANSPORTE DE MOTOR Y SECUELAS | T44: 3 | U44: 3 | V44: 0 | W44: 0
N45: 10 | O45: 089 | P45: SIGNOS, SINTOMAS Y AFECCIONES MAL DEFINIDAS | T45: 3 | U45: 3 | V45: 0 | W45: 0
A46: 1 | B46: 0 | C46: 3 | D46: 3 | E46: 3 | F46: =C46+D46+E46 -> 9
A48: CAPACIDAD INSTALADA | N48: PORCENTAJE DE EMBARAZOS POR GRUPO EDAD RESIDENCIA HABITUAL DE LA MADRE 2017*** | S48: TASAS DE FECUNDIDAD ESPECIFICA POR MIL MUJERES 2017***
A49: CAMAS
A50: Adultos | B50: Cuidado Agudo Mental | C50: Cuidado Intensivo Adulto | D50: Cuidado Intensivo Neonatal | E50: Cuidado Intensivo Pediátrico | F50: Cuidado Intermedio Adulto | G50: Cuidado Intermedio Mental | I50: Cuidado Intermedio Neonatal
N51: 10 a 14 AÑOS | P51: 15 a 19 AÑOS | S51: 10 a 14 AÑOS | U51: 15 a 19 AÑOS
N52: No | O52: % | P52: No | Q52: % | S52: No | T52: TASA | U52: No | V52: TASA
A53: 8 | B53: 0 | C53: 0 | D53: 0 | E53: 0 | F53: 0 | G53: 0 | I53: 0 | N53: 3 | O53: 0.8450704225 | P53: 88 | Q53: 24.78873239 | S53: 3 | T53: 2.909796314 | U53: 88 | V53: 86.44400786
A54: CAMAS
A55: Cuidado Intermedio Pediátrico | B55: Farmaco- de-pendencia | C55: Obste-tricia | D55: Pediátricas | E55: Quemados Adultos | F55: Quemados Pediátrico | G55: Salud Mental Psiquiatría | I55: TOTAL CAMAS | N55: *** FUENTE: DANE. Información Preliminar
A58: 0 | B58: 0 | C58: 5 | D58: 3 | E58: 0 | F58: 0 | G58: 0 | I58: =A53+B53+C53+D53+E53+F53+G53+I53+A58+B58+C58+D58+E58+F58+G58 -> 16
A60: SALAS | E60: TOTAL SALAS | N60: INMUNIZACIONES PAI 2017
A61: PARTO | C61: QUIROFANO | N61: POLIOMIELITIS (V.O.P)
A62: 1 | C62: 0 | E62: =A62+C62 -> 1 | N62: Vacunados (Edades) | S62: Refuerzos | T62: Dosis Aplicadas
N63: <1 | O63: 1 | P63: 2 | Q63: 3 | R63: 4 | S63: Otros
A64: TOTAL DE SERVICIOS PRESTADOS SEGÚN LA COMPLEJIDAD | N64: 300 | O64: 1 | P64: 1 | Q64: 0 | R64: 0 | S64: 686 | T64: 1639
A65: BAJA | C65: MEDIA | E65: ALTA
A66: 37 | C66: 3 | E66: 0 | N66: DIFTERIA, TOSFERINA Y TÉTANO (D.P.T)
N67: Vacunados (Edades) | S67: Refuerzos | T67: Dosis
A68: TOTAL DE AMBULANCIAS HABILITADAS SEGÚN TIPO Y MODALIDAD | N68: <1 | O68: 1 | P68: 2 | Q68: 3 | R68: 4 | S68: Otros | T68: Aplicadas
A69: TIPO | C69: MODALIDAD | F69: TOTAL GENERAL | G69: **Fuente: REPS - Minsalud /IPS se incluyen todas las sedes habilitadas /febrero y abril 2018, | N69: 300 | O69: 1 | P69: 1 | Q69: 0 | R69: 0 | S69: 692 | T69: 1645
A70: BASICA | B70: MEDICADA | C70: AEREA | D70: TERRESTRE | E70: FLUVIAL Y MARIT
A71: 3 | B71: 0 | C71: 0 | D71: 3 | E71: 0 | F71: =SUM(C71:E71) -> 3 | N71: TUBERCULOSIS (B.C.G)
A72: 10 PRIMERAS CAUSAS DE HOSPITALIZACION 2016 | N72: Vacunados (Edades) | S72: Otros | T72: Dosis Aplicadas
A73: ORDEN | B73: CODIGO CIE-10 | C73: CAUSA | F73: TOTAL GENERAL | G73: % | H73: HOMBRES | J73: MUJERES | N73: RN | O73: <1 | P73: 2 | Q73: 3 | R73: 4
N74: 139 | O74: 0 | S74: 0 | T74: 139
A75: 1 | B75: O800 | C75: Parto unico espontaneo, presentacion cefalica de vertice | F75: 95 | G75: 10.567297 | H75: 0 | J75: 95
A76: 2 | B76: N390 | C76: Infeccion de vias urinarias, sitio no especificado | F76: 55 | G76: 6.117908788 | H76: 8 | J76: 47 | N76: TRIPLE VIRAL - S. R. P.
A77: 3 | B77: L031 | C77: Celulitis de otras partes de los miembros | F77: 23 | G77: 2.55839822 | H77: 15 | J77: 8 | N77: Vacunados (Edades) | S77: Refuerzos | T77: Dosis Aplicadas
A78: 4 | B78: J159 | C78: Neumonia bacteriana, no especificada | F78: 22 | G78: 2.447163515 | H78: 10 | J78: 12 | N78: 1 | O78: 2 | P78: 3 | Q78: 4 | R78: Ref. | S78: Otros
A79: 5 | B79: C509 | C79: Tumor maligno de la mama, parte no especificada | F79: 20 | G79: 2.224694105 | H79: 0 | J79: 20 | N79: 321 | O79: 2 | P79: 1 | Q79: 0 | R79: 369 | S79: 11 | T79: 704
A80: 6 | B80: O809 | C80: Parto unico espontaneo, sin otra especificacion | F80: 19 | G80: 2.113459399 | H80: 0 | J80: 19
A81: 7 | B81: J189 | C81: Neumonia, no especificada | F81: 16 | G81: 1.779755284 | H81: 4 | J81: 12 | N81: AGUA POTABLE 2016
A82: 8 | B82: C341 | C82: Tumor maligno del lobulo superior, bronquio o pulmon | F82: 15 | G82: 1.668520578 | H82: 15 | J82: 0 | P82: NUMEROS ACUEDUCTOS | R82: COBERTURA ACUEDUCTOS CON AGUA POTABLE (%) | T82: COBERTURAS VIVIENDAS CON AGUA POTABLE (%)
A83: 9 | B83: N201 | C83: Calculo del ureter | F83: 13 | G83: 1.446051168 | H83: 11 | J83: 2
A84: 10 | B84: L039 | C84: Celulitis de sitio no especificado | F84: 11 | G84: 1.223581758 | H84: 5 | J84: 6
A85: 11 | C85: Otros Dx | F85: 610 | G85: 67.85317019 | H85: 294 | J85: 316 | N85: Urbano | P85: 2 | R85: 100 | T85: 100
A86: TOTALES | F86: 899 | G86: 100 | H86: 362 | J86: 537 | N86: Rural | P86: 7 | R86: 14.28571429 | T86: 1.06
A87: 10 PRIMERAS CAUSAS DE CONSULTA 2016 | N87: Total Municipal | P87: 9 | R87: 33.33333333 | T87: 50.42
A88: ORDEN | B88: CODIGO CIE-10 | C88: CAUSA | F88: TOTAL GENERAL | G88: % | H88: HOMBRES | J88: MUJERES | N88: CERTIFACION EN AGUA POTABLE | O88: INDICE RIESGO CALIDAD DEL AGUA POTABLE - IRCA- (a) | P88: INDICE RIESGO DE ABASTECIMIENTO MUNICIPAL - IRABA- (b) | R88: BUENAS PRACTICAS SANTIARIAS © | T88: CERTIFICAION SANITARIA MUNICIPAL EN AGUA POTABLE ©
A90: 1 | B90: I10X | C90: Hipertension esencial (primaria) | F90: 3407 | G90: 7.579026984 | H90: 1181 | J90: 2226
A91: 2 | B91: N390 | C91: Infeccion de vias urinarias, sitio no especificado | F91: 1128 | G91: 2.509287478 | H91: 326 | J91: 802
A92: 3 | B92: M545 | C92: Lumbago no especificado | F92: 965 | G92: 2.146686539 | H92: 459 | J92: 506 | N92: Urbano | O92: 0 | P92: 21 | R92: 3 | T92: 5.1
A93: 4 | B93: M255 | C93: Dolor en articulacion | F93: 840 | G93: 1.868618335 | H93: 371 | J93: 469 | N93: Rural | O93: 81.7 | P93: 82.3 | R93: 80.8 | T93: 81.55
A94: 5 | B94: A09X | C94: Diarrea y gastroenteritis de presunto origen infeccioso | F94: 607 | G94: 1.350299201 | H94: 317 | J94: 290 | N94: Total | O94: 7.5 | P94: 23.2 | R94: 10.2 | T94: 11.45
A95: 6 | B95: J00X | C95: Rinofaringitis aguda [resfriado comun] | F95: 532 | G95: 1.183458279 | H95: 260 | J95: 272 | N95: PROYECTOS DE INVERSION (En pesos)
A96: 7 | B96: N760 | C96: Vaginitis aguda | F96: 362 | G96: 0.8052855204 | H96: 0 | J96: 362 | Q96: 2012 | S96: 2013 | U96: 2014
A97: 8 | B97: C950 | C97: Leucemia aguda, celulas de tipo no especificado | F97: 352 | G97: 0.7830400641 | H97: 0 | J97: 352 | N97: ADULTO MAYOR | Q97: 66825400 | S97: 34211138 | U97: 35000000
A98: 9 | B98: G439 | C98: Migrana, no especificada | F98: 289 | G98: 0.642893689 | H98: 54 | J98: 235 | N98: DOTACION DISCAPACIDAD | U98: 2918752
A99: 10 | B99: E785 | C99: Hiperlipidemia no especificada | F99: 289 | G99: 0.642893689 | H99: 78 | J99: 211 | N99: APS - SALUD CONTIGO | Q99: 45000000 | S99: 50000000 | U99: 50000000
A100: 11 | C100: Otros Dx | F100: 36182 | G100: 80.48851022 | H100: 14078 | J100: 22104 | N100: COFINANCIACION REG. SUBSIDIADO | Q100: 1341647829 | S100: 1152283942 | U100: 1521131464
A101: TOTALES | F101: 44953 | G101: 100 | H101: 17124 | J101: 27829 | N101: SSR | Q101: 2614363
A102: 10 PRIMERAS CAUSAS DE URGENCIAS 2016 | N102: PAI | Q102: 6708873
A103: ORDEN | B103: CODIGO CIE-10 | C103: CAUSA | F103: TOTAL GENERAL | G103: % | H103: HOMBRES | J103: MUJERES | N103: VECTORES | Q103: 386400
N104: ESTERILIZACION MASCOTAS | Q104: 6278000
A105: 1 | B105: O800 | C105: Parto unico espontaneo, presentacion cefalica de vertice | F105: 20 | G105: 3.338898164 | H105: 0 | J105: 20 | N105: VACUNA ANTIRRABICA | Q105: 1752000
A106: 2 | B106: O471 | C106: Falso trabajo de parto a las 37 y mas semanas completas de gestacion | F106: 18 | G106: 3.005008347 | H106: 0 | J106: 18 | N106: INFRAESTRUCTURA
A107: 3 | B107: N390 | C107: Infeccion de vias urinarias, sitio no especificado | F107: 16 | G107: 2.671118531 | H107: 6 | J107: 10 | N107: DOTACION EQUIPOS BIOMEDICOS
A108: 4 | B108: R18X | C108: Ascitis | F108: 13 | G108: 2.170283806 | H108: 11 | J108: 2 | N108: ESTAMPILLAS PROHOSPITALES | U108: 101027206
A109: 5 | B109: N23X | C109: Colico renal, no especificado | F109: 13 | G109: 2.170283806 | H109: 11 | J109: 2 | N109: EQUIPAMIENTO
A110: 6 | B110: N201 | C110: Calculo del ureter | F110: 12 | G110: 2.003338898 | H110: 10 | J110: 2 | N110: TELEMEDICINA | S110: 25854400
A111: 7 | B111: N200 | C111: Calculo del rinon | F111: 10 | G111: 1.669449082 | H111: 5 | J111: 5 | N111: AMBULANCIA
A112: 8 | B112: R688 | C112: Otros sintomas y signos generales especificados | F112: 10 | G112: 1.669449082 | H112: 6 | J112: 4 | N112: TOTALES | Q112: =SUM(Q97:R111) -> 1471212865 | S112: =SUM(S97:T111) -> 1262349480 | U112: =SUM(U97:V111) -> 1710077422
A113: 9 | B113: O470 | C113: Falso trabajo de parto antes de las 37 semanas completas de gestacion | F113: 10 | G113: 1.669449082 | H113: 0 | J113: 10 | N113: PROYECTOS DE INVERSION (En Cantidad)
A114: 10 | B114: T630 | C114: Efecto toxico del veneno de serpiente | F114: 8 | G114: 1.335559265 | H114: 6 | J114: 2 | N114: PROGRAMA AEREO (No brigadas)
A115: 11 | C115: Otros Dx | F115: 469 | G115: 78.29716194 | H115: 218 | J115: 251 | N115: ASESORIA Y ASISTENCIA TECNICA | Q115: 15
A116: TOTALES | F116: 599 | G116: 100 | H116: 273 | J116: 326 | N116: CENTROS AMIGABLES JOVENES

Sheet ANDES
C4: ALCALDE | E4: JOHN JAIRO MEJÍA ARAMBURO
C5: DIRECTOR LOCAL DE SALUD | E5: ANA MARIA ZULETA GOMEZ
C7: CERTIFICACION | E7: RANKING | F7: CATEGORIA MUNICIPAL
C8: SI | E8: 20 | F8: 6
C9: TOTAL CORREGIMIENTOS | E9: 5 | F9: TOTAL VEREDAS | I9: 72
A10: CARACTERISTICAS DEMOGRAFICAS | N10: VIGILANCIA DE LA SALUD PUBLICA - AÑO 2017 ***
A11: POBLACION 2018
A12: TOTAL | B12: HOMBRES | C12: MUJERES | D12: CABECERA | E12: RESTO | N12: MORTALIDAD CANCER CUELLO UTERINO | S12: MORTALIDAD MATERNA
A13: 47003 | B13: 23923 | C13: 23080 | D13: 23705 | E13: 23298 | N13: # Casos | O13: Tasa x cienmil Mujeres | S13: # Casos | T13: Tasa x cienmil Nacidos vivos
A14: POR GRUPOS DE EDAD | N14: 0 | O14: 0 | S14: 1 | T14: 198.019802
A15: 0 - 4 AÑOS | B15: 5 - 9 AÑOS | C15: 10 - 14 AÑOS | D15: 15 - 19 AÑOS | E15: 20 - 59 AÑOS | F15: > 60 AÑOS
A16: 4367 | B16: 4325 | C16: 4331 | D16: 3999 | E16: 25170 | F16: 4811 | N16: MORTALIDAD INFANTIL | S16: MORTALIDAD PERINATAL
N17: # Casos | O17: Tasa x cienmil Nacidos vivos | S17: # Casos | T17: Tasa x cienmil Nacidos vivos
A18: DESPLAZADOS 2015 (a marzo) | D18: INDIGENAS FEB 2014 | G18: ROM | I18: AFRO | N18: 3 | O18: 5.940594059 | S18: 6 | T18: 11.88118812
A19: TOTAL | B19: HOMBRES | C19: MUJERES | D19: TOTAL | E19: HOMBRES | F19: MUJERES
A20: 2178 | B20: 1067.22 | C20: 1110.78 | D20: 0 | E20: 0 | F20: 0 | N20: MORTALIDAD VIH SIDA | S20: MORTALIDAD TUBERCULOSIS
N21: # Casos | O21: Tasa x cienmil Habitantes | S21: # Casos | T21: Tasa x cienmil Habitantes
A22: POBLACION TOTAL | B22: Afiliados al regimen Subsidiado * | D22: % De Aseguramiento al Regimen Subsidiado * | F22: Afiliados al Regimen Contributivo * | H22: % De Aseguramiento al RS, RC, RE * | N22: 1 | O22: 2.144956136 | S22: 1 | T22: 2.144956136
N24: MORTALIDAD INFARTO AL MIOCARDIO | S24: MORTALIDAD < 5 AÑOS
A25: 47003 | B25: 29304 | D25: 62.3449567 | F25: 8330 | H25: 83.21383741 | N25: # Casos | O25: Tasa x cienmil Habitantes | S25: # Casos | T25: Tasa x cienmil Niños
H26: * Corte a Agosto 2018 | N26: 36 | O26: 77.21842088 | S26: 4 | T26: 91.38679461
A31: PRESTACION DE SERVICIOS DE SALUD **
A32: EMPRESAS SOCIALES DEL ESTADO
A33: INSTITUCION PRESTADORA DE SERVICIOS DE SALUD | F33: DIRECTOR / GERENTE | N33: 10 PRIMERAS CAUSAS DE MORTALIDAD 2017***
A34: EMPRESA SOCIAL DEL ESTADO HOSPITAL SAN RAFAEL | F34: CARLOS ALBERTO ARROYAVE ZULUAGA | N34: ORDEN | O34: CODIGO 105 CIE-10 | P34: CAUSA | T34: TOTAL GENERAL | U34: HOMBRES | V34: MUJERES | W34: SIN DATO
N36: 1 | O36: 051 | P36: ENFERMEDADES ISQUEMICAS DEL CORAZON | T36: 43 | U36: 28 | V36: 15 | W36: 0
N37: 2 | O37: 101 | P37: AGRESIONES (HOMICIDIOS) Y SECUELAS | T37: 30 | U37: 26 | V37: 4 | W37: 0
N38: 3 | O38: 050 | P38: ENFERMEDADES HIPERTENSIVAS | T38: 13 | U38: 7 | V38: 6 | W38: 0
A39: PRESTADORES DE SERVICIOS DE SALUD | N39: 4 | O39: 055 | P39: ENFERMEDADES CEREBROVASCULARES | T39: 11 | U39: 9 | V39: 2 | W39: 0
A40: TOTALES | B40: IPS | C40: PROFESIONALES INDEPENDIENTES | E40: TRANSPORTE ESPECIAL | G40: OBJETO SOCIAL DIFERENTE | N40: 5 | O40: 020 | P40: TUMOR MALIGNO DE LA TRAQUEA, LOS BRONQUIOS Y EL PULMON | T40: 10 | U40: 7 | V40: 3 | W40: 0
N41: 6 | O41: 060 | P41: ENFERMEDADES CRONICAS DE LAS VIAS RESPIRATORIAS INFERIORES | T41: 10 | U41: 2 | V41: 8 | W41: 0
B42: 1 | C42: 30 | E42: 1 | G42: 1 | N42: 7 | O42: 013 | P42: TUMOR MALIGNO DEL ESTOMAGO | T42: 8 | U42: 6 | V42: 2 | W42: 0
A43: IPS PUBLICAS | B43: IPS PRIVADAS | C43: SERVICIOS PRESTADOS X PROFESION | N43: 8 | O43: 041 | P43: DIABETES MELLITUS | T43: 8 | U43: 3 | V43: 5 | W43: 0
C44: Odontólogos | D44: Médicos | E44: Otros | F44: Total | N44: 9 | O44: 075 | P44: TODAS LAS DEMAS ENFERMEDADES DEL SISTEMA URINARIIO | T44: 6 | U44: 6 | V44: 0 | W44: 0
N45: 10 | O45: 061 | P45: ENFERMEDADES DEL PULMON DEBIDAS A AGENTES EXTERNOS | T45: 6 | U45: 3 | V45: 3 | W45: 0
A46: 7 | B46: 0 | C46: 12 | D46: 21 | E46: 5 | F46: =C46+D46+E46 -> 38
A48: CAPACIDAD INSTALADA | N48: PORCENTAJE DE EMBARAZOS POR GRUPO EDAD RESIDENCIA HABITUAL DE LA MADRE 2017*** | S48: TASAS DE FECUNDIDAD ESPECIFICA POR MIL MUJERES 2017***
A49: CAMAS
A50: Adultos | B50: Cuidado Agudo Mental | C50: Cuidado Intensivo Adulto | D50: Cuidado Intensivo Neonatal | E50: Cuidado Intensivo Pediátrico | F50: Cuidado Intermedio Adulto | G50: Cuidado Intermedio Mental | I50: Cuidado Intermedio Neonatal
N51: 10 a 14 AÑOS | P51: 15 a 19 AÑOS | S51: 10 a 14 AÑOS | U51: 15 a 19 AÑOS
N52: No | O52: % | P52: No | Q52: % | S52: No | T52: TASA | U52: No | V52: TASA
A53: 10 | B53: 0 | C53: 0 | D53: 0 | E53: 0 | F53: 0 | G53: 0 | I53: 0 | N53: 8 | O53: 1.553398058 | P53: 109 | Q53: 21.16504854 | S53: 8 | T53: 3.859141341 | U53: 109 | V53: 56.68226729
A54: CAMAS
A55: Cuidado Intermedio Pediátrico | B55: Farmaco- de-pendencia | C55: Obste-tricia | D55: Pediátricas | E55: Quemados Adultos | F55: Quemados Pediátrico | G55: Salud Mental Psiquiatría | I55: TOTAL CAMAS | N55: *** FUENTE: DANE. Información Preliminar
A58: 0 | B58: 0 | C58: 6 | D58: 4 | E58: 0 | F58: 0 | G58: 0 | I58: =A53+B53+C53+D53+E53+F53+G53+I53+A58+B58+C58+D58+E58+F58+G58 -> 20
A60: SALAS | E60: TOTAL SALAS | N60: INMUNIZACIONES PAI 2017
A61: PARTO | C61: QUIROFANO | N61: POLIOMIELITIS (V.O.P)
A62: 1 | C62: 1 | E62: =A62+C62 -> 2 | N62: Vacunados (Edades) | S62: Refuerzos | T62: Dosis Aplicadas
N63: <1 | O63: 1 | P63: 2 | Q63: 3 | R63: 4 | S63: Otros
A64: TOTAL DE SERVICIOS PRESTADOS SEGÚN LA COMPLEJIDAD | N64: 509 | O64: 9 | P64: 1 | Q64: 1 | R64: 0 | S64: 1006 | T64: 2585
A65: BAJA | C65: MEDIA | E65: ALTA
A66: 133 | C66: 20 | E66: 0 | N66: DIFTERIA, TOSFERINA Y TÉTANO (D.P.T)
N67: Vacunados (Edades) | S67: Refuerzos | T67: Dosis
A68: TOTAL DE AMBULANCIAS HABILITADAS SEGÚN TIPO Y MODALIDAD | N68: <1 | O68: 1 | P68: 2 | Q68: 3 | R68: 4 | S68: Otros | T68: Aplicadas
A69: TIPO | C69: MODALIDAD | F69: TOTAL GENERAL | G69: **Fuente: REPS - Minsalud /IPS se incluyen todas las sedes habilitadas /febrero y abril 2018, | N69: 505 | O69: 7 | P69: 1 | Q69: 1 | R69: 0 | S69: 1005 | T69: 2574
A70: BASICA | B70: MEDICADA | C70: AEREA | D70: TERRESTRE | E70: FLUVIAL Y MARIT
A71: 3 | B71: 0 | C71: 0 | D71: 3 | E71: 0 | F71: =SUM(C71:E71) -> 3 | N71: TUBERCULOSIS (B.C.G)
A72: 10 PRIMERAS CAUSAS DE HOSPITALIZACION 2016 | N72: Vacunados (Edades) | S72: Otros | T72: Dosis Aplicadas
A73: ORDEN | B73: CODIGO CIE-10 | C73: CAUSA | F73: TOTAL GENERAL | G73: % | H73: HOMBRES | J73: MUJERES | N73: RN | O73: <1 | P73: 2 | Q73: 3 | R73: 4
N74: 184 | O74: 6 | S74: 1 | T74: 191
A75: 1 | B75: O800 | C75: Parto unico espontaneo, presentacion cefalica de vertice | F75: 185 | G75: 10.12035011 | H75: 0 | J75: 185
A76: 2 | B76: N390 | C76: Infeccion de vias urinarias, sitio no especificado | F76: 102 | G76: 5.579868709 | H76: 41 | J76: 61 | N76: TRIPLE VIRAL - S. R. P.
A77: 3 | B77: O479 | C77: Falso trabajo de parto, sin otra especificacion | F77: 63 | G77: 3.446389497 | H77: 0 | J77: 63 | N77: Vacunados (Edades) | S77: Refuerzos | T77: Dosis Aplicadas
A78: 4 | B78: A90X | C78: Fiebre del dengue [dengue clasico] | F78: 59 | G78: 3.227571116 | H78: 32 | J78: 27 | N78: 1 | O78: 2 | P78: 3 | Q78: 4 | R78: Ref. | S78: Otros
A79: 5 | B79: B258 | C79: Otras enfermedades debidas a virus citomegalico | F79: 52 | G79: 2.84463895 | H79: 52 | J79: 0 | N79: 501 | O79: 2 | P79: 0 | Q79: 0 | R79: 520 | S79: 12 | T79: 1035
A80: 6 | B80: P599 | C80: Ictericia neonatal, no especificada | F80: 31 | G80: 1.695842451 | H80: 18 | J80: 13
A81: 7 | B81: K359 | C81: Apendicitis aguda, no especificada | F81: 30 | G81: 1.641137856 | H81: 19 | J81: 11 | N81: AGUA POTABLE 2016
A82: 8 | B82: L031 | C82: Celulitis de otras partes de los miembros | F82: 29 | G82: 1.58643326 | H82: 19 | J82: 10 | P82: NUMEROS ACUEDUCTOS | R82: COBERTURA ACUEDUCTOS CON AGUA POTABLE (%) | T82: COBERTURAS VIVIENDAS CON AGUA POTABLE (%)
A83: 9 | B83: O470 | C83: Falso trabajo de parto antes de las 37 semanas completas de gestacion | F83: 25 | G83: 1.36761488 | H83: 0 | J83: 25
A84: 10 | B84: F200 | C84: Esquizofrenia paranoide | F84: 23 | G84: 1.258205689 | H84: 22 | J84: 1
A85: 11 | C85: Otros Dx | F85: 1229 | G85: 67.23194748 | H85: 553 | J85: 676 | N85: Urbano | P85: 1 | R85: 100 | T85: 99
A86: TOTALES | F86: 1828 | G86: 100 | H86: 756 | J86: 1072 | N86: Rural | P86: 54 | R86: 0 | T86: 8.49
A87: 10 PRIMERAS CAUSAS DE CONSULTA 2016 | N87: Total Municipal | P87: 55 | R87: 1.818181818 | T87: 53.04
A88: ORDEN | B88: CODIGO CIE-10 | C88: CAUSA | F88: TOTAL GENERAL | G88: % | H88: HOMBRES | J88: MUJERES | N88: CERTIFACION EN AGUA POTABLE | O88: INDICE RIESGO CALIDAD DEL AGUA POTABLE - IRCA- (a) | P88: INDICE RIESGO DE ABASTECIMIENTO MUNICIPAL - IRABA- (b) | R88: BUENAS PRACTICAS SANTIARIAS © | T88: CERTIFICAION SANITARIA MUNICIPAL EN AGUA POTABLE ©
A90: 1 | B90: N390 | C90: Infeccion de vias urinarias, sitio no especificado | F90: 3071 | G90: 2.978026027 | H90: 754 | J90: 2317
A91: 2 | B91: J00X | C91: Rinofaringitis aguda [resfriado comun] | F91: 2310 | G91: 2.240065166 | H91: 971 | J91: 1339
A92: 3 | B92: M545 | C92: Lumbago no especificado | F92: 2105 | G92: 2.041271504 | H92: 882 | J92: 1223 | N92: Urbano | O92: 0 | P92: 20 | R92: 7.3 | T92: 6.19
A93: 4 | B93: A09X | C93: Diarrea y gastroenteritis de presunto origen infeccioso | F93: 1687 | G93: 1.635926378 | H93: 829 | J93: 858 | N93: Rural | O93: 51.4 | P93: 76.1 | R93: 60.1 | T93: 58.95
A94: 5 | B94: M255 | C94: Dolor en articulacion | F94: 1414 | G94: 1.371191404 | H94: 553 | J94: 861 | N94: Total | O94: 10 | P94: 23.7 | R94: 17.6 | T94: 15.02
A95: 6 | B95: B349 | C95: Infeccion viral, no especificada | F95: 1173 | G95: 1.137487636 | H95: 521 | J95: 652 | N95: PROYECTOS DE INVERSION (En pesos)
A96: 7 | B96: N760 | C96: Vaginitis aguda | F96: 966 | G96: 0.9367545238 | H96: 0 | J96: 966 | Q96: 2012 | S96: 2013 | U96: 2014
A97: 8 | B97: E039 | C97: Hipotiroidismo, no especificado | F97: 802 | G97: 0.7777195943 | H97: 78 | J97: 724 | N97: ADULTO MAYOR | Q97: 60000000 | S97: 19255800 | U97: 42000000
A98: 9 | B98: B829 | C98: Parasitosis intestinal, sin otra especificacion | F98: 653 | G98: 0.6332305425 | H98: 297 | J98: 356 | N98: DOTACION DISCAPACIDAD | Q98: 18036832 | U98: 2747752
A99: 10 | B99: G409 | C99: Epilepsia, tipo no especificado | F99: 643 | G99: 0.6235332907 | H99: 381 | J99: 262 | N99: APS - SALUD CONTIGO | Q99: 130200000 | S99: 97600000 | U99: 60000000
A100: 11 | C100: Otros Dx | F100: 88298 | G100: 85.62479393 | H100: 33222 | J100: 55076 | N100: COFINANCIACION REG. SUBSIDIADO | Q100: 1255368766 | S100: 1078182544 | U100: 1423310117
A101: TOTALES | F101: 103122 | G101: 100 | H101: 38488 | J101: 64634 | N101: SSR | Q101: 5391165
A102: 10 PRIMERAS CAUSAS DE URGENCIAS 2016 | N102: PAI | Q102: 13834586
A103: ORDEN | B103: CODIGO CIE-10 | C103: CAUSA | F103: TOTAL GENERAL | G103: % | H103: HOMBRES | J103: MUJERES | N103: VECTORES | Q103: 386400
N104: ESTERILIZACION MASCOTAS | Q104: 0
A105: 1 | B105: R51X | C105: Cefalea | F105: 253 | G105: 3.92248062 | H105: 77 | J105: 176 | N105: VACUNA ANTIRRABICA | Q105: 2690000
A106: 2 | B106: T009 | C106: Traumatismos superficiales multiples, no especificados | F106: 203 | G106: 3.147286822 | H106: 156 | J106: 47 | N106: INFRAESTRUCTURA
A107: 3 | B107: S610 | C107: Herida de dedo(s) de la mano, sin dano de la(s) una(s) | F107: 203 | G107: 3.147286822 | H107: 166 | J107: 37 | N107: DOTACION EQUIPOS BIOMEDICOS
A108: 4 | B108: A09X | C108: Diarrea y gastroenteritis de presunto origen infeccioso | F108: 169 | G108: 2.620155039 | H108: 87 | J108: 82 | N108: ESTAMPILLAS PROHOSPITALES | U108: 30038301
A109: 5 | B109: N390 | C109: Infeccion de vias urinarias, sitio no especificado | F109: 133 | G109: 2.062015504 | H109: 44 | J109: 89 | N109: EQUIPAMIENTO
A110: 6 | B110: B349 | C110: Infeccion viral, no especificada | F110: 133 | G110: 2.062015504 | H110: 52 | J110: 81 | N110: TELEMEDICINA
A111: 7 | B111: R42X | C111: Mareo y desvanecimiento | F111: 129 | G111: 2 | H111: 50 | J111: 79 | N111: AMBULANCIA | Q111: 122000000
A112: 8 | B112: O479 | C112: Falso trabajo de parto, sin otra especificacion | F112: 124 | G112: 1.92248062 | H112: 0 | J112: 124 | N112: TOTALES | Q112: =SUM(Q97:R111) -> 1607907749 | S112: =SUM(S97:T111) -> 1195038344 | U112: =SUM(U97:V111) -> 1558096170
A113: 9 | B113: R074 | C113: Dolor en el pecho, no especificado | F113: 119 | G113: 1.84496124 | H113: 49 | J113: 70 | N113: PROYECTOS DE INVERSION (En Cantidad)
A114: 10 | B114: K297 | C114: Gastritis, no especificada | F114: 107 | G114: 1.658914729 | H114: 38 | J114: 69 | N114: PROGRAMA AEREO (No brigadas)
A115: 11 | C115: Otros Dx | F115: 4877 | G115: 75.6124031 | H115: 2623 | J115: 2254 | N115: ASESORIA Y ASISTENCIA TECNICA | Q115: 24
A116: TOTALES | F116: 6450 | G116: 100 | H116: 3342 | J116: 3108 | N116: CENTROS AMIGABLES JOVENES | S116: SI

Sheet ANGELOPOLIS
C4: ALCALDE | E4: OLGA LUCÍA ZAPATA MARÍN
C5: DIRECTOR LOCAL DE SALUD | E5: DANIELA GOMEZ MONTAÑO
C7: CERTIFICACION | E7: RANKING | F7: CATEGORIA MUNICIPAL
C8: SI | E8: 50 | F8: 6
C9: TOTAL CORREGIMIENTOS | E9: 0 | F9: TOTAL VEREDAS | I9: 11
A10: CARACTERISTICAS DEMOGRAFICAS | N10: VIGILANCIA DE LA SALUD PUBLICA - AÑO 2017 ***
A11: POBLACION 2018
A12: TOTAL | B12: HOMBRES | C12: MUJERES | D12: CABECERA | E12: RESTO | N12: MORTALIDAD CANCER CUELLO UTERINO | S12: MORTALIDAD MATERNA
A13: 9353 | B13: 4726 | C13: 4627 | D13: 5535 | E13: 3818 | N13: # Casos | O13: Tasa x cienmil Mujeres | S13: # Casos | T13: Tasa x cienmil Nacidos vivos
A14: POR GRUPOS DE EDAD | N14: 0 | O14: 0 | S14: 0 | T14: 0
A15: 0 - 4 AÑOS | B15: 5 - 9 AÑOS | C15: 10 - 14 AÑOS | D15: 15 - 19 AÑOS | E15: 20 - 59 AÑOS | F15: > 60 AÑOS
A16: 715 | B16: 737 | C16: 736 | D16: 695 | E16: 5110 | F16: 1360 | N16: MORTALIDAD INFANTIL | S16: MORTALIDAD PERINATAL
N17: # Casos | O17: Tasa x cienmil Nacidos vivos | S17: # Casos | T17: Tasa x cienmil Nacidos vivos
A18: DESPLAZADOS 2015 (a marzo) | D18: INDIGENAS FEB 2014 | G18: ROM | I18: AFRO | N18: 1 | O18: 14.49275362 | S18: 1 | T18: 14.49275362
A19: TOTAL | B19: HOMBRES | C19: MUJERES | D19: TOTAL | E19: HOMBRES | F19: MUJERES
A20: 547 | B20: 268.03 | C20: 278.97 | D20: 0 | E20: 0 | F20: 0 | N20: MORTALIDAD VIH SIDA | S20: MORTALIDAD TUBERCULOSIS
N21: # Casos | O21: Tasa x cienmil Habitantes | S21: # Casos | T21: Tasa x cienmil Habitantes
A22: POBLACION TOTAL | B22: Afiliados al regimen Subsidiado * | D22: % De Aseguramiento al Regimen Subsidiado * | F22: Afiliados al Regimen Contributivo * | H22: % De Aseguramiento al RS, RC, RE * | N22: 0 | O22: 0 | S22: 1 | T22: 10.85069444
N24: MORTALIDAD INFARTO AL MIOCARDIO | S24: MORTALIDAD < 5 AÑOS
A25: 9353 | B25: 2702 | D25: 28.88912648 | F25: 1504 | H25: 46.28461456 | N25: # Casos | O25: Tasa x cienmil Habitantes | S25: # Casos | T25: Tasa x cienmil Niños
H26: * Corte a Agosto 2018 | N26: 6 | O26: 65.10416667 | S26: 1 | T26: 140.6469761
A31: PRESTACION DE SERVICIOS DE SALUD **
A32: EMPRESAS SOCIALES DEL ESTADO
A33: INSTITUCION PRESTADORA DE SERVICIOS DE SALUD | F33: DIRECTOR / GERENTE | N33: 10 PRIMERAS CAUSAS DE MORTALIDAD 2017***
A34: NUEVA EMPRESA SOCIAL DEL ESTADO HOSPITAL LA MISERICORDIA | F34: JOSÉ DOMINGO JULIO PRETELT | N34: ORDEN | O34: CODIGO 105 CIE-10 | P34: CAUSA | T34: TOTAL GENERAL | U34: HOMBRES | V34: MUJERES | W34: SIN DATO
N36: 1 | O36: 089 | P36: SIGNOS, SINTOMAS Y AFECCIONES MAL DEFINIDAS | T36: 8 | U36: 2 | V36: 6 | W36: 0
N37: 2 | O37: 051 | P37: ENFERMEDADES ISQUEMICAS DEL CORAZON | T37: 7 | U37: 5 | V37: 2 | W37: 0
N38: 3 | O38: 101 | P38: AGRESIONES (HOMICIDIOS) Y SECUELAS | T38: 4 | U38: 3 | V38: 1 | W38: 0
A39: PRESTADORES DE SERVICIOS DE SALUD | N39: 4 | O39: 041 | P39: DIABETES MELLITUS | T39: 3 | U39: 1 | V39: 2 | W39: 0
A40: TOTALES | B40: IPS | C40: PROFESIONALES INDEPENDIENTES | E40: TRANSPORTE ESPECIAL | G40: OBJETO SOCIAL DIFERENTE | N40: 5 | O40: 105 | P40: OTROS ACCIDENTES Y SECUELAS | T40: 3 | U40: 3 | V40: 0 | W40: 0
N41: 6 | O41: 054 | P41: INSUFICIENCIA CARDIACA | T41: 3 | U41: 0 | V41: 3 | W41: 0
B42: 1 | C42: 0 | E42: 0 | G42: 0 | N42: 7 | O42: 028 | P42: TUMOR MALIGNO DE LA PROSTATA | T42: 2 | U42: 2 | V42: 0 | W42: 0
A43: IPS PUBLICAS | B43: IPS PRIVADAS | C43: SERVICIOS PRESTADOS X PROFESION | N43: 8 | O43: 096 | P43: OTROS ACCIDENTES QUE OBSTRUYEN LA RESPIRACION | T43: 2 | U43: 2 | V43: 0 | W43: 0
C44: Odontólogos | D44: Médicos | E44: Otros | F44: Total | N44: 9 | O44: 020 | P44: TUMOR MALIGNO DE LA TRAQUEA, LOS BRONQUIOS Y EL PULMON | T44: 2 | U44: 2 | V44: 0 | W44: 0
N45: 10 | O45: 050 | P45: ENFERMEDADES HIPERTENSIVAS | T45: 2 | U45: 1 | V45: 1 | W45: 0
A46: 1 | B46: 0 | C46: 0 | D46: 0 | E46: 0 | F46: =C46+D46+E46 -> 0
A48: CAPACIDAD INSTALADA | N48: PORCENTAJE DE EMBARAZOS POR GRUPO EDAD RESIDENCIA HABITUAL DE LA MADRE 2017*** | S48: TASAS DE FECUNDIDAD ESPECIFICA POR MIL MUJERES 2017***
A49: CAMAS
A50: Adultos | B50: Cuidado Agudo Mental | C50: Cuidado Intensivo Adulto | D50: Cuidado Intensivo Neonatal | E50: Cuidado Intensivo Pediátrico | F50: Cuidado Intermedio Adulto | G50: Cuidado Intermedio Mental | I50: Cuidado Intermedio Neonatal
N51: 10 a 14 AÑOS | P51: 15 a 19 AÑOS | S51: 10 a 14 AÑOS | U51: 15 a 19 AÑOS
N52: No | O52: % | P52: No | Q52: % | S52: No | T52: TASA | U52: No | V52: TASA
A53: 3 | B53: 0 | C53: 0 | D53: 0 | E53: 0 | F53: 0 | G53: 0 | I53: 0 | N53: 1 | O53: 1.449275362 | P53: 24 | Q53: 34.7826087 | S53: 1 | T53: 2.898550725 | U53: 24 | V53: 72.07207207
A54: CAMAS
A55: Cuidado Intermedio Pediátrico | B55: Farmaco- de-pendencia | C55: Obste-tricia | D55: Pediátricas | E55: Quemados Adultos | F55: Quemados Pediátrico | G55: Salud Mental Psiquiatría | I55: TOTAL CAMAS | N55: *** FUENTE: DANE. Información Preliminar
A58: 0 | B58: 0 | C58: 2 | D58: 1 | E58: 0 | F58: 0 | G58: 0 | I58: =A53+B53+C53+D53+E53+F53+G53+I53+A58+B58+C58+D58+E58+F58+G58 -> 6
A60: SALAS | E60: TOTAL SALAS | N60: INMUNIZACIONES PAI 2017
A61: PARTO | C61: QUIROFANO | N61: POLIOMIELITIS (V.O.P)
A62: 1 | C62: 0 | E62: =A62+C62 -> 1 | N62: Vacunados (Edades) | S62: Refuerzos | T62: Dosis Aplicadas
N63: <1 | O63: 1 | P63: 2 | Q63: 3 | R63: 4 | S63: Otros
A64: TOTAL DE SERVICIOS PRESTADOS SEGÚN LA COMPLEJIDAD | N64: 59 | O64: 0 | P64: 0 | Q64: 0 | R64: 0 | S64: 94 | T64: 267
A65: BAJA | C65: MEDIA | E65: ALTA
A66: 30 | C66: 0 | E66: 0 | N66: DIFTERIA, TOSFERINA Y TÉTANO (D.P.T)
N67: Vacunados (Edades) | S67: Refuerzos | T67: Dosis
A68: TOTAL DE AMBULANCIAS HABILITADAS SEGÚN TIPO Y MODALIDAD | N68: <1 | O68: 1 | P68: 2 | Q68: 3 | R68: 4 | S68: Otros | T68: Aplicadas
A69: TIPO | C69: MODALIDAD | F69: TOTAL GENERAL | G69: **Fuente: REPS - Minsalud /IPS se incluyen todas las sedes habilitadas /febrero y abril 2018, | N69: 59 | O69: 0 | P69: 0 | Q69: 0 | R69: 0 | S69: 94 | T69: 267
A70: BASICA | B70: MEDICADA | C70: AEREA | D70: TERRESTRE | E70: FLUVIAL Y MARIT
A71: 1 | B71: 0 | C71: 0 | D71: 1 | E71: 0 | F71: =SUM(C71:E71) -> 1 | N71: TUBERCULOSIS (B.C.G)
A72: 10 PRIMERAS CAUSAS DE HOSPITALIZACION 2016 | N72: Vacunados (Edades) | S72: Otros | T72: Dosis Aplicadas
A73: ORDEN | B73: CODIGO CIE-10 | C73: CAUSA | F73: TOTAL GENERAL | G73: % | H73: HOMBRES | J73: MUJERES | N73: RN | O73: <1 | P73: 2 | Q73: 3 | R73: 4
N74: 11 | O74: 0 | S74: 0 | T74: 11
A75: 1 | B75: O800 | C75: Parto unico espontaneo, presentacion cefalica de vertice | F75: 19 | G75: 12.92517007 | H75: 0 | J75: 19
A76: 2 | B76: O821 | C76: Parto por cesarea de emergencia | F76: 6 | G76: 4.081632653 | H76: 0 | J76: 6 | N76: TRIPLE VIRAL - S. R. P.
A77: 3 | B77: N390 | C77: Infeccion de vias urinarias, sitio no especificado | F77: 5 | G77: 3.401360544 | H77: 2 | J77: 3 | N77: Vacunados (Edades) | S77: Refuerzos | T77: Dosis Aplicadas
A78: 4 | B78: N210 | C78: Calculo en la vejiga | F78: 5 | G78: 3.401360544 | H78: 5 | J78: 0 | N78: 1 | O78: 2 | P78: 3 | Q78: 4 | R78: Ref. | S78: Otros
A79: 5 | B79: J210 | C79: Bronquiolitis aguda debida a virus sincitial respiratorio | F79: 4 | G79: 2.721088435 | H79: 2 | J79: 2 | N79: 60 | O79: 0 | P79: 0 | Q79: 0 | R79: 49 | S79: 0 | T79: 109
A80: 6 | B80: J159 | C80: Neumonia bacteriana, no especificada | F80: 4 | G80: 2.721088435 | H80: 1 | J80: 3
A81: 7 | B81: J219 | C81: Bronquiolitis aguda, no especificada | F81: 3 | G81: 2.040816327 | H81: 3 | J81: 0 | N81: AGUA POTABLE 2016
A82: 8 | B82: J189 | C82: Neumonia, no especificada | F82: 3 | G82: 2.040816327 | H82: 2 | J82: 1 | P82: NUMEROS ACUEDUCTOS | R82: COBERTURA ACUEDUCTOS CON AGUA POTABLE (%) | T82: COBERTURAS VIVIENDAS CON AGUA POTABLE (%)
A83: 9 | B83: K359 | C83: Apendicitis aguda, no especificada | F83: 3 | G83: 2.040816327 | H83: 1 | J83: 2
A84: 10 | B84: C920 | C84: Leucemia mieloblastica aguda [LMA] | F84: 2 | G84: 1.360544218 | H84: 1 | J84: 1
A85: 11 | C85: Otros Dx | F85: 93 | G85: 63.26530612 | H85: 43 | J85: 50 | N85: Urbano | P85: 1 | R85: 100 | T85: 100
A86: TOTALES | F86: 147 | G86: 100 | H86: 60 | J86: 87 | N86: Rural | P86: 13 | R86: 7.692307692 | T86: 20.99
A87: 10 PRIMERAS CAUSAS DE CONSULTA 2016 | N87: Total Municipal | P87: 14 | R87: 14.28571429 | T87: 45.69
A88: ORDEN | B88: CODIGO CIE-10 | C88: CAUSA | F88: TOTAL GENERAL | G88: % | H88: HOMBRES | J88: MUJERES | N88: CERTIFACION EN AGUA POTABLE | O88: INDICE RIESGO CALIDAD DEL AGUA POTABLE - IRCA- (a) | P88: INDICE RIESGO DE ABASTECIMIENTO MUNICIPAL - IRABA- (b) | R88: BUENAS PRACTICAS SANTIARIAS © | T88: CERTIFICAION SANITARIA MUNICIPAL EN AGUA POTABLE ©
A90: 1 | B90: I10X | C90: Hipertension esencial (primaria) | F90: 1259 | G90: 10.83197109 | H90: 453 | J90: 806
A91: 2 | B91: J00X | C91: Rinofaringitis aguda [resfriado comun] | F91: 263 | G91: 2.262754883 | H91: 148 | J91: 115
A92: 3 | B92: M545 | C92: Lumbago no especificado | F92: 193 | G92: 1.660500731 | H92: 101 | J92: 92 | N92: Urbano | O92: 0 | P92: 29 | R92: 8 | T92: 8.2
A93: 4 | B93: N390 | C93: Infeccion de vias urinarias, sitio no especificado | F93: 186 | G93: 1.600275316 | H93: 38 | J93: 148 | N93: Rural | O93: 59.8 | P93: 65.2 | R93: 60.2 | T93: 61
A94: 5 | B94: A09X | C94: Diarrea y gastroenteritis de presunto origen infeccioso | F94: 171 | G94: 1.471220855 | H94: 89 | J94: 82 | N94: Total | O94: 33 | P94: 34.8 | R94: 36.4 | T94: 34.38
A95: 6 | B95: E785 | C95: Hiperlipidemia no especificada | F95: 170 | G95: 1.462617224 | H95: 135 | J95: 35 | N95: PROYECTOS DE INVERSION (En pesos)
A96: 7 | B96: E780 | C96: Hipercolesterolemia pura | F96: 127 | G96: 1.092661103 | H96: 92 | J96: 35 | Q96: 2012 | S96: 2013 | U96: 2014
A97: 8 | B97: S025 | C97: Fractura de los dientes | F97: 97 | G97: 0.834552181 | H97: 26 | J97: 71 | N97: ADULTO MAYOR | Q97: 57000000 | S97: 20000000 | U97: 30000000
A98: 9 | B98: B203 | C98: Enfermedad por VIH, resultante en otras infecciones virales | F98: 85 | G98: 0.7313086122 | H98: 85 | J98: 0 | N98: DOTACION DISCAPACIDAD | U98: 2747752
A99: 10 | B99: G409 | C99: Epilepsia, tipo no especificado | F99: 79 | G99: 0.6796868278 | H99: 49 | J99: 30 | N99: APS - SALUD CONTIGO | S99: 52500000
A100: 11 | C100: Otros Dx | F100: 8993 | G100: 77.37245117 | H100: 3491 | J100: 5502 | N100: COFINANCIACION REG. SUBSIDIADO | Q100: 192010396.7 | S100: 164909518 | U100: 217697260
A101: TOTALES | F101: 11623 | G101: 100 | H101: 4707 | J101: 6916 | N101: SSR | Q101: 1034255
A102: 10 PRIMERAS CAUSAS DE URGENCIAS 2016 | N102: PAI | Q102: 2654063
A103: ORDEN | B103: CODIGO CIE-10 | C103: CAUSA | F103: TOTAL GENERAL | G103: % | H103: HOMBRES | J103: MUJERES | N103: VECTORES | Q103: 386400
N104: ESTERILIZACION MASCOTAS | Q104: 0
A105: 1 | B105: R688 | C105: Otros sintomas y signos generales especificados | F105: 12 | G105: 8.823529412 | H105: 4 | J105: 8 | N105: VACUNA ANTIRRABICA | Q105: 986000
A106: 2 | B106: O800 | C106: Parto unico espontaneo, presentacion cefalica de vertice | F106: 5 | G106: 3.676470588 | H106: 0 | J106: 5 | N106: INFRAESTRUCTURA
A107: 3 | B107: S299 | C107: Traumatismo del torax, no especificado | F107: 4 | G107: 2.941176471 | H107: 4 | J107: 0 | N107: DOTACION EQUIPOS BIOMEDICOS
A108: 4 | B108: J210 | C108: Bronquiolitis aguda debida a virus sincitial respiratorio | F108: 4 | G108: 2.941176471 | H108: 2 | J108: 2 | N108: ESTAMPILLAS PROHOSPITALES | U108: 5964393
A109: 5 | B109: N210 | C109: Calculo en la vejiga | F109: 4 | G109: 2.941176471 | H109: 4 | J109: 0 | N109: EQUIPAMIENTO
A110: 6 | B110: K511 | C110: Ileocolitis (cronica) ulcerativa | F110: 3 | G110: 2.205882353 | H110: 0 | J110: 3 | N110: TELEMEDICINA
A111: 7 | B111: K37X | C111: Apendicitis, no especificada | F111: 3 | G111: 2.205882353 | H111: 0 | J111: 3 | N111: AMBULANCIA
A112: 8 | B112: S300 | C112: Contusion de la region lumbosacra y de la pelvis | F112: 3 | G112: 2.205882353 | H112: 2 | J112: 1 | N112: TOTALES | Q112: =SUM(Q97:R111) -> 254071114.7 | S112: =SUM(S97:T111) -> 237409518 | U112: =SUM(U97:V111) -> 256409405
A113: 9 | B113: S681 | C113: Amputacion traumatica de otro dedo unico (completa) (parcial) | F113: 3 | G113: 2.205882353 | H113: 3 | J113: 0 | N113: PROYECTOS DE INVERSION (En Cantidad)
A114: 10 | B114: T07X | C114: Traumatismos multiples, no especificados | F114: 3 | G114: 2.205882353 | H114: 3 | J114: 0 | N114: PROGRAMA AEREO (No brigadas)
A115: 11 | C115: Otros Dx | F115: 92 | G115: 67.64705882 | H115: 44 | J115: 48 | N115: ASESORIA Y ASISTENCIA TECNICA | Q115: 15
A116: TOTALES | F116: 136 | G116: 100 | H116: 66 | J116: 70 | N116: CENTROS AMIGABLES JOVENES

Sheet ANGOSTURA
C4: ALCALDE | E4: MARTA LUCÍA PORRAS ARENAS
C5: DIRECTOR LOCAL DE SALUD | E5: ALEJANDRA MARIA ARANGO ALVAREZ
C7: CERTIFICACION | E7: RANKING | F7: CATEGORIA MUNICIPAL
C8: SI | E8: 60 | F8: 6
C9: TOTAL CORREGIMIENTOS | E9: 1 | F9: TOTAL VEREDAS | I9: 46
A10: CARACTERISTICAS DEMOGRAFICAS | N10: VIGILANCIA DE LA SALUD PUBLICA - AÑO 2017 ***
A11: POBLACION 2018
A12: TOTAL | B12: HOMBRES | C12: MUJERES | D12: CABECERA | E12: RESTO | N12: MORTALIDAD CANCER CUELLO UTERINO | S12: MORTALIDAD MATERNA
A13: 11040 | B13: 5687 | C13: 5353 | D13: 1753 | E13: 9287 | N13: # Casos | O13: Tasa x cienmil Mujeres | S13: # Casos | T13: Tasa x cienmil Nacidos vivos
A14: POR GRUPOS DE EDAD | N14: 0 | O14: 0 | S14: 0 | T14: 0
A15: 0 - 4 AÑOS | B15: 5 - 9 AÑOS | C15: 10 - 14 AÑOS | D15: 15 - 19 AÑOS | E15: 20 - 59 AÑOS | F15: > 60 AÑOS
A16: 1311 | B16: 1119 | C16: 967 | D16: 1178 | E16: 5329 | F16: 1136 | N16: MORTALIDAD INFANTIL | S16: MORTALIDAD PERINATAL
N17: # Casos | O17: Tasa x cienmil Nacidos vivos | S17: # Casos | T17: Tasa x cienmil Nacidos vivos
A18: DESPLAZADOS 2015 (a marzo) | D18: INDIGENAS FEB 2014 | G18: ROM | I18: AFRO | N18: 2 | O18: 16.80672269 | S18: 2 | T18: 16.80672269
A19: TOTAL | B19: HOMBRES | C19: MUJERES | D19: TOTAL | E19: HOMBRES | F19: MUJERES
A20: 1116 | B20: 546.84 | C20: 569.16 | D20: 0 | E20: 0 | F20: 0 | N20: MORTALIDAD VIH SIDA | S20: MORTALIDAD TUBERCULOSIS
N21: # Casos | O21: Tasa x cienmil Habitantes | S21: # Casos | T21: Tasa x cienmil Habitantes
A22: POBLACION TOTAL | B22: Afiliados al regimen Subsidiado * | D22: % De Aseguramiento al Regimen Subsidiado * | F22: Afiliados al Regimen Contributivo * | H22: % De Aseguramiento al RS, RC, RE * | N22: 0 | O22: 0 | S22: 0 | T22: 0
N24: MORTALIDAD INFARTO AL MIOCARDIO | S24: MORTALIDAD < 5 AÑOS
A25: 11040 | B25: 8715 | D25: 78.94021739 | F25: 1067 | H25: 90.24456522 | N25: # Casos | O25: Tasa x cienmil Habitantes | S25: # Casos | T25: Tasa x cienmil Niños
H26: * Corte a Agosto 2018 | N26: 4 | O26: 35.90986624 | S26: 2 | T26: 151.9756839
A31: PRESTACION DE SERVICIOS DE SALUD **
A32: EMPRESAS SOCIALES DEL ESTADO
A33: INSTITUCION PRESTADORA DE SERVICIOS DE SALUD | F33: DIRECTOR / GERENTE | N33: 10 PRIMERAS CAUSAS DE MORTALIDAD 2017***
A34: ESE HOSPITAL SAN RAFAEL | F34: JAVIER ENRIQUE ARTEAGA JIMENEZ | N34: ORDEN | O34: CODIGO 105 CIE-10 | P34: CAUSA | T34: TOTAL GENERAL | U34: HOMBRES | V34: MUJERES | W34: SIN DATO
N36: 1 | O36: 101 | P36: AGRESIONES (HOMICIDIOS) Y SECUELAS | T36: 9 | U36: 8 | V36: 1 | W36: 0
N37: 2 | O37: 089 | P37: SIGNOS, SINTOMAS Y AFECCIONES MAL DEFINIDAS | T37: 8 | U37: 3 | V37: 5 | W37: 0
N38: 3 | O38: 051 | P38: ENFERMEDADES ISQUEMICAS DEL CORAZON | T38: 5 | U38: 1 | V38: 4 | W38: 0
A39: PRESTADORES DE SERVICIOS DE SALUD | N39: 4 | O39: 050 | P39: ENFERMEDADES HIPERTENSIVAS | T39: 4 | U39: 1 | V39: 3 | W39: 0
A40: TOTALES | B40: IPS | C40: PROFESIONALES INDEPENDIENTES | E40: TRANSPORTE ESPECIAL | G40: OBJETO SOCIAL DIFERENTE | N40: 5 | O40: 060 | P40: ENFERMEDADES CRONICAS DE LAS VIAS RESPIRATORIAS INFERIORES | T40: 3 | U40: 2 | V40: 1 | W40: 0
N41: 6 | O41: 020 | P41: TUMOR MALIGNO DE LA TRAQUEA, LOS BRONQUIOS Y EL PULMON | T41: 3 | U41: 3 | V41: 0 | W41: 0
B42: 1 | C42: 2 | E42: 0 | G42: 0 | N42: 7 | O42: 075 | P42: TODAS LAS DEMAS ENFERMEDADES DEL SISTEMA URINARIIO | T42: 2 | U42: 0 | V42: 2 | W42: 0
A43: IPS PUBLICAS | B43: IPS PRIVADAS | C43: SERVICIOS PRESTADOS X PROFESION | N43: 8 | O43: 054 | P43: INSUFICIENCIA CARDIACA | T43: 2 | U43: 2 | V43: 0 | W43: 0
C44: Odontólogos | D44: Médicos | E44: Otros | F44: Total | N44: 9 | O44: 036 | P44: TODOS LOS DEMAS TUMORES MALIGNOS DEL TEJIDO LINFATICO, DE LOS ORGANOS HEMATOPOYETICOS Y DE TEJIDOS AFINES | T44: 1 | U44: 1 | V44: 0 | W44: 0
N45: 10 | O45: 044 | P45: TRASTORNOS MENTALES Y DEL COMPORTAMIENTO | T45: 1 | U45: 0 | V45: 1 | W45: 0
A46: 1 | B46: 0 | C46: 1 | D46: 2 | E46: 0 | F46: =C46+D46+E46 -> 3
A48: CAPACIDAD INSTALADA | N48: PORCENTAJE DE EMBARAZOS POR GRUPO EDAD RESIDENCIA HABITUAL DE LA MADRE 2017*** | S48: TASAS DE FECUNDIDAD ESPECIFICA POR MIL MUJERES 2017***
A49: CAMAS
A50: Adultos | B50: Cuidado Agudo Mental | C50: Cuidado Intensivo Adulto | D50: Cuidado Intensivo Neonatal | E50: Cuidado Intensivo Pediátrico | F50: Cuidado Intermedio Adulto | G50: Cuidado Intermedio Mental | I50: Cuidado Intermedio Neonatal
N51: 10 a 14 AÑOS | P51: 15 a 19 AÑOS | S51: 10 a 14 AÑOS | U51: 15 a 19 AÑOS
N52: No | O52: % | P52: No | Q52: % | S52: No | T52: TASA | U52: No | V52: TASA
A53: 4 | B53: 0 | C53: 0 | D53: 0 | E53: 0 | F53: 0 | G53: 0 | I53: 0 | N53: 2 | O53: 1.666666667 | P53: 36 | Q53: 30 | S53: 2 | T53: 4.22832981 | U53: 36 | V53: 61.32879046
A54: CAMAS
A55: Cuidado Intermedio Pediátrico | B55: Farmaco- de-pendencia | C55: Obste-tricia | D55: Pediátricas | E55: Quemados Adultos | F55: Quemados Pediátrico | G55: Salud Mental Psiquiatría | I55: TOTAL CAMAS | N55: *** FUENTE: DANE. Información Preliminar
A58: 0 | B58: 0 | C58: 1 | D58: 1 | E58: 0 | F58: 0 | G58: 0 | I58: =A53+B53+C53+D53+E53+F53+G53+I53+A58+B58+C58+D58+E58+F58+G58 -> 6
A60: SALAS | E60: TOTAL SALAS | N60: INMUNIZACIONES PAI 2017
A61: PARTO | C61: QUIROFANO | N61: POLIOMIELITIS (V.O.P)
A62: 1 | C62: 0 | E62: =A62+C62 -> 1 | N62: Vacunados (Edades) | S62: Refuerzos | T62: Dosis Aplicadas
N63: <1 | O63: 1 | P63: 2 | Q63: 3 | R63: 4 | S63: Otros
A64: TOTAL DE SERVICIOS PRESTADOS SEGÚN LA COMPLEJIDAD | N64: 155 | O64: 0 | P64: 0 | Q64: 0 | R64: 0 | S64: 258 | T64: 694
A65: BAJA | C65: MEDIA | E65: ALTA
A66: 28 | C66: 0 | E66: 0 | N66: DIFTERIA, TOSFERINA Y TÉTANO (D.P.T)
N67: Vacunados (Edades) | S67: Refuerzos | T67: Dosis
A68: TOTAL DE AMBULANCIAS HABILITADAS SEGÚN TIPO Y MODALIDAD | N68: <1 | O68: 1 | P68: 2 | Q68: 3 | R68: 4 | S68: Otros | T68: Aplicadas
A69: TIPO | C69: MODALIDAD | F69: TOTAL GENERAL | G69: **Fuente: REPS - Minsalud /IPS se incluyen todas las sedes habilitadas /febrero y abril 2018, | N69: 155 | O69: 0 | P69: 0 | Q69: 0 | R69: 0 | S69: 258 | T69: 694
A70: BASICA | B70: MEDICADA | C70: AEREA | D70: TERRESTRE | E70: FLUVIAL Y MARIT
A71: 2 | B71: 0 | C71: 0 | D71: 2 | E71: 0 | F71: =SUM(C71:E71) -> 2 | N71: TUBERCULOSIS (B.C.G)
A72: 10 PRIMERAS CAUSAS DE HOSPITALIZACION 2016 | N72: Vacunados (Edades) | S72: Otros | T72: Dosis Aplicadas
A73: ORDEN | B73: CODIGO CIE-10 | C73: CAUSA | F73: TOTAL GENERAL | G73: % | H73: HOMBRES | J73: MUJERES | N73: RN | O73: <1 | P73: 2 | Q73: 3 | R73: 4
N74: 33 | O74: 3 | S74: 0 | T74: 36
A75: 1 | B75: O800 | C75: Parto unico espontaneo, presentacion cefalica de vertice | F75: 80 | G75: 16.49484536 | H75: 0 | J75: 80
A76: 2 | B76: N390 | C76: Infeccion de vias urinarias, sitio no especificado | F76: 46 | G76: 9.484536082 | H76: 18 | J76: 28 | N76: TRIPLE VIRAL - S. R. P.
A77: 3 | B77: L039 | C77: Celulitis de sitio no especificado | F77: 22 | G77: 4.536082474 | H77: 14 | J77: 8 | N77: Vacunados (Edades) | S77: Refuerzos | T77: Dosis Aplicadas
A78: 4 | B78: J189 | C78: Neumonia, no especificada | F78: 13 | G78: 2.680412371 | H78: 6 | J78: 7 | N78: 1 | O78: 2 | P78: 3 | Q78: 4 | R78: Ref. | S78: Otros
A79: 5 | B79: J159 | C79: Neumonia bacteriana, no especificada | F79: 9 | G79: 1.855670103 | H79: 4 | J79: 5 | N79: 140 | O79: 0 | P79: 0 | Q79: 0 | R79: 143 | S79: 1 | T79: 284
A80: 6 | B80: M841 | C80: Falta de consolidacion de fractura [seudoartrosis] | F80: 8 | G80: 1.649484536 | H80: 8 | J80: 0
A81: 7 | B81: S069 | C81: Traumatismo intracraneal, no especificado | F81: 8 | G81: 1.649484536 | H81: 8 | J81: 0 | N81: AGUA POTABLE 2016
A82: 8 | B82: L031 | C82: Celulitis de otras partes de los miembros | F82: 7 | G82: 1.443298969 | H82: 6 | J82: 1 | P82: NUMEROS ACUEDUCTOS | R82: COBERTURA ACUEDUCTOS CON AGUA POTABLE (%) | T82: COBERTURAS VIVIENDAS CON AGUA POTABLE (%)
A83: 9 | B83: J441 | C83: Enfermedad pulmonar obstructiva cronica con exacerbacion aguda, no especificada | F83: 7 | G83: 1.443298969 | H83: 0 | J83: 7
A84: 10 | B84: J219 | C84: Bronquiolitis aguda, no especificada | F84: 7 | G84: 1.443298969 | H84: 4 | J84: 3
A85: 11 | C85: Otros Dx | F85: 278 | G85: 57.31958763 | H85: 134 | J85: 144 | N85: Urbano | P85: 1 | R85: 100 | T85: 100
A86: TOTALES | F86: 485 | G86: 100 | H86: 202 | J86: 283 | N86: Rural | P86: 27 | R86: 0 | T86: 0
A87: 10 PRIMERAS CAUSAS DE CONSULTA 2016 | N87: Total Municipal | P87: 28 | R87: 3.571428571 | T87: 20.43
A88: ORDEN | B88: CODIGO CIE-10 | C88: CAUSA | F88: TOTAL GENERAL | G88: % | H88: HOMBRES | J88: MUJERES | N88: CERTIFACION EN AGUA POTABLE | O88: INDICE RIESGO CALIDAD DEL AGUA POTABLE - IRCA- (a) | P88: INDICE RIESGO DE ABASTECIMIENTO MUNICIPAL - IRABA- (b) | R88: BUENAS PRACTICAS SANTIARIAS © | T88: CERTIFICAION SANITARIA MUNICIPAL EN AGUA POTABLE ©
A90: 1 | B90: I10X | C90: Hipertension esencial (primaria) | F90: 1247 | G90: 5.24610854 | H90: 429 | J90: 818
A91: 2 | B91: N390 | C91: Infeccion de vias urinarias, sitio no especificado | F91: 554 | G91: 2.33066891 | H91: 122 | J91: 432
A92: 3 | B92: J00X | C92: Rinofaringitis aguda [resfriado comun] | F92: 420 | G92: 1.766933109 | H92: 167 | J92: 253 | N92: Urbano | O92: 0.1 | P92: 33 | R92: 8 | T92: 9.05
A93: 4 | B93: M545 | C93: Lumbago no especificado | F93: 326 | G93: 1.371476651 | H93: 137 | J93: 189 | N93: Rural | O93: 53 | P93: 64.5 | R93: 66.4 | T93: 59.32
A94: 5 | B94: M255 | C94: Dolor en articulacion | F94: 292 | G94: 1.228439209 | H94: 107 | J94: 185 | N94: Total | O94: 37.5 | P94: 43.9 | R94: 49.3 | T94: 42.32
A95: 6 | B95: E039 | C95: Hipotiroidismo, no especificado | F95: 236 | G95: 0.9928481279 | H95: 33 | J95: 203 | N95: PROYECTOS DE INVERSION (En pesos)
A96: 7 | B96: A09X | C96: Diarrea y gastroenteritis de presunto origen infeccioso | F96: 222 | G96: 0.9339503576 | H96: 120 | J96: 102 | Q96: 2012 | S96: 2013 | U96: 2014
A97: 8 | B97: M796 | C97: Dolor en miembro | F97: 180 | G97: 0.7572570467 | H97: 52 | J97: 128 | N97: ADULTO MAYOR | Q97: 60000000 | S97: 24390680 | U97: 30000000
A98: 9 | B98: G409 | C98: Epilepsia, tipo no especificado | F98: 177 | G98: 0.7446360959 | H98: 90 | J98: 87 | N98: DOTACION DISCAPACIDAD | S98: 13101788 | U98: 2918752
A99: 10 | B99: E785 | C99: Hiperlipidemia no especificada | F99: 155 | G99: 0.6520824569 | H99: 34 | J99: 121 | N99: APS - SALUD CONTIGO | S99: 0
A100: 11 | C100: Otros Dx | F100: 19961 | G100: 83.9755995 | H100: 6631 | J100: 13330 | N100: COFINANCIACION REG. SUBSIDIADO | Q100: 430576257.5 | S100: 369803533 | U100: 488178104
A101: TOTALES | F101: 23770 | G101: 100 | H101: 7922 | J101: 15848 | N101: SSR | Q101: 1414526
A102: 10 PRIMERAS CAUSAS DE URGENCIAS 2016 | N102: PAI | Q102: 3629899
A103: ORDEN | B103: CODIGO CIE-10 | C103: CAUSA | F103: TOTAL GENERAL | G103: % | H103: HOMBRES | J103: MUJERES | N103: VECTORES | Q103: 386400
N104: ESTERILIZACION MASCOTAS | Q104: 3870000
A105: 1 | B105: R529 | C105: Dolor, no especificado | F105: 7 | G105: 3.743315508 | H105: 4 | J105: 3 | N105: VACUNA ANTIRRABICA | Q105: 1244000
A106: 2 | B106: S069 | C106: Traumatismo intracraneal, no especificado | F106: 6 | G106: 3.20855615 | H106: 6 | J106: 0 | N106: INFRAESTRUCTURA
A107: 3 | B107: R104 | C107: Otros dolores abdominales y los no especificados | F107: 6 | G107: 3.20855615 | H107: 5 | J107: 1 | N107: DOTACION EQUIPOS BIOMEDICOS
A108: 4 | B108: O200 | C108: Amenaza de aborto | F108: 6 | G108: 3.20855615 | H108: 0 | J108: 6 | N108: ESTAMPILLAS PROHOSPITALES
A109: 5 | B109: S018 | C109: Herida de otras partes de la cabeza | F109: 4 | G109: 2.139037433 | H109: 2 | J109: 2 | N109: EQUIPAMIENTO
A110: 6 | B110: S099 | C110: Traumatismo de la cabeza, no especificado | F110: 4 | G110: 2.139037433 | H110: 4 | J110: 0 | N110: TELEMEDICINA
A111: 7 | B111: T293 | C111: Quemaduras multiples, con mencion al menos de una Quemadura de tercer grado | F111: 4 | G111: 2.139037433 | H111: 0 | J111: 4 | N111: AMBULANCIA
A112: 8 | B112: C910 | C112: Leucemia linfoblastica aguda [LLA] | F112: 4 | G112: 2.139037433 | H112: 0 | J112: 4 | N112: TOTALES | Q112: =SUM(Q97:R111) -> 501121082.5 | S112: =SUM(S97:T111) -> 407296001 | U112: =SUM(U97:V111) -> 521096856
A113: 9 | B113: J210 | C113: Bronquiolitis aguda debida a virus sincitial respiratorio | F113: 4 | G113: 2.139037433 | H113: 4 | J113: 0 | N113: PROYECTOS DE INVERSION (En Cantidad)
A114: 10 | B114: M545 | C114: Lumbago no especificado | F114: 4 | G114: 2.139037433 | H114: 2 | J114: 2 | N114: PROGRAMA AEREO (No brigadas)
A115: 11 | C115: Otros Dx | F115: 138 | G115: 73.79679144 | H115: 72 | J115: 66 | N115: ASESORIA Y ASISTENCIA TECNICA | Q115: 13
A116: TOTALES | F116: 187 | G116: 100 | H116: 99 | J116: 88 | N116: CENTROS AMIGABLES JOVENES

Sheet ANORI
C4: ALCALDE | E4: NICOLÁS GUILLERMO HERÓN ARANGO
C5: DIRECTOR LOCAL DE SALUD | E5: ORFA NELLY MENA FERNANDEZ
C7: CERTIFICACION | E7: RANKING | F7: CATEGORIA MUNICIPAL
C8: SI | E8: 4 | F8: 6
C9: TOTAL CORREGIMIENTOS | E9: 1 | F9: TOTAL VEREDAS | I9: 54
A10: CARACTERISTICAS DEMOGRAFICAS | N10: VIGILANCIA DE LA SALUD PUBLICA - AÑO 2017 ***
A11: POBLACION 2018
A12: TOTAL | B12: HOMBRES | C12: MUJERES | D12: CABECERA | E12: RESTO | N12: MORTALIDAD CANCER CUELLO UTERINO | S12: MORTALIDAD MATERNA
A13: 17737 | B13: 9123 | C13: 8614 | D13: 7180 | E13: 10557 | N13: # Casos | O13: Tasa x cienmil Mujeres | S13: # Casos | T13: Tasa x cienmil Nacidos vivos
A14: POR GRUPOS DE EDAD | N14: 0 | O14: 0 | S14: 0 | T14: 0
A15: 0 - 4 AÑOS | B15: 5 - 9 AÑOS | C15: 10 - 14 AÑOS | D15: 15 - 19 AÑOS | E15: 20 - 59 AÑOS | F15: > 60 AÑOS
A16: 1768 | B16: 1736 | C16: 1613 | D16: 1544 | E16: 8785 | F16: 2291 | N16: MORTALIDAD INFANTIL | S16: MORTALIDAD PERINATAL
N17: # Casos | O17: Tasa x cienmil Nacidos vivos | S17: # Casos | T17: Tasa x cienmil Nacidos vivos
A18: DESPLAZADOS 2015 (a marzo) | D18: INDIGENAS FEB 2014 | G18: ROM | I18: AFRO | N18: 1 | O18: 4.464285714 | S18: 4 | T18: 17.85714286
A19: TOTAL | B19: HOMBRES | C19: MUJERES | D19: TOTAL | E19: HOMBRES | F19: MUJERES
A20: 5045 | B20: 2472.05 | C20: 2572.95 | D20: 0 | E20: 0 | F20: 0 | N20: MORTALIDAD VIH SIDA | S20: MORTALIDAD TUBERCULOSIS
N21: # Casos | O21: Tasa x cienmil Habitantes | S21: # Casos | T21: Tasa x cienmil Habitantes
A22: POBLACION TOTAL | B22: Afiliados al regimen Subsidiado * | D22: % De Aseguramiento al Regimen Subsidiado * | F22: Afiliados al Regimen Contributivo * | H22: % De Aseguramiento al RS, RC, RE * | N22: 0 | O22: 0 | S22: 0 | T22: 0
N24: MORTALIDAD INFARTO AL MIOCARDIO | S24: MORTALIDAD < 5 AÑOS
A25: 17737 | B25: 13968 | D25: 78.75063427 | F25: 1637 | H25: 89.5359982 | N25: # Casos | O25: Tasa x cienmil Habitantes | S25: # Casos | T25: Tasa x cienmil Niños
H26: * Corte a Agosto 2018 | N26: 5 | O26: 28.53718395 | S26: 2 | T26: 113.6363636
A31: PRESTACION DE SERVICIOS DE SALUD **
A32: EMPRESAS SOCIALES DEL ESTADO
A33: INSTITUCION PRESTADORA DE SERVICIOS DE SALUD | F33: DIRECTOR / GERENTE | N33: 10 PRIMERAS CAUSAS DE MORTALIDAD 2017***
A34: ESE HOSPITAL SAN JUAN DE DIOS DE ANORI | F34: HUGO ALEXANDER MANCO GUZMAN | N34: ORDEN | O34: CODIGO 105 CIE-10 | P34: CAUSA | T34: TOTAL GENERAL | U34: HOMBRES | V34: MUJERES | W34: SIN DATO
N36: 1 | O36: 101 | P36: AGRESIONES (HOMICIDIOS) Y SECUELAS | T36: 11 | U36: 11 | V36: 0 | W36: 0
N37: 2 | O37: 051 | P37: ENFERMEDADES ISQUEMICAS DEL CORAZON | T37: 6 | U37: 5 | V37: 1 | W37: 0
N38: 3 | O38: 060 | P38: ENFERMEDADES CRONICAS DE LAS VIAS RESPIRATORIAS INFERIORES | T38: 4 | U38: 3 | V38: 1 | W38: 0
A39: PRESTADORES DE SERVICIOS DE SALUD | N39: 4 | O39: 013 | P39: TUMOR MALIGNO DEL ESTOMAGO | T39: 4 | U39: 4 | V39: 0 | W39: 0
A40: TOTALES | B40: IPS | C40: PROFESIONALES INDEPENDIENTES | E40: TRANSPORTE ESPECIAL | G40: OBJETO SOCIAL DIFERENTE | N40: 5 | O40: 089 | P40: SIGNOS, SINTOMAS Y AFECCIONES MAL DEFINIDAS | T40: 3 | U40: 1 | V40: 2 | W40: 0
N41: 6 | O41: 100 | P41: LESIONES AUTOINFLIGIDAS INTENCIONALMENTE (SUICIDIOS) Y SECUELAS | T41: 3 | U41: 2 | V41: 1 | W41: 0
B42: 1 | C42: 2 | E42: 0 | G42: 0 | N42: 7 | O42: 062 | P42: TODAS LAS DEMAS ENFERMEDADES DEL SISTEMA RESPIRATORIO | T42: 2 | U42: 0 | V42: 2 | W42: 0
A43: IPS PUBLICAS | B43: IPS PRIVADAS | C43: SERVICIOS PRESTADOS X PROFESION | N43: 8 | O43: 028 | P43: TUMOR MALIGNO DE LA PROSTATA | T43: 2 | U43: 2 | V43: 0 | W43: 0
C44: Odontólogos | D44: Médicos | E44: Otros | F44: Total | N44: 9 | O44: 075 | P44: TODAS LAS DEMAS ENFERMEDADES DEL SISTEMA URINARIIO | T44: 2 | U44: 0 | V44: 2 | W44: 0
N45: 10 | O45: 034 | P45: TUMOR MALIGNO DE SITIOS NO ESPECIFICADOS | T45: 2 | U45: 1 | V45: 1 | W45: 0
A46: 2 | B46: 0 | C46: 1 | D46: 1 | E46: 0 | F46: =C46+D46+E46 -> 2
A48: CAPACIDAD INSTALADA | N48: PORCENTAJE DE EMBARAZOS POR GRUPO EDAD RESIDENCIA HABITUAL DE LA MADRE 2017*** | S48: TASAS DE FECUNDIDAD ESPECIFICA POR MIL MUJERES 2017***
A49: CAMAS
A50: Adultos | B50: Cuidado Agudo Mental | C50: Cuidado Intensivo Adulto | D50: Cuidado Intensivo Neonatal | E50: Cuidado Intensivo Pediátrico | F50: Cuidado Intermedio Adulto | G50: Cuidado Intermedio Mental | I50: Cuidado Intermedio Neonatal
N51: 10 a 14 AÑOS | P51: 15 a 19 AÑOS | S51: 10 a 14 AÑOS | U51: 15 a 19 AÑOS
N52: No | O52: % | P52: No | Q52: % | S52: No | T52: TASA | U52: No | V52: TASA
A53: 2 | B53: 0 | C53: 0 | D53: 0 | E53: 0 | F53: 0 | G53: 0 | I53: 0 | N53: 1 | O53: 0.4237288136 | P53: 65 | Q53: 27.54237288 | S53: 1 | T53: 1.324503311 | U53: 65 | V53: 88.43537415
A54: CAMAS
A55: Cuidado Intermedio Pediátrico | B55: Farmaco- de-pendencia | C55: Obste-tricia | D55: Pediátricas | E55: Quemados Adultos | F55: Quemados Pediátrico | G55: Salud Mental Psiquiatría | I55: TOTAL CAMAS | N55: *** FUENTE: DANE. Información Preliminar
A58: 0 | B58: 0 | C58: 2 | D58: 1 | E58: 0 | F58: 0 | G58: 0 | I58: =A53+B53+C53+D53+E53+F53+G53+I53+A58+B58+C58+D58+E58+F58+G58 -> 5
A60: SALAS | E60: TOTAL SALAS | N60: INMUNIZACIONES PAI 2017
A61: PARTO | C61: QUIROFANO | N61: POLIOMIELITIS (V.O.P)
A62: 1 | C62: 0 | E62: =A62+C62 -> 1 | N62: Vacunados (Edades) | S62: Refuerzos | T62: Dosis Aplicadas
N63: <1 | O63: 1 | P63: 2 | Q63: 3 | R63: 4 | S63: Otros
A64: TOTAL DE SERVICIOS PRESTADOS SEGÚN LA COMPLEJIDAD | N64: 226 | O64: 7 | P64: 0 | Q64: 1 | R64: 0 | S64: 524 | T64: 1199
A65: BAJA | C65: MEDIA | E65: ALTA
A66: 38 | C66: 1 | E66: 0 | N66: DIFTERIA, TOSFERINA Y TÉTANO (D.P.T)
N67: Vacunados (Edades) | S67: Refuerzos | T67: Dosis
A68: TOTAL DE AMBULANCIAS HABILITADAS SEGÚN TIPO Y MODALIDAD | N68: <1 | O68: 1 | P68: 2 | Q68: 3 | R68: 4 | S68: Otros | T68: Aplicadas
A69: TIPO | C69: MODALIDAD | F69: TOTAL GENERAL | G69: **Fuente: REPS - Minsalud /IPS se incluyen todas las sedes habilitadas /febrero y abril 2018, | N69: 223 | O69: 7 | P69: 0 | Q69: 1 | R69: 0 | S69: 527 | T69: 1199
A70: BASICA | B70: MEDICADA | C70: AEREA | D70: TERRESTRE | E70: FLUVIAL Y MARIT
A71: 3 | B71: 0 | C71: 0 | D71: 3 | E71: 0 | F71: =SUM(C71:E71) -> 3 | N71: TUBERCULOSIS (B.C.G)
A72: 10 PRIMERAS CAUSAS DE HOSPITALIZACION 2016 | N72: Vacunados (Edades) | S72: Otros | T72: Dosis Aplicadas
A73: ORDEN | B73: CODIGO CIE-10 | C73: CAUSA | F73: TOTAL GENERAL | G73: % | H73: HOMBRES | J73: MUJERES | N73: RN | O73: <1 | P73: 2 | Q73: 3 | R73: 4
N74: 83 | O74: 1 | S74: 0 | T74: 84
A75: 1 | B75: O800 | C75: Parto unico espontaneo, presentacion cefalica de vertice | F75: 31 | G75: 7.75 | H75: 0 | J75: 31
A76: 2 | B76: C621 | C76: Tumor maligno del testiculo descendido | F76: 11 | G76: 2.75 | H76: 11 | J76: 0 | N76: TRIPLE VIRAL - S. R. P.
A77: 3 | B77: S822 | C77: Fractura de la diafisis de la tibia | F77: 10 | G77: 2.5 | H77: 9 | J77: 1 | N77: Vacunados (Edades) | S77: Refuerzos | T77: Dosis Aplicadas
A78: 4 | B78: J381 | C78: Polipo de las cuerdas vocales y de la laringe | F78: 8 | G78: 2 | H78: 8 | J78: 0 | N78: 1 | O78: 2 | P78: 3 | Q78: 4 | R78: Ref. | S78: Otros
A79: 5 | B79: G448 | C79: Otros sindromes de cefalea especificados | F79: 8 | G79: 2 | H79: 8 | J79: 0 | N79: 235 | O79: 2 | P79: 3 | Q79: 0 | R79: 287 | S79: 1 | T79: 528
A80: 6 | B80: R688 | C80: Otros sintomas y signos generales especificados | F80: 8 | G80: 2 | H80: 8 | J80: 0
A81: 7 | B81: O821 | C81: Parto por cesarea de emergencia | F81: 6 | G81: 1.5 | H81: 0 | J81: 6 | N81: AGUA POTABLE 2016
A82: 8 | B82: P044 | C82: Feto y recien nacido afectados por drogadiccion materna | F82: 5 | G82: 1.25 | H82: 1 | J82: 4 | P82: NUMEROS ACUEDUCTOS | R82: COBERTURA ACUEDUCTOS CON AGUA POTABLE (%) | T82: COBERTURAS VIVIENDAS CON AGUA POTABLE (%)
A83: 9 | B83: N201 | C83: Calculo del ureter | F83: 5 | G83: 1.25 | H83: 2 | J83: 3
A84: 10 | B84: C509 | C84: Tumor maligno de la mama, parte no especificada | F84: 5 | G84: 1.25 | H84: 0 | J84: 5
A85: 11 | C85: Otros Dx | F85: 303 | G85: 75.75 | H85: 162 | J85: 141 | N85: Urbano | P85: 1 | R85: 100 | T85: 100
A86: TOTALES | F86: 400 | G86: 100 | H86: 209 | J86: 191 | N86: Rural | P86: 23 | R86: 0 | T86: 0
A87: 10 PRIMERAS CAUSAS DE CONSULTA 2016 | N87: Total Municipal | P87: 24 | R87: 4.166666667 | T87: 37.66
A88: ORDEN | B88: CODIGO CIE-10 | C88: CAUSA | F88: TOTAL GENERAL | G88: % | H88: HOMBRES | J88: MUJERES | N88: CERTIFACION EN AGUA POTABLE | O88: INDICE RIESGO CALIDAD DEL AGUA POTABLE - IRCA- (a) | P88: INDICE RIESGO DE ABASTECIMIENTO MUNICIPAL - IRABA- (b) | R88: BUENAS PRACTICAS SANTIARIAS © | T88: CERTIFICAION SANITARIA MUNICIPAL EN AGUA POTABLE ©
A90: 1 | B90: I10X | C90: Hipertension esencial (primaria) | F90: 4775 | G90: 16.12848747 | H90: 1702 | J90: 3073
A91: 2 | B91: N390 | C91: Infeccion de vias urinarias, sitio no especificado | F91: 597 | G91: 2.016483145 | H91: 160 | J91: 437
A92: 3 | B92: M545 | C92: Lumbago no especificado | F92: 491 | G92: 1.658447612 | H92: 233 | J92: 258 | N92: Urbano | O92: 0 | P92: 37.7 | R92: 19.1 | T92: 13.27
A93: 4 | B93: J00X | C93: Rinofaringitis aguda [resfriado comun] | F93: 442 | G93: 1.49294062 | H93: 199 | J93: 243 | N93: Rural | O93: 38 | P93: 70.1 | R93: 74.7 | T93: 55.43
A94: 5 | B94: S025 | C94: Fractura de los dientes | F94: 334 | G94: 1.128149699 | H94: 146 | J94: 188 | N94: Total | O94: 10.1 | P94: 37.7 | R94: 19.1 | T94: 18.32
A95: 6 | B95: M255 | C95: Dolor en articulacion | F95: 291 | G95: 0.9829088698 | H95: 99 | J95: 192 | N95: PROYECTOS DE INVERSION (En pesos)
A96: 7 | B96: B551 | C96: Leishmaniasis cutanea | F96: 229 | G96: 0.7734918598 | H96: 143 | J96: 86 | Q96: 2012 | S96: 2013 | U96: 2014
A97: 8 | B97: J039 | C97: Amigdalitis aguda, no especificada | F97: 224 | G97: 0.7566033912 | H97: 81 | J97: 143 | N97: ADULTO MAYOR | Q97: 96000000 | S97: 35687416 | U97: 30000000
A98: 9 | B98: A09X | C98: Diarrea y gastroenteritis de presunto origen infeccioso | F98: 216 | G98: 0.7295818415 | H98: 126 | J98: 90 | N98: DOTACION DISCAPACIDAD | U98: 2747752
A99: 10 | B99: C621 | C99: Tumor maligno del testiculo descendido | F99: 197 | G99: 0.665405661 | H99: 197 | J99: 0 | N99: APS - SALUD CONTIGO | Q99: 30000000 | S99: 50800000 | U99: 49400000
A100: 11 | C100: Otros Dx | F100: 21810 | G100: 73.66749983 | H100: 9095 | J100: 12715 | N100: COFINANCIACION REG. SUBSIDIADO | Q100: 914316722.4 | S100: 785267530 | U100: 1036632643
A101: TOTALES | F101: 29606 | G101: 100 | H101: 12181 | J101: 17425 | N101: SSR | Q101: 1939287
A102: 10 PRIMERAS CAUSAS DE URGENCIAS 2016 | N102: PAI | Q102: 5104827
A103: ORDEN | B103: CODIGO CIE-10 | C103: CAUSA | F103: TOTAL GENERAL | G103: % | H103: HOMBRES | J103: MUJERES | N103: VECTORES | Q103: 29483600 | S103: 142857000
N104: ESTERILIZACION MASCOTAS | Q104: 0
A105: 1 | B105: O800 | C105: Parto unico espontaneo, presentacion cefalica de vertice | F105: 12 | G105: 3.361344538 | H105: 0 | J105: 12 | N105: VACUNA ANTIRRABICA | Q105: 1144000
A106: 2 | B106: R33X | C106: Retencion de orina | F106: 8 | G106: 2.240896359 | H106: 4 | J106: 4 | N106: INFRAESTRUCTURA
A107: 3 | B107: A09X | C107: Diarrea y gastroenteritis de presunto origen infeccioso | F107: 8 | G107: 2.240896359 | H107: 6 | J107: 2 | N107: DOTACION EQUIPOS BIOMEDICOS
A108: 4 | B108: R51X | C108: Cefalea | F108: 7 | G108: 1.960784314 | H108: 2 | J108: 5 | N108: ESTAMPILLAS PROHOSPITALES | Q108: 269314000 | U108: 143283631
A109: 5 | B109: O620 | C109: Contracciones primarias inadecuadas | F109: 7 | G109: 1.960784314 | H109: 0 | J109: 7 | N109: EQUIPAMIENTO
A110: 6 | B110: R104 | C110: Otros dolores abdominales y los no especificados | F110: 6 | G110: 1.680672269 | H110: 4 | J110: 2 | N110: TELEMEDICINA | S110: 25854400
A111: 7 | B111: S521 | C111: Fractura de la epifisis superior del radio | F111: 6 | G111: 1.680672269 | H111: 2 | J111: 4 | N111: AMBULANCIA
A112: 8 | B112: N201 | C112: Calculo del ureter | F112: 5 | G112: 1.400560224 | H112: 2 | J112: 3 | N112: TOTALES | Q112: =SUM(Q97:R111) -> 1347302436 | S112: =SUM(S97:T111) -> 1040466346 | U112: =SUM(U97:V111) -> 1262064026
A113: 9 | B113: N390 | C113: Infeccion de vias urinarias, sitio no especificado | F113: 5 | G113: 1.400560224 | H113: 2 | J113: 3 | N113: PROYECTOS DE INVERSION (En Cantidad)
A114: 10 | B114: N200 | C114: Calculo del rinon | F114: 5 | G114: 1.400560224 | H114: 5 | J114: 0 | N114: PROGRAMA AEREO (No brigadas)
A115: 11 | C115: Otros Dx | F115: 288 | G115: 80.67226891 | H115: 139 | J115: 149 | N115: ASESORIA Y ASISTENCIA TECNICA | Q115: 17
A116: TOTALES | F116: 357 | G116: 100 | H116: 166 | J116: 191 | N116: CENTROS AMIGABLES JOVENES

Sheet ANZA
C4: ALCALDE | E4: ALEXANDRA SÁNCHEZ MARÍN
C5: DIRECTOR LOCAL DE SALUD | E5: DIONY JANNETH ZAPATA VELASQUEZ
C7: CERTIFICACION | E7: RANKING | F7: CATEGORIA MUNICIPAL
C8: SI | E8: 3 | F8: 6
C9: TOTAL CORREGIMIENTOS | E9: 1 | F9: TOTAL VEREDAS | I9: 17
A10: CARACTERISTICAS DEMOGRAFICAS | N10: VIGILANCIA DE LA SALUD PUBLICA - AÑO 2017 ***
A11: POBLACION 2018
A12: TOTAL | B12: HOMBRES | C12: MUJERES | D12: CABECERA | E12: RESTO | N12: MORTALIDAD CANCER CUELLO UTERINO | S12: MORTALIDAD MATERNA
A13: 7601 | B13: 4039 | C13: 3562 | D13: 1282 | E13: 6319 | N13: # Casos | O13: Tasa x cienmil Mujeres | S13: # Casos | T13: Tasa x cienmil Nacidos vivos
A14: POR GRUPOS DE EDAD | N14: 0 | O14: 0 | S14: 0 | T14: 0
A15: 0 - 4 AÑOS | B15: 5 - 9 AÑOS | C15: 10 - 14 AÑOS | D15: 15 - 19 AÑOS | E15: 20 - 59 AÑOS | F15: > 60 AÑOS
A16: 773 | B16: 739 | C16: 689 | D16: 695 | E16: 3831 | F16: 874 | N16: MORTALIDAD INFANTIL | S16: MORTALIDAD PERINATAL
N17: # Casos | O17: Tasa x cienmil Nacidos vivos | S17: # Casos | T17: Tasa x cienmil Nacidos vivos
A18: DESPLAZADOS 2015 (a marzo) | D18: INDIGENAS FEB 2014 | G18: ROM | I18: AFRO | N18: 0 | O18: 0 | S18: 1 | T18: 10.63829787
A19: TOTAL | B19: HOMBRES | C19: MUJERES | D19: TOTAL | E19: HOMBRES | F19: MUJERES
A20: 2024 | B20: 991.76 | C20: 1032.24 | D20: 0 | E20: 0 | F20: 0 | N20: MORTALIDAD VIH SIDA | S20: MORTALIDAD TUBERCULOSIS
N21: # Casos | O21: Tasa x cienmil Habitantes | S21: # Casos | T21: Tasa x cienmil Habitantes
A22: POBLACION TOTAL | B22: Afiliados al regimen Subsidiado * | D22: % De Aseguramiento al Regimen Subsidiado * | F22: Afiliados al Regimen Contributivo * | H22: % De Aseguramiento al RS, RC, RE * | N22: 0 | O22: 0 | S22: 0 | T22: 0
N24: MORTALIDAD INFARTO AL MIOCARDIO | S24: MORTALIDAD < 5 AÑOS
A25: 7601 | B25: 5468 | D25: 71.93790291 | F25: 1213 | H25: 89.36981976 | N25: # Casos | O25: Tasa x cienmil Habitantes | S25: # Casos | T25: Tasa x cienmil Niños
H26: * Corte a Agosto 2018 | N26: 3 | O26: 39.52048478 | S26: 0 | T26: 0
A31: PRESTACION DE SERVICIOS DE SALUD **
A32: EMPRESAS SOCIALES DEL ESTADO
A33: INSTITUCION PRESTADORA DE SERVICIOS DE SALUD | F33: DIRECTOR / GERENTE | N33: 10 PRIMERAS CAUSAS DE MORTALIDAD 2017***
A34: ESE HOSPITAL SAN FRANCISCO DE ASIS | F34: LUIS CARLOS VILLADA GOMEZ | N34: ORDEN | O34: CODIGO 105 CIE-10 | P34: CAUSA | T34: TOTAL GENERAL | U34: HOMBRES | V34: MUJERES | W34: SIN DATO
N36: 1 | O36: 060 | P36: ENFERMEDADES CRONICAS DE LAS VIAS RESPIRATORIAS INFERIORES | T36: 5 | U36: 4 | V36: 1 | W36: 0
N37: 2 | O37: 051 | P37: ENFERMEDADES ISQUEMICAS DEL CORAZON | T37: 5 | U37: 2 | V37: 3 | W37: 0
N38: 3 | O38: 101 | P38: AGRESIONES (HOMICIDIOS) Y SECUELAS | T38: 4 | U38: 4 | V38: 0 | W38: 0
A39: PRESTADORES DE SERVICIOS DE SALUD | N39: 4 | O39: 037 | P39: TUMORES: IN SITU, BENIGNOS Y DE COMPORTAMIENTO INCIERTO O DESCONOCIDO Y LOS NO ESPECIFICADOS | T39: 3 | U39: 2 | V39: 1 | W39: 0
A40: TOTALES | B40: IPS | C40: PROFESIONALES INDEPENDIENTES | E40: TRANSPORTE ESPECIAL | G40: OBJETO SOCIAL DIFERENTE | N40: 5 | O40: 089 | P40: SIGNOS, SINTOMAS Y AFECCIONES MAL DEFINIDAS | T40: 3 | U40: 1 | V40: 2 | W40: 0
N41: 6 | O41: 090 | P41: ACCIDENTES DE TRANSPORTE DE MOTOR Y SECUELAS | T41: 3 | U41: 3 | V41: 0 | W41: 0
B42: 1 | C42: 1 | E42: 0 | G42: 0 | N42: 7 | O42: 075 | P42: TODAS LAS DEMAS ENFERMEDADES DEL SISTEMA URINARIIO | T42: 1 | U42: 0 | V42: 1 | W42: 0
A43: IPS PUBLICAS | B43: IPS PRIVADAS | C43: SERVICIOS PRESTADOS X PROFESION | N43: 8 | O43: 061 | P43: ENFERMEDADES DEL PULMON DEBIDAS A AGENTES EXTERNOS | T43: 1 | U43: 0 | V43: 1 | W43: 0
C44: Odontólogos | D44: Médicos | E44: Otros | F44: Total | N44: 9 | O44: 035 | P44: LEUCEMIA | T44: 1 | U44: 0 | V44: 1 | W44: 0
N45: 10 | O45: 031 | P45: TUMOR MALIGNOS DEL ENCEFALO, DEL OJO Y DE OTRAS PARTES DEL SISTEMA NERVIOSO CENTRAL | T45: 1 | U45: 0 | V45: 1 | W45: 0
A46: 1 | B46: 0 | C46: 0 | D46: 0 | E46: 0 | F46: =C46+D46+E46 -> 0
A48: CAPACIDAD INSTALADA | N48: PORCENTAJE DE EMBARAZOS POR GRUPO EDAD RESIDENCIA HABITUAL DE LA MADRE 2017*** | S48: TASAS DE FECUNDIDAD ESPECIFICA POR MIL MUJERES 2017***
A49: CAMAS
A50: Adultos | B50: Cuidado Agudo Mental | C50: Cuidado Intensivo Adulto | D50: Cuidado Intensivo Neonatal | E50: Cuidado Intensivo Pediátrico | F50: Cuidado Intermedio Adulto | G50: Cuidado Intermedio Mental | I50: Cuidado Intermedio Neonatal
N51: 10 a 14 AÑOS | P51: 15 a 19 AÑOS | S51: 10 a 14 AÑOS | U51: 15 a 19 AÑOS
N52: No | O52: % | P52: No | Q52: % | S52: No | T52: TASA | U52: No | V52: TASA
A53: 2 | B53: 0 | C53: 0 | D53: 0 | E53: 0 | F53: 0 | G53: 0 | I53: 0 | N53: 4 | O53: 4.210526316 | P53: 24 | Q53: 25.26315789 | S53: 4 | T53: 12.5 | U53: 24 | V53: 74.76635514
A54: CAMAS
A55: Cuidado Intermedio Pediátrico | B55: Farmaco- de-pendencia | C55: Obste-tricia | D55: Pediátricas | E55: Quemados Adultos | F55: Quemados Pediátrico | G55: Salud Mental Psiquiatría | I55: TOTAL CAMAS | N55: *** FUENTE: DANE. Información Preliminar
A58: 0 | B58: 0 | C58: 1 | D58: 1 | E58: 0 | F58: 0 | G58: 0 | I58: =A53+B53+C53+D53+E53+F53+G53+I53+A58+B58+C58+D58+E58+F58+G58 -> 4
A60: SALAS | E60: TOTAL SALAS | N60: INMUNIZACIONES PAI 2017
A61: PARTO | C61: QUIROFANO | N61: POLIOMIELITIS (V.O.P)
A62: 1 | C62: 0 | E62: =A62+C62 -> 1 | N62: Vacunados (Edades) | S62: Refuerzos | T62: Dosis Aplicadas
N63: <1 | O63: 1 | P63: 2 | Q63: 3 | R63: 4 | S63: Otros
A64: TOTAL DE SERVICIOS PRESTADOS SEGÚN LA COMPLEJIDAD | N64: 113 | O64: 0 | P64: 0 | Q64: 0 | R64: 0 | S64: 209 | T64: 516
A65: BAJA | C65: MEDIA | E65: ALTA
A66: 28 | C66: 0 | E66: 0 | N66: DIFTERIA, TOSFERINA Y TÉTANO (D.P.T)
N67: Vacunados (Edades) | S67: Refuerzos | T67: Dosis
A68: TOTAL DE AMBULANCIAS HABILITADAS SEGÚN TIPO Y MODALIDAD | N68: <1 | O68: 1 | P68: 2 | Q68: 3 | R68: 4 | S68: Otros | T68: Aplicadas
A69: TIPO | C69: MODALIDAD | F69: TOTAL GENERAL | G69: **Fuente: REPS - Minsalud /IPS se incluyen todas las sedes habilitadas /febrero y abril 2018, | N69: 113 | O69: 0 | P69: 0 | Q69: 0 | R69: 0 | S69: 209 | T69: 516
A70: BASICA | B70: MEDICADA | C70: AEREA | D70: TERRESTRE | E70: FLUVIAL Y MARIT
A71: 1 | B71: 0 | C71: 0 | D71: 1 | E71: 0 | F71: =SUM(C71:E71) -> 1 | N71: TUBERCULOSIS (B.C.G)
A72: 10 PRIMERAS CAUSAS DE HOSPITALIZACION 2016 | N72: Vacunados (Edades) | S72: Otros | T72: Dosis Aplicadas
A73: ORDEN | B73: CODIGO CIE-10 | C73: CAUSA | F73: TOTAL GENERAL | G73: % | H73: HOMBRES | J73: MUJERES | N73: RN | O73: <1 | P73: 2 | Q73: 3 | R73: 4
N74: 15 | O74: 0 | S74: 0 | T74: 15
A75: 1 | B75: O800 | C75: Parto unico espontaneo, presentacion cefalica de vertice | F75: 21 | G75: 6.64556962 | H75: 0 | J75: 21
A76: 2 | B76: N390 | C76: Infeccion de vias urinarias, sitio no especificado | F76: 18 | G76: 5.696202532 | H76: 7 | J76: 11 | N76: TRIPLE VIRAL - S. R. P.
A77: 3 | B77: C07X | C77: Tumor maligno de la glandula parotida | F77: 12 | G77: 3.797468354 | H77: 12 | J77: 0 | N77: Vacunados (Edades) | S77: Refuerzos | T77: Dosis Aplicadas
A78: 4 | B78: S822 | C78: Fractura de la diafisis de la tibia | F78: 9 | G78: 2.848101266 | H78: 6 | J78: 3 | N78: 1 | O78: 2 | P78: 3 | Q78: 4 | R78: Ref. | S78: Otros
A79: 5 | B79: L031 | C79: Celulitis de otras partes de los miembros | F79: 8 | G79: 2.53164557 | H79: 5 | J79: 3 | N79: 98 | O79: 0 | P79: 0 | Q79: 0 | R79: 111 | S79: 10 | T79: 219
A80: 6 | B80: T600 | C80: Efecto toxico de insecticidas organofosforados y carbamatos | F80: 6 | G80: 1.898734177 | H80: 6 | J80: 0
A81: 7 | B81: O200 | C81: Amenaza de aborto | F81: 6 | G81: 1.898734177 | H81: 0 | J81: 6 | N81: AGUA POTABLE 2016
A82: 8 | B82: S670 | C82: Traumatismo por aplastamiento del pulgar y otro(s) dedo(s) | F82: 5 | G82: 1.582278481 | H82: 5 | J82: 0 | P82: NUMEROS ACUEDUCTOS | R82: COBERTURA ACUEDUCTOS CON AGUA POTABLE (%) | T82: COBERTURAS VIVIENDAS CON AGUA POTABLE (%)
A83: 9 | B83: A09X | C83: Diarrea y gastroenteritis de presunto origen infeccioso | F83: 5 | G83: 1.582278481 | H83: 3 | J83: 2
A84: 10 | B84: S681 | C84: Amputacion traumatica de otro dedo unico (completa) (parcial) | F84: 5 | G84: 1.582278481 | H84: 4 | J84: 1
A85: 11 | C85: Otros Dx | F85: 221 | G85: 69.93670886 | H85: 107 | J85: 109 | N85: Urbano | P85: 1 | R85: 100 | T85: 100
A86: TOTALES | F86: 316 | G86: 100 | H86: 155 | J86: 161 | N86: Rural | P86: 19 | R86: 0 | T86: 0
A87: 10 PRIMERAS CAUSAS DE CONSULTA 2016 | N87: Total Municipal | P87: 20 | R87: 5 | T87: 17.38
A88: ORDEN | B88: CODIGO CIE-10 | C88: CAUSA | F88: TOTAL GENERAL | G88: % | H88: HOMBRES | J88: MUJERES | N88: CERTIFACION EN AGUA POTABLE | O88: INDICE RIESGO CALIDAD DEL AGUA POTABLE - IRCA- (a) | P88: INDICE RIESGO DE ABASTECIMIENTO MUNICIPAL - IRABA- (b) | R88: BUENAS PRACTICAS SANTIARIAS © | T88: CERTIFICAION SANITARIA MUNICIPAL EN AGUA POTABLE ©
A90: 1 | B90: I10X | C90: Hipertension esencial (primaria) | F90: 1514 | G90: 11.71282686 | H90: 490 | J90: 1024
A91: 2 | B91: N390 | C91: Infeccion de vias urinarias, sitio no especificado | F91: 273 | G91: 2.112022281 | H91: 72 | J91: 201
A92: 3 | B92: M545 | C92: Lumbago no especificado | F92: 206 | G92: 1.593687142 | H92: 58 | J92: 148 | N92: Urbano | O92: 0 | P92: 33.3 | R92: 8 | T92: 9.06
A93: 4 | B93: B349 | C93: Infeccion viral, no especificada | F93: 146 | G93: 1.129506421 | H93: 58 | J93: 88 | N93: Rural | O93: 74 | P93: 65.4 | R93: 88.2 | T93: 76.54
A94: 5 | B94: N760 | C94: Vaginitis aguda | F94: 131 | G94: 1.013461241 | H94: 0 | J94: 131 | N94: Total | O94: 52.7 | P94: 44.3 | R94: 65.1 | T94: 54.74
A95: 6 | B95: M255 | C95: Dolor en articulacion | F95: 125 | G95: 0.9670431688 | H95: 39 | J95: 86 | N95: PROYECTOS DE INVERSION (En pesos)
A96: 7 | B96: J00X | C96: Rinofaringitis aguda [resfriado comun] | F96: 91 | G96: 0.7040074269 | H96: 43 | J96: 48 | Q96: 2012 | S96: 2013 | U96: 2014
A97: 8 | B97: G409 | C97: Epilepsia, tipo no especificado | F97: 91 | G97: 0.7040074269 | H97: 77 | J97: 14 | N97: ADULTO MAYOR | Q97: 60000000 | S97: 27279050 | U97: 30000000
A98: 9 | B98: A09X | C98: Diarrea y gastroenteritis de presunto origen infeccioso | F98: 87 | G98: 0.6730620455 | H98: 46 | J98: 41 | N98: DOTACION DISCAPACIDAD | U98: 2918752
A99: 10 | B99: S723 | C99: Fractura de la diafisis del femur | F99: 76 | G99: 0.5879622466 | H99: 7 | J99: 69 | N99: APS - SALUD CONTIGO | S99: 50486000 | U99: 15000500
A100: 11 | C100: Otros Dx | F100: 10186 | G100: 78.80241374 | H100: 3865 | J100: 6321 | N100: COFINANCIACION REG. SUBSIDIADO | Q100: 0 | S100: 0
A101: TOTALES | F101: 12926 | G101: 100 | H101: 4755 | J101: 8171 | N101: SSR | Q101: 910643
A102: 10 PRIMERAS CAUSAS DE URGENCIAS 2016 | N102: PAI | Q102: 2336854
A103: ORDEN | B103: CODIGO CIE-10 | C103: CAUSA | F103: TOTAL GENERAL | G103: % | H103: HOMBRES | J103: MUJERES | N103: VECTORES | Q103: 386400
N104: ESTERILIZACION MASCOTAS | Q104: 0
A105: 1 | B105: N23X | C105: Colico renal, no especificado | F105: 23 | G105: 2.896725441 | H105: 22 | J105: 1 | N105: VACUNA ANTIRRABICA | Q105: 1680000
A106: 2 | B106: R103 | C106: Dolor localizado en otras partes inferiores del abdomen | F106: 21 | G106: 2.644836272 | H106: 8 | J106: 13 | N106: INFRAESTRUCTURA
A107: 3 | B107: B269 | C107: Parotiditis, sin complicaciones | F107: 19 | G107: 2.392947103 | H107: 11 | J107: 8 | N107: DOTACION EQUIPOS BIOMEDICOS
A108: 4 | B108: B349 | C108: Infeccion viral, no especificada | F108: 19 | G108: 2.392947103 | H108: 5 | J108: 14 | N108: ESTAMPILLAS PROHOSPITALES | U108: 10224283
A109: 5 | B109: R101 | C109: Dolor abdominal localizado en parte superior | F109: 18 | G109: 2.267002519 | H109: 5 | J109: 13 | N109: EQUIPAMIENTO
A110: 6 | B110: R104 | C110: Otros dolores abdominales y los no especificados | F110: 15 | G110: 1.889168766 | H110: 7 | J110: 8 | N110: TELEMEDICINA
A111: 7 | B111: N390 | C111: Infeccion de vias urinarias, sitio no especificado | F111: 14 | G111: 1.763224181 | H111: 7 | J111: 7 | N111: AMBULANCIA | U111: 74000000
A112: 8 | B112: A09X | C112: Diarrea y gastroenteritis de presunto origen infeccioso | F112: 13 | G112: 1.637279597 | H112: 5 | J112: 8 | N112: TOTALES | Q112: =SUM(Q97:R111) -> 65313897 | S112: =SUM(S97:T111) -> 77765050 | U112: =SUM(U97:V111) -> 132143535
A113: 9 | B113: R51X | C113: Cefalea | F113: 13 | G113: 1.637279597 | H113: 4 | J113: 9 | N113: PROYECTOS DE INVERSION (En Cantidad)
A114: 10 | B114: R074 | C114: Dolor en el pecho, no especificado | F114: 12 | G114: 1.511335013 | H114: 4 | J114: 8 | N114: PROGRAMA AEREO (No brigadas)
A115: 11 | C115: Otros Dx | F115: 627 | G115: 78.96725441 | H115: 318 | J115: 309 | N115: ASESORIA Y ASISTENCIA TECNICA | Q115: 14
A116: TOTALES | F116: 794 | G116: 100 | H116: 396 | J116: 398 | N116: CENTROS AMIGABLES JOVENES

Sheet APARTADO
C4: ALCALDE | E4: ELIÉCER ARTEAGA VARGAS
C5: DIRECTOR LOCAL DE SALUD | E5: YANELLY ZULUAGA ROJAS
C7: CERTIFICACION | E7: RANKING | F7: CATEGORIA MUNICIPAL
C8: SI | E8: 80 | F8: 3
C9: TOTAL CORREGIMIENTOS | E9: 4 | F9: TOTAL VEREDAS | I9: 49
A10: CARACTERISTICAS DEMOGRAFICAS | N10: VIGILANCIA DE LA SALUD PUBLICA - AÑO 2017 ***
A11: POBLACION 2018
A12: TOTAL | B12: HOMBRES | C12: MUJERES | D12: CABECERA | E12: RESTO | N12: MORTALIDAD CANCER CUELLO UTERINO | S12: MORTALIDAD MATERNA
A13: 195068 | B13: 98521 | C13: 96547 | D13: 169319 | E13: 25749 | N13: # Casos | O13: Tasa x cienmil Mujeres | S13: # Casos | T13: Tasa x cienmil Nacidos vivos
A14: POR GRUPOS DE EDAD | N14: 7 | O14: 7.472006661 | S14: 0 | T14: 0
A15: 0 - 4 AÑOS | B15: 5 - 9 AÑOS | C15: 10 - 14 AÑOS | D15: 15 - 19 AÑOS | E15: 20 - 59 AÑOS | F15: > 60 AÑOS
A16: 23899 | B16: 21921 | C16: 20316 | D16: 20568 | E16: 96127 | F16: 12237 | N16: MORTALIDAD INFANTIL | S16: MORTALIDAD PERINATAL
N17: # Casos | O17: Tasa x cienmil Nacidos vivos | S17: # Casos | T17: Tasa x cienmil Nacidos vivos
A18: DESPLAZADOS 2015 (a marzo) | D18: INDIGENAS FEB 2014 | G18: ROM | I18: AFRO | N18: 22 | O18: 10.74743527 | S18: 43 | T18: 21.00635076
A19: TOTAL | B19: HOMBRES | C19: MUJERES | D19: TOTAL | E19: HOMBRES | F19: MUJERES
A20: 57555 | B20: 28201.95 | C20: 29353.05 | D20: 874 | E20: 461 | F20: 413 | N20: MORTALIDAD VIH SIDA | S20: MORTALIDAD TUBERCULOSIS
N21: # Casos | O21: Tasa x cienmil Habitantes | S21: # Casos | T21: Tasa x cienmil Habitantes
A22: POBLACION TOTAL | B22: Afiliados al regimen Subsidiado * | D22: % De Aseguramiento al Regimen Subsidiado * | F22: Afiliados al Regimen Contributivo * | H22: % De Aseguramiento al RS, RC, RE * | N22: 6 | O22: 3.169153572 | S22: 1 | T22: 0.528192262
N24: MORTALIDAD INFARTO AL MIOCARDIO | S24: MORTALIDAD < 5 AÑOS
A25: 195068 | B25: 49296 | D25: 25.27118748 | F25: 86324 | H25: 71.84571534 | N25: # Casos | O25: Tasa x cienmil Habitantes | S25: # Casos | T25: Tasa x cienmil Niños
H26: * Corte a Agosto 2018 | N26: 79 | O26: 41.7271887 | S26: 27 | T26: 115.9395397
A31: PRESTACION DE SERVICIOS DE SALUD **
A32: EMPRESAS SOCIALES DEL ESTADO
A33: INSTITUCION PRESTADORA DE SERVICIOS DE SALUD | F33: DIRECTOR / GERENTE | N33: 10 PRIMERAS CAUSAS DE MORTALIDAD 2017***
N34: ORDEN | O34: CODIGO 105 CIE-10 | P34: CAUSA | T34: TOTAL GENERAL | U34: HOMBRES | V34: MUJERES | W34: SIN DATO
N36: 1 | O36: 051 | P36: ENFERMEDADES ISQUEMICAS DEL CORAZON | T36: 86 | U36: 42 | V36: 44 | W36: 0
N37: 2 | O37: 101 | P37: AGRESIONES (HOMICIDIOS) Y SECUELAS | T37: 55 | U37: 53 | V37: 2 | W37: 0
N38: 3 | O38: 055 | P38: ENFERMEDADES CEREBROVASCULARES | T38: 33 | U38: 12 | V38: 21 | W38: 0
A39: PRESTADORES DE SERVICIOS DE SALUD | N39: 4 | O39: 090 | P39: ACCIDENTES DE TRANSPORTE DE MOTOR Y SECUELAS | T39: 22 | U39: 17 | V39: 5 | W39: 0
A40: TOTALES | B40: IPS | C40: PROFESIONALES INDEPENDIENTES | E40: TRANSPORTE ESPECIAL | G40: OBJETO SOCIAL DIFERENTE | N40: 5 | O40: 050 | P40: ENFERMEDADES HIPERTENSIVAS | T40: 21 | U40: 13 | V40: 8 | W40: 0
N41: 6 | O41: 013 | P41: TUMOR MALIGNO DEL ESTOMAGO | T41: 15 | U41: 7 | V41: 8 | W41: 0
B42: 39 | C42: 65 | E42: 1 | G42: 7 | N42: 7 | O42: 059 | P42: NEUMONIA | T42: 14 | U42: 5 | V42: 9 | W42: 0
A43: IPS PUBLICAS | B43: IPS PRIVADAS | C43: SERVICIOS PRESTADOS X PROFESION | N43: 8 | O43: 074 | P43: INSUFICIENCIA RENAL | T43: 13 | U43: 7 | V43: 6 | W43: 0
C44: Odontólogos | D44: Médicos | E44: Otros | F44: Total | N44: 9 | O44: 060 | P44: ENFERMEDADES CRONICAS DE LAS VIAS RESPIRATORIAS INFERIORES | T44: 12 | U44: 6 | V44: 6 | W44: 0
N45: 10 | O45: 041 | P45: DIABETES MELLITUS | T45: 12 | U45: 5 | V45: 7 | W45: 0
A46: 0 | B46: 73 | C46: 28 | D46: 36 | E46: 15 | F46: =C46+D46+E46 -> 79
A48: CAPACIDAD INSTALADA | N48: PORCENTAJE DE EMBARAZOS POR GRUPO EDAD RESIDENCIA HABITUAL DE LA MADRE 2017*** | S48: TASAS DE FECUNDIDAD ESPECIFICA POR MIL MUJERES 2017***
A49: CAMAS
A50: Adultos | B50: Cuidado Agudo Mental | C50: Cuidado Intensivo Adulto | D50: Cuidado Intensivo Neonatal | E50: Cuidado Intensivo Pediátrico | F50: Cuidado Intermedio Adulto | G50: Cuidado Intermedio Mental | I50: Cuidado Intermedio Neonatal
N51: 10 a 14 AÑOS | P51: 15 a 19 AÑOS | S51: 10 a 14 AÑOS | U51: 15 a 19 AÑOS
N52: No | O52: % | P52: No | Q52: % | S52: No | T52: TASA | U52: No | V52: TASA
A53: 150 | B53: 0 | C53: 21 | D53: 5 | E53: 0 | F53: 8 | G53: 0 | I53: 2 | N53: 26 | O53: 1.074824308 | P53: 584 | Q53: 24.14220752 | S53: 26 | T53: 2.657399836 | U53: 584 | V53: 58.38248525
A54: CAMAS
A55: Cuidado Intermedio Pediátrico | B55: Farmaco- de-pendencia | C55: Obste-tricia | D55: Pediátricas | E55: Quemados Adultos | F55: Quemados Pediátrico | G55: Salud Mental Psiquiatría | I55: TOTAL CAMAS | N55: *** FUENTE: DANE. Información Preliminar
A58: 0 | B58: 20 | C58: 46 | D58: 52 | E58: 0 | F58: 0 | G58: 0 | I58: =A53+B53+C53+D53+E53+F53+G53+I53+A58+B58+C58+D58+E58+F58+G58 -> 304
A60: SALAS | E60: TOTAL SALAS | N60: INMUNIZACIONES PAI 2017
A61: PARTO | C61: QUIROFANO | N61: POLIOMIELITIS (V.O.P)
A62: 2 | C62: 11 | E62: =A62+C62 -> 13 | N62: Vacunados (Edades) | S62: Refuerzos | T62: Dosis Aplicadas
N63: <1 | O63: 1 | P63: 2 | Q63: 3 | R63: 4 | S63: Otros
A64: TOTAL DE SERVICIOS PRESTADOS SEGÚN LA COMPLEJIDAD | N64: 1987 | O64: 46 | P64: 7 | Q64: 6 | R64: 3 | S64: 3939 | T64: 10156
A65: BAJA | C65: MEDIA | E65: ALTA
A66: 458 | C66: 288 | E66: 13 | N66: DIFTERIA, TOSFERINA Y TÉTANO (D.P.T)
N67: Vacunados (Edades) | S67: Refuerzos | T67: Dosis
A68: TOTAL DE AMBULANCIAS HABILITADAS SEGÚN TIPO Y MODALIDAD | N68: <1 | O68: 1 | P68: 2 | Q68: 3 | R68: 4 | S68: Otros | T68: Aplicadas
A69: TIPO | C69: MODALIDAD | F69: TOTAL GENERAL | G69: **Fuente: REPS - Minsalud /IPS se incluyen todas las sedes habilitadas /febrero y abril 2018, | N69: 1968 | O69: 45 | P69: 7 | Q69: 6 | R69: 3 | S69: 3925 | T69: 10080
A70: BASICA | B70: MEDICADA | C70: AEREA | D70: TERRESTRE | E70: FLUVIAL Y MARIT
A71: 13 | B71: 9 | C71: 0 | D71: 22 | E71: 0 | F71: =SUM(C71:E71) -> 22 | N71: TUBERCULOSIS (B.C.G)
A72: 10 PRIMERAS CAUSAS DE HOSPITALIZACION 2016 | N72: Vacunados (Edades) | S72: Otros | T72: Dosis Aplicadas
A73: ORDEN | B73: CODIGO CIE-10 | C73: CAUSA | F73: TOTAL GENERAL | G73: % | H73: HOMBRES | J73: MUJERES | N73: RN | O73: <1 | P73: 2 | Q73: 3 | R73: 4
N74: 3567 | O74: 39 | S74: 4 | T74: 3610
A75: 1 | B75: O800 | C75: Parto unico espontaneo, presentacion cefalica de vertice | F75: 355 | G75: 7.365145228 | H75: 0 | J75: 355
A76: 2 | B76: N390 | C76: Infeccion de vias urinarias, sitio no especificado | F76: 139 | G76: 2.883817427 | H76: 33 | J76: 106 | N76: TRIPLE VIRAL - S. R. P.
A77: 3 | B77: O821 | C77: Parto por cesarea de emergencia | F77: 104 | G77: 2.157676349 | H77: 0 | J77: 104 | N77: Vacunados (Edades) | S77: Refuerzos | T77: Dosis Aplicadas
A78: 4 | B78: J180 | C78: Bronconeumonia, no especificada | F78: 67 | G78: 1.390041494 | H78: 32 | J78: 35 | N78: 1 | O78: 2 | P78: 3 | Q78: 4 | R78: Ref. | S78: Otros
A79: 5 | B79: K359 | C79: Apendicitis aguda, no especificada | F79: 65 | G79: 1.348547718 | H79: 33 | J79: 32 | N79: 1954 | O79: 15 | P79: 5 | Q79: 3 | R79: 1977 | S79: 166 | T79: 4120
A80: 6 | B80: D66X | C80: Deficiencia hereditaria del factor VIII | F80: 54 | G80: 1.12033195 | H80: 54 | J80: 0
A81: 7 | B81: J459 | C81: Asma, no especificado | F81: 52 | G81: 1.078838174 | H81: 34 | J81: 18 | N81: AGUA POTABLE 2016
A82: 8 | B82: A09X | C82: Diarrea y gastroenteritis de presunto origen infeccioso | F82: 50 | G82: 1.037344398 | H82: 21 | J82: 29 | P82: NUMEROS ACUEDUCTOS | R82: COBERTURA ACUEDUCTOS CON AGUA POTABLE (%) | T82: COBERTURAS VIVIENDAS CON AGUA POTABLE (%)
A83: 9 | B83: L031 | C83: Celulitis de otras partes de los miembros | F83: 49 | G83: 1.01659751 | H83: 27 | J83: 22
A84: 10 | B84: J219 | C84: Bronquiolitis aguda, no especificada | F84: 49 | G84: 1.01659751 | H84: 31 | J84: 18
A85: 11 | C85: Otros Dx | F85: 3836 | G85: 79.58506224 | H85: 1459 | J85: 2377 | N85: Urbano | P85: 1 | R85: 100 | T85: 96.31
A86: TOTALES | F86: 4820 | G86: 100 | H86: 1724 | J86: 3096 | N86: Rural | P86: 13 | R86: 0 | T86: 22.36
A87: 10 PRIMERAS CAUSAS DE CONSULTA 2016 | N87: Total Municipal | P87: 14 | R87: 7.142857143 | T87: 82.31
A88: ORDEN | B88: CODIGO CIE-10 | C88: CAUSA | F88: TOTAL GENERAL | G88: % | H88: HOMBRES | J88: MUJERES | N88: CERTIFACION EN AGUA POTABLE | O88: INDICE RIESGO CALIDAD DEL AGUA POTABLE - IRCA- (a) | P88: INDICE RIESGO DE ABASTECIMIENTO MUNICIPAL - IRABA- (b) | R88: BUENAS PRACTICAS SANTIARIAS © | T88: CERTIFICAION SANITARIA MUNICIPAL EN AGUA POTABLE ©
A90: 1 | B90: M545 | C90: Lumbago no especificado | F90: 4971 | G90: 2.605332257 | H90: 2548 | J90: 2423
A91: 2 | B91: I10X | C91: Hipertension esencial (primaria) | F91: 4761 | G91: 2.495269941 | H91: 1661 | J91: 3100
A92: 3 | B92: J00X | C92: Rinofaringitis aguda [resfriado comun] | F92: 4553 | G92: 2.386255837 | H92: 2161 | J92: 2392 | N92: Urbano | O92: 0 | P92: 5.5 | R92: 5 | T92: 2.6
A93: 4 | B93: N390 | C93: Infeccion de vias urinarias, sitio no especificado | F93: 3784 | G93: 1.983218117 | H93: 867 | J93: 2917 | N93: Rural | O93: 34.3 | P93: 59.8 | R93: 35.9 | T93: 39.88
A94: 5 | B94: M255 | C94: Dolor en articulacion | F94: 2518 | G94: 1.319699582 | H94: 1042 | J94: 1476 | N94: Total | O94: 2.8 | P94: 4.6 | R94: 7.5 | T94: 4.57
A95: 6 | B95: B349 | C95: Infeccion viral, no especificada | F95: 2225 | G95: 1.166136446 | H95: 1199 | J95: 1026 | N95: PROYECTOS DE INVERSION (En pesos)
A96: 7 | B96: A09X | C96: Diarrea y gastroenteritis de presunto origen infeccioso | F96: 2066 | G96: 1.082803549 | H96: 1098 | J96: 968 | Q96: 2012 | S96: 2013 | U96: 2014
A97: 8 | B97: E660 | C97: Obesidad debida a exceso de calorias | F97: 1898 | G97: 0.9947536963 | H97: 331 | J97: 1567 | N97: ADULTO MAYOR | Q97: 100000000 | S97: 44999705 | U97: 45000000
A98: 9 | B98: N760 | C98: Vaginitis aguda | F98: 1521 | G98: 0.7971656333 | H98: 0 | J98: 1521 | N98: DOTACION DISCAPACIDAD | Q98: 20566854 | S98: 14959600 | U98: 2747752
A99: 10 | B99: B829 | C99: Parasitosis intestinal, sin otra especificacion | F99: 1491 | G99: 0.7814424453 | H99: 675 | J99: 816 | N99: APS - SALUD CONTIGO | Q99: 104090000 | S99: 111251008
A100: 11 | C100: Otros Dx | F100: 161013 | G100: 84.3879225 | H100: 58461 | J100: 102552 | N100: COFINANCIACION REG. SUBSIDIADO | Q100: 4193427920 | S100: 3601555899 | U100: 4754418420
A101: TOTALES | F101: 190801 | G101: 100 | H101: 70043 | J101: 120758 | N101: SSR | Q101: 19704668
A102: 10 PRIMERAS CAUSAS DE URGENCIAS 2016 | N102: PAI | Q102: 50565314
A103: ORDEN | B103: CODIGO CIE-10 | C103: CAUSA | F103: TOTAL GENERAL | G103: % | H103: HOMBRES | J103: MUJERES | N103: VECTORES | Q103: 25380673 | S103: 119034901
N104: ESTERILIZACION MASCOTAS | Q104: 0
A105: 1 | B105: B349 | C105: Infeccion viral, no especificada | F105: 732 | G105: 8.560402292 | H105: 380 | J105: 352 | N105: VACUNA ANTIRRABICA | Q105: 8922000
A106: 2 | B106: R51X | C106: Cefalea | F106: 323 | G106: 3.777335984 | H106: 98 | J106: 225 | N106: INFRAESTRUCTURA
A107: 3 | B107: R104 | C107: Otros dolores abdominales y los no especificados | F107: 301 | G107: 3.520056134 | H107: 120 | J107: 181 | N107: DOTACION EQUIPOS BIOMEDICOS
A108: 4 | B108: R509 | C108: Fiebre, no especificada | F108: 272 | G108: 3.180914513 | H108: 143 | J108: 129 | N108: ESTAMPILLAS PROHOSPITALES
A109: 5 | B109: N390 | C109: Infeccion de vias urinarias, sitio no especificado | F109: 232 | G109: 2.713132967 | H109: 46 | J109: 186 | N109: EQUIPAMIENTO
A110: 6 | B110: A09X | C110: Diarrea y gastroenteritis de presunto origen infeccioso | F110: 217 | G110: 2.537714887 | H110: 97 | J110: 120 | N110: TELEMEDICINA
A111: 7 | B111: J00X | C111: Rinofaringitis aguda [resfriado comun] | F111: 204 | G111: 2.385685885 | H111: 106 | J111: 98 | N111: AMBULANCIA
A112: 8 | B112: M545 | C112: Lumbago no especificado | F112: 190 | G112: 2.221962344 | H112: 97 | J112: 93 | N112: TOTALES | Q112: =SUM(Q97:R111) -> 4522657429 | S112: =SUM(S97:T111) -> 3891801113 | U112: =SUM(U97:V111) -> 4802166172
A113: 9 | B113: J459 | C113: Asma, no especificado | F113: 155 | G113: 1.812653491 | H113: 54 | J113: 101 | N113: PROYECTOS DE INVERSION (En Cantidad)
A114: 10 | B114: G439 | C114: Migrana, no especificada | F114: 145 | G114: 1.695708104 | H114: 26 | J114: 119 | N114: PROGRAMA AEREO (No brigadas) | S114: 3
A115: 11 | C115: Otros Dx | F115: 5780 | G115: 67.5944334 | H115: 2822 | J115: 2958 | N115: ASESORIA Y ASISTENCIA TECNICA | Q115: 38
A116: TOTALES | F116: 8551 | G116: 100 | H116: 3989 | J116: 4562 | N116: CENTROS AMIGABLES JOVENES | S116: SI

Sheet ARBOLETES
C4: ALCALDE | E4: LORENZO ACUÑA ROMERO
C5: DIRECTOR LOCAL DE SALUD | E5: LILIANA ROSA PALENCIA OSORIO
C7: CERTIFICACION | E7: RANKING | F7: CATEGORIA MUNICIPAL
C8: SI | E8: 107 | F8: 6
C9: TOTAL CORREGIMIENTOS | E9: 10 | F9: TOTAL VEREDAS | I9: 94
A10: CARACTERISTICAS DEMOGRAFICAS | N10: VIGILANCIA DE LA SALUD PUBLICA - AÑO 2017 ***
A11: POBLACION 2018
A12: TOTAL | B12: HOMBRES | C12: MUJERES | D12: CABECERA | E12: RESTO | N12: MORTALIDAD CANCER CUELLO UTERINO | S12: MORTALIDAD MATERNA
A13: 43416 | B13: 22179 | C13: 21237 | D13: 18411 | E13: 25005 | N13: # Casos | O13: Tasa x cienmil Mujeres | S13: # Casos | T13: Tasa x cienmil Nacidos vivos
A14: POR GRUPOS DE EDAD | N14: 0 | O14: 0 | S14: 1 | T14: 214.5922747
A15: 0 - 4 AÑOS | B15: 5 - 9 AÑOS | C15: 10 - 14 AÑOS | D15: 15 - 19 AÑOS | E15: 20 - 59 AÑOS | F15: > 60 AÑOS
A16: 5334 | B16: 5006 | C16: 4750 | D16: 4771 | E16: 20858 | F16: 2697 | N16: MORTALIDAD INFANTIL | S16: MORTALIDAD PERINATAL
N17: # Casos | O17: Tasa x cienmil Nacidos vivos | S17: # Casos | T17: Tasa x cienmil Nacidos vivos
A18: DESPLAZADOS 2015 (a marzo) | D18: INDIGENAS FEB 2014 | G18: ROM | I18: AFRO | N18: 7 | O18: 15.02145923 | S18: 12 | T18: 25.75107296
A19: TOTAL | B19: HOMBRES | C19: MUJERES | D19: TOTAL | E19: HOMBRES | F19: MUJERES
A20: 8848 | B20: 4335.52 | C20: 4512.48 | D20: 1424 | E20: 706 | F20: 718 | N20: MORTALIDAD VIH SIDA | S20: MORTALIDAD TUBERCULOSIS
N21: # Casos | O21: Tasa x cienmil Habitantes | S21: # Casos | T21: Tasa x cienmil Habitantes
A22: POBLACION TOTAL | B22: Afiliados al regimen Subsidiado * | D22: % De Aseguramiento al Regimen Subsidiado * | F22: Afiliados al Regimen Contributivo * | H22: % De Aseguramiento al RS, RC, RE * | N22: 1 | O22: 2.364010307 | S22: 0 | T22: 0
N24: MORTALIDAD INFARTO AL MIOCARDIO | S24: MORTALIDAD < 5 AÑOS
A25: 43416 | B25: 26534 | D25: 61.11571771 | F25: 3638 | H25: 71.20646766 | N25: # Casos | O25: Tasa x cienmil Habitantes | S25: # Casos | T25: Tasa x cienmil Niños
H26: * Corte a Agosto 2018 | N26: 6 | O26: 14.18406184 | S26: 7 | T26: 134.305449
A31: PRESTACION DE SERVICIOS DE SALUD **
A32: EMPRESAS SOCIALES DEL ESTADO
A33: INSTITUCION PRESTADORA DE SERVICIOS DE SALUD | F33: DIRECTOR / GERENTE | N33: 10 PRIMERAS CAUSAS DE MORTALIDAD 2017***
A34: ESE HOSPITAL PEDRO NEL CARDONA DE ARBOLETES | F34: DAVID LOPEZ PUCHE | N34: ORDEN | O34: CODIGO 105 CIE-10 | P34: CAUSA | T34: TOTAL GENERAL | U34: HOMBRES | V34: MUJERES | W34: SIN DATO
N36: 1 | O36: 101 | P36: AGRESIONES (HOMICIDIOS) Y SECUELAS | T36: 11 | U36: 9 | V36: 2 | W36: 0
N37: 2 | O37: 050 | P37: ENFERMEDADES HIPERTENSIVAS | T37: 8 | U37: 4 | V37: 4 | W37: 0
N38: 3 | O38: 060 | P38: ENFERMEDADES CRONICAS DE LAS VIAS RESPIRATORIAS INFERIORES | T38: 8 | U38: 6 | V38: 2 | W38: 0
A39: PRESTADORES DE SERVICIOS DE SALUD | N39: 4 | O39: 090 | P39: ACCIDENTES DE TRANSPORTE DE MOTOR Y SECUELAS | T39: 8 | U39: 6 | V39: 2 | W39: 0
A40: TOTALES | B40: IPS | C40: PROFESIONALES INDEPENDIENTES | E40: TRANSPORTE ESPECIAL | G40: OBJETO SOCIAL DIFERENTE | N40: 5 | O40: 051 | P40: ENFERMEDADES ISQUEMICAS DEL CORAZON | T40: 7 | U40: 4 | V40: 3 | W40: 0
N41: 6 | O41: 041 | P41: DIABETES MELLITUS | T41: 6 | U41: 3 | V41: 3 | W41: 0
B42: 1 | C42: 3 | E42: 0 | G42: 1 | N42: 7 | O42: 055 | P42: ENFERMEDADES CEREBROVASCULARES | T42: 4 | U42: 4 | V42: 0 | W42: 0
A43: IPS PUBLICAS | B43: IPS PRIVADAS | C43: SERVICIOS PRESTADOS X PROFESION | N43: 8 | O43: 074 | P43: INSUFICIENCIA RENAL | T43: 3 | U43: 2 | V43: 1 | W43: 0
C44: Odontólogos | D44: Médicos | E44: Otros | F44: Total | N44: 9 | O44: 082 | P44: TRASTORNOS RESPIRATORIOS ESPECIFICOS DEL PERIODO PERINATAL | T44: 3 | U44: 2 | V44: 1 | W44: 0
N45: 10 | O45: 020 | P45: TUMOR MALIGNO DE LA TRAQUEA, LOS BRONQUIOS Y EL PULMON | T45: 3 | U45: 2 | V45: 1 | W45: 0
A46: 1 | B46: 2 | C46: 2 | D46: 1 | E46: 0 | F46: =C46+D46+E46 -> 3
A48: CAPACIDAD INSTALADA | N48: PORCENTAJE DE EMBARAZOS POR GRUPO EDAD RESIDENCIA HABITUAL DE LA MADRE 2017*** | S48: TASAS DE FECUNDIDAD ESPECIFICA POR MIL MUJERES 2017***
A49: CAMAS
A50: Adultos | B50: Cuidado Agudo Mental | C50: Cuidado Intensivo Adulto | D50: Cuidado Intensivo Neonatal | E50: Cuidado Intensivo Pediátrico | F50: Cuidado Intermedio Adulto | G50: Cuidado Intermedio Mental | I50: Cuidado Intermedio Neonatal
N51: 10 a 14 AÑOS | P51: 15 a 19 AÑOS | S51: 10 a 14 AÑOS | U51: 15 a 19 AÑOS
N52: No | O52: % | P52: No | Q52: % | S52: No | T52: TASA | U52: No | V52: TASA
A53: 5 | B53: 0 | C53: 0 | D53: 0 | E53: 0 | F53: 0 | G53: 0 | I53: 0 | N53: 9 | O53: 1.778656126 | P53: 152 | Q53: 30.03952569 | S53: 9 | T53: 3.938730853 | U53: 152 | V53: 65.51724138
A54: CAMAS
A55: Cuidado Intermedio Pediátrico | B55: Farmaco- de-pendencia | C55: Obste-tricia | D55: Pediátricas | E55: Quemados Adultos | F55: Quemados Pediátrico | G55: Salud Mental Psiquiatría | I55: TOTAL CAMAS | N55: *** FUENTE: DANE. Información Preliminar
A58: 0 | B58: 0 | C58: 2 | D58: 2 | E58: 0 | F58: 0 | G58: 0 | I58: =A53+B53+C53+D53+E53+F53+G53+I53+A58+B58+C58+D58+E58+F58+G58 -> 9
A60: SALAS | E60: TOTAL SALAS | N60: INMUNIZACIONES PAI 2017
A61: PARTO | C61: QUIROFANO | N61: POLIOMIELITIS (V.O.P)
A62: 0 | C62: 0 | E62: =A62+C62 -> 0 | N62: Vacunados (Edades) | S62: Refuerzos | T62: Dosis Aplicadas
N63: <1 | O63: 1 | P63: 2 | Q63: 3 | R63: 4 | S63: Otros
A64: TOTAL DE SERVICIOS PRESTADOS SEGÚN LA COMPLEJIDAD | N64: 477 | O64: 12 | P64: 7 | Q64: 1 | R64: 0 | S64: 987 | T64: 2466
A65: BAJA | C65: MEDIA | E65: ALTA
A66: 64 | C66: 5 | E66: 0 | N66: DIFTERIA, TOSFERINA Y TÉTANO (D.P.T)
N67: Vacunados (Edades) | S67: Refuerzos | T67: Dosis
A68: TOTAL DE AMBULANCIAS HABILITADAS SEGÚN TIPO Y MODALIDAD | N68: <1 | O68: 1 | P68: 2 | Q68: 3 | R68: 4 | S68: Otros | T68: Aplicadas
A69: TIPO | C69: MODALIDAD | F69: TOTAL GENERAL | G69: **Fuente: REPS - Minsalud /IPS se incluyen todas las sedes habilitadas /febrero y abril 2018, | N69: 470 | O69: 12 | P69: 7 | Q69: 1 | R69: 0 | S69: 990 | T69: 2441
A70: BASICA | B70: MEDICADA | C70: AEREA | D70: TERRESTRE | E70: FLUVIAL Y MARIT
A71: 2 | B71: 0 | C71: 0 | D71: 2 | E71: 0 | F71: =SUM(C71:E71) -> 2 | N71: TUBERCULOSIS (B.C.G)
A72: 10 PRIMERAS CAUSAS DE HOSPITALIZACION 2016 | N72: Vacunados (Edades) | S72: Otros | T72: Dosis Aplicadas
A73: ORDEN | B73: CODIGO CIE-10 | C73: CAUSA | F73: TOTAL GENERAL | G73: % | H73: HOMBRES | J73: MUJERES | N73: RN | O73: <1 | P73: 2 | Q73: 3 | R73: 4
N74: 118 | O74: 32 | S74: 2 | T74: 152
A75: 1 | B75: C910 | C75: Leucemia linfoblastica aguda [LLA] | F75: 129 | G75: 17.64705882 | H75: 108 | J75: 21
A76: 2 | B76: O800 | C76: Parto unico espontaneo, presentacion cefalica de vertice | F76: 59 | G76: 8.071135431 | H76: 0 | J76: 59 | N76: TRIPLE VIRAL - S. R. P.
A77: 3 | B77: N390 | C77: Infeccion de vias urinarias, sitio no especificado | F77: 42 | G77: 5.745554036 | H77: 4 | J77: 38 | N77: Vacunados (Edades) | S77: Refuerzos | T77: Dosis Aplicadas
A78: 4 | B78: A499 | C78: Infeccion bacteriana, no especificada | F78: 36 | G78: 4.924760602 | H78: 36 | J78: 0 | N78: 1 | O78: 2 | P78: 3 | Q78: 4 | R78: Ref. | S78: Otros
A79: 5 | B79: O623 | C79: Trabajo de parto precipitado | F79: 23 | G79: 3.146374829 | H79: 0 | J79: 23 | N79: 454 | O79: 2 | P79: 3 | Q79: 1 | R79: 528 | S79: 12 | T79: 1000
A80: 6 | B80: J180 | C80: Bronconeumonia, no especificada | F80: 20 | G80: 2.735978112 | H80: 10 | J80: 10
A81: 7 | B81: R509 | C81: Fiebre, no especificada | F81: 20 | G81: 2.735978112 | H81: 9 | J81: 11 | N81: AGUA POTABLE 2016
A82: 8 | B82: L031 | C82: Celulitis de otras partes de los miembros | F82: 17 | G82: 2.325581395 | H82: 9 | J82: 8 | P82: NUMEROS ACUEDUCTOS | R82: COBERTURA ACUEDUCTOS CON AGUA POTABLE (%) | T82: COBERTURAS VIVIENDAS CON AGUA POTABLE (%)
A83: 9 | B83: J459 | C83: Asma, no especificado | F83: 10 | G83: 1.367989056 | H83: 6 | J83: 4
A84: 10 | B84: L029 | C84: Absceso cutaneo, furunculo y antrax de sitio no especificado | F84: 9 | G84: 1.23119015 | H84: 5 | J84: 4
A85: 11 | C85: Otros Dx | F85: 366 | G85: 50.06839945 | H85: 204 | J85: 162 | N85: Urbano | P85: 1 | R85: 100 | T85: 99
A86: TOTALES | F86: 731 | G86: 100 | H86: 391 | J86: 340 | N86: Rural | P86: 26 | R86: 0 | T86: 0
A87: 10 PRIMERAS CAUSAS DE CONSULTA 2016 | N87: Total Municipal | P87: 27 | R87: 3.703703704 | T87: 32.48
A88: ORDEN | B88: CODIGO CIE-10 | C88: CAUSA | F88: TOTAL GENERAL | G88: % | H88: HOMBRES | J88: MUJERES | N88: CERTIFACION EN AGUA POTABLE | O88: INDICE RIESGO CALIDAD DEL AGUA POTABLE - IRCA- (a) | P88: INDICE RIESGO DE ABASTECIMIENTO MUNICIPAL - IRABA- (b) | R88: BUENAS PRACTICAS SANTIARIAS © | T88: CERTIFICAION SANITARIA MUNICIPAL EN AGUA POTABLE ©
A90: 1 | B90: I10X | C90: Hipertension esencial (primaria) | F90: 4142 | G90: 5.927728086 | H90: 1129 | J90: 3013
A91: 2 | B91: J00X | C91: Rinofaringitis aguda [resfriado comun] | F91: 2904 | G91: 4.155992844 | H91: 1228 | J91: 1676
A92: 3 | B92: N390 | C92: Infeccion de vias urinarias, sitio no especificado | F92: 1611 | G92: 2.305545617 | H92: 355 | J92: 1256 | N92: Urbano | O92: 0.2 | P92: 29.9 | R92: 5 | T92: 7.58
A93: 4 | B93: B829 | C93: Parasitosis intestinal, sin otra especificacion | F93: 1435 | G93: 2.053667263 | H93: 558 | J93: 877 | N93: Rural | O93: 100 | P93: 87 | R93: 99.3 | T93: 97.19
A94: 5 | B94: M545 | C94: Lumbago no especificado | F94: 1180 | G94: 1.688729875 | H94: 476 | J94: 704 | N94: Total | O94: 39.3 | P94: 43.6 | R94: 42 | T94: 40.97
A95: 6 | B95: N771 | C95: Vaginitis, vulvitis y vulvovaginitis en enfermedades infecciosas y parasitarias clasificadas en otra parte | F95: 1135 | G95: 1.624329159 | H95: 0 | J95: 1135 | N95: PROYECTOS DE INVERSION (En pesos)
A96: 7 | B96: C910 | C96: Leucemia linfoblastica aguda [LLA] | F96: 1097 | G96: 1.569946333 | H96: 63 | J96: 1034 | Q96: 2012 | S96: 2013 | U96: 2014
A97: 8 | B97: D649 | C97: Anemia de tipo no especificado | F97: 644 | G97: 0.9216457961 | H97: 177 | J97: 467 | N97: ADULTO MAYOR | Q97: 120000000 | S97: 70000000 | U97: 70000000
A98: 9 | B98: A09X | C98: Diarrea y gastroenteritis de presunto origen infeccioso | F98: 641 | G98: 0.917352415 | H98: 321 | J98: 320 | N98: DOTACION DISCAPACIDAD | U98: 2747752
A99: 10 | B99: J459 | C99: Asma, no especificado | F99: 557 | G99: 0.797137746 | H99: 270 | J99: 287 | N99: APS - SALUD CONTIGO | Q99: 44460000 | S99: 75000000 | U99: 53887000
A100: 11 | C100: Otros Dx | F100: 54529 | G100: 78.03792487 | H100: 18226 | J100: 36303 | N100: COFINANCIACION REG. SUBSIDIADO | Q100: 2156165857 | S100: 1851838641 | U100: 2444614492
A101: TOTALES | F101: 69875 | G101: 100 | H101: 22803 | J101: 47072 | N101: SSR | Q101: 4490198
A102: 10 PRIMERAS CAUSAS DE URGENCIAS 2016 | N102: PAI | Q102: 11522562
A103: ORDEN | B103: CODIGO CIE-10 | C103: CAUSA | F103: TOTAL GENERAL | G103: % | H103: HOMBRES | J103: MUJERES | N103: VECTORES | Q103: 25380673 | S103: 119034901
N104: ESTERILIZACION MASCOTAS | Q104: 0
A105: 1 | B105: R104 | C105: Otros dolores abdominales y los no especificados | F105: 29 | G105: 7.213930348 | H105: 14 | J105: 15 | N105: VACUNA ANTIRRABICA | Q105: 2372000
A106: 2 | B106: R509 | C106: Fiebre, no especificada | F106: 28 | G106: 6.965174129 | H106: 15 | J106: 13 | N106: INFRAESTRUCTURA | U106: 250000000
A107: 3 | B107: R51X | C107: Cefalea | F107: 18 | G107: 4.47761194 | H107: 5 | J107: 13 | N107: DOTACION EQUIPOS BIOMEDICOS | U107: 75000000
A108: 4 | B108: C910 | C108: Leucemia linfoblastica aguda [LLA] | F108: 15 | G108: 3.731343284 | H108: 0 | J108: 15 | N108: ESTAMPILLAS PROHOSPITALES
A109: 5 | B109: M545 | C109: Lumbago no especificado | F109: 12 | G109: 2.985074627 | H109: 7 | J109: 5 | N109: EQUIPAMIENTO
A110: 6 | B110: R520 | C110: Dolor agudo | F110: 10 | G110: 2.487562189 | H110: 3 | J110: 7 | N110: TELEMEDICINA | S110: 37520800 | U110: 32904218
A111: 7 | B111: N23X | C111: Colico renal, no especificado | F111: 9 | G111: 2.23880597 | H111: 6 | J111: 3 | N111: AMBULANCIA | Q111: 33750000
A112: 8 | B112: E86X | C112: Deplecion del volumen | F112: 9 | G112: 2.23880597 | H112: 3 | J112: 6 | N112: TOTALES | Q112: =SUM(Q97:R111) -> 2398141290 | S112: =SUM(S97:T111) -> 2153394342 | U112: =SUM(U97:V111) -> 2929153462
A113: 9 | B113: A09X | C113: Diarrea y gastroenteritis de presunto origen infeccioso | F113: 8 | G113: 1.990049751 | H113: 6 | J113: 2 | N113: PROYECTOS DE INVERSION (En Cantidad)
A114: 10 | B114: M301 | C114: Poliarteritis con compromiso pulmonar [Churg-Strauss] | F114: 8 | G114: 1.990049751 | H114: 0 | J114: 8 | N114: PROGRAMA AEREO (No brigadas) | S114: 1
A115: 11 | C115: Otros Dx | F115: 256 | G115: 63.68159204 | H115: 118 | J115: 138 | N115: ASESORIA Y ASISTENCIA TECNICA | Q115: 19
A116: TOTALES | F116: 402 | G116: 100 | H116: 177 | J116: 225 | N116: CENTROS AMIGABLES JOVENES | S116: SI

Sheet ARGELIA
C4: ALCALDE | E4: BAIRO MARTÍNEZ MORALES
C5: DIRECTOR LOCAL DE SALUD | E5: DIVIER DANIEL AGUDELO RESTREPO
C7: CERTIFICACION | E7: RANKING | F7: CATEGORIA MUNICIPAL
C8: NO | E8: 110 | F8: 6
C9: TOTAL CORREGIMIENTOS | E9: 0 | F9: TOTAL VEREDAS | I9: 50
A10: CARACTERISTICAS DEMOGRAFICAS | N10: VIGILANCIA DE LA SALUD PUBLICA - AÑO 2017 ***
A11: POBLACION 2018
A12: TOTAL | B12: HOMBRES | C12: MUJERES | D12: CABECERA | E12: RESTO | N12: MORTALIDAD CANCER CUELLO UTERINO | S12: MORTALIDAD MATERNA
A13: 8306 | B13: 4367 | C13: 3939 | D13: 2430 | E13: 5876 | N13: # Casos | O13: Tasa x cienmil Mujeres | S13: # Casos | T13: Tasa x cienmil Nacidos vivos
A14: POR GRUPOS DE EDAD | N14: 0 | O14: 0 | S14: 0 | T14: 0
A15: 0 - 4 AÑOS | B15: 5 - 9 AÑOS | C15: 10 - 14 AÑOS | D15: 15 - 19 AÑOS | E15: 20 - 59 AÑOS | F15: > 60 AÑOS
A16: 967 | B16: 909 | C16: 819 | D16: 743 | E16: 3776 | F16: 1092 | N16: MORTALIDAD INFANTIL | S16: MORTALIDAD PERINATAL
A17: 376 | B17: 382 | C17: 369 | D17: 328 | E17: 1998 | F17: 492 | N17: # Casos | O17: Tasa x cienmil Nacidos vivos | S17: # Casos | T17: Tasa x cienmil Nacidos vivos
A18: DESPLAZADOS 2015 (a marzo) | D18: INDIGENAS FEB 2014 | G18: ROM | I18: AFRO | N18: 0 | O18: 0 | S18: 1 | T18: 11.36363636
A19: TOTAL | B19: HOMBRES | C19: MUJERES | D19: TOTAL | E19: HOMBRES | F19: MUJERES
A20: 10640 | B20: 5213.6 | C20: 5426.4 | D20: 0 | E20: 0 | F20: 0 | N20: MORTALIDAD VIH SIDA | S20: MORTALIDAD TUBERCULOSIS
A21: POBLACION TOTAL | B21: Afiliados al regimen Subsidiado * | D21: % De Aseguramiento al Regimen Subsidiado * | F21: Afiliados al Regimen Contributivo * | H21: % De Aseguramiento al RS, RC, RE * | N21: # Casos | O21: Tasa x cienmil Habitantes | S21: # Casos | T21: Tasa x cienmil Habitantes
N22: 0 | O22: 0 | S22: 0 | T22: 0
N24: MORTALIDAD INFARTO AL MIOCARDIO | S24: MORTALIDAD < 5 AÑOS
A25: 8306 | B25: 6490 | D25: 78.13628702 | F25: 537 | H25: 87.11774621 | N25: # Casos | O25: Tasa x cienmil Habitantes | S25: # Casos | T25: Tasa x cienmil Niños
H26: * Corte a Agosto 2018 | N26: 12 | O26: 142.4163304 | S26: 0 | T26: 0
A31: PRESTACION DE SERVICIOS DE SALUD **
A32: EMPRESAS SOCIALES DEL ESTADO
A33: INSTITUCION PRESTADORA DE SERVICIOS DE SALUD | F33: DIRECTOR / GERENTE | N33: 10 PRIMERAS CAUSAS DE MORTALIDAD 2017***
A34: EMPRESA SOCIAL DEL ESTADO HOSPITAL SAN JULIAN | F34: PLINIO RAFAEL RECUERO BOTETT | N34: ORDEN | O34: CODIGO 105 CIE-10 | P34: CAUSA | T34: TOTAL GENERAL | U34: HOMBRES | V34: MUJERES | W34: SIN DATO
N36: 1 | O36: 051 | P36: ENFERMEDADES ISQUEMICAS DEL CORAZON | T36: 12 | U36: 4 | V36: 8 | W36: 0
N37: 2 | O37: 060 | P37: ENFERMEDADES CRONICAS DE LAS VIAS RESPIRATORIAS INFERIORES | T37: 7 | U37: 1 | V37: 6 | W37: 0
N38: 3 | O38: 055 | P38: ENFERMEDADES CEREBROVASCULARES | T38: 3 | U38: 1 | V38: 2 | W38: 0
A39: PRESTADORES DE SERVICIOS DE SALUD | N39: 4 | O39: 035 | P39: LEUCEMIA | T39: 2 | U39: 2 | V39: 0 | W39: 0
A40: TOTALES | B40: IPS | C40: PROFESIONALES INDEPENDIENTES | E40: TRANSPORTE ESPECIAL | G40: OBJETO SOCIAL DIFERENTE | N40: 5 | O40: 075 | P40: TODAS LAS DEMAS ENFERMEDADES DEL SISTEMA URINARIIO | T40: 2 | U40: 1 | V40: 1 | W40: 0
N41: 6 | O41: 036 | P41: TODOS LOS DEMAS TUMORES MALIGNOS DEL TEJIDO LINFATICO, DE LOS ORGANOS HEMATOPOYETICOS Y DE TEJIDOS AFINES | T41: 2 | U41: 1 | V41: 1 | W41: 0
B42: 1 | C42: 0 | E42: 0 | G42: 0 | N42: 7 | O42: 089 | P42: SIGNOS, SINTOMAS Y AFECCIONES MAL DEFINIDAS | T42: 1 | U42: 1 | V42: 0 | W42: 0
A43: IPS PUBLICAS | B43: IPS PRIVADAS | C43: SERVICIOS PRESTADOS X PROFESION | N43: 8 | O43: 070 | P43: HEMORRAGIA GASTROINTESTINAL | T43: 1 | U43: 1 | V43: 0 | W43: 0
C44: Odontólogos | D44: Médicos | E44: Otros | F44: Total | N44: 9 | O44: 020 | P44: TUMOR MALIGNO DE LA TRAQUEA, LOS BRONQUIOS Y EL PULMON | T44: 1 | U44: 1 | V44: 0 | W44: 0
N45: 10 | O45: 024 | P45: TUMOR MALIGNO DE LA MAMA DE LA MUJER | T45: 1 | U45: 0 | V45: 1 | W45: 0
A46: 1 | B46: 0 | C46: 0 | D46: 0 | E46: 0 | F46: =C46+D46+E46 -> 0
A48: CAPACIDAD INSTALADA | N48: PORCENTAJE DE EMBARAZOS POR GRUPO EDAD RESIDENCIA HABITUAL DE LA MADRE 2017*** | S48: TASAS DE FECUNDIDAD ESPECIFICA POR MIL MUJERES 2017***
A49: CAMAS
A50: Adultos | B50: Cuidado Agudo Mental | C50: Cuidado Intensivo Adulto | D50: Cuidado Intensivo Neonatal | E50: Cuidado Intensivo Pediátrico | F50: Cuidado Intermedio Adulto | G50: Cuidado Intermedio Mental | I50: Cuidado Intermedio Neonatal
N51: 10 a 14 AÑOS | P51: 15 a 19 AÑOS | S51: 10 a 14 AÑOS | U51: 15 a 19 AÑOS
N52: No | O52: % | P52: No | Q52: % | S52: No | T52: TASA | U52: No | V52: TASA
A53: 6 | B53: 0 | C53: 0 | D53: 0 | E53: 0 | F53: 0 | G53: 0 | I53: 0 | N53: 1 | O53: 1.052631579 | P53: 29 | Q53: 30.52631579 | S53: 1 | T53: 2.583979328 | U53: 29 | V53: 83.09455587
A54: CAMAS
A55: Cuidado Intermedio Pediátrico | B55: Farmaco- de-pendencia | C55: Obste-tricia | D55: Pediátricas | E55: Quemados Adultos | F55: Quemados Pediátrico | G55: Salud Mental Psiquiatría | I55: TOTAL CAMAS | N55: *** FUENTE: DANE. Información Preliminar
A58: 0 | B58: 0 | C58: 2 | D58: 2 | E58: 0 | F58: 0 | G58: 0 | I58: =A53+B53+C53+D53+E53+F53+G53+I53+A58+B58+C58+D58+E58+F58+G58 -> 10
A60: SALAS | E60: TOTAL SALAS | N60: INMUNIZACIONES PAI 2017
A61: PARTO | C61: QUIROFANO | N61: POLIOMIELITIS (V.O.P)
A62: 1 | C62: 0 | E62: =A62+C62 -> 1 | N62: Vacunados (Edades) | S62: Refuerzos | T62: Dosis Aplicadas
N63: <1 | O63: 1 | P63: 2 | Q63: 3 | R63: 4 | S63: Otros
A64: TOTAL DE SERVICIOS PRESTADOS SEGÚN LA COMPLEJIDAD | N64: 89 | O64: 0 | P64: 0 | Q64: 0 | R64: 0 | S64: 225 | T64: 525
A65: BAJA | C65: MEDIA | E65: ALTA
A66: 24 | C66: 0 | E66: 0 | N66: DIFTERIA, TOSFERINA Y TÉTANO (D.P.T)
N67: Vacunados (Edades) | S67: Refuerzos | T67: Dosis
A68: TOTAL DE AMBULANCIAS HABILITADAS SEGÚN TIPO Y MODALIDAD | N68: <1 | O68: 1 | P68: 2 | Q68: 3 | R68: 4 | S68: Otros | T68: Aplicadas
A69: TIPO | C69: MODALIDAD | F69: TOTAL GENERAL | G69: **Fuente: REPS - Minsalud /IPS se incluyen todas las sedes habilitadas /febrero y abril 2018, | N69: 89 | O69: 0 | P69: 0 | Q69: 0 | R69: 0 | S69: 225 | T69: 525
A70: BASICA | B70: MEDICADA | C70: AEREA | D70: TERRESTRE | E70: FLUVIAL Y MARIT
A71: 1 | B71: 0 | C71: 0 | D71: 1 | E71: 0 | F71: =SUM(C71:E71) -> 1 | N71: TUBERCULOSIS (B.C.G)
A72: 10 PRIMERAS CAUSAS DE HOSPITALIZACION 2016 | N72: Vacunados (Edades) | S72: Otros | T72: Dosis Aplicadas
A73: ORDEN | B73: CODIGO CIE-10 | C73: CAUSA | F73: TOTAL GENERAL | G73: % | H73: HOMBRES | J73: MUJERES | N73: RN | O73: <1 | P73: 2 | Q73: 3 | R73: 4
N74: 23 | O74: 0 | S74: 0 | T74: 23
A75: 1 | B75: O800 | C75: Parto unico espontaneo, presentacion cefalica de vertice | F75: 46 | G75: 13.64985163 | H75: 0 | J75: 46
A76: 2 | B76: N390 | C76: Infeccion de vias urinarias, sitio no especificado | F76: 27 | G76: 8.011869436 | H76: 11 | J76: 16 | N76: TRIPLE VIRAL - S. R. P.
A77: 3 | B77: L031 | C77: Celulitis de otras partes de los miembros | F77: 21 | G77: 6.231454006 | H77: 8 | J77: 13 | N77: Vacunados (Edades) | S77: Refuerzos | T77: Dosis Aplicadas
A78: 4 | B78: R104 | C78: Otros dolores abdominales y los no especificados | F78: 14 | G78: 4.154302671 | H78: 12 | J78: 2 | N78: 1 | O78: 2 | P78: 3 | Q78: 4 | R78: Ref. | S78: Otros
A79: 5 | B79: O809 | C79: Parto unico espontaneo, sin otra especificacion | F79: 10 | G79: 2.96735905 | H79: 0 | J79: 10 | N79: 97 | O79: 0 | P79: 0 | Q79: 0 | R79: 121 | S79: 0 | T79: 218
A80: 6 | B80: J441 | C80: Enfermedad pulmonar obstructiva cronica con exacerbacion aguda, no especificada | F80: 7 | G80: 2.077151335 | H80: 1 | J80: 6
A81: 7 | B81: J159 | C81: Neumonia bacteriana, no especificada | F81: 7 | G81: 2.077151335 | H81: 1 | J81: 6 | N81: AGUA POTABLE 2016
A82: 8 | B82: I500 | C82: Insuficiencia cardiaca congestiva | F82: 6 | G82: 1.78041543 | H82: 4 | J82: 2 | P82: NUMEROS ACUEDUCTOS | R82: COBERTURA ACUEDUCTOS CON AGUA POTABLE (%) | T82: COBERTURAS VIVIENDAS CON AGUA POTABLE (%)
A83: 9 | B83: O623 | C83: Trabajo de parto precipitado | F83: 6 | G83: 1.78041543 | H83: 0 | J83: 6
A84: 10 | B84: J449 | C84: Enfermedad pulmonar obstructiva cronica, no especificada | F84: 6 | G84: 1.78041543 | H84: 3 | J84: 3
A85: 11 | C85: Otros Dx | F85: 187 | G85: 55.48961424 | H85: 82 | J85: 105 | N85: Urbano | P85: 6 | R85: 0 | T85: 100
A86: TOTALES | F86: 337 | G86: 100 | H86: 122 | J86: 215 | N86: Rural | P86: 24 | R86: 0 | T86: 0
A87: 10 PRIMERAS CAUSAS DE CONSULTA 2016 | N87: Total Municipal | P87: 30 | R87: 0 | T87: 0
A88: ORDEN | B88: CODIGO CIE-10 | C88: CAUSA | F88: TOTAL GENERAL | G88: % | H88: HOMBRES | J88: MUJERES | N88: CERTIFACION EN AGUA POTABLE | O88: INDICE RIESGO CALIDAD DEL AGUA POTABLE - IRCA- (a) | P88: INDICE RIESGO DE ABASTECIMIENTO MUNICIPAL - IRABA- (b) | R88: BUENAS PRACTICAS SANTIARIAS © | T88: CERTIFICAION SANITARIA MUNICIPAL EN AGUA POTABLE ©
A90: 1 | B90: I10X | C90: Hipertension esencial (primaria) | F90: 3019 | G90: 14.836839 | H90: 1049 | J90: 1970
A91: 2 | B91: J00X | C91: Rinofaringitis aguda [resfriado comun] | F91: 552 | G91: 2.712797327 | H91: 242 | J91: 310
A92: 3 | B92: N390 | C92: Infeccion de vias urinarias, sitio no especificado | F92: 445 | G92: 2.18694712 | H92: 128 | J92: 317 | N92: Urbano | O92: 64.1 | P92: 69.8 | R92: 64 | T92: 65.21
A93: 4 | B93: A09X | C93: Diarrea y gastroenteritis de presunto origen infeccioso | F93: 164 | G93: 0.8059760173 | H93: 85 | J93: 79 | N93: Rural | O93: 67.9 | P93: 82.9 | R93: 94.4 | T93: 78.85
A94: 5 | B94: M545 | C94: Lumbago no especificado | F94: 148 | G94: 0.7273442107 | H94: 63 | J94: 85 | N94: Total | O94: 65.2 | P94: 63 | R94: 73.3 | T94: 67.19
A95: 6 | B95: H813 | C95: Otros vertigos perifericos | F95: 129 | G95: 0.6339689404 | H95: 33 | J95: 96 | N95: PROYECTOS DE INVERSION (En pesos)
A96: 7 | B96: J039 | C96: Amigdalitis aguda, no especificada | F96: 124 | G96: 0.6093965009 | H96: 53 | J96: 71 | Q96: 2012 | S96: 2013 | U96: 2014
A97: 8 | B97: M255 | C97: Dolor en articulacion | F97: 119 | G97: 0.5848240613 | H97: 57 | J97: 62 | N97: ADULTO MAYOR | Q97: 30000000 | S97: 15019524 | U97: 22000000
A98: 9 | B98: Q793 | C98: Gastrosquisis | F98: 106 | G98: 0.5209357185 | H98: 0 | J98: 106 | N98: DOTACION DISCAPACIDAD | U98: 2747752
A99: 10 | B99: S065 | C99: Hemorragia subdural traumatica | F99: 100 | G99: 0.491448791 | H99: 100 | J99: 0 | N99: APS - SALUD CONTIGO | S99: 50936849 | U99: 60000000
A100: 11 | C100: Otros Dx | F100: 15442 | G100: 75.88952231 | H100: 6301 | J100: 9141 | N100: COFINANCIACION REG. SUBSIDIADO | Q100: 250700059.1 | S100: 215315559 | U100: 284238337
A101: TOTALES | F101: 20348 | G101: 100 | H101: 8111 | J101: 12237 | N101: SSR | Q101: 1101625
A102: 10 PRIMERAS CAUSAS DE URGENCIAS 2016 | N102: PAI | Q102: 2826945
A103: ORDEN | B103: CODIGO CIE-10 | C103: CAUSA | F103: TOTAL GENERAL | G103: % | H103: HOMBRES | J103: MUJERES | N103: VECTORES | Q103: 386400
N104: ESTERILIZACION MASCOTAS | Q104: 0
A105: 1 | B105: K297 | C105: Gastritis, no especificada | F105: 13 | G105: 5.241935484 | H105: 2 | J105: 11 | N105: VACUNA ANTIRRABICA | Q105: 1690000
A106: 2 | B106: N390 | C106: Infeccion de vias urinarias, sitio no especificado | F106: 13 | G106: 5.241935484 | H106: 4 | J106: 9 | N106: INFRAESTRUCTURA
A107: 3 | B107: R104 | C107: Otros dolores abdominales y los no especificados | F107: 12 | G107: 4.838709677 | H107: 9 | J107: 3 | N107: DOTACION EQUIPOS BIOMEDICOS
A108: 4 | B108: A09X | C108: Diarrea y gastroenteritis de presunto origen infeccioso | F108: 6 | G108: 2.419354839 | H108: 4 | J108: 2 | N108: ESTAMPILLAS PROHOSPITALES | U108: 20265912
A109: 5 | B109: R074 | C109: Dolor en el pecho, no especificado | F109: 5 | G109: 2.016129032 | H109: 4 | J109: 1 | N109: EQUIPAMIENTO
A110: 6 | B110: I500 | C110: Insuficiencia cardiaca congestiva | F110: 5 | G110: 2.016129032 | H110: 4 | J110: 1 | N110: TELEMEDICINA
A111: 7 | B111: G432 | C111: Estado migranoso | F111: 4 | G111: 1.612903226 | H111: 3 | J111: 1 | N111: AMBULANCIA
A112: 8 | B112: R51X | C112: Cefalea | F112: 4 | G112: 1.612903226 | H112: 1 | J112: 3 | N112: TOTALES | Q112: =SUM(Q97:R111) -> 286705029.1 | S112: =SUM(S97:T111) -> 281271932 | U112: =SUM(U97:V111) -> 389252001
A113: 9 | B113: S099 | C113: Traumatismo de la cabeza, no especificado | F113: 4 | G113: 1.612903226 | H113: 2 | J113: 2 | N113: PROYECTOS DE INVERSION (En Cantidad)
A114: 10 | B114: J441 | C114: Enfermedad pulmonar obstructiva cronica con exacerbacion aguda, no especificada | F114: 4 | G114: 1.612903226 | H114: 1 | J114: 3 | N114: PROGRAMA AEREO (No brigadas)
A115: 11 | C115: Otros Dx | F115: 178 | G115: 71.77419355 | H115: 82 | J115: 96 | N115: ASESORIA Y ASISTENCIA TECNICA | Q115: 8
A116: TOTALES | F116: 248 | G116: 100 | H116: 116 | J116: 132 | N116: CENTROS AMIGABLES JOVENES

Sheet ARMENIA
C4: ALCALDE | E4: GABRIEL JAIME BARRERA CASTAÑO
C5: DIRECTOR LOCAL DE SALUD | E5: LUIS ALBEIRO YALI GARCIA
C7: CERTIFICACION | E7: RANKING | F7: CATEGORIA MUNICIPAL
C8: SI | E8: 40 | F8: 6
C9: TOTAL CORREGIMIENTOS | E9: 1 | F9: TOTAL VEREDAS | I9: 12
A10: CARACTERISTICAS DEMOGRAFICAS | N10: VIGILANCIA DE LA SALUD PUBLICA - AÑO 2017 ***
A11: POBLACION 2018
A12: TOTAL | B12: HOMBRES | C12: MUJERES | D12: CABECERA | E12: RESTO | N12: MORTALIDAD CANCER CUELLO UTERINO | S12: MORTALIDAD MATERNA
A13: 3945 | B13: 2043 | C13: 1902 | D13: 1516 | E13: 2429 | N13: # Casos | O13: Tasa x cienmil Mujeres | S13: # Casos | T13: Tasa x cienmil Nacidos vivos
A14: POR GRUPOS DE EDAD | N14: 0 | O14: 0 | S14: 0 | T14: 0
A15: 0 - 4 AÑOS | B15: 5 - 9 AÑOS | C15: 10 - 14 AÑOS | D15: 15 - 19 AÑOS | E15: 20 - 59 AÑOS | F15: > 60 AÑOS
A16: 376 | B16: 382 | C16: 369 | D16: 328 | E16: 1998 | F16: 492 | N16: MORTALIDAD INFANTIL | S16: MORTALIDAD PERINATAL
N17: # Casos | O17: Tasa x cienmil Nacidos vivos | S17: # Casos | T17: Tasa x cienmil Nacidos vivos
A18: DESPLAZADOS 2015 (a marzo) | D18: INDIGENAS FEB 2014 | G18: ROM | I18: AFRO | N18: 0 | O18: 0 | S18: 0 | T18: 0
A19: TOTAL | B19: HOMBRES | C19: MUJERES | D19: TOTAL | E19: HOMBRES | F19: MUJERES
A20: 234 | B20: 114.66 | C20: 119.34 | D20: 0 | E20: 0 | F20: 0 | N20: MORTALIDAD VIH SIDA | S20: MORTALIDAD TUBERCULOSIS
N21: # Casos | O21: Tasa x cienmil Habitantes | S21: # Casos | T21: Tasa x cienmil Habitantes
A22: POBLACION TOTAL | B22: Afiliados al regimen Subsidiado * | D22: % De Aseguramiento al Regimen Subsidiado * | F22: Afiliados al Regimen Contributivo * | H22: % De Aseguramiento al RS, RC, RE * | N22: 0 | O22: 0 | S22: 0 | T22: 0
N24: MORTALIDAD INFARTO AL MIOCARDIO | S24: MORTALIDAD < 5 AÑOS
A25: 3945 | B25: 2782 | D25: 70.51964512 | F25: 1252 | H25: 100 | N25: # Casos | O25: Tasa x cienmil Habitantes | S25: # Casos | T25: Tasa x cienmil Niños
H26: * Corte a Agosto 2018 | N26: 9 | O26: 223.3804914 | S26: 0 | T26: 0
A31: PRESTACION DE SERVICIOS DE SALUD **
A32: EMPRESAS SOCIALES DEL ESTADO
A33: INSTITUCION PRESTADORA DE SERVICIOS DE SALUD | F33: DIRECTOR / GERENTE | N33: 10 PRIMERAS CAUSAS DE MORTALIDAD 2017***
A34: EMPRESA SOCIAL DEL ESTADO HOSPITAL SAN MARTIN DE PORRES | F34: JOSE IGNACIO FRANCISCO GUTIERREZ GÓMEZ | N34: ORDEN | O34: CODIGO 105 CIE-10 | P34: CAUSA | T34: TOTAL GENERAL | U34: HOMBRES | V34: MUJERES | W34: SIN DATO
N36: 1 | O36: 051 | P36: ENFERMEDADES ISQUEMICAS DEL CORAZON | T36: 9 | U36: 4 | V36: 5 | W36: 0
N37: 2 | O37: 055 | P37: ENFERMEDADES CEREBROVASCULARES | T37: 2 | U37: 2 | V37: 0 | W37: 0
N38: 3 | O38: 020 | P38: TUMOR MALIGNO DE LA TRAQUEA, LOS BRONQUIOS Y EL PULMON | T38: 2 | U38: 1 | V38: 1 | W38: 0
A39: PRESTADORES DE SERVICIOS DE SALUD | N39: 4 | O39: 101 | P39: AGRESIONES (HOMICIDIOS) Y SECUELAS | T39: 2 | U39: 2 | V39: 0 | W39: 0
A40: TOTALES | B40: IPS | C40: PROFESIONALES INDEPENDIENTES | E40: TRANSPORTE ESPECIAL | G40: OBJETO SOCIAL DIFERENTE | N40: 5 | O40: 089 | P40: SIGNOS, SINTOMAS Y AFECCIONES MAL DEFINIDAS | T40: 1 | U40: 0 | V40: 1 | W40: 0
N41: 6 | O41: 072 | P41: ENFERMEDADES DEL SISTEMA OSTEOMUSCULAR Y DEL TEJIDO CONJUNTIVO | T41: 1 | U41: 1 | V41: 0 | W41: 0
B42: 1 | C42: 1 | E42: 0 | G42: 0 | N42: 7 | O42: 061 | P42: ENFERMEDADES DEL PULMON DEBIDAS A AGENTES EXTERNOS | T42: 1 | U42: 0 | V42: 1 | W42: 0
A43: IPS PUBLICAS | B43: IPS PRIVADAS | C43: SERVICIOS PRESTADOS X PROFESION | N43: 8 | O43: 059 | P43: NEUMONIA | T43: 1 | U43: 0 | V43: 1 | W43: 0
C44: Odontólogos | D44: Médicos | E44: Otros | F44: Total | N44: 9 | O44: 060 | P44: ENFERMEDADES CRONICAS DE LAS VIAS RESPIRATORIAS INFERIORES | T44: 1 | U44: 0 | V44: 1 | W44: 0
N45: 10
A46: 1 | B46: 0 | C46: 0 | D46: 1 | E46: 0 | F46: =C46+D46+E46 -> 1
A48: CAPACIDAD INSTALADA | N48: PORCENTAJE DE EMBARAZOS POR GRUPO EDAD RESIDENCIA HABITUAL DE LA MADRE 2017*** | S48: TASAS DE FECUNDIDAD ESPECIFICA POR MIL MUJERES 2017***
A49: CAMAS
A50: Adultos | B50: Cuidado Agudo Mental | C50: Cuidado Intensivo Adulto | D50: Cuidado Intensivo Neonatal | E50: Cuidado Intensivo Pediátrico | F50: Cuidado Intermedio Adulto | G50: Cuidado Intermedio Mental | I50: Cuidado Intermedio Neonatal
N51: 10 a 14 AÑOS | P51: 15 a 19 AÑOS | S51: 10 a 14 AÑOS | U51: 15 a 19 AÑOS
N52: No | O52: % | P52: No | Q52: % | S52: No | T52: TASA | U52: No | V52: TASA
A53: 2 | B53: 0 | C53: 0 | D53: 0 | E53: 0 | F53: 0 | G53: 0 | I53: 0 | N53: 0 | O53: 0 | P53: 8 | Q53: 26.66666667 | S53: 0 | T53: 0 | U53: 8 | V53: 50
A54: CAMAS
A55: Cuidado Intermedio Pediátrico | B55: Farmaco- de-pendencia | C55: Obste-tricia | D55: Pediátricas | E55: Quemados Adultos | F55: Quemados Pediátrico | G55: Salud Mental Psiquiatría | I55: TOTAL CAMAS | N55: *** FUENTE: DANE. Información Preliminar
A58: 0 | B58: 0 | C58: 2 | D58: 2 | E58: 0 | F58: 0 | G58: 0 | I58: =A53+B53+C53+D53+E53+F53+G53+I53+A58+B58+C58+D58+E58+F58+G58 -> 6
A60: SALAS | E60: TOTAL SALAS | N60: INMUNIZACIONES PAI 2017
A61: PARTO | C61: QUIROFANO | N61: POLIOMIELITIS (V.O.P)
A62: 1 | C62: 0 | E62: =A62+C62 -> 1 | N62: Vacunados (Edades) | S62: Refuerzos | T62: Dosis Aplicadas
N63: <1 | O63: 1 | P63: 2 | Q63: 3 | R63: 4 | S63: Otros
A64: TOTAL DE SERVICIOS PRESTADOS SEGÚN LA COMPLEJIDAD | N64: 29 | O64: 0 | P64: 0 | Q64: 0 | R64: 0 | S64: 76 | T64: 157
A65: BAJA | C65: MEDIA | E65: ALTA
A66: 29 | C66: 1 | E66: 0 | N66: DIFTERIA, TOSFERINA Y TÉTANO (D.P.T)
N67: Vacunados (Edades) | S67: Refuerzos | T67: Dosis
A68: TOTAL DE AMBULANCIAS HABILITADAS SEGÚN TIPO Y MODALIDAD | N68: <1 | O68: 1 | P68: 2 | Q68: 3 | R68: 4 | S68: Otros | T68: Aplicadas
A69: TIPO | C69: MODALIDAD | F69: TOTAL GENERAL | G69: **Fuente: REPS - Minsalud /IPS se incluyen todas las sedes habilitadas /febrero y abril 2018, | N69: 29 | O69: 0 | P69: 0 | Q69: 0 | R69: 0 | S69: 75 | T69: 156
A70: BASICA | B70: MEDICADA | C70: AEREA | D70: TERRESTRE | E70: FLUVIAL Y MARIT
A71: 1 | B71: 0 | C71: 0 | D71: 1 | E71: 0 | F71: =SUM(C71:E71) -> 1 | N71: TUBERCULOSIS (B.C.G)
A72: 10 PRIMERAS CAUSAS DE HOSPITALIZACION 2016 | N72: Vacunados (Edades) | S72: Otros | T72: Dosis Aplicadas
A73: ORDEN | B73: CODIGO CIE-10 | C73: CAUSA | F73: TOTAL GENERAL | G73: % | H73: HOMBRES | J73: MUJERES | N73: RN | O73: <1 | P73: 2 | Q73: 3 | R73: 4
N74: 4 | O74: 0 | S74: 0 | T74: 4
A75: 1 | B75: N390 | C75: Infeccion de vias urinarias, sitio no especificado | F75: 19 | G75: 11.875 | H75: 8 | J75: 11
A76: 2 | B76: O800 | C76: Parto unico espontaneo, presentacion cefalica de vertice | F76: 14 | G76: 8.75 | H76: 0 | J76: 14 | N76: TRIPLE VIRAL - S. R. P.
A77: 3 | B77: J159 | C77: Neumonia bacteriana, no especificada | F77: 10 | G77: 6.25 | H77: 2 | J77: 8 | N77: Vacunados (Edades) | S77: Refuerzos | T77: Dosis Aplicadas
A78: 4 | B78: R688 | C78: Otros sintomas y signos generales especificados | F78: 6 | G78: 3.75 | H78: 0 | J78: 6 | N78: 1 | O78: 2 | P78: 3 | Q78: 4 | R78: Ref. | S78: Otros
A79: 5 | B79: L031 | C79: Celulitis de otras partes de los miembros | F79: 6 | G79: 3.75 | H79: 2 | J79: 4 | N79: 27 | O79: 0 | P79: 0 | Q79: 0 | R79: 34 | S79: 3 | T79: 64
A80: 6 | B80: L029 | C80: Absceso cutaneo, furunculo y antrax de sitio no especificado | F80: 5 | G80: 3.125 | H80: 5 | J80: 0
A81: 7 | B81: S021 | C81: Fractura de la base del craneo | F81: 4 | G81: 2.5 | H81: 4 | J81: 0 | N81: AGUA POTABLE 2016
A82: 8 | B82: P071 | C82: Otro peso bajo al nacer | F82: 4 | G82: 2.5 | H82: 4 | J82: 0 | P82: NUMEROS ACUEDUCTOS | R82: COBERTURA ACUEDUCTOS CON AGUA POTABLE (%) | T82: COBERTURAS VIVIENDAS CON AGUA POTABLE (%)
A83: 9 | B83: J441 | C83: Enfermedad pulmonar obstructiva cronica con exacerbacion aguda, no especificada | F83: 4 | G83: 2.5 | H83: 1 | J83: 3
A84: 10 | B84: L039 | C84: Celulitis de sitio no especificado | F84: 3 | G84: 1.875 | H84: 2 | J84: 1
A85: 11 | C85: Otros Dx | F85: 85 | G85: 53.125 | H85: 48 | J85: 37 | N85: Urbano | P85: 1 | R85: 100 | T85: 100
A86: TOTALES | F86: 160 | G86: 100 | H86: 76 | J86: 84 | N86: Rural | P86: 7 | R86: 0 | T86: 0
A87: 10 PRIMERAS CAUSAS DE CONSULTA 2016 | N87: Total Municipal | P87: 8 | R87: 12.5 | T87: 33.58
A88: ORDEN | B88: CODIGO CIE-10 | C88: CAUSA | F88: TOTAL GENERAL | G88: % | H88: HOMBRES | J88: MUJERES | N88: CERTIFACION EN AGUA POTABLE | O88: INDICE RIESGO CALIDAD DEL AGUA POTABLE - IRCA- (a) | P88: INDICE RIESGO DE ABASTECIMIENTO MUNICIPAL - IRABA- (b) | R88: BUENAS PRACTICAS SANTIARIAS © | T88: CERTIFICAION SANITARIA MUNICIPAL EN AGUA POTABLE ©
A90: 1 | B90: I10X | C90: Hipertension esencial (primaria) | F90: 1226 | G90: 13.33043384 | H90: 434 | J90: 792
A91: 2 | B91: N390 | C91: Infeccion de vias urinarias, sitio no especificado | F91: 176 | G91: 1.9136675 | H91: 47 | J91: 129
A92: 3 | B92: M545 | C92: Lumbago no especificado | F92: 158 | G92: 1.717951506 | H92: 62 | J92: 96 | N92: Urbano | O92: 0 | P92: 33.9 | R92: 6 | T92: 8.58
A93: 4 | B93: J00X | C93: Rinofaringitis aguda [resfriado comun] | F93: 108 | G93: 1.174295966 | H93: 55 | J93: 53 | N93: Rural | O93: 76.8 | P93: 81.7 | R93: 97.1 | T93: 83.87
A94: 5 | B94: E039 | C94: Hipotiroidismo, no especificado | F94: 105 | G94: 1.141676634 | H94: 16 | J94: 89 | N94: Total | O94: 22.7 | P94: 40.3 | R94: 33 | T94: 29.31
A95: 6 | B95: E119 | C95: Diabetes mellitus no insulinodependiente, sin mencion de complicacion | F95: 103 | G95: 1.119930412 | H95: 37 | J95: 66 | N95: PROYECTOS DE INVERSION (En pesos)
A96: 7 | B96: M796 | C96: Dolor en miembro | F96: 86 | G96: 0.9350875285 | H96: 22 | J96: 64 | Q96: 2012 | S96: 2013 | U96: 2014
A97: 8 | B97: E782 | C97: Hiperlipidemia mixta | F97: 65 | G97: 0.7067522018 | H97: 21 | J97: 44 | N97: ADULTO MAYOR | Q97: 60000000 | S97: 25468826 | U97: 30000000
A98: 9 | B98: A09X | C98: Diarrea y gastroenteritis de presunto origen infeccioso | F98: 62 | G98: 0.6741328694 | H98: 27 | J98: 35 | N98: DOTACION DISCAPACIDAD | U98: 2918752
A99: 10 | B99: M255 | C99: Dolor en articulacion | F99: 59 | G99: 0.641513537 | H99: 12 | J99: 47 | N99: APS - SALUD CONTIGO | Q99: 45420448 | S99: 69000000 | U99: 60000000
A100: 11 | C100: Otros Dx | F100: 7049 | G100: 76.64455801 | H100: 2525 | J100: 4524 | N100: COFINANCIACION REG. SUBSIDIADO | Q100: 99113976.99 | S100: 85124756 | U100: 112373296
A101: TOTALES | F101: 9197 | G101: 100 | H101: 3258 | J101: 5939 | N101: SSR | Q101: 542346
A102: 10 PRIMERAS CAUSAS DE URGENCIAS 2016 | N102: PAI | Q102: 1391746
A103: ORDEN | B103: CODIGO CIE-10 | C103: CAUSA | F103: TOTAL GENERAL | G103: % | H103: HOMBRES | J103: MUJERES | N103: VECTORES | Q103: 386400
N104: ESTERILIZACION MASCOTAS | Q104: 0
A105: 1 | B105: R104 | C105: Otros dolores abdominales y los no especificados | F105: 12 | G105: 3.715170279 | H105: 6 | J105: 6 | N105: VACUNA ANTIRRABICA | Q105: 1082000
A106: 2 | B106: J441 | C106: Enfermedad pulmonar obstructiva cronica con exacerbacion aguda, no especificada | F106: 12 | G106: 3.715170279 | H106: 3 | J106: 9 | N106: INFRAESTRUCTURA
A107: 3 | B107: J159 | C107: Neumonia bacteriana, no especificada | F107: 8 | G107: 2.476780186 | H107: 2 | J107: 6 | N107: DOTACION EQUIPOS BIOMEDICOS
A108: 4 | B108: S069 | C108: Traumatismo intracraneal, no especificado | F108: 7 | G108: 2.167182663 | H108: 4 | J108: 3 | N108: ESTAMPILLAS PROHOSPITALES | Q108: 28138000 | U108: 22787909
A109: 5 | B109: R51X | C109: Cefalea | F109: 6 | G109: 1.857585139 | H109: 2 | J109: 4 | N109: EQUIPAMIENTO
A110: 6 | B110: G409 | C110: Epilepsia, tipo no especificado | F110: 6 | G110: 1.857585139 | H110: 6 | J110: 0 | N110: TELEMEDICINA
A111: 7 | B111: O800 | C111: Parto unico espontaneo, presentacion cefalica de vertice | F111: 6 | G111: 1.857585139 | H111: 0 | J111: 6 | N111: AMBULANCIA
A112: 8 | B112: K297 | C112: Gastritis, no especificada | F112: 6 | G112: 1.857585139 | H112: 1 | J112: 5 | N112: TOTALES | Q112: =SUM(Q97:R111) -> 236074917 | S112: =SUM(S97:T111) -> 179593582 | U112: =SUM(U97:V111) -> 228079957
A113: 9 | B113: I10X | C113: Hipertension esencial (primaria) | F113: 5 | G113: 1.547987616 | H113: 5 | J113: 0 | N113: PROYECTOS DE INVERSION (En Cantidad)
A114: 10 | B114: O471 | C114: Falso trabajo de parto a las 37 y mas semanas completas de gestacion | F114: 5 | G114: 1.547987616 | H114: 0 | J114: 5 | N114: PROGRAMA AEREO (No brigadas)
A115: 11 | C115: Otros Dx | F115: 250 | G115: 77.3993808 | H115: 124 | J115: 126 | N115: ASESORIA Y ASISTENCIA TECNICA | Q115: 12
A116: TOTALES | F116: 323 | G116: 100 | H116: 153 | J116: 170 | N116: CENTROS AMIGABLES JOVENES

Sheet BARBOSA
C4: ALCALDE | E4: EDISON GARCÍA RESTREPO
C5: DIRECTOR LOCAL DE SALUD | E5: LUIS FERNANDO SUAREZ
C7: CERTIFICACION | E7: RANKING | F7: CATEGORIA MUNICIPAL
C8: SI | E8: 30 | F8: 3
C9: TOTAL CORREGIMIENTOS | E9: 2 | F9: TOTAL VEREDAS | I9: 56
A10: CARACTERISTICAS DEMOGRAFICAS | N10: VIGILANCIA DE LA SALUD PUBLICA - AÑO 2017 ***
A11: POBLACION 2018
A12: TOTAL | B12: HOMBRES | C12: MUJERES | D12: CABECERA | E12: RESTO | N12: MORTALIDAD CANCER CUELLO UTERINO | S12: MORTALIDAD MATERNA
A13: 52395 | B13: 26075 | C13: 26320 | D13: 24274 | E13: 28121 | N13: # Casos | O13: Tasa x cienmil Mujeres | S13: # Casos | T13: Tasa x cienmil Nacidos vivos
A14: POR GRUPOS DE EDAD | N14: 0 | O14: 0 | S14: 0 | T14: 0
A15: 0 - 4 AÑOS | B15: 5 - 9 AÑOS | C15: 10 - 14 AÑOS | D15: 15 - 19 AÑOS | E15: 20 - 59 AÑOS | F15: > 60 AÑOS
A16: 4798 | B16: 4745 | C16: 4787 | D16: 4595 | E16: 28167 | F16: 5303 | N16: MORTALIDAD INFANTIL | S16: MORTALIDAD PERINATAL
N17: # Casos | O17: Tasa x cienmil Nacidos vivos | S17: # Casos | T17: Tasa x cienmil Nacidos vivos
A18: DESPLAZADOS 2015 (a marzo) | D18: INDIGENAS FEB 2014 | G18: ROM | I18: AFRO | N18: 3 | O18: 5.952380952 | S18: 5 | T18: 9.920634921
A19: TOTAL | B19: HOMBRES | C19: MUJERES | D19: TOTAL | E19: HOMBRES | F19: MUJERES
A20: 3749 | B20: 1837.01 | C20: 1911.99 | D20: 0 | E20: 0 | F20: 0 | N20: MORTALIDAD VIH SIDA | S20: MORTALIDAD TUBERCULOSIS
N21: # Casos | O21: Tasa x cienmil Habitantes | S21: # Casos | T21: Tasa x cienmil Habitantes
A22: POBLACION TOTAL | B22: Afiliados al regimen Subsidiado * | D22: % De Aseguramiento al Regimen Subsidiado * | F22: Afiliados al Regimen Contributivo * | H22: % De Aseguramiento al RS, RC, RE * | N22: 2 | O22: 3.874692446 | S22: 1 | T22: 1.937346223
N24: MORTALIDAD INFARTO AL MIOCARDIO | S24: MORTALIDAD < 5 AÑOS
A25: 52395 | B25: 17223 | D25: 32.8714572 | F25: 21996 | H25: 76.36033973 | N25: # Casos | O25: Tasa x cienmil Habitantes | S25: # Casos | T25: Tasa x cienmil Niños
H26: * Corte a Agosto 2018 | N26: 34 | O26: 65.86977159 | S26: 5 | T26: 104.6682018
A31: PRESTACION DE SERVICIOS DE SALUD **
A32: EMPRESAS SOCIALES DEL ESTADO
A33: INSTITUCION PRESTADORA DE SERVICIOS DE SALUD | F33: DIRECTOR / GERENTE | N33: 10 PRIMERAS CAUSAS DE MORTALIDAD 2017***
A34: ESE HOSPITAL SAN VICENTE DE PAUL | F34: CARLOS ARTURO CERVANTES LOPEZ | N34: ORDEN | O34: CODIGO 105 CIE-10 | P34: CAUSA | T34: TOTAL GENERAL | U34: HOMBRES | V34: MUJERES | W34: SIN DATO
N36: 1 | O36: 051 | P36: ENFERMEDADES ISQUEMICAS DEL CORAZON | T36: 36 | U36: 23 | V36: 13 | W36: 0
N37: 2 | O37: 060 | P37: ENFERMEDADES CRONICAS DE LAS VIAS RESPIRATORIAS INFERIORES | T37: 32 | U37: 15 | V37: 17 | W37: 0
N38: 3 | O38: 050 | P38: ENFERMEDADES HIPERTENSIVAS | T38: 18 | U38: 8 | V38: 10 | W38: 0
A39: PRESTADORES DE SERVICIOS DE SALUD | N39: 4 | O39: 090 | P39: ACCIDENTES DE TRANSPORTE DE MOTOR Y SECUELAS | T39: 17 | U39: 15 | V39: 2 | W39: 0
A40: TOTALES | B40: IPS | C40: PROFESIONALES INDEPENDIENTES | E40: TRANSPORTE ESPECIAL | G40: OBJETO SOCIAL DIFERENTE | N40: 5 | O40: 101 | P40: AGRESIONES (HOMICIDIOS) Y SECUELAS | T40: 13 | U40: 13 | V40: 0 | W40: 0
N41: 6 | O41: 055 | P41: ENFERMEDADES CEREBROVASCULARES | T41: 11 | U41: 4 | V41: 7 | W41: 0
B42: 4 | C42: 17 | E42: 0 | G42: 3 | N42: 7 | O42: 053 | P42: TODAS LAS DEMAS FORMAS DE ENFERMEDAD DEL CORAZON | T42: 10 | U42: 6 | V42: 4 | W42: 0
A43: IPS PUBLICAS | B43: IPS PRIVADAS | C43: SERVICIOS PRESTADOS X PROFESION | N43: 8 | O43: 095 | P43: AHOGAMIENTO Y SUMERSION ACCIDENTALES | T43: 8 | U43: 7 | V43: 1 | W43: 0
C44: Odontólogos | D44: Médicos | E44: Otros | F44: Total | N44: 9 | O44: 059 | P44: NEUMONIA | T44: 8 | U44: 5 | V44: 3 | W44: 0
N45: 10 | O45: 037 | P45: TUMORES: IN SITU, BENIGNOS Y DE COMPORTAMIENTO INCIERTO O DESCONOCIDO Y LOS NO ESPECIFICADOS | T45: 7 | U45: 2 | V45: 5 | W45: 0
A46: 1 | B46: 6 | C46: 10 | D46: 13 | E46: 10 | F46: =C46+D46+E46 -> 33
A48: CAPACIDAD INSTALADA | N48: PORCENTAJE DE EMBARAZOS POR GRUPO EDAD RESIDENCIA HABITUAL DE LA MADRE 2017*** | S48: TASAS DE FECUNDIDAD ESPECIFICA POR MIL MUJERES 2017***
A49: CAMAS
A50: Adultos | B50: Cuidado Agudo Mental | C50: Cuidado Intensivo Adulto | D50: Cuidado Intensivo Neonatal | E50: Cuidado Intensivo Pediátrico | F50: Cuidado Intermedio Adulto | G50: Cuidado Intermedio Mental | I50: Cuidado Intermedio Neonatal
N51: 10 a 14 AÑOS | P51: 15 a 19 AÑOS | S51: 10 a 14 AÑOS | U51: 15 a 19 AÑOS
N52: No | O52: % | P52: No | Q52: % | S52: No | T52: TASA | U52: No | V52: TASA
A53: 5 | B53: 0 | C53: 0 | D53: 0 | E53: 0 | F53: 0 | G53: 0 | I53: 0 | N53: 6 | O53: 1.127819549 | P53: 98 | Q53: 18.42105263 | S53: 6 | T53: 2.590673575 | U53: 98 | V53: 43.82826476
A54: CAMAS
A55: Cuidado Intermedio Pediátrico | B55: Farmaco- de-pendencia | C55: Obste-tricia | D55: Pediátricas | E55: Quemados Adultos | F55: Quemados Pediátrico | G55: Salud Mental Psiquiatría | I55: TOTAL CAMAS | N55: *** FUENTE: DANE. Información Preliminar
A58: 0 | B58: 0 | C58: 5 | D58: 4 | E58: 0 | F58: 0 | G58: 0 | I58: =A53+B53+C53+D53+E53+F53+G53+I53+A58+B58+C58+D58+E58+F58+G58 -> 14
A60: SALAS | E60: TOTAL SALAS | N60: INMUNIZACIONES PAI 2017
A61: PARTO | C61: QUIROFANO | N61: POLIOMIELITIS (V.O.P)
A62: 1 | C62: 1 | E62: =A62+C62 -> 2 | N62: Vacunados (Edades) | S62: Refuerzos | T62: Dosis Aplicadas
N63: <1 | O63: 1 | P63: 2 | Q63: 3 | R63: 4 | S63: Otros
A64: TOTAL DE SERVICIOS PRESTADOS SEGÚN LA COMPLEJIDAD | N64: 438 | O64: 6 | P64: 1 | Q64: 0 | R64: 1 | S64: 986 | T64: 2352
A65: BAJA | C65: MEDIA | E65: ALTA
A66: 144 | C66: 36 | E66: 0 | N66: DIFTERIA, TOSFERINA Y TÉTANO (D.P.T)
N67: Vacunados (Edades) | S67: Refuerzos | T67: Dosis
A68: TOTAL DE AMBULANCIAS HABILITADAS SEGÚN TIPO Y MODALIDAD | N68: <1 | O68: 1 | P68: 2 | Q68: 3 | R68: 4 | S68: Otros | T68: Aplicadas
A69: TIPO | C69: MODALIDAD | F69: TOTAL GENERAL | G69: **Fuente: REPS - Minsalud /IPS se incluyen todas las sedes habilitadas /febrero y abril 2018, | N69: 440 | O69: 5 | P69: 1 | Q69: 0 | R69: 1 | S69: 986 | T69: 2350
A70: BASICA | B70: MEDICADA | C70: AEREA | D70: TERRESTRE | E70: FLUVIAL Y MARIT
A71: 2 | B71: 0 | C71: 0 | D71: 2 | E71: 0 | F71: =SUM(C71:E71) -> 2 | N71: TUBERCULOSIS (B.C.G)
A72: 10 PRIMERAS CAUSAS DE HOSPITALIZACION 2016 | N72: Vacunados (Edades) | S72: Otros | T72: Dosis Aplicadas
A73: ORDEN | B73: CODIGO CIE-10 | C73: CAUSA | F73: TOTAL GENERAL | G73: % | H73: HOMBRES | J73: MUJERES | N73: RN | O73: <1 | P73: 2 | Q73: 3 | R73: 4
N74: 81 | O74: 4 | S74: 0 | T74: 85
A75: 1 | B75: C509 | C75: Tumor maligno de la mama, parte no especificada | F75: 174 | G75: 5.001437195 | H75: 0 | J75: 174
A76: 2 | B76: D70X | C76: Agranulocitosis | F76: 124 | G76: 3.564242598 | H76: 124 | J76: 0 | N76: TRIPLE VIRAL - S. R. P.
A77: 3 | B77: O800 | C77: Parto unico espontaneo, presentacion cefalica de vertice | F77: 94 | G77: 2.701925841 | H77: 0 | J77: 94 | N77: Vacunados (Edades) | S77: Refuerzos | T77: Dosis Aplicadas
A78: 4 | B78: L031 | C78: Celulitis de otras partes de los miembros | F78: 91 | G78: 2.615694165 | H78: 20 | J78: 71 | N78: 1 | O78: 2 | P78: 3 | Q78: 4 | R78: Ref. | S78: Otros
A79: 5 | B79: N390 | C79: Infeccion de vias urinarias, sitio no especificado | F79: 71 | G79: 2.040816327 | H79: 20 | J79: 51 | N79: 450 | O79: 2 | P79: 0 | Q79: 1 | R79: 505 | S79: 13 | T79: 971
A80: 6 | B80: K359 | C80: Apendicitis aguda, no especificada | F80: 33 | G80: 0.9485484335 | H80: 18 | J80: 15
A81: 7 | B81: T793 | C81: Infeccion postraumatica de herida, no clasificada en otra parte | F81: 31 | G81: 0.8910606496 | H81: 31 | J81: 0 | N81: AGUA POTABLE 2016
A82: 8 | B82: J441 | C82: Enfermedad pulmonar obstructiva cronica con exacerbacion aguda, no especificada | F82: 28 | G82: 0.8048289738 | H82: 12 | J82: 16 | P82: NUMEROS ACUEDUCTOS | R82: COBERTURA ACUEDUCTOS CON AGUA POTABLE (%) | T82: COBERTURAS VIVIENDAS CON AGUA POTABLE (%)
A83: 9 | B83: A90X | C83: Fiebre del dengue [dengue clasico] | F83: 27 | G83: 0.7760850819 | H83: 8 | J83: 19
A84: 10 | B84: J449 | C84: Enfermedad pulmonar obstructiva cronica, no especificada | F84: 23 | G84: 0.6611095142 | H84: 7 | J84: 16
A85: 11 | C85: Otros Dx | F85: 2783 | G85: 79.99425122 | H85: 2116 | J85: 667 | N85: Urbano | P85: 1 | R85: 100 | T85: 100
A86: TOTALES | F86: 3479 | G86: 100 | H86: 2356 | J86: 1123 | N86: Rural | P86: 70 | R86: 5.714285714 | T86: 9.97
A87: 10 PRIMERAS CAUSAS DE CONSULTA 2016 | N87: Total Municipal | P87: 71 | R87: 7.042253521 | T87: 46.82
A88: ORDEN | B88: CODIGO CIE-10 | C88: CAUSA | F88: TOTAL GENERAL | G88: % | H88: HOMBRES | J88: MUJERES | N88: CERTIFACION EN AGUA POTABLE | O88: INDICE RIESGO CALIDAD DEL AGUA POTABLE - IRCA- (a) | P88: INDICE RIESGO DE ABASTECIMIENTO MUNICIPAL - IRABA- (b) | R88: BUENAS PRACTICAS SANTIARIAS © | T88: CERTIFICAION SANITARIA MUNICIPAL EN AGUA POTABLE ©
A90: 1 | B90: I209 | C90: Angina de pecho, no especificada | F90: 5164 | G90: 7.956979306 | H90: 1 | J90: 5163
A91: 2 | B91: I10X | C91: Hipertension esencial (primaria) | F91: 1575 | G91: 2.426847871 | H91: 406 | J91: 1169
A92: 3 | B92: M545 | C92: Lumbago no especificado | F92: 1289 | G92: 1.986163115 | H92: 615 | J92: 674 | N92: Urbano | O92: 0 | P92: 21.6 | R92: 5 | T92: 5.82
A93: 4 | B93: N390 | C93: Infeccion de vias urinarias, sitio no especificado | F93: 1044 | G93: 1.608653446 | H93: 397 | J93: 647 | N93: Rural | O93: 65.1 | P93: 54.6 | R93: 55.1 | T93: 60
A94: 5 | B94: A09X | C94: Diarrea y gastroenteritis de presunto origen infeccioso | F94: 769 | G94: 1.184918104 | H94: 373 | J94: 396 | N94: Total | O94: 30.1 | P94: 21.7 | R94: 28.1 | T94: 27.82
A95: 6 | B95: M255 | C95: Dolor en articulacion | F95: 703 | G95: 1.083221621 | H95: 275 | J95: 428 | N95: PROYECTOS DE INVERSION (En pesos)
A96: 7 | B96: J00X | C96: Rinofaringitis aguda [resfriado comun] | F96: 620 | G96: 0.9553305906 | H96: 297 | J96: 323 | Q96: 2012 | S96: 2013 | U96: 2014
A97: 8 | B97: J459 | C97: Asma, no especificado | F97: 609 | G97: 0.9383811769 | H97: 234 | J97: 375 | N97: ADULTO MAYOR | Q97: 56000000 | S97: 19255800 | U97: 30000000
A98: 9 | B98: B349 | C98: Infeccion viral, no especificada | F98: 577 | G98: 0.8890737916 | H98: 245 | J98: 332 | N98: DOTACION DISCAPACIDAD | S98: 2875750 | U98: 2747752
A99: 10 | B99: E039 | C99: Hipotiroidismo, no especificado | F99: 512 | G99: 0.7889181651 | H99: 66 | J99: 446 | N99: APS - SALUD CONTIGO | S99: 0 | U99: 39191800
A100: 11 | C100: Otros Dx | F100: 52037 | G100: 80.18151281 | H100: 20521 | J100: 31516 | N100: COFINANCIACION REG. SUBSIDIADO | Q100: 410221739.5 | S100: 352321908 | U100: 465100589
A101: TOTALES | F101: 64899 | G101: 100 | H101: 23430 | J101: 41469 | N101: SSR | Q101: 5772040
A102: 10 PRIMERAS CAUSAS DE URGENCIAS 2016 | N102: PAI | Q102: 14811974
A103: ORDEN | B103: CODIGO CIE-10 | C103: CAUSA | F103: TOTAL GENERAL | G103: % | H103: HOMBRES | J103: MUJERES | N103: VECTORES | Q103: 386400
N104: ESTERILIZACION MASCOTAS | Q104: 0
A105: 1 | B105: O800 | C105: Parto unico espontaneo, presentacion cefalica de vertice | F105: 63 | G105: 4.256756757 | H105: 0 | J105: 63 | N105: VACUNA ANTIRRABICA | Q105: 4236000
A106: 2 | B106: R688 | C106: Otros sintomas y signos generales especificados | F106: 56 | G106: 3.783783784 | H106: 32 | J106: 24 | N106: INFRAESTRUCTURA
A107: 3 | B107: N390 | C107: Infeccion de vias urinarias, sitio no especificado | F107: 25 | G107: 1.689189189 | H107: 7 | J107: 18 | N107: DOTACION EQUIPOS BIOMEDICOS
A108: 4 | B108: O471 | C108: Falso trabajo de parto a las 37 y mas semanas completas de gestacion | F108: 24 | G108: 1.621621622 | H108: 0 | J108: 24 | N108: ESTAMPILLAS PROHOSPITALES | U108: 121213675
A109: 5 | B109: T07X | C109: Traumatismos multiples, no especificados | F109: 22 | G109: 1.486486486 | H109: 15 | J109: 7 | N109: EQUIPAMIENTO
A110: 6 | B110: O470 | C110: Falso trabajo de parto antes de las 37 semanas completas de gestacion | F110: 22 | G110: 1.486486486 | H110: 0 | J110: 22 | N110: TELEMEDICINA
A111: 7 | B111: S800 | C111: Contusion de la rodilla | F111: 21 | G111: 1.418918919 | H111: 14 | J111: 7 | N111: AMBULANCIA
A112: 8 | B112: R51X | C112: Cefalea | F112: 19 | G112: 1.283783784 | H112: 2 | J112: 17 | N112: TOTALES | Q112: =SUM(Q97:R111) -> 491428153.5 | S112: =SUM(S97:T111) -> 374453458 | U112: =SUM(U97:V111) -> 658253816
A113: 9 | B113: A09X | C113: Diarrea y gastroenteritis de presunto origen infeccioso | F113: 18 | G113: 1.216216216 | H113: 12 | J113: 6 | N113: PROYECTOS DE INVERSION (En Cantidad)
A114: 10 | B114: S069 | C114: Traumatismo intracraneal, no especificado | F114: 17 | G114: 1.148648649 | H114: 14 | J114: 3 | N114: PROGRAMA AEREO (No brigadas)
A115: 11 | C115: Otros Dx | F115: 1193 | G115: 80.60810811 | H115: 577 | J115: 616 | N115: ASESORIA Y ASISTENCIA TECNICA | Q115: 22
A116: TOTALES | F116: 1480 | G116: 100 | H116: 673 | J116: 807 | N116: CENTROS AMIGABLES JOVENES | S116: SI

Sheet BELLO
C4: ALCALDE | E4: GLORIA ELENA MONTOYA CASTAÑO (E )
C5: DIRECTOR LOCAL DE SALUD | E5: LUIS ARTURO SÁNCHEZ OSPINA
C7: CERTIFICACION | E7: RANKING | F7: CATEGORIA MUNICIPAL
C8: SI | E8: 30 | F8: 1
C9: TOTAL CORREGIMIENTOS | E9: 1 | F9: TOTAL VEREDAS | I9: 19
A10: CARACTERISTICAS DEMOGRAFICAS | N10: VIGILANCIA DE LA SALUD PUBLICA - AÑO 2017 ***
A11: POBLACION 2018
A12: TOTAL | B12: HOMBRES | C12: MUJERES | D12: CABECERA | E12: RESTO | N12: MORTALIDAD CANCER CUELLO UTERINO | S12: MORTALIDAD MATERNA
A13: 482287 | B13: 233257 | C13: 249030 | D13: 476711 | E13: 5576 | N13: # Casos | O13: Tasa x cienmil Mujeres | S13: # Casos | T13: Tasa x cienmil Nacidos vivos
A14: POR GRUPOS DE EDAD | N14: 15 | O14: 6.138408843 | S14: 3 | T14: 59.18327086
A15: 0 - 4 AÑOS | B15: 5 - 9 AÑOS | C15: 10 - 14 AÑOS | D15: 15 - 19 AÑOS | E15: 20 - 59 AÑOS | F15: > 60 AÑOS
A16: 39127 | B16: 38739 | C16: 39570 | D16: 41351 | E16: 278285 | F16: 45215 | N16: MORTALIDAD INFANTIL | S16: MORTALIDAD PERINATAL
N17: # Casos | O17: Tasa x cienmil Nacidos vivos | S17: # Casos | T17: Tasa x cienmil Nacidos vivos
A18: DESPLAZADOS 2015 (a marzo) | D18: INDIGENAS FEB 2014 | G18: ROM | I18: AFRO | N18: 29 | O18: 5.721049517 | S18: 71 | T18: 14.00670744
A19: TOTAL | B19: HOMBRES | C19: MUJERES | D19: TOTAL | E19: HOMBRES | F19: MUJERES
A20: 36608 | B20: 17937.92 | C20: 18670.08 | D20: 0 | E20: 0 | F20: 0 | N20: MORTALIDAD VIH SIDA | S20: MORTALIDAD TUBERCULOSIS
N21: # Casos | O21: Tasa x cienmil Habitantes | S21: # Casos | T21: Tasa x cienmil Habitantes
A22: POBLACION TOTAL | B22: Afiliados al regimen Subsidiado * | D22: % De Aseguramiento al Regimen Subsidiado * | F22: Afiliados al Regimen Contributivo * | H22: % De Aseguramiento al RS, RC, RE * | N22: 17 | O22: 3.590869054 | S22: 12 | T22: 2.534731097
N24: MORTALIDAD INFARTO AL MIOCARDIO | S24: MORTALIDAD < 5 AÑOS
A25: 482287 | B25: 90769 | D25: 18.82053632 | F25: 310077 | H25: 85.40889553 | N25: # Casos | O25: Tasa x cienmil Habitantes | S25: # Casos | T25: Tasa x cienmil Niños
H26: * Corte a Agosto 2018 | N26: 252 | O26: 53.22935303 | S26: 37 | T26: 95.76065014
A31: PRESTACION DE SERVICIOS DE SALUD **
A32: EMPRESAS SOCIALES DEL ESTADO
A33: INSTITUCION PRESTADORA DE SERVICIOS DE SALUD | F33: DIRECTOR / GERENTE | N33: 10 PRIMERAS CAUSAS DE MORTALIDAD 2017***
A34: EMPRESA SOCIAL DEL ESTADO BELLO SALUD | F34: JAVIER ALEJANDRO BEDOYA TORO | N34: ORDEN | O34: CODIGO 105 CIE-10 | P34: CAUSA | T34: TOTAL GENERAL | U34: HOMBRES | V34: MUJERES | W34: SIN DATO
A35: ESE HOSPITAL MARCO FIDEL SUAREZ | F35: YAN MARCILY ZULUAGA SUAREZ
A36: ESE HOSPITAL MENTAL DE ANTIOQUIA | F36: ELKIN DE JESUS CARDONA ORTIZ | N36: 1 | O36: 051 | P36: ENFERMEDADES ISQUEMICAS DEL CORAZON | T36: 292 | U36: 156 | V36: 136 | W36: 0
N37: 2 | O37: 060 | P37: ENFERMEDADES CRONICAS DE LAS VIAS RESPIRATORIAS INFERIORES | T37: 172 | U37: 69 | V37: 103 | W37: 0
N38: 3 | O38: 055 | P38: ENFERMEDADES CEREBROVASCULARES | T38: 103 | U38: 39 | V38: 64 | W38: 0
A39: PRESTADORES DE SERVICIOS DE SALUD | N39: 4 | O39: 059 | P39: NEUMONIA | T39: 89 | U39: 38 | V39: 51 | W39: 0
A40: TOTALES | B40: IPS | C40: PROFESIONALES INDEPENDIENTES | E40: TRANSPORTE ESPECIAL | G40: OBJETO SOCIAL DIFERENTE | N40: 5 | O40: 020 | P40: TUMOR MALIGNO DE LA TRAQUEA, LOS BRONQUIOS Y EL PULMON | T40: 78 | U40: 40 | V40: 38 | W40: 0
N41: 6 | O41: 101 | P41: AGRESIONES (HOMICIDIOS) Y SECUELAS | T41: 74 | U41: 67 | V41: 7 | W41: 0
B42: 19 | C42: 203 | E42: 1 | G42: 17 | N42: 7 | O42: 050 | P42: ENFERMEDADES HIPERTENSIVAS | T42: 62 | U42: 31 | V42: 31 | W42: 0
A43: IPS PUBLICAS | B43: IPS PRIVADAS | C43: SERVICIOS PRESTADOS X PROFESION | N43: 8 | O43: 090 | P43: ACCIDENTES DE TRANSPORTE DE MOTOR Y SECUELAS | T43: 56 | U43: 45 | V43: 11 | W43: 0
C44: Odontólogos | D44: Médicos | E44: Otros | F44: Total | N44: 9 | O44: 041 | P44: DIABETES MELLITUS | T44: 51 | U44: 16 | V44: 35 | W44: 0
N45: 10 | O45: 013 | P45: TUMOR MALIGNO DEL ESTOMAGO | T45: 50 | U45: 35 | V45: 15 | W45: 0
A46: 11 | B46: 63 | C46: 83 | D46: 84 | E46: 29 | F46: =C46+D46+E46 -> 196
A48: CAPACIDAD INSTALADA | N48: PORCENTAJE DE EMBARAZOS POR GRUPO EDAD RESIDENCIA HABITUAL DE LA MADRE 2017*** | S48: TASAS DE FECUNDIDAD ESPECIFICA POR MIL MUJERES 2017***
A49: CAMAS
A50: Adultos | B50: Cuidado Agudo Mental | C50: Cuidado Intensivo Adulto | D50: Cuidado Intensivo Neonatal | E50: Cuidado Intensivo Pediátrico | F50: Cuidado Intermedio Adulto | G50: Cuidado Intermedio Mental | I50: Cuidado Intermedio Neonatal
N51: 10 a 14 AÑOS | P51: 15 a 19 AÑOS | S51: 10 a 14 AÑOS | U51: 15 a 19 AÑOS
N52: No | O52: % | P52: No | Q52: % | S52: No | T52: TASA | U52: No | V52: TASA
A53: 376 | B53: 0 | C53: 25 | D53: 0 | E53: 0 | F53: 27 | G53: 0 | I53: 0 | N53: 28 | O53: 0.5127266068 | P53: 844 | Q53: 15.45504486 | S53: 28 | T53: 1.439070771 | U53: 844 | V53: 40.38084302
A54: CAMAS
A55: Cuidado Intermedio Pediátrico | B55: Farmaco- de-pendencia | C55: Obste-tricia | D55: Pediátricas | E55: Quemados Adultos | F55: Quemados Pediátrico | G55: Salud Mental Psiquiatría | I55: TOTAL CAMAS | N55: *** FUENTE: DANE. Información Preliminar
A58: 0 | B58: 100 | C58: 3 | D58: 71 | E58: 0 | F58: 0 | G58: 450 | I58: =A53+B53+C53+D53+E53+F53+G53+I53+A58+B58+C58+D58+E58+F58+G58 -> 1052
A60: SALAS | E60: TOTAL SALAS | N60: INMUNIZACIONES PAI 2017
A61: PARTO | C61: QUIROFANO | N61: POLIOMIELITIS (V.O.P)
A62: 1 | C62: 18 | E62: =A62+C62 -> 19 | N62: Vacunados (Edades) | S62: Refuerzos | T62: Dosis Aplicadas
N63: <1 | O63: 1 | P63: 2 | Q63: 3 | R63: 4 | S63: Otros
A64: TOTAL DE SERVICIOS PRESTADOS SEGÚN LA COMPLEJIDAD | N64: 5188 | O64: 86 | P64: 20 | Q64: 10 | R64: 1 | S64: 9931 | T64: 25611
A65: BAJA | C65: MEDIA | E65: ALTA
A66: 967 | C66: 345 | E66: 28 | N66: DIFTERIA, TOSFERINA Y TÉTANO (D.P.T)
N67: Vacunados (Edades) | S67: Refuerzos | T67: Dosis
A68: TOTAL DE AMBULANCIAS HABILITADAS SEGÚN TIPO Y MODALIDAD | N68: <1 | O68: 1 | P68: 2 | Q68: 3 | R68: 4 | S68: Otros | T68: Aplicadas
A69: TIPO | C69: MODALIDAD | F69: TOTAL GENERAL | G69: **Fuente: REPS - Minsalud /IPS se incluyen todas las sedes habilitadas /febrero y abril 2018, | N69: 5146 | O69: 59 | P69: 20 | Q69: 6 | R69: 2 | S69: 9897 | T69: 25601
A70: BASICA | B70: MEDICADA | C70: AEREA | D70: TERRESTRE | E70: FLUVIAL Y MARIT
A71: 6 | B71: 4 | C71: 0 | D71: 10 | E71: 0 | F71: =SUM(C71:E71) -> 10 | N71: TUBERCULOSIS (B.C.G)
A72: 10 PRIMERAS CAUSAS DE HOSPITALIZACION 2016 | N72: Vacunados (Edades) | S72: Otros | T72: Dosis Aplicadas
A73: ORDEN | B73: CODIGO CIE-10 | C73: CAUSA | F73: TOTAL GENERAL | G73: % | H73: HOMBRES | J73: MUJERES | N73: RN | O73: <1 | P73: 2 | Q73: 3 | R73: 4
N74: 73 | O74: 21 | S74: 8 | T74: 102
A75: 1 | B75: O800 | C75: Parto unico espontaneo, presentacion cefalica de vertice | F75: 1778 | G75: 8.040155558 | H75: 0 | J75: 1778
A76: 2 | B76: N390 | C76: Infeccion de vias urinarias, sitio no especificado | F76: 769 | G76: 3.477435109 | H76: 262 | J76: 507 | N76: TRIPLE VIRAL - S. R. P.
A77: 3 | B77: O809 | C77: Parto unico espontaneo, sin otra especificacion | F77: 402 | G77: 1.817852944 | H77: 0 | J77: 402 | N77: Vacunados (Edades) | S77: Refuerzos | T77: Dosis Aplicadas
A78: 4 | B78: O821 | C78: Parto por cesarea de emergencia | F78: 307 | G78: 1.38826083 | H78: 0 | J78: 307 | N78: 1 | O78: 2 | P78: 3 | Q78: 4 | R78: Ref. | S78: Otros
A79: 5 | B79: R688 | C79: Otros sintomas y signos generales especificados | F79: 306 | G79: 1.383738808 | H79: 132 | J79: 174 | N79: 5148 | O79: 36 | P79: 10 | Q79: 5 | R79: 4750 | S79: 279 | T79: 10228
A80: 6 | B80: O810 | C80: Parto con forceps bajo | F80: 277 | G80: 1.252600163 | H80: 0 | J80: 277
A81: 7 | B81: J46X | C81: Estado asmatico | F81: 264 | G81: 1.193813874 | H81: 117 | J81: 147 | N81: AGUA POTABLE 2016
A82: 8 | B82: O829 | C82: Parto por cesarea, sin otra especificacion | F82: 259 | G82: 1.171203762 | H82: 0 | J82: 259 | P82: NUMEROS ACUEDUCTOS | R82: COBERTURA ACUEDUCTOS CON AGUA POTABLE (%) | T82: COBERTURAS VIVIENDAS CON AGUA POTABLE (%)
A83: 9 | B83: K359 | C83: Apendicitis aguda, no especificada | F83: 245 | G83: 1.107895451 | H83: 120 | J83: 125
A84: 10 | B84: A09X | C84: Diarrea y gastroenteritis de presunto origen infeccioso | F84: 234 | G84: 1.058153206 | H84: 78 | J84: 156
A85: 11 | C85: Otros Dx | F85: 17273 | G85: 78.1088903 | H85: 7556 | J85: 9717 | N85: Urbano | P85: 1 | R85: 100 | T85: 100
A86: TOTALES | F86: 22114 | G86: 100 | H86: 8265 | J86: 13849 | N86: Rural | P86: 17 | R86: 17.64705882 | T86: 5.07
A87: 10 PRIMERAS CAUSAS DE CONSULTA 2016 | N87: Total Municipal | P87: 18 | R87: 22.22222222 | T87: 94.54
A88: ORDEN | B88: CODIGO CIE-10 | C88: CAUSA | F88: TOTAL GENERAL | G88: % | H88: HOMBRES | J88: MUJERES | N88: CERTIFACION EN AGUA POTABLE | O88: INDICE RIESGO CALIDAD DEL AGUA POTABLE - IRCA- (a) | P88: INDICE RIESGO DE ABASTECIMIENTO MUNICIPAL - IRABA- (b) | R88: BUENAS PRACTICAS SANTIARIAS © | T88: CERTIFICAION SANITARIA MUNICIPAL EN AGUA POTABLE ©
A90: 1 | B90: I10X | C90: Hipertension esencial (primaria) | F90: 35912 | G90: 4.563905092 | H90: 12333 | J90: 23579
A91: 2 | B91: J00X | C91: Rinofaringitis aguda [resfriado comun] | F91: 17818 | G91: 2.264414706 | H91: 7380 | J91: 10438
A92: 3 | B92: A09X | C92: Diarrea y gastroenteritis de presunto origen infeccioso | F92: 14670 | G92: 1.864348622 | H92: 6615 | J92: 8055 | N92: Urbano | O92: 0.2 | P92: 1.6 | R92: 0 | T92: 0.42
A93: 4 | B93: M545 | C93: Lumbago no especificado | F93: 12757 | G93: 1.621233495 | H93: 5656 | J93: 7101 | N93: Rural | O93: 25.5 | P93: 51 | R93: 30 | T93: 31.95
A94: 5 | B94: N390 | C94: Infeccion de vias urinarias, sitio no especificado | F94: 11691 | G94: 1.485760037 | H94: 3228 | J94: 8463 | N94: Total | O94: 0.6 | P94: 1.3 | R94: 0.5 | T94: 0.71
A95: 6 | B95: M255 | C95: Dolor en articulacion | F95: 5862 | G95: 0.7449769339 | H95: 2104 | J95: 3758 | N95: PROYECTOS DE INVERSION (En pesos)
A96: 7 | B96: E119 | C96: Diabetes mellitus no insulinodependiente, sin mencion de complicacion | F96: 5645 | G96: 0.7173993163 | H96: 2324 | J96: 3321 | Q96: 2012 | S96: 2013 | U96: 2014
A97: 8 | B97: E039 | C97: Hipotiroidismo, no especificado | F97: 5617 | G97: 0.713840914 | H97: 764 | J97: 4853 | N97: ADULTO MAYOR | Q97: 60000000 | S97: 21053008 | U97: 20000000
A98: 9 | B98: B349 | C98: Infeccion viral, no especificada | F98: 4927 | G98: 0.626151715 | H98: 2282 | J98: 2645 | N98: DOTACION DISCAPACIDAD | U98: 2747752
A99: 10 | B99: E669 | C99: Obesidad, no especificada | F99: 4508 | G99: 0.5729027667 | H99: 1106 | J99: 3402 | N99: APS - SALUD CONTIGO | S99: 0
A100: 11 | C100: Otros Dx | F100: 667463 | G100: 84.8250664 | H100: 264202 | J100: 403261 | N100: COFINANCIACION REG. SUBSIDIADO | S100: 0
A101: TOTALES | F101: 786870 | G101: 100 | H101: 307994 | J101: 478876 | N101: SSR | Q101: 52013193
A102: 10 PRIMERAS CAUSAS DE URGENCIAS 2016 | N102: PAI | Q102: 133474128
A103: ORDEN | B103: CODIGO CIE-10 | C103: CAUSA | F103: TOTAL GENERAL | G103: % | H103: HOMBRES | J103: MUJERES | N103: VECTORES | Q103: 386400
N104: ESTERILIZACION MASCOTAS | Q104: 0
A105: 1 | B105: O471 | C105: Falso trabajo de parto a las 37 y mas semanas completas de gestacion | F105: 1953 | G105: 5.397114906 | H105: 0 | J105: 1953 | N105: VACUNA ANTIRRABICA | Q105: 21116000
A106: 2 | B106: N390 | C106: Infeccion de vias urinarias, sitio no especificado | F106: 946 | G106: 2.614270712 | H106: 221 | J106: 725 | N106: INFRAESTRUCTURA
A107: 3 | B107: O800 | C107: Parto unico espontaneo, presentacion cefalica de vertice | F107: 930 | G107: 2.570054717 | H107: 0 | J107: 930 | N107: DOTACION EQUIPOS BIOMEDICOS
A108: 4 | B108: O620 | C108: Contracciones primarias inadecuadas | F108: 831 | G108: 2.296468247 | H108: 0 | J108: 831 | N108: ESTAMPILLAS PROHOSPITALES | Q108: 410075000 | U108: 970877675
A109: 5 | B109: A09X | C109: Diarrea y gastroenteritis de presunto origen infeccioso | F109: 789 | G109: 2.18040126 | H109: 331 | J109: 458 | N109: EQUIPAMIENTO
A110: 6 | B110: O200 | C110: Amenaza de aborto | F110: 776 | G110: 2.144475764 | H110: 0 | J110: 776 | N110: TELEMEDICINA
A111: 7 | B111: R51X | C111: Cefalea | F111: 704 | G111: 1.945503786 | H111: 137 | J111: 567 | N111: AMBULANCIA | Q111: 65000000
A112: 8 | B112: O470 | C112: Falso trabajo de parto antes de las 37 semanas completas de gestacion | F112: 654 | G112: 1.807328801 | H112: 0 | J112: 654 | N112: TOTALES | Q112: =SUM(Q97:R111) -> 742064721 | S112: =SUM(S97:T111) -> 21053008 | U112: =SUM(U97:V111) -> 993625427
A113: 9 | B113: R688 | C113: Otros sintomas y signos generales especificados | F113: 646 | G113: 1.785220804 | H113: 257 | J113: 389 | N113: PROYECTOS DE INVERSION (En Cantidad)
A114: 10 | B114: M545 | C114: Lumbago no especificado | F114: 536 | G114: 1.481235837 | H114: 274 | J114: 262 | N114: PROGRAMA AEREO (No brigadas)
A115: 11 | C115: Otros Dx | F115: 27421 | G115: 75.77792516 | H115: 11016 | J115: 16405 | N115: ASESORIA Y ASISTENCIA TECNICA | Q115: 28
A116: TOTALES | F116: 36186 | G116: 100 | H116: 12236 | J116: 23950 | N116: CENTROS AMIGABLES JOVENES | S116: SI

Sheet BELMIRA
C4: ALCALDE | E4: JORGE IGNACIO LONDOÑO LONDOÑO
C5: DIRECTOR LOCAL DE SALUD | E5: BIBIANA ANDREA LONDOÑO LONDOÑO
C7: CERTIFICACION | E7: RANKING | F7: CATEGORIA MUNICIPAL
C8: SI | E8: 20 | F8: 6
C9: TOTAL CORREGIMIENTOS | E9: 0 | F9: TOTAL VEREDAS | I9: 15
A10: CARACTERISTICAS DEMOGRAFICAS | N10: VIGILANCIA DE LA SALUD PUBLICA - AÑO 2017 ***
A11: POBLACION 2018
A12: TOTAL | B12: HOMBRES | C12: MUJERES | D12: CABECERA | E12: RESTO | N12: MORTALIDAD CANCER CUELLO UTERINO | S12: MORTALIDAD MATERNA
A13: 6930 | B13: 3674 | C13: 3256 | D13: 2002 | E13: 4928 | N13: # Casos | O13: Tasa x cienmil Mujeres | S13: # Casos | T13: Tasa x cienmil Nacidos vivos
A14: POR GRUPOS DE EDAD | N14: 0 | O14: 0 | S14: 0 | T14: 0
A15: 0 - 4 AÑOS | B15: 5 - 9 AÑOS | C15: 10 - 14 AÑOS | D15: 15 - 19 AÑOS | E15: 20 - 59 AÑOS | F15: > 60 AÑOS
A16: 745 | B16: 707 | C16: 663 | D16: 662 | E16: 3437 | F16: 716 | N16: MORTALIDAD INFANTIL | S16: MORTALIDAD PERINATAL
N17: # Casos | O17: Tasa x cienmil Nacidos vivos | S17: # Casos | T17: Tasa x cienmil Nacidos vivos
A18: DESPLAZADOS 2015 (a marzo) | D18: INDIGENAS FEB 2014 | G18: ROM | I18: AFRO | N18: 3 | O18: 52.63157895 | S18: 1 | T18: 17.54385965
A19: TOTAL | B19: HOMBRES | C19: MUJERES | D19: TOTAL | E19: HOMBRES | F19: MUJERES
A20: 263 | B20: 128.87 | C20: 134.13 | D20: 0 | E20: 0 | F20: 0 | N20: MORTALIDAD VIH SIDA | S20: MORTALIDAD TUBERCULOSIS
N21: # Casos | O21: Tasa x cienmil Habitantes | S21: # Casos | T21: Tasa x cienmil Habitantes
A22: POBLACION TOTAL | B22: Afiliados al regimen Subsidiado * | D22: % De Aseguramiento al Regimen Subsidiado * | F22: Afiliados al Regimen Contributivo * | H22: % De Aseguramiento al RS, RC, RE * | N22: 0 | O22: 0 | S22: 0 | T22: 0
N24: MORTALIDAD INFARTO AL MIOCARDIO | S24: MORTALIDAD < 5 AÑOS
A25: 6930 | B25: 2914 | D25: 42.04906205 | F25: 1098 | H25: 59.63924964 | N25: # Casos | O25: Tasa x cienmil Habitantes | S25: # Casos | T25: Tasa x cienmil Niños
H26: * Corte a Agosto 2018 | N26: 0 | O26: 0 | S26: 4 | T26: 538.3580081
A31: PRESTACION DE SERVICIOS DE SALUD **
A32: EMPRESAS SOCIALES DEL ESTADO
A33: INSTITUCION PRESTADORA DE SERVICIOS DE SALUD | F33: DIRECTOR / GERENTE | N33: 10 PRIMERAS CAUSAS DE MORTALIDAD 2017***
A34: EMPRESA SOCIAL DEL ESTADO HOSPITAL NUESTRA SEÑORA DEL ROSARIO | F34: NATALIA ROSARIO GIL PULGARIN | N34: ORDEN | O34: CODIGO 105 CIE-10 | P34: CAUSA | T34: TOTAL GENERAL | U34: HOMBRES | V34: MUJERES | W34: SIN DATO
N36: 1 | O36: 089 | P36: SIGNOS, SINTOMAS Y AFECCIONES MAL DEFINIDAS | T36: 4 | U36: 2 | V36: 2 | W36: 0
N37: 2 | O37: 101 | P37: AGRESIONES (HOMICIDIOS) Y SECUELAS | T37: 4 | U37: 4 | V37: 0 | W37: 0
N38: 3 | O38: 060 | P38: ENFERMEDADES CRONICAS DE LAS VIAS RESPIRATORIAS INFERIORES | T38: 4 | U38: 3 | V38: 1 | W38: 0
A39: PRESTADORES DE SERVICIOS DE SALUD | N39: 4 | O39: 050 | P39: ENFERMEDADES HIPERTENSIVAS | T39: 3 | U39: 3 | V39: 0 | W39: 0
A40: TOTALES | B40: IPS | C40: PROFESIONALES INDEPENDIENTES | E40: TRANSPORTE ESPECIAL | G40: OBJETO SOCIAL DIFERENTE | N40: 5 | O40: 062 | P40: TODAS LAS DEMAS ENFERMEDADES DEL SISTEMA RESPIRATORIO | T40: 3 | U40: 3 | V40: 0 | W40: 0
N41: 6 | O41: 066 | P41: ENFERMEDADES DEL HIGADO | T41: 1 | U41: 0 | V41: 1 | W41: 0
B42: 1 | C42: 1 | E42: 0 | G42: 0 | N42: 7 | O42: 020 | P42: TUMOR MALIGNO DE LA TRAQUEA, LOS BRONQUIOS Y EL PULMON | T42: 1 | U42: 1 | V42: 0 | W42: 0
A43: IPS PUBLICAS | B43: IPS PRIVADAS | C43: SERVICIOS PRESTADOS X PROFESION | N43: 8 | O43: 087 | P43: MALFORMACIONES CONGENITAS DEL SISTEMA CIRCULATORIO | T43: 1 | U43: 0 | V43: 1 | W43: 0
C44: Odontólogos | D44: Médicos | E44: Otros | F44: Total | N44: 9 | O44: 038 | P44: TODOS LOS DEMAS TUMORES MALIGNOS DE OTRAS LOCALIZACIONES | T44: 1 | U44: 1 | V44: 0 | W44: 0
N45: 10 | O45: 105 | P45: OTROS ACCIDENTES Y SECUELAS | T45: 1 | U45: 0 | V45: 1 | W45: 0
A46: 1 | B46: 0 | C46: 1 | D46: 1 | E46: 0 | F46: =C46+D46+E46 -> 2
A48: CAPACIDAD INSTALADA | N48: PORCENTAJE DE EMBARAZOS POR GRUPO EDAD RESIDENCIA HABITUAL DE LA MADRE 2017*** | S48: TASAS DE FECUNDIDAD ESPECIFICA POR MIL MUJERES 2017***
A49: CAMAS
A50: Adultos | B50: Cuidado Agudo Mental | C50: Cuidado Intensivo Adulto | D50: Cuidado Intensivo Neonatal | E50: Cuidado Intensivo Pediátrico | F50: Cuidado Intermedio Adulto | G50: Cuidado Intermedio Mental | I50: Cuidado Intermedio Neonatal
N51: 10 a 14 AÑOS | P51: 15 a 19 AÑOS | S51: 10 a 14 AÑOS | U51: 15 a 19 AÑOS
N52: No | O52: % | P52: No | Q52: % | S52: No | T52: TASA | U52: No | V52: TASA
A53: 2 | B53: 0 | C53: 0 | D53: 0 | E53: 0 | F53: 0 | G53: 0 | I53: 0 | N53: 0 | O53: 0 | P53: 12 | Q53: 20 | S53: 0 | T53: 0 | U53: 12 | V53: 38.585209
A54: CAMAS
A55: Cuidado Intermedio Pediátrico | B55: Farmaco- de-pendencia | C55: Obste-tricia | D55: Pediátricas | E55: Quemados Adultos | F55: Quemados Pediátrico | G55: Salud Mental Psiquiatría | I55: TOTAL CAMAS | N55: *** FUENTE: DANE. Información Preliminar
A58: 0 | B58: 0 | C58: 2 | D58: 2 | E58: 0 | F58: 0 | G58: 0 | I58: =A53+B53+C53+D53+E53+F53+G53+I53+A58+B58+C58+D58+E58+F58+G58 -> 6
A60: SALAS | E60: TOTAL SALAS | N60: INMUNIZACIONES PAI 2017
A61: PARTO | C61: QUIROFANO | N61: POLIOMIELITIS (V.O.P)
A62: 1 | C62: 0 | E62: =A62+C62 -> 1 | N62: Vacunados (Edades) | S62: Refuerzos | T62: Dosis Aplicadas
N63: <1 | O63: 1 | P63: 2 | Q63: 3 | R63: 4 | S63: Otros
A64: TOTAL DE SERVICIOS PRESTADOS SEGÚN LA COMPLEJIDAD | N64: 68 | O64: 0 | P64: 0 | Q64: 0 | R64: 0 | S64: 146 | T64: 341
A65: BAJA | C65: MEDIA | E65: ALTA
A66: 28 | C66: 0 | E66: 0 | N66: DIFTERIA, TOSFERINA Y TÉTANO (D.P.T)
N67: Vacunados (Edades) | S67: Refuerzos | T67: Dosis
A68: TOTAL DE AMBULANCIAS HABILITADAS SEGÚN TIPO Y MODALIDAD | N68: <1 | O68: 1 | P68: 2 | Q68: 3 | R68: 4 | S68: Otros | T68: Aplicadas
A69: TIPO | C69: MODALIDAD | F69: TOTAL GENERAL | G69: **Fuente: REPS - Minsalud /IPS se incluyen todas las sedes habilitadas /febrero y abril 2018, | N69: 68 | O69: 0 | P69: 0 | Q69: 0 | R69: 0 | S69: 146 | T69: 340
A70: BASICA | B70: MEDICADA | C70: AEREA | D70: TERRESTRE | E70: FLUVIAL Y MARIT
A71: 1 | B71: 0 | C71: 0 | D71: 1 | E71: 0 | F71: =SUM(C71:E71) -> 1 | N71: TUBERCULOSIS (B.C.G)
A72: 10 PRIMERAS CAUSAS DE HOSPITALIZACION 2016 | N72: Vacunados (Edades) | S72: Otros | T72: Dosis Aplicadas
A73: ORDEN | B73: CODIGO CIE-10 | C73: CAUSA | F73: TOTAL GENERAL | G73: % | H73: HOMBRES | J73: MUJERES | N73: RN | O73: <1 | P73: 2 | Q73: 3 | R73: 4
N74: 15 | O74: 0 | S74: 0 | T74: 15
A75: 1 | B75: A499 | C75: Infeccion bacteriana, no especificada | F75: 28 | G75: 9.621993127 | H75: 0 | J75: 28
A76: 2 | B76: O800 | C76: Parto unico espontaneo, presentacion cefalica de vertice | F76: 22 | G76: 7.560137457 | H76: 0 | J76: 22 | N76: TRIPLE VIRAL - S. R. P.
A77: 3 | B77: J449 | C77: Enfermedad pulmonar obstructiva cronica, no especificada | F77: 11 | G77: 3.780068729 | H77: 6 | J77: 5 | N77: Vacunados (Edades) | S77: Refuerzos | T77: Dosis Aplicadas
A78: 4 | B78: N390 | C78: Infeccion de vias urinarias, sitio no especificado | F78: 9 | G78: 3.092783505 | H78: 2 | J78: 7 | N78: 1 | O78: 2 | P78: 3 | Q78: 4 | R78: Ref. | S78: Otros
A79: 5 | B79: J459 | C79: Asma, no especificado | F79: 8 | G79: 2.749140893 | H79: 1 | J79: 7 | N79: 71 | O79: 0 | P79: 0 | Q79: 0 | R79: 83 | S79: 1 | T79: 155
A80: 6 | B80: S069 | C80: Traumatismo intracraneal, no especificado | F80: 7 | G80: 2.405498282 | H80: 7 | J80: 0
A81: 7 | B81: R509 | C81: Fiebre, no especificada | F81: 6 | G81: 2.06185567 | H81: 4 | J81: 2 | N81: AGUA POTABLE 2016
A82: 8 | B82: S241 | C82: Otros traumatismos y los no especificados de la medula espinal toracica | F82: 6 | G82: 2.06185567 | H82: 6 | J82: 0 | P82: NUMEROS ACUEDUCTOS | R82: COBERTURA ACUEDUCTOS CON AGUA POTABLE (%) | T82: COBERTURAS VIVIENDAS CON AGUA POTABLE (%)
A83: 9 | B83: J189 | C83: Neumonia, no especificada | F83: 5 | G83: 1.718213058 | H83: 3 | J83: 2
A84: 10 | B84: B227 | C84: Enfermedad por VIH, resultante en enfermedades multiples clasificadas en otra parte | F84: 4 | G84: 1.374570447 | H84: 4 | J84: 0
A85: 11 | C85: Otros Dx | F85: 185 | G85: 63.57388316 | H85: 72 | J85: 113 | N85: Urbano | P85: 1 | R85: 100 | T85: 98
A86: TOTALES | F86: 291 | G86: 100 | H86: 105 | J86: 186 | N86: Rural | P86: 14 | R86: 0 | T86: 0
A87: 10 PRIMERAS CAUSAS DE CONSULTA 2016 | N87: Total Municipal | P87: 15 | R87: 6.666666667 | T87: 34.04
A88: ORDEN | B88: CODIGO CIE-10 | C88: CAUSA | F88: TOTAL GENERAL | G88: % | H88: HOMBRES | J88: MUJERES | N88: CERTIFACION EN AGUA POTABLE | O88: INDICE RIESGO CALIDAD DEL AGUA POTABLE - IRCA- (a) | P88: INDICE RIESGO DE ABASTECIMIENTO MUNICIPAL - IRABA- (b) | R88: BUENAS PRACTICAS SANTIARIAS © | T88: CERTIFICAION SANITARIA MUNICIPAL EN AGUA POTABLE ©
A90: 1 | B90: I10X | C90: Hipertension esencial (primaria) | F90: 425 | G90: 7.783882784 | H90: 83 | J90: 342
A91: 2 | B91: J00X | C91: Rinofaringitis aguda [resfriado comun] | F91: 81 | G91: 1.483516484 | H91: 36 | J91: 45
A92: 3 | B92: N390 | C92: Infeccion de vias urinarias, sitio no especificado | F92: 72 | G92: 1.318681319 | H92: 9 | J92: 63 | N92: Urbano | O92: 0.9 | P92: 46.5 | R92: 36.8 | T92: 20.79
A93: 4 | B93: M545 | C93: Lumbago no especificado | F93: 68 | G93: 1.245421245 | H93: 20 | J93: 48 | N93: Rural | O93: 76.3 | P93: 68.4 | R93: 74 | T93: 74.03
A94: 5 | B94: M255 | C94: Dolor en articulacion | F94: 60 | G94: 1.098901099 | H94: 34 | J94: 26 | N94: Total | O94: 38.9 | P94: 44.5 | R94: 55.6 | T94: 45.03
A95: 6 | B95: A09X | C95: Diarrea y gastroenteritis de presunto origen infeccioso | F95: 52 | G95: 0.9523809524 | H95: 14 | J95: 38 | N95: PROYECTOS DE INVERSION (En pesos)
A96: 7 | B96: T924 | C96: Secuelas de traumatismo de nervio de miembro superior | F96: 37 | G96: 0.6776556777 | H96: 0 | J96: 37 | Q96: 2012 | S96: 2013 | U96: 2014
A97: 8 | B97: I212 | C97: Infarto agudo transmural del miocardio de otros sitios | F97: 35 | G97: 0.641025641 | H97: 35 | J97: 0 | N97: ADULTO MAYOR | Q97: 60000000 | S97: 25083710 | U97: 30000000
A98: 9 | B98: O800 | C98: Parto unico espontaneo, presentacion cefalica de vertice | F98: 32 | G98: 0.5860805861 | H98: 0 | J98: 32 | N98: DOTACION DISCAPACIDAD | U98: 2747752
A99: 10 | B99: M791 | C99: Mialgia | F99: 29 | G99: 0.5311355311 | H99: 3 | J99: 26 | N99: APS - SALUD CONTIGO | Q99: 45150000 | S99: 45150000 | U99: 27487200
A100: 11 | C100: Otros Dx | F100: 4569 | G100: 83.68131868 | H100: 1526 | J100: 3043 | N100: COFINANCIACION REG. SUBSIDIADO | Q100: 415238241.5 | S100: 356630367 | U100: 470788191
A101: TOTALES | F101: 5460 | G101: 100 | H101: 1760 | J101: 3700 | N101: SSR | Q101: 797069
A102: 10 PRIMERAS CAUSAS DE URGENCIAS 2016 | N102: PAI | Q102: 2045407
A103: ORDEN | B103: CODIGO CIE-10 | C103: CAUSA | F103: TOTAL GENERAL | G103: % | H103: HOMBRES | J103: MUJERES | N103: VECTORES | Q103: 386400
N104: ESTERILIZACION MASCOTAS | Q104: 0
A105: 1 | B105: R104 | C105: Otros dolores abdominales y los no especificados | F105: 17 | G105: 4.404145078 | H105: 3 | J105: 14 | N105: VACUNA ANTIRRABICA | Q105: 1146000
A106: 2 | B106: S019 | C106: Herida de la cabeza, parte no especificada | F106: 15 | G106: 3.886010363 | H106: 15 | J106: 0 | N106: INFRAESTRUCTURA
A107: 3 | B107: S610 | C107: Herida de dedo(s) de la mano, sin dano de la(s) una(s) | F107: 14 | G107: 3.626943005 | H107: 14 | J107: 0 | N107: DOTACION EQUIPOS BIOMEDICOS
A108: 4 | B108: R074 | C108: Dolor en el pecho, no especificado | F108: 13 | G108: 3.367875648 | H108: 4 | J108: 9 | N108: ESTAMPILLAS PROHOSPITALES | Q108: 70319000 | U108: 2666983
A109: 5 | B109: N390 | C109: Infeccion de vias urinarias, sitio no especificado | F109: 11 | G109: 2.849740933 | H109: 0 | J109: 11 | N109: EQUIPAMIENTO
A110: 6 | B110: H811 | C110: Vertigo paroxistico benigno | F110: 10 | G110: 2.590673575 | H110: 0 | J110: 10 | N110: TELEMEDICINA
A111: 7 | B111: S600 | C111: Contusion de dedo(s) de la mano, sin dano de la(s) una(s) | F111: 9 | G111: 2.331606218 | H111: 9 | J111: 0 | N111: AMBULANCIA
A112: 8 | B112: S626 | C112: Fractura de otro dedo de la mano | F112: 9 | G112: 2.331606218 | H112: 7 | J112: 2 | N112: TOTALES | Q112: =SUM(Q97:R111) -> 595082117.5 | S112: =SUM(S97:T111) -> 426864077 | U112: =SUM(U97:V111) -> 533690126
A113: 9 | B113: R51X | C113: Cefalea | F113: 9 | G113: 2.331606218 | H113: 5 | J113: 4 | N113: PROYECTOS DE INVERSION (En Cantidad)
A114: 10 | B114: S525 | C114: Fractura de la epifisis inferior del radio | F114: 8 | G114: 2.07253886 | H114: 4 | J114: 4 | N114: PROGRAMA AEREO (No brigadas)
A115: 11 | C115: Otros Dx | F115: 271 | G115: 70.20725389 | H115: 151 | J115: 120 | N115: ASESORIA Y ASISTENCIA TECNICA | Q115: 13
A116: TOTALES | F116: 386 | G116: 100 | H116: 212 | J116: 174 | N116: CENTROS AMIGABLES JOVENES

Sheet BETANIA
C4: ALCALDE | E4: ROLAND ALEJANDRO SÁNCHEZ SANCHEZ
C5: DIRECTOR LOCAL DE SALUD | E5: LILIAN CRISTINA LOPEZ BARRERA
C7: CERTIFICACION | E7: RANKING | F7: CATEGORIA MUNICIPAL
C8: SI | E8: 4 | F8: 6
C9: TOTAL CORREGIMIENTOS | E9: 0 | F9: TOTAL VEREDAS | I9: 19
A10: CARACTERISTICAS DEMOGRAFICAS | N10: VIGILANCIA DE LA SALUD PUBLICA - AÑO 2017 ***
A11: POBLACION 2018
A12: TOTAL | B12: HOMBRES | C12: MUJERES | D12: CABECERA | E12: RESTO | N12: MORTALIDAD CANCER CUELLO UTERINO | S12: MORTALIDAD MATERNA
A13: 8976 | B13: 4793 | C13: 4183 | D13: 3851 | E13: 5125 | N13: # Casos | O13: Tasa x cienmil Mujeres | S13: # Casos | T13: Tasa x cienmil Nacidos vivos
A14: POR GRUPOS DE EDAD | N14: 0 | O14: 0 | S14: 0 | T14: 0
A15: 0 - 4 AÑOS | B15: 5 - 9 AÑOS | C15: 10 - 14 AÑOS | D15: 15 - 19 AÑOS | E15: 20 - 59 AÑOS | F15: > 60 AÑOS
A16: 871 | B16: 885 | C16: 908 | D16: 800 | E16: 4682 | F16: 830 | N16: MORTALIDAD INFANTIL | S16: MORTALIDAD PERINATAL
N17: # Casos | O17: Tasa x cienmil Nacidos vivos | S17: # Casos | T17: Tasa x cienmil Nacidos vivos
A18: DESPLAZADOS 2015 (a marzo) | D18: INDIGENAS FEB 2014 | G18: ROM | I18: AFRO | N18: 0 | O18: 0 | S18: 0 | T18: 0
A19: TOTAL | B19: HOMBRES | C19: MUJERES | D19: TOTAL | E19: HOMBRES | F19: MUJERES
A20: 1201 | B20: 588.49 | C20: 612.51 | D20: 0 | E20: 0 | F20: 0 | N20: MORTALIDAD VIH SIDA | S20: MORTALIDAD TUBERCULOSIS
N21: # Casos | O21: Tasa x cienmil Habitantes | S21: # Casos | T21: Tasa x cienmil Habitantes
A22: POBLACION TOTAL | B22: Afiliados al regimen Subsidiado * | D22: % De Aseguramiento al Regimen Subsidiado * | F22: Afiliados al Regimen Contributivo * | H22: % De Aseguramiento al RS, RC, RE * | N22: 1 | O22: 11.0144289 | S22: 0 | T22: 0
N24: MORTALIDAD INFARTO AL MIOCARDIO | S24: MORTALIDAD < 5 AÑOS
A25: 8976 | B25: 6420 | D25: 71.52406417 | F25: 814 | H25: 82.67602496 | N25: # Casos | O25: Tasa x cienmil Habitantes | S25: # Casos | T25: Tasa x cienmil Niños
H26: * Corte a Agosto 2018 | N26: 4 | O26: 44.05771561 | S26: 0 | T26: 0
A31: PRESTACION DE SERVICIOS DE SALUD **
A32: EMPRESAS SOCIALES DEL ESTADO
A33: INSTITUCION PRESTADORA DE SERVICIOS DE SALUD | F33: DIRECTOR / GERENTE | N33: 10 PRIMERAS CAUSAS DE MORTALIDAD 2017***
A34: ESE HOSPITAL SAN ANTONIO | F34: JUAN CARLOS GUZMAN NOREÑA | N34: ORDEN | O34: CODIGO 105 CIE-10 | P34: CAUSA | T34: TOTAL GENERAL | U34: HOMBRES | V34: MUJERES | W34: SIN DATO
N36: 1 | O36: 101 | P36: AGRESIONES (HOMICIDIOS) Y SECUELAS | T36: 16 | U36: 14 | V36: 2 | W36: 0
N37: 2 | O37: 060 | P37: ENFERMEDADES CRONICAS DE LAS VIAS RESPIRATORIAS INFERIORES | T37: 6 | U37: 3 | V37: 3 | W37: 0
N38: 3 | O38: 051 | P38: ENFERMEDADES ISQUEMICAS DEL CORAZON | T38: 5 | U38: 4 | V38: 1 | W38: 0
A39: PRESTADORES DE SERVICIOS DE SALUD | N39: 4 | O39: 013 | P39: TUMOR MALIGNO DEL ESTOMAGO | T39: 4 | U39: 3 | V39: 1 | W39: 0
A40: TOTALES | B40: IPS | C40: PROFESIONALES INDEPENDIENTES | E40: TRANSPORTE ESPECIAL | G40: OBJETO SOCIAL DIFERENTE | N40: 5 | O40: 055 | P40: ENFERMEDADES CEREBROVASCULARES | T40: 3 | U40: 2 | V40: 1 | W40: 0
N41: 6 | O41: 017 | P41: TUMOR MALIGNO DEL PANCREAS | T41: 2 | U41: 1 | V41: 1 | W41: 0
B42: 1 | C42: 1 | E42: 0 | G42: 0 | N42: 7 | O42: 041 | P42: DIABETES MELLITUS | T42: 2 | U42: 1 | V42: 1 | W42: 0
A43: IPS PUBLICAS | B43: IPS PRIVADAS | C43: SERVICIOS PRESTADOS X PROFESION | N43: 8 | O43: 037 | P43: TUMORES: IN SITU, BENIGNOS Y DE COMPORTAMIENTO INCIERTO O DESCONOCIDO Y LOS NO ESPECIFICADOS | T43: 1 | U43: 0 | V43: 1 | W43: 0
C44: Odontólogos | D44: Médicos | E44: Otros | F44: Total | N44: 9 | O44: 015 | P44: TUMOR MALIGNO DEL HIGADO | T44: 1 | U44: 1 | V44: 0 | W44: 0
N45: 10 | O45: 050 | P45: ENFERMEDADES HIPERTENSIVAS | T45: 1 | U45: 0 | V45: 1 | W45: 0
A46: 1 | B46: 0 | C46: 2 | D46: 1 | E46: 0 | F46: =C46+D46+E46 -> 3
A48: CAPACIDAD INSTALADA | N48: PORCENTAJE DE EMBARAZOS POR GRUPO EDAD RESIDENCIA HABITUAL DE LA MADRE 2017*** | S48: TASAS DE FECUNDIDAD ESPECIFICA POR MIL MUJERES 2017***
A49: CAMAS
A50: Adultos | B50: Cuidado Agudo Mental | C50: Cuidado Intensivo Adulto | D50: Cuidado Intensivo Neonatal | E50: Cuidado Intensivo Pediátrico | F50: Cuidado Intermedio Adulto | G50: Cuidado Intermedio Mental | I50: Cuidado Intermedio Neonatal
N51: 10 a 14 AÑOS | P51: 15 a 19 AÑOS | S51: 10 a 14 AÑOS | U51: 15 a 19 AÑOS
N52: No | O52: % | P52: No | Q52: % | S52: No | T52: TASA | U52: No | V52: TASA
A53: 2 | B53: 0 | C53: 0 | D53: 0 | E53: 0 | F53: 0 | G53: 0 | I53: 0 | N53: 2 | O53: 2.631578947 | P53: 20 | Q53: 26.31578947 | S53: 2 | T53: 4.566210046 | U53: 20 | V53: 52.77044855
A54: CAMAS
A55: Cuidado Intermedio Pediátrico | B55: Farmaco- de-pendencia | C55: Obste-tricia | D55: Pediátricas | E55: Quemados Adultos | F55: Quemados Pediátrico | G55: Salud Mental Psiquiatría | I55: TOTAL CAMAS | N55: *** FUENTE: DANE. Información Preliminar
A58: 0 | B58: 0 | C58: 1 | D58: 1 | E58: 0 | F58: 0 | G58: 0 | I58: =A53+B53+C53+D53+E53+F53+G53+I53+A58+B58+C58+D58+E58+F58+G58 -> 4
A60: SALAS | E60: TOTAL SALAS | N60: INMUNIZACIONES PAI 2017
A61: PARTO | C61: QUIROFANO | N61: POLIOMIELITIS (V.O.P)
A62: 1 | C62: 0 | E62: =A62+C62 -> 1 | N62: Vacunados (Edades) | S62: Refuerzos | T62: Dosis Aplicadas
N63: <1 | O63: 1 | P63: 2 | Q63: 3 | R63: 4 | S63: Otros
A64: TOTAL DE SERVICIOS PRESTADOS SEGÚN LA COMPLEJIDAD | N64: 77 | O64: 1 | P64: 0 | Q64: 1 | R64: 0 | S64: 207 | T64: 434
A65: BAJA | C65: MEDIA | E65: ALTA
A66: 32 | C66: 4 | E66: 0 | N66: DIFTERIA, TOSFERINA Y TÉTANO (D.P.T)
N67: Vacunados (Edades) | S67: Refuerzos | T67: Dosis
A68: TOTAL DE AMBULANCIAS HABILITADAS SEGÚN TIPO Y MODALIDAD | N68: <1 | O68: 1 | P68: 2 | Q68: 3 | R68: 4 | S68: Otros | T68: Aplicadas
A69: TIPO | C69: MODALIDAD | F69: TOTAL GENERAL | G69: **Fuente: REPS - Minsalud /IPS se incluyen todas las sedes habilitadas /febrero y abril 2018, | N69: 77 | O69: 1 | P69: 0 | Q69: 1 | R69: 0 | S69: 207 | T69: 434
A70: BASICA | B70: MEDICADA | C70: AEREA | D70: TERRESTRE | E70: FLUVIAL Y MARIT
A71: 2 | B71: 0 | C71: 0 | D71: 2 | E71: 0 | F71: =SUM(C71:E71) -> 2 | N71: TUBERCULOSIS (B.C.G)
A72: 10 PRIMERAS CAUSAS DE HOSPITALIZACION 2016 | N72: Vacunados (Edades) | S72: Otros | T72: Dosis Aplicadas
A73: ORDEN | B73: CODIGO CIE-10 | C73: CAUSA | F73: TOTAL GENERAL | G73: % | H73: HOMBRES | J73: MUJERES | N73: RN | O73: <1 | P73: 2 | Q73: 3 | R73: 4
N74: 31 | O74: 0 | S74: 0 | T74: 31
A75: 1 | B75: O800 | C75: Parto unico espontaneo, presentacion cefalica de vertice | F75: 58 | G75: 15.42553191 | H75: 0 | J75: 58
A76: 2 | B76: A90X | C76: Fiebre del dengue [dengue clasico] | F76: 44 | G76: 11.70212766 | H76: 18 | J76: 26 | N76: TRIPLE VIRAL - S. R. P.
A77: 3 | B77: J189 | C77: Neumonia, no especificada | F77: 29 | G77: 7.712765957 | H77: 12 | J77: 17 | N77: Vacunados (Edades) | S77: Refuerzos | T77: Dosis Aplicadas
A78: 4 | B78: J441 | C78: Enfermedad pulmonar obstructiva cronica con exacerbacion aguda, no especificada | F78: 21 | G78: 5.585106383 | H78: 8 | J78: 13 | N78: 1 | O78: 2 | P78: 3 | Q78: 4 | R78: Ref. | S78: Otros
A79: 5 | B79: L031 | C79: Celulitis de otras partes de los miembros | F79: 13 | G79: 3.457446809 | H79: 5 | J79: 8 | N79: 85 | O79: 0 | P79: 2 | Q79: 0 | R79: 110 | S79: 0 | T79: 197
A80: 6 | B80: N390 | C80: Infeccion de vias urinarias, sitio no especificado | F80: 9 | G80: 2.393617021 | H80: 5 | J80: 4
A81: 7 | B81: J159 | C81: Neumonia bacteriana, no especificada | F81: 8 | G81: 2.127659574 | H81: 7 | J81: 1 | N81: AGUA POTABLE 2016
A82: 8 | B82: I509 | C82: Insuficiencia cardiaca, no especificada | F82: 5 | G82: 1.329787234 | H82: 3 | J82: 2 | P82: NUMEROS ACUEDUCTOS | R82: COBERTURA ACUEDUCTOS CON AGUA POTABLE (%) | T82: COBERTURAS VIVIENDAS CON AGUA POTABLE (%)
A83: 9 | B83: K359 | C83: Apendicitis aguda, no especificada | F83: 5 | G83: 1.329787234 | H83: 2 | J83: 3
A84: 10 | B84: I500 | C84: Insuficiencia cardiaca congestiva | F84: 5 | G84: 1.329787234 | H84: 3 | J84: 2
A85: 11 | C85: Otros Dx | F85: 179 | G85: 47.60638298 | H85: 82 | J85: 97 | N85: Urbano | P85: 1 | R85: 0 | T85: 100
A86: TOTALES | F86: 376 | G86: 100 | H86: 145 | J86: 231 | N86: Rural | P86: 28 | R86: 0 | T86: 0
A87: 10 PRIMERAS CAUSAS DE CONSULTA 2016 | N87: Total Municipal | P87: 29 | R87: 0 | T87: 0
A88: ORDEN | B88: CODIGO CIE-10 | C88: CAUSA | F88: TOTAL GENERAL | G88: % | H88: HOMBRES | J88: MUJERES | N88: CERTIFACION EN AGUA POTABLE | O88: INDICE RIESGO CALIDAD DEL AGUA POTABLE - IRCA- (a) | P88: INDICE RIESGO DE ABASTECIMIENTO MUNICIPAL - IRABA- (b) | R88: BUENAS PRACTICAS SANTIARIAS © | T88: CERTIFICAION SANITARIA MUNICIPAL EN AGUA POTABLE ©
A90: 1 | B90: I10X | C90: Hipertension esencial (primaria) | F90: 2681 | G90: 11.55205102 | H90: 1037 | J90: 1644
A91: 2 | B91: E119 | C91: Diabetes mellitus no insulinodependiente, sin mencion de complicacion | F91: 712 | G91: 3.067907618 | H91: 187 | J91: 525
A92: 3 | B92: A90X | C92: Fiebre del dengue [dengue clasico] | F92: 441 | G92: 1.900206825 | H92: 177 | J92: 264 | N92: Urbano | O92: 22.8 | P92: 35.4 | R92: 39 | T92: 30.18
A93: 4 | B93: N390 | C93: Infeccion de vias urinarias, sitio no especificado | F93: 382 | G93: 1.645984143 | H93: 103 | J93: 279 | N93: Rural | O93: 64.9 | P93: 60.3 | R93: 39.2 | T93: 56.27
A94: 5 | B94: E039 | C94: Hipotiroidismo, no especificado | F94: 357 | G94: 1.538262668 | H94: 52 | J94: 305 | N94: Total | O94: 33.3 | P94: 33.2 | R94: 39 | T94: 34.99
A95: 6 | B95: E785 | C95: Hiperlipidemia no especificada | F95: 311 | G95: 1.340055153 | H95: 94 | J95: 217 | N95: PROYECTOS DE INVERSION (En pesos)
A96: 7 | B96: M545 | C96: Lumbago no especificado | F96: 295 | G96: 1.271113409 | H96: 121 | J96: 174 | Q96: 2012 | S96: 2013 | U96: 2014
A97: 8 | B97: E109 | C97: Diabetes mellitus insulinodependiente, sin mencion de complicacion | F97: 273 | G97: 1.176318511 | H97: 56 | J97: 217 | N97: ADULTO MAYOR | Q97: 70200000 | S97: 19255800 | U97: 27000000
A98: 9 | B98: M255 | C98: Dolor en articulacion | F98: 238 | G98: 1.025508445 | H98: 88 | J98: 150 | N98: DOTACION DISCAPACIDAD | U98: 2919752
A99: 10 | B99: J00X | C99: Rinofaringitis aguda [resfriado comun] | F99: 182 | G99: 0.7842123406 | H99: 64 | J99: 118 | N99: APS - SALUD CONTIGO | S99: 17616198 | U99: 40146331
A100: 11 | C100: Otros Dx | F100: 17336 | G100: 74.69837987 | H100: 6287 | J100: 11049 | N100: COFINANCIACION REG. SUBSIDIADO | Q100: 360673978.4 | S100: 309767455 | U100: 408924402
A101: TOTALES | F101: 23208 | G101: 100 | H101: 8266 | J101: 14942 | N101: SSR | Q101: 1159440
A102: 10 PRIMERAS CAUSAS DE URGENCIAS 2016 | N102: PAI | Q102: 2975307
A103: ORDEN | B103: CODIGO CIE-10 | C103: CAUSA | F103: TOTAL GENERAL | G103: % | H103: HOMBRES | J103: MUJERES | N103: VECTORES | Q103: 386400
N104: ESTERILIZACION MASCOTAS | Q104: 0
A105: 1 | B105: R51X | C105: Cefalea | F105: 76 | G105: 11.19293078 | H105: 26 | J105: 50 | N105: VACUNA ANTIRRABICA | Q105: 2088000
A106: 2 | B106: R509 | C106: Fiebre, no especificada | F106: 68 | G106: 10.01472754 | H106: 30 | J106: 38 | N106: INFRAESTRUCTURA
A107: 3 | B107: R104 | C107: Otros dolores abdominales y los no especificados | F107: 18 | G107: 2.65095729 | H107: 11 | J107: 7 | N107: DOTACION EQUIPOS BIOMEDICOS
A108: 4 | B108: R103 | C108: Dolor localizado en otras partes inferiores del abdomen | F108: 18 | G108: 2.65095729 | H108: 6 | J108: 12 | N108: ESTAMPILLAS PROHOSPITALES | U108: 42228515
A109: 5 | B109: R101 | C109: Dolor abdominal localizado en parte superior | F109: 17 | G109: 2.503681885 | H109: 5 | J109: 12 | N109: EQUIPAMIENTO | S109: 50000000
A110: 6 | B110: R42X | C110: Mareo y desvanecimiento | F110: 15 | G110: 2.209131075 | H110: 8 | J110: 7 | N110: TELEMEDICINA
A111: 7 | B111: R11X | C111: Nausea y vomito | F111: 15 | G111: 2.209131075 | H111: 9 | J111: 6 | N111: AMBULANCIA
A112: 8 | B112: K297 | C112: Gastritis, no especificada | F112: 15 | G112: 2.209131075 | H112: 1 | J112: 14 | N112: TOTALES | Q112: =SUM(Q97:R111) -> 437483125.4 | S112: =SUM(S97:T111) -> 396639453 | U112: =SUM(U97:V111) -> 521219000
A113: 9 | B113: A90X | C113: Fiebre del dengue [dengue clasico] | F113: 15 | G113: 2.209131075 | H113: 4 | J113: 11 | N113: PROYECTOS DE INVERSION (En Cantidad)
A114: 10 | B114: M545 | C114: Lumbago no especificado | F114: 14 | G114: 2.06185567 | H114: 5 | J114: 9 | N114: PROGRAMA AEREO (No brigadas)
A115: 11 | C115: Otros Dx | F115: 408 | G115: 60.08836524 | H115: 186 | J115: 222 | N115: ASESORIA Y ASISTENCIA TECNICA | Q115: 12
A116: TOTALES | F116: 679 | G116: 100 | H116: 291 | J116: 388 | N116: CENTROS AMIGABLES JOVENES

Sheet BETULIA
C4: ALCALDE | E4: BENJAMÍN ALONSO SUÁREZ CASTILLO
C5: DIRECTOR LOCAL DE SALUD | E5: YULY TRUJILLO CARTAGENA
C7: CERTIFICACION | E7: RANKING | F7: CATEGORIA MUNICIPAL
C8: SI | E8: 3 | F8: 6
C9: TOTAL CORREGIMIENTOS | E9: 3 | F9: TOTAL VEREDAS | I9: 41
A10: CARACTERISTICAS DEMOGRAFICAS | N10: VIGILANCIA DE LA SALUD PUBLICA - AÑO 2017 ***
A11: POBLACION 2018
A12: TOTAL | B12: HOMBRES | C12: MUJERES | D12: CABECERA | E12: RESTO | N12: MORTALIDAD CANCER CUELLO UTERINO | S12: MORTALIDAD MATERNA
A13: 17726 | B13: 9055 | C13: 8671 | D13: 5968 | E13: 11758 | N13: # Casos | O13: Tasa x cienmil Mujeres | S13: # Casos | T13: Tasa x cienmil Nacidos vivos
A14: POR GRUPOS DE EDAD | N14: 0 | O14: 0 | S14: 0 | T14: 0
A15: 0 - 4 AÑOS | B15: 5 - 9 AÑOS | C15: 10 - 14 AÑOS | D15: 15 - 19 AÑOS | E15: 20 - 59 AÑOS | F15: > 60 AÑOS
A16: 1805 | B16: 1780 | C16: 1770 | D16: 1565 | E16: 9148 | F16: 1658 | N16: MORTALIDAD INFANTIL | S16: MORTALIDAD PERINATAL
N17: # Casos | O17: Tasa x cienmil Nacidos vivos | S17: # Casos | T17: Tasa x cienmil Nacidos vivos
A18: DESPLAZADOS 2015 (a marzo) | D18: INDIGENAS FEB 2014 | G18: ROM | I18: AFRO | N18: 2 | O18: 9.090909091 | S18: 3 | T18: 13.63636364
A19: TOTAL | B19: HOMBRES | C19: MUJERES | D19: TOTAL | E19: HOMBRES | F19: MUJERES
A20: 8322 | B20: 4077.78 | C20: 4244.22 | D20: 0 | E20: 0 | F20: 0 | N20: MORTALIDAD VIH SIDA | S20: MORTALIDAD TUBERCULOSIS
N21: # Casos | O21: Tasa x cienmil Habitantes | S21: # Casos | T21: Tasa x cienmil Habitantes
A22: POBLACION TOTAL | B22: Afiliados al regimen Subsidiado * | D22: % De Aseguramiento al Regimen Subsidiado * | F22: Afiliados al Regimen Contributivo * | H22: % De Aseguramiento al RS, RC, RE * | N22: 1 | O22: 5.661552398 | S22: 0 | T22: 0
N24: MORTALIDAD INFARTO AL MIOCARDIO | S24: MORTALIDAD < 5 AÑOS
A25: 17726 | B25: 13900 | D25: 78.41588627 | F25: 1205 | H25: 87.07548234 | N25: # Casos | O25: Tasa x cienmil Habitantes | S25: # Casos | T25: Tasa x cienmil Niños
H26: * Corte a Agosto 2018 | N26: 10 | O26: 56.61552398 | S26: 4 | T26: 219.6595277
A31: PRESTACION DE SERVICIOS DE SALUD **
A32: EMPRESAS SOCIALES DEL ESTADO
A33: INSTITUCION PRESTADORA DE SERVICIOS DE SALUD | F33: DIRECTOR / GERENTE | N33: 10 PRIMERAS CAUSAS DE MORTALIDAD 2017***
A34: E.S.E HOSPITAL GERMAN VELEZ GUTIERREZ | F34: JORGE IVÁN CASTRO QUINTERO | N34: ORDEN | O34: CODIGO 105 CIE-10 | P34: CAUSA | T34: TOTAL GENERAL | U34: HOMBRES | V34: MUJERES | W34: SIN DATO
N36: 1 | O36: 051 | P36: ENFERMEDADES ISQUEMICAS DEL CORAZON | T36: 13 | U36: 6 | V36: 7 | W36: 0
N37: 2 | O37: 101 | P37: AGRESIONES (HOMICIDIOS) Y SECUELAS | T37: 11 | U37: 10 | V37: 1 | W37: 0
N38: 3 | O38: 060 | P38: ENFERMEDADES CRONICAS DE LAS VIAS RESPIRATORIAS INFERIORES | T38: 8 | U38: 5 | V38: 3 | W38: 0
A39: PRESTADORES DE SERVICIOS DE SALUD | N39: 4 | O39: 020 | P39: TUMOR MALIGNO DE LA TRAQUEA, LOS BRONQUIOS Y EL PULMON | T39: 5 | U39: 4 | V39: 1 | W39: 0
A40: TOTALES | B40: IPS | C40: PROFESIONALES INDEPENDIENTES | E40: TRANSPORTE ESPECIAL | G40: OBJETO SOCIAL DIFERENTE | N40: 5 | O40: 059 | P40: NEUMONIA | T40: 3 | U40: 0 | V40: 3 | W40: 0
N41: 6 | O41: 037 | P41: TUMORES: IN SITU, BENIGNOS Y DE COMPORTAMIENTO INCIERTO O DESCONOCIDO Y LOS NO ESPECIFICADOS | T41: 3 | U41: 1 | V41: 2 | W41: 0
B42: 1 | C42: 3 | E42: 0 | G42: 0 | N42: 7 | O42: 050 | P42: ENFERMEDADES HIPERTENSIVAS | T42: 3 | U42: 1 | V42: 2 | W42: 0
A43: IPS PUBLICAS | B43: IPS PRIVADAS | C43: SERVICIOS PRESTADOS X PROFESION | N43: 8 | O43: 041 | P43: DIABETES MELLITUS | T43: 3 | U43: 3 | V43: 0 | W43: 0
C44: Odontólogos | D44: Médicos | E44: Otros | F44: Total | N44: 9 | O44: 053 | P44: TODAS LAS DEMAS FORMAS DE ENFERMEDAD DEL CORAZON | T44: 3 | U44: 1 | V44: 2 | W44: 0
N45: 10 | O45: 065 | P45: ENFERMEDADES DEL APENDICE, HERNIA Y OBSTRUCCION INTESTINAL | T45: 2 | U45: 1 | V45: 1 | W45: 0
A46: 2 | B46: 0 | C46: 1 | D46: 1 | E46: 0 | F46: =C46+D46+E46 -> 2
A48: CAPACIDAD INSTALADA | N48: PORCENTAJE DE EMBARAZOS POR GRUPO EDAD RESIDENCIA HABITUAL DE LA MADRE 2017*** | S48: TASAS DE FECUNDIDAD ESPECIFICA POR MIL MUJERES 2017***
A49: CAMAS
A50: Adultos | B50: Cuidado Agudo Mental | C50: Cuidado Intensivo Adulto | D50: Cuidado Intensivo Neonatal | E50: Cuidado Intensivo Pediátrico | F50: Cuidado Intermedio Adulto | G50: Cuidado Intermedio Mental | I50: Cuidado Intermedio Neonatal
N51: 10 a 14 AÑOS | P51: 15 a 19 AÑOS | S51: 10 a 14 AÑOS | U51: 15 a 19 AÑOS
N52: No | O52: % | P52: No | Q52: % | S52: No | T52: TASA | U52: No | V52: TASA
A53: 6 | B53: 0 | C53: 0 | D53: 0 | E53: 0 | F53: 0 | G53: 0 | I53: 0 | N53: 4 | O53: 1.809954751 | P53: 69 | Q53: 31.22171946 | S53: 4 | T53: 4.484304933 | U53: 69 | V53: 89.61038961
A54: CAMAS
A55: Cuidado Intermedio Pediátrico | B55: Farmaco- de-pendencia | C55: Obste-tricia | D55: Pediátricas | E55: Quemados Adultos | F55: Quemados Pediátrico | G55: Salud Mental Psiquiatría | I55: TOTAL CAMAS | N55: *** FUENTE: DANE. Información Preliminar
A58: 0 | B58: 0 | C58: 4 | D58: 3 | E58: 0 | F58: 0 | G58: 0 | I58: =A53+B53+C53+D53+E53+F53+G53+I53+A58+B58+C58+D58+E58+F58+G58 -> 13
A60: SALAS | E60: TOTAL SALAS | N60: INMUNIZACIONES PAI 2017
A61: PARTO | C61: QUIROFANO | N61: POLIOMIELITIS (V.O.P)
A62: 2 | C62: 0 | E62: =A62+C62 -> 2 | N62: Vacunados (Edades) | S62: Refuerzos | T62: Dosis Aplicadas
N63: <1 | O63: 1 | P63: 2 | Q63: 3 | R63: 4 | S63: Otros
A64: TOTAL DE SERVICIOS PRESTADOS SEGÚN LA COMPLEJIDAD | N64: 228 | O64: 1 | P64: 0 | Q64: 0 | R64: 0 | S64: 515 | T64: 1218
A65: BAJA | C65: MEDIA | E65: ALTA
A66: 56 | C66: 1 | E66: 0 | N66: DIFTERIA, TOSFERINA Y TÉTANO (D.P.T)
N67: Vacunados (Edades) | S67: Refuerzos | T67: Dosis
A68: TOTAL DE AMBULANCIAS HABILITADAS SEGÚN TIPO Y MODALIDAD | N68: <1 | O68: 1 | P68: 2 | Q68: 3 | R68: 4 | S68: Otros | T68: Aplicadas
A69: TIPO | C69: MODALIDAD | F69: TOTAL GENERAL | G69: **Fuente: REPS - Minsalud /IPS se incluyen todas las sedes habilitadas /febrero y abril 2018, | N69: 226 | O69: 3 | P69: 0 | Q69: 0 | R69: 0 | S69: 515 | T69: 1219
A70: BASICA | B70: MEDICADA | C70: AEREA | D70: TERRESTRE | E70: FLUVIAL Y MARIT
A71: 3 | B71: 0 | C71: 0 | D71: 3 | E71: 0 | F71: =SUM(C71:E71) -> 3 | N71: TUBERCULOSIS (B.C.G)
A72: 10 PRIMERAS CAUSAS DE HOSPITALIZACION 2016 | N72: Vacunados (Edades) | S72: Otros | T72: Dosis Aplicadas
A73: ORDEN | B73: CODIGO CIE-10 | C73: CAUSA | F73: TOTAL GENERAL | G73: % | H73: HOMBRES | J73: MUJERES | N73: RN | O73: <1 | P73: 2 | Q73: 3 | R73: 4
N74: 90 | O74: 1 | S74: 0 | T74: 91
A75: 1 | B75: J159 | C75: Neumonia bacteriana, no especificada | F75: 77 | G75: 8.071278826 | H75: 39 | J75: 38
A76: 2 | B76: O839 | C76: Parto unico asistido, sin otra especificacion | F76: 50 | G76: 5.241090147 | H76: 0 | J76: 50 | N76: TRIPLE VIRAL - S. R. P.
A77: 3 | B77: N390 | C77: Infeccion de vias urinarias, sitio no especificado | F77: 47 | G77: 4.926624738 | H77: 11 | J77: 36 | N77: Vacunados (Edades) | S77: Refuerzos | T77: Dosis Aplicadas
A78: 4 | B78: R509 | C78: Fiebre, no especificada | F78: 38 | G78: 3.983228512 | H78: 21 | J78: 17 | N78: 1 | O78: 2 | P78: 3 | Q78: 4 | R78: Ref. | S78: Otros
A79: 5 | B79: O800 | C79: Parto unico espontaneo, presentacion cefalica de vertice | F79: 34 | G79: 3.5639413 | H79: 0 | J79: 34 | N79: 236 | O79: 0 | P79: 0 | Q79: 0 | R79: 257 | S79: 0 | T79: 493
A80: 6 | B80: K750 | C80: Absceso del higado | F80: 27 | G80: 2.830188679 | H80: 0 | J80: 27
A81: 7 | B81: J180 | C81: Bronconeumonia, no especificada | F81: 26 | G81: 2.725366876 | H81: 13 | J81: 13 | N81: AGUA POTABLE 2016
A82: 8 | B82: A90X | C82: Fiebre del dengue [dengue clasico] | F82: 21 | G82: 2.201257862 | H82: 7 | J82: 14 | P82: NUMEROS ACUEDUCTOS | R82: COBERTURA ACUEDUCTOS CON AGUA POTABLE (%) | T82: COBERTURAS VIVIENDAS CON AGUA POTABLE (%)
A83: 9 | B83: J219 | C83: Bronquiolitis aguda, no especificada | F83: 18 | G83: 1.886792453 | H83: 14 | J83: 4
A84: 10 | B84: J189 | C84: Neumonia, no especificada | F84: 17 | G84: 1.78197065 | H84: 9 | J84: 8
A85: 11 | C85: Otros Dx | F85: 599 | G85: 62.78825996 | H85: 233 | J85: 366 | N85: Urbano | P85: 1 | R85: 100 | T85: 100
A86: TOTALES | F86: 954 | G86: 100 | H86: 347 | J86: 607 | N86: Rural | P86: 30 | R86: 3.333333333 | T86: 16.45
A87: 10 PRIMERAS CAUSAS DE CONSULTA 2016 | N87: Total Municipal | P87: 31 | R87: 6.451612903 | T87: 45.75
A88: ORDEN | B88: CODIGO CIE-10 | C88: CAUSA | F88: TOTAL GENERAL | G88: % | H88: HOMBRES | J88: MUJERES | N88: CERTIFACION EN AGUA POTABLE | O88: INDICE RIESGO CALIDAD DEL AGUA POTABLE - IRCA- (a) | P88: INDICE RIESGO DE ABASTECIMIENTO MUNICIPAL - IRABA- (b) | R88: BUENAS PRACTICAS SANTIARIAS © | T88: CERTIFICAION SANITARIA MUNICIPAL EN AGUA POTABLE ©
A90: 1 | B90: I10X | C90: Hipertension esencial (primaria) | F90: 3727 | G90: 8.642318841 | H90: 1146 | J90: 2581
A91: 2 | B91: J00X | C91: Rinofaringitis aguda [resfriado comun] | F91: 939 | G91: 2.177391304 | H91: 384 | J91: 555
A92: 3 | B92: N390 | C92: Infeccion de vias urinarias, sitio no especificado | F92: 624 | G92: 1.446956522 | H92: 96 | J92: 528 | N92: Urbano | O92: 1 | P92: 35.4 | R92: 24 | T92: 14.78
A93: 4 | B93: M545 | C93: Lumbago no especificado | F93: 487 | G93: 1.129275362 | H93: 187 | J93: 300 | N93: Rural | O93: 38.8 | P93: 58.5 | R93: 71.4 | T93: 52.52
A94: 5 | B94: N771 | C94: Vaginitis, vulvitis y vulvovaginitis en enfermedades infecciosas y parasitarias clasificadas en otra parte | F94: 439 | G94: 1.017971014 | H94: 0 | J94: 439 | N94: Total | O94: 21 | P94: 35.4 | R94: 49 | T94: 32.28
A95: 6 | B95: B349 | C95: Infeccion viral, no especificada | F95: 378 | G95: 0.8765217391 | H95: 177 | J95: 201 | N95: PROYECTOS DE INVERSION (En pesos)
A96: 7 | B96: H609 | C96: Otitis externa, sin otra especificacion | F96: 358 | G96: 0.8301449275 | H96: 155 | J96: 203 | Q96: 2012 | S96: 2013 | U96: 2014
A97: 8 | B97: M255 | C97: Dolor en articulacion | F97: 325 | G97: 0.7536231884 | H97: 110 | J97: 215 | N97: ADULTO MAYOR | Q97: 60000000 | S97: 17779522 | U97: 27000000
A98: 9 | B98: E039 | C98: Hipotiroidismo, no especificado | F98: 260 | G98: 0.6028985507 | H98: 42 | J98: 218 | N98: DOTACION DISCAPACIDAD | U98: 2747752
A99: 10 | B99: B348 | C99: Otras infecciones virales de sitio no especificado | F99: 242 | G99: 0.5611594203 | H99: 91 | J99: 151 | N99: APS - SALUD CONTIGO | S99: 51050000 | U99: 38480000
A100: 11 | C100: Otros Dx | F100: 35346 | G100: 81.96173913 | H100: 12647 | J100: 22699 | N100: COFINANCIACION REG. SUBSIDIADO | Q100: 543794880.2 | S100: 467042166 | U100: 616542944
A101: TOTALES | F101: 43125 | G101: 100 | H101: 15035 | J101: 28090 | N101: SSR | Q101: 2094515
A102: 10 PRIMERAS CAUSAS DE URGENCIAS 2016 | N102: PAI | Q102: 5374858
A103: ORDEN | B103: CODIGO CIE-10 | C103: CAUSA | F103: TOTAL GENERAL | G103: % | H103: HOMBRES | J103: MUJERES | N103: VECTORES | Q103: 386400
N104: ESTERILIZACION MASCOTAS | Q104: 0
A105: 1 | B105: R509 | C105: Fiebre, no especificada | F105: 103 | G105: 3.46684618 | H105: 55 | J105: 48 | N105: VACUNA ANTIRRABICA | Q105: 2104000
A106: 2 | B106: S610 | C106: Herida de dedo(s) de la mano, sin dano de la(s) una(s) | F106: 102 | G106: 3.433187479 | H106: 90 | J106: 12 | N106: INFRAESTRUCTURA
A107: 3 | B107: S810 | C107: Herida de la rodilla | F107: 82 | G107: 2.760013463 | H107: 75 | J107: 7 | N107: DOTACION EQUIPOS BIOMEDICOS
A108: 4 | B108: R101 | C108: Dolor abdominal localizado en parte superior | F108: 74 | G108: 2.490743857 | H108: 30 | J108: 44 | N108: ESTAMPILLAS PROHOSPITALES | Q108: 34405000 | U108: 87500780
A109: 5 | B109: J159 | C109: Neumonia bacteriana, no especificada | F109: 68 | G109: 2.288791653 | H109: 26 | J109: 42 | N109: EQUIPAMIENTO | S109: 40000000
A110: 6 | B110: N390 | C110: Infeccion de vias urinarias, sitio no especificado | F110: 66 | G110: 2.221474251 | H110: 13 | J110: 53 | N110: TELEMEDICINA
A111: 7 | B111: R51X | C111: Cefalea | F111: 62 | G111: 2.086839448 | H111: 26 | J111: 36 | N111: AMBULANCIA | Q111: 82000000
A112: 8 | B112: O623 | C112: Trabajo de parto precipitado | F112: 59 | G112: 1.985863346 | H112: 0 | J112: 59 | N112: TOTALES | Q112: =SUM(Q97:R111) -> 730159653.2 | S112: =SUM(S97:T111) -> 575871688 | U112: =SUM(U97:V111) -> 772271476
A113: 9 | B113: S019 | C113: Herida de la cabeza, parte no especificada | F113: 59 | G113: 1.985863346 | H113: 45 | J113: 14 | N113: PROYECTOS DE INVERSION (En Cantidad)
A114: 10 | B114: R103 | C114: Dolor localizado en otras partes inferiores del abdomen | F114: 45 | G114: 1.514641535 | H114: 19 | J114: 26 | N114: PROGRAMA AEREO (No brigadas)
A115: 11 | C115: Otros Dx | F115: 2251 | G115: 75.76573544 | H115: 1076 | J115: 1175 | N115: ASESORIA Y ASISTENCIA TECNICA | Q115: 16
A116: TOTALES | F116: 2971 | G116: 100 | H116: 1455 | J116: 1516 | N116: CENTROS AMIGABLES JOVENES

Sheet BRICEÑO
C4: ALCALDE | E4: JOSÉ DANILO AGUDELO TORRES
C5: DIRECTOR LOCAL DE SALUD | E5: JAIME ARTURO LOPEZ SÁNCHEZ
C7: CERTIFICACION | E7: RANKING | F7: CATEGORIA MUNICIPAL
C8: SI | E8: 40 | F8: 6
C9: TOTAL CORREGIMIENTOS | E9: 2 | F9: TOTAL VEREDAS | I9: 35
A10: CARACTERISTICAS DEMOGRAFICAS | N10: VIGILANCIA DE LA SALUD PUBLICA - AÑO 2017 ***
A11: POBLACION 2018
A12: TOTAL | B12: HOMBRES | C12: MUJERES | D12: CABECERA | E12: RESTO | N12: MORTALIDAD CANCER CUELLO UTERINO | S12: MORTALIDAD MATERNA
A13: 8673 | B13: 4278 | C13: 4395 | D13: 2604 | E13: 6069 | N13: # Casos | O13: Tasa x cienmil Mujeres | S13: # Casos | T13: Tasa x cienmil Nacidos vivos
A14: POR GRUPOS DE EDAD | N14: 0 | O14: 0 | S14: 0 | T14: 0
A15: 0 - 4 AÑOS | B15: 5 - 9 AÑOS | C15: 10 - 14 AÑOS | D15: 15 - 19 AÑOS | E15: 20 - 59 AÑOS | F15: > 60 AÑOS
A16: 895 | B16: 895 | C16: 883 | D16: 784 | E16: 4320 | F16: 896 | N16: MORTALIDAD INFANTIL | S16: MORTALIDAD PERINATAL
N17: # Casos | O17: Tasa x cienmil Nacidos vivos | S17: # Casos | T17: Tasa x cienmil Nacidos vivos
A18: DESPLAZADOS 2015 (a marzo) | D18: INDIGENAS FEB 2014 | G18: ROM | I18: AFRO | N18: 1 | O18: 10.1010101 | S18: 2 | T18: 20.2020202
A19: TOTAL | B19: HOMBRES | C19: MUJERES | D19: TOTAL | E19: HOMBRES | F19: MUJERES
A20: 1020 | B20: 499.8 | C20: 520.2 | D20: 0 | E20: 0 | F20: 0 | N20: MORTALIDAD VIH SIDA | S20: MORTALIDAD TUBERCULOSIS
N21: # Casos | O21: Tasa x cienmil Habitantes | S21: # Casos | T21: Tasa x cienmil Habitantes
A22: POBLACION TOTAL | B22: Afiliados al regimen Subsidiado * | D22: % De Aseguramiento al Regimen Subsidiado * | F22: Afiliados al Regimen Contributivo * | H22: % De Aseguramiento al RS, RC, RE * | N22: 0 | O22: 0 | S22: 0 | T22: 0
N24: MORTALIDAD INFARTO AL MIOCARDIO | S24: MORTALIDAD < 5 AÑOS
A25: 8673 | B25: 5999 | D25: 69.16868442 | F25: 770 | H25: 80.17986856 | N25: # Casos | O25: Tasa x cienmil Habitantes | S25: # Casos | T25: Tasa x cienmil Niños
H26: * Corte a Agosto 2018 | N26: 5 | O26: 57.59041695 | S26: 1 | T26: 110.4972376
A31: PRESTACION DE SERVICIOS DE SALUD **
A32: EMPRESAS SOCIALES DEL ESTADO
A33: INSTITUCION PRESTADORA DE SERVICIOS DE SALUD | F33: DIRECTOR / GERENTE | N33: 10 PRIMERAS CAUSAS DE MORTALIDAD 2017***
A34: EMPRESA SOCIAL DEL ESTADO HOSPITAL EL SAGRADO CORAZON | F34: YENIFER PAULINA CARRASQUILLA AGUDELO | N34: ORDEN | O34: CODIGO 105 CIE-10 | P34: CAUSA | T34: TOTAL GENERAL | U34: HOMBRES | V34: MUJERES | W34: SIN DATO
N36: 1 | O36: 101 | P36: AGRESIONES (HOMICIDIOS) Y SECUELAS | T36: 19 | U36: 16 | V36: 3 | W36: 0
N37: 2 | O37: 051 | P37: ENFERMEDADES ISQUEMICAS DEL CORAZON | T37: 5 | U37: 3 | V37: 2 | W37: 0
N38: 3 | O38: 055 | P38: ENFERMEDADES CEREBROVASCULARES | T38: 3 | U38: 2 | V38: 1 | W38: 0
A39: PRESTADORES DE SERVICIOS DE SALUD | N39: 4 | O39: 089 | P39: SIGNOS, SINTOMAS Y AFECCIONES MAL DEFINIDAS | T39: 3 | U39: 2 | V39: 1 | W39: 0
A40: TOTALES | B40: IPS | C40: PROFESIONALES INDEPENDIENTES | E40: TRANSPORTE ESPECIAL | G40: OBJETO SOCIAL DIFERENTE | N40: 5 | O40: 070 | P40: HEMORRAGIA GASTROINTESTINAL | T40: 2 | U40: 1 | V40: 1 | W40: 0
N41: 6 | O41: 050 | P41: ENFERMEDADES HIPERTENSIVAS | T41: 2 | U41: 2 | V41: 0 | W41: 0
B42: 1 | C42: 1 | E42: 0 | G42: 0 | N42: 7 | O42: 054 | P42: INSUFICIENCIA CARDIACA | T42: 2 | U42: 1 | V42: 1 | W42: 0
A43: IPS PUBLICAS | B43: IPS PRIVADAS | C43: SERVICIOS PRESTADOS X PROFESION | N43: 8 | O43: 013 | P43: TUMOR MALIGNO DEL ESTOMAGO | T43: 2 | U43: 2 | V43: 0 | W43: 0
C44: Odontólogos | D44: Médicos | E44: Otros | F44: Total | N44: 9 | O44: 082 | P44: TRASTORNOS RESPIRATORIOS ESPECIFICOS DEL PERIODO PERINATAL | T44: 1 | U44: 1 | V44: 0 | W44: 0
N45: 10 | O45: 100 | P45: LESIONES AUTOINFLIGIDAS INTENCIONALMENTE (SUICIDIOS) Y SECUELAS | T45: 1 | U45: 1 | V45: 0 | W45: 0
A46: 4 | B46: 0 | C46: 0 | D46: 0 | E46: 0 | F46: =C46+D46+E46 -> 0
A48: CAPACIDAD INSTALADA | N48: PORCENTAJE DE EMBARAZOS POR GRUPO EDAD RESIDENCIA HABITUAL DE LA MADRE 2017*** | S48: TASAS DE FECUNDIDAD ESPECIFICA POR MIL MUJERES 2017***
A49: CAMAS
A50: Adultos | B50: Cuidado Agudo Mental | C50: Cuidado Intensivo Adulto | D50: Cuidado Intensivo Neonatal | E50: Cuidado Intensivo Pediátrico | F50: Cuidado Intermedio Adulto | G50: Cuidado Intermedio Mental | I50: Cuidado Intermedio Neonatal
N51: 10 a 14 AÑOS | P51: 15 a 19 AÑOS | S51: 10 a 14 AÑOS | U51: 15 a 19 AÑOS
N52: No | O52: % | P52: No | Q52: % | S52: No | T52: TASA | U52: No | V52: TASA
A53: 4 | B53: 0 | C53: 0 | D53: 0 | E53: 0 | F53: 0 | G53: 0 | I53: 0 | N53: 4 | O53: 4 | P53: 32 | Q53: 32 | S53: 4 | T53: 9.324009324 | U53: 32 | V53: 82.2622108
A54: CAMAS
A55: Cuidado Intermedio Pediátrico | B55: Farmaco- de-pendencia | C55: Obste-tricia | D55: Pediátricas | E55: Quemados Adultos | F55: Quemados Pediátrico | G55: Salud Mental Psiquiatría | I55: TOTAL CAMAS | N55: *** FUENTE: DANE. Información Preliminar
A58: 0 | B58: 0 | C58: 3 | D58: 3 | E58: 0 | F58: 0 | G58: 0 | I58: =A53+B53+C53+D53+E53+F53+G53+I53+A58+B58+C58+D58+E58+F58+G58 -> 10
A60: SALAS | E60: TOTAL SALAS | N60: INMUNIZACIONES PAI 2017
A61: PARTO | C61: QUIROFANO | N61: POLIOMIELITIS (V.O.P)
A62: 1 | C62: 0 | E62: =A62+C62 -> 1 | N62: Vacunados (Edades) | S62: Refuerzos | T62: Dosis Aplicadas
N63: <1 | O63: 1 | P63: 2 | Q63: 3 | R63: 4 | S63: Otros
A64: TOTAL DE SERVICIOS PRESTADOS SEGÚN LA COMPLEJIDAD | N64: 105 | O64: 0 | P64: 0 | Q64: 0 | R64: 1 | S64: 236 | T64: 549
A65: BAJA | C65: MEDIA | E65: ALTA
A66: 64 | C66: 0 | E66: 0 | N66: DIFTERIA, TOSFERINA Y TÉTANO (D.P.T)
N67: Vacunados (Edades) | S67: Refuerzos | T67: Dosis
A68: TOTAL DE AMBULANCIAS HABILITADAS SEGÚN TIPO Y MODALIDAD | N68: <1 | O68: 1 | P68: 2 | Q68: 3 | R68: 4 | S68: Otros | T68: Aplicadas
A69: TIPO | C69: MODALIDAD | F69: TOTAL GENERAL | G69: **Fuente: REPS - Minsalud /IPS se incluyen todas las sedes habilitadas /febrero y abril 2018, | N69: 105 | O69: 0 | P69: 0 | Q69: 0 | R69: 1 | S69: 236 | T69: 549
A70: BASICA | B70: MEDICADA | C70: AEREA | D70: TERRESTRE | E70: FLUVIAL Y MARIT
A71: 2 | B71: 0 | C71: 0 | D71: 2 | E71: 0 | F71: =SUM(C71:E71) -> 2 | N71: TUBERCULOSIS (B.C.G)
A72: 10 PRIMERAS CAUSAS DE HOSPITALIZACION 2016 | N72: Vacunados (Edades) | S72: Otros | T72: Dosis Aplicadas
A73: ORDEN | B73: CODIGO CIE-10 | C73: CAUSA | F73: TOTAL GENERAL | G73: % | H73: HOMBRES | J73: MUJERES | N73: RN | O73: <1 | P73: 2 | Q73: 3 | R73: 4
N74: 37 | O74: 0 | S74: 0 | T74: 37
A75: 1 | B75: O800 | C75: Parto unico espontaneo, presentacion cefalica de vertice | F75: 48 | G75: 16.96113074 | H75: 0 | J75: 48
A76: 2 | B76: C910 | C76: Leucemia linfoblastica aguda [LLA] | F76: 15 | G76: 5.300353357 | H76: 15 | J76: 0 | N76: TRIPLE VIRAL - S. R. P.
A77: 3 | B77: N390 | C77: Infeccion de vias urinarias, sitio no especificado | F77: 13 | G77: 4.593639576 | H77: 7 | J77: 6 | N77: Vacunados (Edades) | S77: Refuerzos | T77: Dosis Aplicadas
A78: 4 | B78: L031 | C78: Celulitis de otras partes de los miembros | F78: 11 | G78: 3.886925795 | H78: 10 | J78: 1 | N78: 1 | O78: 2 | P78: 3 | Q78: 4 | R78: Ref. | S78: Otros
A79: 5 | B79: T10X | C79: Fractura de miembro superior, nivel no especificado | F79: 5 | G79: 1.766784452 | H79: 5 | J79: 0 | N79: 106 | O79: 0 | P79: 0 | Q79: 1 | R79: 128 | S79: 0 | T79: 235
A80: 6 | B80: K359 | C80: Apendicitis aguda, no especificada | F80: 4 | G80: 1.413427562 | H80: 2 | J80: 2
A81: 7 | B81: S424 | C81: Fractura de la epifisis inferior del humero | F81: 4 | G81: 1.413427562 | H81: 0 | J81: 4 | N81: AGUA POTABLE 2016
A82: 8 | B82: S610 | C82: Herida de dedo(s) de la mano, sin dano de la(s) una(s) | F82: 4 | G82: 1.413427562 | H82: 4 | J82: 0 | P82: NUMEROS ACUEDUCTOS | R82: COBERTURA ACUEDUCTOS CON AGUA POTABLE (%) | T82: COBERTURAS VIVIENDAS CON AGUA POTABLE (%)
A83: 9 | B83: T07X | C83: Traumatismos multiples, no especificados | F83: 4 | G83: 1.413427562 | H83: 4 | J83: 0
A84: 10 | B84: L039 | C84: Celulitis de sitio no especificado | F84: 4 | G84: 1.413427562 | H84: 3 | J84: 1
A85: 11 | C85: Otros Dx | F85: 171 | G85: 60.42402827 | H85: 96 | J85: 75 | N85: Urbano | P85: 1 | R85: 100 | T85: 98
A86: TOTALES | F86: 283 | G86: 100 | H86: 146 | J86: 137 | N86: Rural | P86: 15 | R86: 0 | T86: 0
A87: 10 PRIMERAS CAUSAS DE CONSULTA 2016 | N87: Total Municipal | P87: 16 | R87: 6.25 | T87: 35.22
A88: ORDEN | B88: CODIGO CIE-10 | C88: CAUSA | F88: TOTAL GENERAL | G88: % | H88: HOMBRES | J88: MUJERES | N88: CERTIFACION EN AGUA POTABLE | O88: INDICE RIESGO CALIDAD DEL AGUA POTABLE - IRCA- (a) | P88: INDICE RIESGO DE ABASTECIMIENTO MUNICIPAL - IRABA- (b) | R88: BUENAS PRACTICAS SANTIARIAS © | T88: CERTIFICAION SANITARIA MUNICIPAL EN AGUA POTABLE ©
A90: 1 | B90: C910 | C90: Leucemia linfoblastica aguda [LLA] | F90: 654 | G90: 16.23231571 | H90: 654 | J90: 0
A91: 2 | B91: H200 | C91: Iridociclitis aguda y subaguda | F91: 72 | G91: 1.787043931 | H91: 72 | J91: 0
A92: 3 | B92: L039 | C92: Celulitis de sitio no especificado | F92: 70 | G92: 1.737403822 | H92: 67 | J92: 3 | N92: Urbano | O92: 0 | P92: 37.2 | R92: 24 | T92: 14.64
A93: 4 | B93: D821 | C93: Sindrome de Di George | F93: 64 | G93: 1.588483495 | H93: 2 | J93: 62 | N93: Rural | O93: 61.1 | P93: 75.8 | R93: 96.1 | T93: 74.54
A94: 5 | B94: I10X | C94: Hipertension esencial (primaria) | F94: 44 | G94: 1.092082403 | H94: 11 | J94: 33 | N94: Total | O94: 25.7 | P94: 42.7 | R94: 54.3 | T94: 37.68
A95: 6 | B95: N390 | C95: Infeccion de vias urinarias, sitio no especificado | F95: 39 | G95: 0.9679821296 | H95: 5 | J95: 34 | N95: PROYECTOS DE INVERSION (En pesos)
A96: 7 | B96: D381 | C96: Tumor de comportamiento incierto o desconocido de la traquea, de los bronquios y del pulmon | F96: 34 | G96: 0.8438818565 | H96: 0 | J96: 34 | Q96: 2012 | S96: 2013 | U96: 2014
A97: 8 | B97: G409 | C97: Epilepsia, tipo no especificado | F97: 32 | G97: 0.7942417473 | H97: 27 | J97: 5 | N97: ADULTO MAYOR | Q97: 50000000 | S97: 22465100 | U97: 220000000
A98: 9 | B98: L97X | C98: ulcera de miembro inferior, no clasificada en otra parte | F98: 30 | G98: 0.7446016381 | H98: 30 | J98: 0 | N98: DOTACION DISCAPACIDAD | U98: 2747752
A99: 10 | B99: Q254 | C99: Otras malformaciones congenitas de la aorta | F99: 30 | G99: 0.7446016381 | H99: 0 | J99: 30 | N99: APS - SALUD CONTIGO | S99: 48600000 | U99: 35000000
A100: 11 | C100: Otros Dx | F100: 2960 | G100: 73.46736163 | H100: 1159 | J100: 1801 | N100: COFINANCIACION REG. SUBSIDIADO | Q100: 354874895.8 | S100: 304786871 | U100: 402349527
A101: TOTALES | F101: 4029 | G101: 100 | H101: 2027 | J101: 2002 | N101: SSR | Q101: 1055663
A102: 10 PRIMERAS CAUSAS DE URGENCIAS 2016 | N102: PAI | Q102: 2709000
A103: ORDEN | B103: CODIGO CIE-10 | C103: CAUSA | F103: TOTAL GENERAL | G103: % | H103: HOMBRES | J103: MUJERES | N103: VECTORES | Q103: 386400
N104: ESTERILIZACION MASCOTAS | Q104: 0
A105: 1 | B105: O800 | C105: Parto unico espontaneo, presentacion cefalica de vertice | F105: 32 | G105: 6.4 | H105: 0 | J105: 32 | N105: VACUNA ANTIRRABICA | Q105: 1562000
A106: 2 | B106: R101 | C106: Dolor abdominal localizado en parte superior | F106: 23 | G106: 4.6 | H106: 8 | J106: 15 | N106: INFRAESTRUCTURA
A107: 3 | B107: R51X | C107: Cefalea | F107: 12 | G107: 2.4 | H107: 4 | J107: 8 | N107: DOTACION EQUIPOS BIOMEDICOS
A108: 4 | B108: A09X | C108: Diarrea y gastroenteritis de presunto origen infeccioso | F108: 9 | G108: 1.8 | H108: 3 | J108: 6 | N108: ESTAMPILLAS PROHOSPITALES | Q108: 28723000 | S108: 4966548 | U108: 13247116
A109: 5 | B109: N23X | C109: Colico renal, no especificado | F109: 9 | G109: 1.8 | H109: 5 | J109: 4 | N109: EQUIPAMIENTO
A110: 6 | B110: N390 | C110: Infeccion de vias urinarias, sitio no especificado | F110: 8 | G110: 1.6 | H110: 1 | J110: 7 | N110: TELEMEDICINA
A111: 7 | B111: T10X | C111: Fractura de miembro superior, nivel no especificado | F111: 7 | G111: 1.4 | H111: 3 | J111: 4 | N111: AMBULANCIA
A112: 8 | B112: J459 | C112: Asma, no especificado | F112: 6 | G112: 1.2 | H112: 3 | J112: 3 | N112: TOTALES | Q112: =SUM(Q97:R111) -> 439310958.8 | S112: =SUM(S97:T111) -> 380818519 | U112: =SUM(U97:V111) -> 673344395
A113: 9 | B113: O48X | C113: Embarazo prolongado | F113: 6 | G113: 1.2 | H113: 0 | J113: 6 | N113: PROYECTOS DE INVERSION (En Cantidad)
A114: 10 | B114: S837 | C114: Traumatismo de estructuras multiples de la rodilla | F114: 5 | G114: 1 | H114: 5 | J114: 0 | N114: PROGRAMA AEREO (No brigadas)
A115: 11 | C115: Otros Dx | F115: 383 | G115: 76.6 | H115: 194 | J115: 189 | N115: ASESORIA Y ASISTENCIA TECNICA | Q115: 12
A116: TOTALES | F116: 500 | G116: 100 | H116: 226 | J116: 274 | N116: CENTROS AMIGABLES JOVENES | S116: SI

Sheet BURITICA
C4: ALCALDE | E4: HUMBERTO ANTONIO CASTAÑO ÚSUGA
C5: DIRECTOR LOCAL DE SALUD | E5: JUAN FELIPE GOMEZ TORO
C7: CERTIFICACION | E7: RANKING | F7: CATEGORIA MUNICIPAL
C8: SI | E8: 50 | F8: 6
C9: TOTAL CORREGIMIENTOS | E9: 5 | F9: TOTAL VEREDAS | I9: 31
A10: CARACTERISTICAS DEMOGRAFICAS | N10: VIGILANCIA DE LA SALUD PUBLICA - AÑO 2017 ***
A11: POBLACION 2018
A12: TOTAL | B12: HOMBRES | C12: MUJERES | D12: CABECERA | E12: RESTO | N12: MORTALIDAD CANCER CUELLO UTERINO | S12: MORTALIDAD MATERNA
A13: 6495 | B13: 3447 | C13: 3048 | D13: 1608 | E13: 4887 | N13: # Casos | O13: Tasa x cienmil Mujeres | S13: # Casos | T13: Tasa x cienmil Nacidos vivos
A14: POR GRUPOS DE EDAD | N14: 0 | O14: 0 | S14: 0 | T14: 0
A15: 0 - 4 AÑOS | B15: 5 - 9 AÑOS | C15: 10 - 14 AÑOS | D15: 15 - 19 AÑOS | E15: 20 - 59 AÑOS | F15: > 60 AÑOS
A16: 664 | B16: 634 | C16: 590 | D16: 596 | E16: 3269 | F16: 742 | N16: MORTALIDAD INFANTIL | S16: MORTALIDAD PERINATAL
N17: # Casos | O17: Tasa x cienmil Nacidos vivos | S17: # Casos | T17: Tasa x cienmil Nacidos vivos
A18: DESPLAZADOS 2015 (a marzo) | D18: INDIGENAS FEB 2014 | G18: ROM | I18: AFRO | N18: 1 | O18: 10.1010101 | S18: 3 | T18: 30.3030303
A19: TOTAL | B19: HOMBRES | C19: MUJERES | D19: TOTAL | E19: HOMBRES | F19: MUJERES
A20: 2720 | B20: 1332.8 | C20: 1387.2 | D20: 0 | E20: 0 | F20: 0 | N20: MORTALIDAD VIH SIDA | S20: MORTALIDAD TUBERCULOSIS
N21: # Casos | O21: Tasa x cienmil Habitantes | S21: # Casos | T21: Tasa x cienmil Habitantes
A22: POBLACION TOTAL | B22: Afiliados al regimen Subsidiado * | D22: % De Aseguramiento al Regimen Subsidiado * | F22: Afiliados al Regimen Contributivo * | H22: % De Aseguramiento al RS, RC, RE * | N22: 0 | O22: 0 | S22: 0 | T22: 0
N24: MORTALIDAD INFARTO AL MIOCARDIO | S24: MORTALIDAD < 5 AÑOS
A25: 6495 | B25: 5471 | D25: 84.23402617 | F25: 1957 | H25: 100 | N25: # Casos | O25: Tasa x cienmil Habitantes | S25: # Casos | T25: Tasa x cienmil Niños
H26: * Corte a Agosto 2018 | N26: 3 | O26: 45.93477262 | S26: 1 | T26: 148.8095238
A31: PRESTACION DE SERVICIOS DE SALUD **
A32: EMPRESAS SOCIALES DEL ESTADO
A33: INSTITUCION PRESTADORA DE SERVICIOS DE SALUD | F33: DIRECTOR / GERENTE | N33: 10 PRIMERAS CAUSAS DE MORTALIDAD 2017***
A34: ESE HOSPITAL SAN ANTONIO | F34: PAULA ANDREA ÁNGEL HIGUITA | N34: ORDEN | O34: CODIGO 105 CIE-10 | P34: CAUSA | T34: TOTAL GENERAL | U34: HOMBRES | V34: MUJERES | W34: SIN DATO
N36: 1 | O36: 099 | P36: ENVENENAMIENTO ACCIDENTAL POR Y EXPOSICION A SUSTANCIAS NOCIVAS | T36: 7 | U36: 7 | V36: 0 | W36: 0
N37: 2 | O37: 089 | P37: SIGNOS, SINTOMAS Y AFECCIONES MAL DEFINIDAS | T37: 6 | U37: 2 | V37: 4 | W37: 0
N38: 3 | O38: 060 | P38: ENFERMEDADES CRONICAS DE LAS VIAS RESPIRATORIAS INFERIORES | T38: 4 | U38: 2 | V38: 2 | W38: 0
A39: PRESTADORES DE SERVICIOS DE SALUD | N39: 4 | O39: 050 | P39: ENFERMEDADES HIPERTENSIVAS | T39: 3 | U39: 3 | V39: 0 | W39: 0
A40: TOTALES | B40: IPS | C40: PROFESIONALES INDEPENDIENTES | E40: TRANSPORTE ESPECIAL | G40: OBJETO SOCIAL DIFERENTE | N40: 5 | O40: 055 | P40: ENFERMEDADES CEREBROVASCULARES | T40: 3 | U40: 1 | V40: 2 | W40: 0
N41: 6 | O41: 051 | P41: ENFERMEDADES ISQUEMICAS DEL CORAZON | T41: 3 | U41: 3 | V41: 0 | W41: 0
B42: 2 | C42: 0 | E42: 0 | G42: 0 | N42: 7 | O42: 101 | P42: AGRESIONES (HOMICIDIOS) Y SECUELAS | T42: 3 | U42: 3 | V42: 0 | W42: 0
A43: IPS PUBLICAS | B43: IPS PRIVADAS | C43: SERVICIOS PRESTADOS X PROFESION | N43: 8 | O43: 028 | P43: TUMOR MALIGNO DE LA PROSTATA | T43: 2 | U43: 2 | V43: 0 | W43: 0
C44: Odontólogos | D44: Médicos | E44: Otros | F44: Total | N44: 9 | O44: 096 | P44: OTROS ACCIDENTES QUE OBSTRUYEN LA RESPIRACION | T44: 2 | U44: 2 | V44: 0 | W44: 0
N45: 10 | O45: 031 | P45: TUMOR MALIGNOS DEL ENCEFALO, DEL OJO Y DE OTRAS PARTES DEL SISTEMA NERVIOSO CENTRAL | T45: 1 | U45: 1 | V45: 0 | W45: 0
A46: 1 | B46: 1 | C46: 1 | D46: 0 | E46: 0 | F46: =C46+D46+E46 -> 1
A48: CAPACIDAD INSTALADA | N48: PORCENTAJE DE EMBARAZOS POR GRUPO EDAD RESIDENCIA HABITUAL DE LA MADRE 2017*** | S48: TASAS DE FECUNDIDAD ESPECIFICA POR MIL MUJERES 2017***
A49: CAMAS
A50: Adultos | B50: Cuidado Agudo Mental | C50: Cuidado Intensivo Adulto | D50: Cuidado Intensivo Neonatal | E50: Cuidado Intensivo Pediátrico | F50: Cuidado Intermedio Adulto | G50: Cuidado Intermedio Mental | I50: Cuidado Intermedio Neonatal
N51: 10 a 14 AÑOS | P51: 15 a 19 AÑOS | S51: 10 a 14 AÑOS | U51: 15 a 19 AÑOS
N52: No | O52: % | P52: No | Q52: % | S52: No | T52: TASA | U52: No | V52: TASA
A53: 2 | B53: 0 | C53: 0 | D53: 0 | E53: 0 | F53: 0 | G53: 0 | I53: 0 | N53: 1 | O53: 0.9900990099 | P53: 39 | Q53: 38.61386139 | S53: 1 | T53: 3.636363636 | U53: 39 | V53: 140.7942238
A54: CAMAS
A55: Cuidado Intermedio Pediátrico | B55: Farmaco- de-pendencia | C55: Obste-tricia | D55: Pediátricas | E55: Quemados Adultos | F55: Quemados Pediátrico | G55: Salud Mental Psiquiatría | I55: TOTAL CAMAS | N55: *** FUENTE: DANE. Información Preliminar
A58: 0 | B58: 0 | C58: 2 | D58: 2 | E58: 0 | F58: 0 | G58: 0 | I58: =A53+B53+C53+D53+E53+F53+G53+I53+A58+B58+C58+D58+E58+F58+G58 -> 6
A60: SALAS | E60: TOTAL SALAS | N60: INMUNIZACIONES PAI 2017
A61: PARTO | C61: QUIROFANO | N61: POLIOMIELITIS (V.O.P)
A62: 0 | C62: 0 | E62: =A62+C62 -> 0 | N62: Vacunados (Edades) | S62: Refuerzos | T62: Dosis Aplicadas
N63: <1 | O63: 1 | P63: 2 | Q63: 3 | R63: 4 | S63: Otros
A64: TOTAL DE SERVICIOS PRESTADOS SEGÚN LA COMPLEJIDAD | N64: 123 | O64: 1 | P64: 1 | Q64: 0 | R64: 0 | S64: 243 | T64: 608
A65: BAJA | C65: MEDIA | E65: ALTA
A66: 34 | C66: 13 | E66: 0 | N66: DIFTERIA, TOSFERINA Y TÉTANO (D.P.T)
N67: Vacunados (Edades) | S67: Refuerzos | T67: Dosis
A68: TOTAL DE AMBULANCIAS HABILITADAS SEGÚN TIPO Y MODALIDAD | N68: <1 | O68: 1 | P68: 2 | Q68: 3 | R68: 4 | S68: Otros | T68: Aplicadas
A69: TIPO | C69: MODALIDAD | F69: TOTAL GENERAL | G69: **Fuente: REPS - Minsalud /IPS se incluyen todas las sedes habilitadas /febrero y abril 2018, | N69: 123 | O69: 1 | P69: 1 | Q69: 0 | R69: 0 | S69: 241 | T69: 606
A70: BASICA | B70: MEDICADA | C70: AEREA | D70: TERRESTRE | E70: FLUVIAL Y MARIT
A71: 3 | B71: 0 | C71: 0 | D71: 3 | E71: 0 | F71: =SUM(C71:E71) -> 3 | N71: TUBERCULOSIS (B.C.G)
A72: 10 PRIMERAS CAUSAS DE HOSPITALIZACION 2016 | N72: Vacunados (Edades) | S72: Otros | T72: Dosis Aplicadas
A73: ORDEN | B73: CODIGO CIE-10 | C73: CAUSA | F73: TOTAL GENERAL | G73: % | H73: HOMBRES | J73: MUJERES | N73: RN | O73: <1 | P73: 2 | Q73: 3 | R73: 4
N74: 37 | O74: 2 | S74: 0 | T74: 39
A75: 1 | B75: N390 | C75: Infeccion de vias urinarias, sitio no especificado | F75: 38 | G75: 7.723577236 | H75: 8 | J75: 30
A76: 2 | B76: O800 | C76: Parto unico espontaneo, presentacion cefalica de vertice | F76: 28 | G76: 5.691056911 | H76: 0 | J76: 28 | N76: TRIPLE VIRAL - S. R. P.
A77: 3 | B77: N202 | C77: Calculo del rinon con calculo del ureter | F77: 21 | G77: 4.268292683 | H77: 21 | J77: 0 | N77: Vacunados (Edades) | S77: Refuerzos | T77: Dosis Aplicadas
A78: 4 | B78: L031 | C78: Celulitis de otras partes de los miembros | F78: 13 | G78: 2.642276423 | H78: 3 | J78: 10 | N78: 1 | O78: 2 | P78: 3 | Q78: 4 | R78: Ref. | S78: Otros
A79: 5 | B79: O470 | C79: Falso trabajo de parto antes de las 37 semanas completas de gestacion | F79: 9 | G79: 1.829268293 | H79: 0 | J79: 9 | N79: 124 | O79: 1 | P79: 0 | Q79: 0 | R79: 122 | S79: 2 | T79: 249
A80: 6 | B80: J180 | C80: Bronconeumonia, no especificada | F80: 8 | G80: 1.62601626 | H80: 4 | J80: 4
A81: 7 | B81: J441 | C81: Enfermedad pulmonar obstructiva cronica con exacerbacion aguda, no especificada | F81: 7 | G81: 1.422764228 | H81: 4 | J81: 3 | N81: AGUA POTABLE 2016
A82: 8 | B82: R520 | C82: Dolor agudo | F82: 7 | G82: 1.422764228 | H82: 7 | J82: 0 | P82: NUMEROS ACUEDUCTOS | R82: COBERTURA ACUEDUCTOS CON AGUA POTABLE (%) | T82: COBERTURAS VIVIENDAS CON AGUA POTABLE (%)
A83: 9 | B83: A09X | C83: Diarrea y gastroenteritis de presunto origen infeccioso | F83: 7 | G83: 1.422764228 | H83: 3 | J83: 4
A84: 10 | B84: S822 | C84: Fractura de la diafisis de la tibia | F84: 5 | G84: 1.016260163 | H84: 5 | J84: 0
A85: 11 | C85: Otros Dx | F85: 349 | G85: 70.93495935 | H85: 182 | J85: 167 | N85: Urbano | P85: 1 | R85: 0 | T85: 100
A86: TOTALES | F86: 492 | G86: 100 | H86: 237 | J86: 255 | N86: Rural | P86: 37 | R86: 0 | T86: 0
A87: 10 PRIMERAS CAUSAS DE CONSULTA 2016 | N87: Total Municipal | P87: 38 | R87: 0 | T87: 27.49
A88: ORDEN | B88: CODIGO CIE-10 | C88: CAUSA | F88: TOTAL GENERAL | G88: % | H88: HOMBRES | J88: MUJERES | N88: CERTIFACION EN AGUA POTABLE | O88: INDICE RIESGO CALIDAD DEL AGUA POTABLE - IRCA- (a) | P88: INDICE RIESGO DE ABASTECIMIENTO MUNICIPAL - IRABA- (b) | R88: BUENAS PRACTICAS SANTIARIAS © | T88: CERTIFICAION SANITARIA MUNICIPAL EN AGUA POTABLE ©
A90: 1 | B90: I10X | C90: Hipertension esencial (primaria) | F90: 388 | G90: 4.276424556 | H90: 131 | J90: 257
A91: 2 | B91: T312 | C91: Quemaduras que afectan del 20 al 29% de la superficie del cuerpo | F91: 358 | G91: 3.945773173 | H91: 358 | J91: 0
A92: 3 | B92: N390 | C92: Infeccion de vias urinarias, sitio no especificado | F92: 243 | G92: 2.678276204 | H92: 64 | J92: 179 | N92: Urbano | O92: 0 | P92: 37.1 | R92: 18 | T92: 12.82
A93: 4 | B93: M545 | C93: Lumbago no especificado | F93: 155 | G93: 1.70836548 | H93: 117 | J93: 38 | N93: Rural | O93: 94.9 | P93: 66.2 | R93: 98.4 | T93: 90.21
A94: 5 | B94: S025 | C94: Fractura de los dientes | F94: 126 | G94: 1.38873581 | H94: 79 | J94: 47 | N94: Total | O94: 63.7 | P94: 43.2 | R94: 72 | T94: 62.09
A95: 6 | B95: S626 | C95: Fractura de otro dedo de la mano | F95: 105 | G95: 1.157279841 | H95: 104 | J95: 1 | N95: PROYECTOS DE INVERSION (En pesos)
A96: 7 | B96: J00X | C96: Rinofaringitis aguda [resfriado comun] | F96: 104 | G96: 1.146258129 | H96: 65 | J96: 39 | Q96: 2012 | S96: 2013 | U96: 2014
A97: 8 | B97: A09X | C97: Diarrea y gastroenteritis de presunto origen infeccioso | F97: 101 | G97: 1.11319299 | H97: 63 | J97: 38 | N97: ADULTO MAYOR | Q97: 100000000 | S97: 36765562 | U97: 37000000
A98: 9 | B98: S822 | C98: Fractura de la diafisis de la tibia | F98: 64 | G98: 0.7053896175 | H98: 64 | J98: 0 | N98: DOTACION DISCAPACIDAD | U98: 2747752
A99: 10 | B99: J039 | C99: Amigdalitis aguda, no especificada | F99: 60 | G99: 0.6613027664 | H99: 26 | J99: 34 | N99: APS - SALUD CONTIGO | Q99: 72900000 | S99: 90000000
A100: 11 | C100: Otros Dx | F100: 7369 | G100: 81.21900143 | H100: 3102 | J100: 4267 | N100: COFINANCIACION REG. SUBSIDIADO | Q100: 257258685.8 | S100: 220948483 | U100: 291674367
A101: TOTALES | F101: 9073 | G101: 100 | H101: 4173 | J101: 4900 | N101: SSR | Q101: 812309
A102: 10 PRIMERAS CAUSAS DE URGENCIAS 2016 | N102: PAI | Q102: 2084515
A103: ORDEN | B103: CODIGO CIE-10 | C103: CAUSA | F103: TOTAL GENERAL | G103: % | H103: HOMBRES | J103: MUJERES | N103: VECTORES | Q103: 386400
N104: ESTERILIZACION MASCOTAS | Q104: 0
A105: 1 | B105: B269 | C105: Parotiditis, sin complicaciones | F105: 39 | G105: 6.818181818 | H105: 25 | J105: 14 | N105: VACUNA ANTIRRABICA | Q105: 1338000
A106: 2 | B106: B349 | C106: Infeccion viral, no especificada | F106: 20 | G106: 3.496503497 | H106: 8 | J106: 12 | N106: INFRAESTRUCTURA | S106: 325000000
A107: 3 | B107: O200 | C107: Amenaza de aborto | F107: 18 | G107: 3.146853147 | H107: 0 | J107: 18 | N107: DOTACION EQUIPOS BIOMEDICOS | S107: 175081000
A108: 4 | B108: A09X | C108: Diarrea y gastroenteritis de presunto origen infeccioso | F108: 18 | G108: 3.146853147 | H108: 13 | J108: 5 | N108: ESTAMPILLAS PROHOSPITALES | Q108: 31279000 | U108: 46824840
A109: 5 | B109: S800 | C109: Contusion de la rodilla | F109: 14 | G109: 2.447552448 | H109: 9 | J109: 5 | N109: EQUIPAMIENTO
A110: 6 | B110: N390 | C110: Infeccion de vias urinarias, sitio no especificado | F110: 12 | G110: 2.097902098 | H110: 6 | J110: 6 | N110: TELEMEDICINA | S110: 54905280
A111: 7 | B111: O800 | C111: Parto unico espontaneo, presentacion cefalica de vertice | F111: 11 | G111: 1.923076923 | H111: 0 | J111: 11 | N111: AMBULANCIA | S111: 114900000
A112: 8 | B112: R51X | C112: Cefalea | F112: 7 | G112: 1.223776224 | H112: 2 | J112: 5 | N112: TOTALES | Q112: =SUM(Q97:R111) -> 466058909.8 | S112: =SUM(S97:T111) -> 1017600325 | U112: =SUM(U97:V111) -> 378246959
A113: 9 | B113: S400 | C113: Contusion del hombro y del brazo | F113: 6 | G113: 1.048951049 | H113: 6 | J113: 0 | N113: PROYECTOS DE INVERSION (En Cantidad)
A114: 10 | B114: S701 | C114: Contusion del muslo | F114: 6 | G114: 1.048951049 | H114: 6 | J114: 0 | N114: PROGRAMA AEREO (No brigadas) | S114: 3
A115: 11 | C115: Otros Dx | F115: 421 | G115: 73.6013986 | H115: 254 | J115: 167 | N115: ASESORIA Y ASISTENCIA TECNICA | Q115: 11
A116: TOTALES | F116: 572 | G116: 100 | H116: 329 | J116: 243 | N116: CENTROS AMIGABLES JOVENES | S116: SI

Sheet CACERES
C4: ALCALDE | E4: JOSÉ MERCEDES BERRÍO BERRÍO
C5: DIRECTOR LOCAL DE SALUD | E5: ANTONIO BANQUEZ POLO
C7: CERTIFICACION | E7: RANKING | F7: CATEGORIA MUNICIPAL
C8: SI | F8: 6
C9: TOTAL CORREGIMIENTOS | E9: 5 | F9: TOTAL VEREDAS | I9: 48
A10: CARACTERISTICAS DEMOGRAFICAS | N10: VIGILANCIA DE LA SALUD PUBLICA - AÑO 2017 ***
A11: POBLACION 2018
A12: TOTAL | B12: HOMBRES | C12: MUJERES | D12: CABECERA | E12: RESTO | N12: MORTALIDAD CANCER CUELLO UTERINO | S12: MORTALIDAD MATERNA
A13: 41012 | B13: 20501 | C13: 20511 | D13: 9461 | E13: 31551 | N13: # Casos | O13: Tasa x cienmil Mujeres | S13: # Casos | T13: Tasa x cienmil Nacidos vivos
A14: POR GRUPOS DE EDAD | N14: 1 | O14: 5.008263635 | S14: 0 | T14: 0
A15: 0 - 4 AÑOS | B15: 5 - 9 AÑOS | C15: 10 - 14 AÑOS | D15: 15 - 19 AÑOS | E15: 20 - 59 AÑOS | F15: > 60 AÑOS
A16: 5379 | B16: 4958 | C16: 4672 | D16: 4318 | E16: 19590 | F16: 2095 | N16: MORTALIDAD INFANTIL | S16: MORTALIDAD PERINATAL
N17: # Casos | O17: Tasa x cienmil Nacidos vivos | S17: # Casos | T17: Tasa x cienmil Nacidos vivos
A18: DESPLAZADOS 2015 (a marzo) | D18: INDIGENAS FEB 2014 | G18: ROM | I18: AFRO | N18: 9 | O18: 28.21316614 | S18: 10 | T18: 31.34796238
A19: TOTAL | B19: HOMBRES | C19: MUJERES | D19: TOTAL | E19: HOMBRES | F19: MUJERES
A20: 5285 | B20: 2589.65 | C20: 2695.35 | D20: 1672 | E20: 862 | F20: 810 | N20: MORTALIDAD VIH SIDA | S20: MORTALIDAD TUBERCULOSIS
N21: # Casos | O21: Tasa x cienmil Habitantes | S21: # Casos | T21: Tasa x cienmil Habitantes
A22: POBLACION TOTAL | B22: Afiliados al regimen Subsidiado * | D22: % De Aseguramiento al Regimen Subsidiado * | F22: Afiliados al Regimen Contributivo * | H22: % De Aseguramiento al RS, RC, RE * | N22: 1 | O22: 2.505135528 | S22: 0 | T22: 0
N24: MORTALIDAD INFARTO AL MIOCARDIO | S24: MORTALIDAD < 5 AÑOS
A25: 41012 | B25: 23917 | D25: 58.31707793 | F25: 1085 | H25: 68.25319419 | N25: # Casos | O25: Tasa x cienmil Habitantes | S25: # Casos | T25: Tasa x cienmil Niños
H26: * Corte a Agosto 2018 | N26: 17 | O26: 42.58730397 | S26: 11 | T26: 208.9268756
A31: PRESTACION DE SERVICIOS DE SALUD **
A32: EMPRESAS SOCIALES DEL ESTADO
A33: INSTITUCION PRESTADORA DE SERVICIOS DE SALUD | F33: DIRECTOR / GERENTE | N33: 10 PRIMERAS CAUSAS DE MORTALIDAD 2017***
A34: EMPRESA SOCIAL DEL ESTADO HOSPITAL ISABEL LA CATOLICA | F34: SEVERIANO ANTONIO RIVERA ANAYA | N34: ORDEN | O34: CODIGO 105 CIE-10 | P34: CAUSA | T34: TOTAL GENERAL | U34: HOMBRES | V34: MUJERES | W34: SIN DATO
N36: 1 | O36: 051 | P36: ENFERMEDADES ISQUEMICAS DEL CORAZON | T36: 19 | U36: 11 | V36: 8 | W36: 0
N37: 2 | O37: 101 | P37: AGRESIONES (HOMICIDIOS) Y SECUELAS | T37: 16 | U37: 14 | V37: 2 | W37: 0
N38: 3 | O38: 090 | P38: ACCIDENTES DE TRANSPORTE DE MOTOR Y SECUELAS | T38: 11 | U38: 6 | V38: 5 | W38: 0
A39: PRESTADORES DE SERVICIOS DE SALUD | N39: 4 | O39: 089 | P39: SIGNOS, SINTOMAS Y AFECCIONES MAL DEFINIDAS | T39: 7 | U39: 2 | V39: 5 | W39: 0
A40: TOTALES | B40: IPS | C40: PROFESIONALES INDEPENDIENTES | E40: TRANSPORTE ESPECIAL | G40: OBJETO SOCIAL DIFERENTE | N40: 5 | O40: 055 | P40: ENFERMEDADES CEREBROVASCULARES | T40: 7 | U40: 3 | V40: 4 | W40: 0
N41: 6 | O41: 105 | P41: OTROS ACCIDENTES Y SECUELAS | T41: 6 | U41: 5 | V41: 1 | W41: 0
B42: 2 | C42: 0 | E42: 0 | G42: 0 | N42: 7 | O42: 020 | P42: TUMOR MALIGNO DE LA TRAQUEA, LOS BRONQUIOS Y EL PULMON | T42: 5 | U42: 3 | V42: 2 | W42: 0
A43: IPS PUBLICAS | B43: IPS PRIVADAS | C43: SERVICIOS PRESTADOS X PROFESION | N43: 8 | O43: 062 | P43: TODAS LAS DEMAS ENFERMEDADES DEL SISTEMA RESPIRATORIO | T43: 3 | U43: 1 | V43: 2 | W43: 0
C44: Odontólogos | D44: Médicos | E44: Otros | F44: Total | N44: 9 | O44: 041 | P44: DIABETES MELLITUS | T44: 3 | U44: 1 | V44: 2 | W44: 0
N45: 10 | O45: 050 | P45: ENFERMEDADES HIPERTENSIVAS | T45: 3 | U45: 2 | V45: 1 | W45: 0
